Workbook

Sheet Inputs
A1: Company | C1: Kentucky Power Company
A2: State/Jurisdiction | C2: Kentucky Jurisdiction
A3: Sample Year Begins | C3: 2016-03-01 | D3: =+C3+0/24 -> 2016-03-01
A4: Test Year Ends | C4: =DATE(YEAR(TYStart)+1,MONTH(TYStart),DAY(TYStart))-1 -> 2017-02-28 | D4: =+C4+23/24 -> 2017-02-28T23:00:00
A5: Reporting Year Begins | C5: 2016-03-01
A8: Loss Factors by System | G8: Coincident Peaks
B9: Total | C9: Fixed | D9: Variable | G9: Year | H9: Month | I9: Day | J9: Hour Ended | K9: Coincident Peak
A10: Transmission | B10: 0.04534 | C10: 0.00318 | D10: =+B10-C10 -> 0.04216 | G10: =YEAR(TYStart) -> 2016 | H10: =MONTH(TYStart) -> 3 | I10: 3 | J10: 8 | K10: =DATEVALUE(H10&"/"&I10&"/"&G10)+(J10-1)/24 -> 2016-03-03T07:00:00
A11: Subtransmission | B11: 0.02321 | C11: 0.00109 | D11: =+B11-C11 -> 0.02212 | G11: =IF(H11=1,G10+1,G10) -> 2016 | H11: =IF(H10+1=13,1,H10+1) -> 4 | I11: 10 | J11: 9 | K11: =DATEVALUE(H11&"/"&I11&"/"&G11)+(J11-1)/24 -> 2016-04-10T08:00:00
A12: Primary Distribution | B12: 0.02863 | C12: 0.0021 | D12: =+B12-C12 -> 0.02653 | G12: =IF(H12=1,G11+1,G11) -> 2016 | H12: =IF(H11+1=13,1,H11+1) -> 5 | I12: 31 | J12: 17 | K12: 2016-05-31T16:00:00
A13: Secondary Distribution | B13: 0.03247 | C13: 0.01131 | D13: =+B13-C13 -> 0.02116 | G13: 2016 | H13: 6 | I13: 16 | J13: 17 | K13: 2016-06-16T16:00:00
G14: 2016 | H14: 7 | I14: 25 | J14: 15 | K14: 2016-07-25T14:00:00
G15: 2016 | H15: 8 | I15: 9 | J15: 17 | K15: 2016-08-09T16:00:00
A16: Distribution Load Served | G16: 2016 | H16: 9 | I16: 8 | J16: 17 | K16: 2016-09-08T16:00:00
A17: on Subtran System | B17: 0.761 | G17: 2016 | H17: 10 | I17: 19 | J17: 17 | K17: 2016-10-19T16:00:00
A18: on Transmission System | B18: =1-DistAtSubtran -> 0.239 | G18: 2016 | H18: 11 | I18: 22 | J18: 8 | K18: 2016-11-22T07:00:00
G19: 2016 | H19: 12 | I19: 16 | J19: 8 | K19: 2016-12-16T07:00:00
G20: 2017 | H20: 1 | I20: 9 | J20: 8 | K20: 2017-01-09T07:00:00
G21: 2017 | H21: 2 | I21: 4 | J21: 9 | K21: 2017-02-04T08:00:00
A26: Time of Day Inputs
A28: Holiday Name | B28: Date | D28: Peak Start Hour | E28: 7 | F28: =+E28/24 -> 07:00:00
A29: New Year's Day | D29: Peak End Hour | E29: 21 | F29: =+E29/24 -> 21:00:00
A30: Presidents' Day
A31: Memorial Day | D31: Use Daylight Savings | E31: FALSE
A32: Independence Day | D32: DST Date #1 | E32: 2016-03-13
A33: Labor Day | D33: DST Date #2 | E33: 2016-11-06
A34: Thanksgiving Day
A35: Christmas Day
A40: DST Dates
B41: 2011 | C41: 2012 | D41: 2013 | E41: 2014
A42: Starts | B42: 2011-03-13 | C42: 2012-03-11 | D42: 2013-03-10 | E42: 2014-03-09
A43: Ends | B43: 2011-11-06 | C43: 2012-11-04 | D43: 2013-11-03 | E43: 2014-11-02

Sheet Accum Loss Factors (hidden)
A6: Cumulative Total Loss Factors
B8: Voltage Level
B9: Secondary | C9: Primary | D9: Subtransmission | E9: Transmission
A10: @ Primary | B10: =1+Inputs!B13 -> 1.03247 | C10: 1 | D10: 0 | E10: 0
A11: @ Subtran before split | B11: =+B10*C11 -> 1.062029616 | C11: =1+Inputs!B12 -> 1.02863 | D11: 0 | E11: 0
A12: @ Subtransmission | B12: =+DistAtSubtran*B11 -> 0.8082045379 | C12: =+C11*DistAtSubtran -> 0.78278743 | D12: 1 | E12: 0
A13: @ Transmission | B13: =+C13*B10 -> 1.080788043 | C13: =(1+Inputs!B12)*((D13*DistAtSubtran)+DistAtTran) -> 1.046798496 | D13: =1+Inputs!B11 -> 1.02321 | E13: 1
A14: @ Generation | B14: =+B13*E14 -> 1.129790973 | C14: =+C13*E14 -> 1.09426034 | D14: =+D13*E14 -> 1.069602341 | E14: =1+Inputs!B10 -> 1.04534
A17: Voltage Factors
B19: Voltage Level
B20: Secondary | C20: Primary | D20: Subtransmission | E20: Transmission
A21: @ Primary | B21: 1 | C21: 1 | D21: 0 | E21: 0
A22: @ Subtran before split | B22: 1 | C22: =1+Inputs!B23 -> 1 | D22: 0 | E22: 0
A23: @ Subtransmission | B23: =+DistAtSubtran -> 0.761 | C23: =+DistAtSubtran -> 0.761 | D23: 1 | E23: 0
A24: @ Transmission | B24: 1 | C24: 1 | D24: 1 | E24: 1
A25: @ Generation | B25: 1 | C25: 1 | D25: 1 | E25: 1

Sheet Metered
D1: Total | E1: Total @ | F1: Total @ | G1: Total @ | H1: Total @ | I1: Res | J1: SGS | K1: MGS Sec | L1: MGS Pri | M1: MGS Sub | N1: LGS Sec | O1: LGS Pri | P1: LGS Sub | Q1: LGS Tran | R1: PS Sec | S1: PS Pri | T1: IGS Sec | U1: IGS Pri | V1: IGS Sub | W1: IGS Tran | X1: MW | Y1: OL | Z1: SL | AA1: Blank 0 | AB1: Blank 1 | AC1: Blank 2 | AD1: Blank 3 | AE1: Blank 4 | AF1: Blank 5 | AG1: Blank 6 | AH1: Blank 7 | AI1: Blank 8 | AJ1: Blank 9 | AK1: Blank 10 | AL1: Blank 11 | AM1: Blank 12
A2: Period | B2: On Peak | C2: Date | D2: Metered | E2: Secondary | F2: Primary | G2: Subtransmission | H2: Transmission | I2: Secondary | J2: Secondary | K2: Secondary | L2: Primary | M2: Subtransmission | N2: Secondary | O2: Primary | P2: Subtransmission | Q2: Transmission | R2: Secondary | S2: Primary | T2: Secondary | U2: Primary | V2: Subtransmission | W2: Transmission | X2: Secondary | Y2: Secondary | Z2: Secondary | AA2: Subtransmission | AB2: Secondary | AC2: Secondary | AD2: Subtransmission | AE2: Transmission | AF2: Secondary | AG2: Primary | AH2: Subtransmission | AI2: Transmission | AJ2: Secondary | AK2: Primary | AL2: Subtransmission | AM2: Subtransmission
A3: =MONTH(C3) -> 3 | B3: =PeakTime(C3,Holidays,PkStart,PkEnd,UseDST,DST_1,DST_2) -> FALSE | C3: =+Inputs!C3 -> 2016-03-01 | D3: =SUM(OFFSET(I3,0,0,1,COUNTA(I3:IV3))) -> 705692.2501 | E3: =SUMIF(OFFSET($I$2,0,0,1,COUNTA($I$2:$IV$2)),E$2,OFFSET(I3,0,0,1,COUNTA(I3:IV3))) -> 425348.5128 | F3: =E3+SUMIF(OFFSET($I$2,0,0,1,COUNTA($I$2:$IV$2)),F$2,OFFSET(I3,0,0,1,COUNTA(I3:IV3))) -> 461155.3663 | G3: =F3*DistAtSubtran+SUMIF(OFFSET($I$2,0,0,1,COUNTA($I$2:$IV$2)),G$2,OFFSET(I3,0,0,1,COUNTA(I3:IV3))) -> 553859.819 | H3: =SUM(OFFSET(I3,0,0,1,COUNTA(I3:IV3))) -> 705692.2501 | I3: 314211.1574 | J3: 14636.80557 | K3: 40652.35651 | L3: 2364.299874 | M3: 178.6388245 | N3: 32570.18569 | O3: 7498.599795 | P3: 5096.580238 | Q3: 964.1136405 | R3: 8649.886108 | S3: 169.0731421 | T3: 1833.436078 | U3: 25774.8807 | V3: 197645.3662 | W3: 40652.18489 | X3: 205.5718827 | Y3: 10435.08793 | Z3: 2154.025682 | AA3: 0 | AB3: 0 | AC3: 0 | AD3: 0 | AE3: 0 | AF3: 0 | AG3: 0 | AH3: 0 | AI3: 0 | AJ3: 0 | AK3: 0 | AL3: 0 | AM3: 0
A4: =MONTH(C4) -> 3 | B4: FALSE | C4: =+C3+1/24 -> 2016-03-01T01:00:00 | D4: 712406.4035 | E4: 436215.0529 | F4: 470264.2742 | G4: 558399.0246 | H4: 712406.4035 | I4: 322209.4983 | J4: 14454.19635 | K4: 43301.98404 | L4: 2518.399527 | M4: 190.2820942 | N4: 32763.40313 | O4: 7543.084046 | P4: 5126.81489 | Q4: 969.8330914 | R4: 8808.743386 | S4: 172.1782118 | T4: 1858.998847 | U4: 23815.55953 | V4: 195210.815 | W4: 40644.38423 | X4: 229.1151786 | Y4: 10435.08793 | Z4: 2154.025682 | AA4: 0 | AB4: 0 | AC4: 0 | AD4: 0 | AE4: 0 | AF4: 0 | AG4: 0 | AH4: 0 | AI4: 0 | AJ4: 0 | AK4: 0 | AL4: 0 | AM4: 0
A5: 3 | B5: FALSE | C5: 2016-03-01T02:00:00 | D5: 685244.0262 | E5: 413345.5987 | F5: 447092.1384 | G5: 536864.2338 | H5: 685244.0262 | I5: 297496.6461 | J5: 15694.92243 | K5: 43941.4521 | L5: 2555.590342 | M5: 193.0921114 | N5: 32400.83665 | O5: 7459.610744 | P5: 5070.080514 | Q5: 959.1007212 | R5: 9095.609205 | S5: 177.7853729 | T5: 1921.794426 | U5: 23553.55321 | V5: 191363.9438 | W5: 40565.67066 | X5: 205.2242418 | Y5: 10435.08793 | Z5: 2154.025682 | AA5: 0 | AB5: 0 | AC5: 0 | AD5: 0 | AE5: 0 | AF5: 0 | AG5: 0 | AH5: 0 | AI5: 0 | AJ5: 0 | AK5: 0 | AL5: 0 | AM5: 0
A6: 3 | B6: FALSE | C6: 2016-03-01T03:00:00 | D6: 723300.9225 | E6: 448618.7076 | F6: 482581.346 | G6: 566435.6088 | H6: 723300.9225 | I6: 330652.3935 | J6: 15871.61505 | K6: 44364.40145 | L6: 2580.188648 | M6: 194.9506795 | N6: 33102.7927 | O6: 7621.221351 | P6: 5179.922544 | Q6: 979.8793991 | R6: 9877.047467 | S6: 193.0595882 | T6: 1932.491913 | U6: 23568.16887 | V6: 193816.3313 | W6: 40548.4926 | X6: 228.8518656 | Y6: 10435.08793 | Z6: 2154.025682 | AA6: 0 | AB6: 0 | AC6: 0 | AD6: 0 | AE6: 0 | AF6: 0 | AG6: 0 | AH6: 0 | AI6: 0 | AJ6: 0 | AK6: 0 | AL6: 0 | AM6: 0
A7: 3 | B7: FALSE | C7: 2016-03-01T04:00:00 | D7: 750960.6492 | E7: 475623.0391 | F7: 510679.4944 | G7: 587285.4237 | H7: 750960.6492 | I7: 353989.9043 | J7: 16698.74279 | K7: 42589.23991 | L7: 2476.94705 | M7: 187.1500796 | N7: 36691.6868 | O7: 8447.488687 | P7: 5741.512427 | Q7: 1086.114647 | R7: 10885.59106 | S7: 212.772869 | T7: 1949.163213 | U7: 23919.24663 | V7: 192729.666 | W7: 40536.71169 | X7: 229.5974186 | Y7: 10435.08793 | Z7: 2154.025682 | AA7: 0 | AB7: 0 | AC7: 0 | AD7: 0 | AE7: 0 | AF7: 0 | AG7: 0 | AH7: 0 | AI7: 0 | AJ7: 0 | AK7: 0 | AL7: 0 | AM7: 0
A8: 3 | B8: FALSE | C8: 2016-03-01T05:00:00 | D8: 846913.4805 | E8: 568490.9408 | F8: 606159.5674 | G8: 660291.7783 | H8: 846913.4805 | I8: 440914.9024 | J8: 17277.96258 | K8: 43487.2066 | L8: 2529.171884 | M8: 191.0960184 | N8: 43572.59388 | O8: 10031.67273 | P8: 6818.236256 | Q8: 1289.797133 | R8: 12553.02995 | S8: 245.3651054 | T8: 2051.692348 | U8: 24862.41686 | V8: 191995.0152 | W8: 40459.76849 | X8: 240.8103428 | Y8: 6956.725496 | Z8: 1436.017164 | AA8: 0 | AB8: 0 | AC8: 0 | AD8: 0 | AE8: 0 | AF8: 0 | AG8: 0 | AH8: 0 | AI8: 0 | AJ8: 0 | AK8: 0 | AL8: 0 | AM8: 0
A9: 3 | B9: FALSE | C9: 2016-03-01T06:00:00 | D9: 885270.6681 | E9: 594881.7372 | F9: 637906.5653 | G9: 690685.5611 | H9: 885270.6681 | I9: 460469.3104 | J9: 16963.89251 | K9: 46554.62663 | L9: 2707.569925 | M9: 204.5751954 | N9: 52971.86159 | O9: 12195.65631 | P9: 8289.032969 | Q9: 1568.025888 | R9: 15563.07925 | S9: 304.2003878 | T9: 2130.186674 | U9: 27817.40147 | V9: 196745.0567 | W9: 40557.41204 | X9: 228.7801055 | Y9: 0 | Z9: 0 | AA9: 0 | AB9: 0 | AC9: 0 | AD9: 0 | AE9: 0 | AF9: 0 | AG9: 0 | AH9: 0 | AI9: 0 | AJ9: 0 | AK9: 0 | AL9: 0 | AM9: 0
A10: 3 | B10: TRUE | C10: 2016-03-01T07:00:00 | D10: 899972.4093 | E10: 600999.5965 | F10: 647662.7565 | G10: 702965.1695 | H10: 899972.4093 | I10: 448715.8747 | J10: 18074.70748 | K10: 56934.75872 | L10: 3311.267893 | M10: 250.1886544 | N10: 56943.7837 | O10: 13110.10778 | P10: 8910.559047 | Q10: 1685.59919 | R10: 17995.85773 | S10: 351.7521703 | T10: 2094.343327 | U10: 29890.03222 | V10: 200933.064 | W10: 40530.24187 | X10: 240.2708269 | Y10: 0 | Z10: 0 | AA10: 0 | AB10: 0 | AC10: 0 | AD10: 0 | AE10: 0 | AF10: 0 | AG10: 0 | AH10: 0 | AI10: 0 | AJ10: 0 | AK10: 0 | AL10: 0 | AM10: 0
A11: 3 | B11: TRUE | C11: 2016-03-01T08:00:00 | D11: 868454.2275 | E11: 556303.4344 | F11: 606985.1826 | G11: 680850.7085 | H11: 868454.2275 | I11: 382671.6171 | J11: 18818.25435 | K11: 68301.1709 | L11: 3972.326911 | M11: 300.1361282 | N11: 64056.06532 | O11: 14747.56094 | P11: 10023.48835 | Q11: 1896.130618 | R11: 20218.01551 | S11: 395.1871003 | T11: 2013.625956 | U11: 31566.67319 | V11: 208611.3601 | W11: 40637.92978 | X11: 224.6853478 | Y11: 0 | Z11: 0 | AA11: 0 | AB11: 0 | AC11: 0 | AD11: 0 | AE11: 0 | AF11: 0 | AG11: 0 | AH11: 0 | AI11: 0 | AJ11: 0 | AK11: 0 | AL11: 0 | AM11: 0
A12: 3 | B12: TRUE | C12: 2016-03-01T09:00:00 | D12: 811269.8448 | E12: 502182.8914 | F12: 552071.6152 | G12: 636312.8253 | H12: 811269.8448 | I12: 329274.0029 | J12: 20639.05142 | K12: 67968.0814 | L12: 3952.954763 | M12: 298.6724316 | N12: 62547.1268 | O12: 14400.15961 | P12: 9787.36976 | Q12: 1851.464364 | R12: 19644.97902 | S12: 383.9863657 | T12: 1886.089812 | U12: 31151.62304 | V12: 206100.2839 | W12: 41160.43909 | X12: 223.5600476 | Y12: 0 | Z12: 0 | AA12: 0 | AB12: 0 | AC12: 0 | AD12: 0 | AE12: 0 | AF12: 0 | AG12: 0 | AH12: 0 | AI12: 0 | AJ12: 0 | AK12: 0 | AL12: 0 | AM12: 0
A13: 3 | B13: TRUE | C13: 2016-03-01T10:00:00 | D13: 746995.3302 | E13: 439513.3772 | F13: 487607.5196 | G13: 587106.0326 | H13: 746995.3302 | I13: 280570.7317 | J13: 18605.53791 | K13: 59753.54855 | L13: 3475.205854 | M13: 262.5752746 | N13: 59476.08893 | O13: 13693.11777 | P13: 9306.81398 | Q13: 1760.558235 | R13: 19076.62733 | S13: 372.8772012 | T13: 1800.787855 | U13: 30552.94163 | V13: 206467.3209 | W13: 41590.54218 | X13: 230.0548792 | Y13: 0 | Z13: 0 | AA13: 0 | AB13: 0 | AC13: 0 | AD13: 0 | AE13: 0 | AF13: 0 | AG13: 0 | AH13: 0 | AI13: 0 | AJ13: 0 | AK13: 0 | AL13: 0 | AM13: 0
A14: 3 | B14: TRUE | C14: 2016-03-01T11:00:00 | D14: 677736.9432 | E14: 369644.4748 | F14: 417884.9936 | G14: 534563.5689 | H14: 677736.9432 | I14: 215548.0098 | J14: 15048.54744 | K14: 60494.39665 | L14: 3518.292829 | M14: 265.8307866 | N14: 56808.37868 | O14: 13078.93363 | P14: 8889.37088 | Q14: 1681.591051 | R14: 19666.33195 | S14: 384.403736 | T14: 1848.995973 | U14: 31258.88862 | V14: 207397.8871 | W14: 41617.26976 | X14: 229.8142765 | Y14: 0 | Z14: 0 | AA14: 0 | AB14: 0 | AC14: 0 | AD14: 0 | AE14: 0 | AF14: 0 | AG14: 0 | AH14: 0 | AI14: 0 | AJ14: 0 | AK14: 0 | AL14: 0 | AM14: 0
A15: 3 | B15: TRUE | C15: 2016-03-01T12:00:00 | D15: 653384.8142 | E15: 345312.778 | F15: 393991.4242 | G15: 516020.5432 | H15: 653384.8142 | I15: 192636.7783 | J15: 14925.49737 | K15: 59638.97852 | L15: 3468.542577 | M15: 262.0718191 | N15: 57189.78084 | O15: 13166.74345 | P15: 8949.052661 | Q15: 1692.880978 | R15: 18865.50054 | S15: 368.7504568 | T15: 1838.020664 | U15: 31674.60972 | V15: 206981.9449 | W15: 41507.43959 | X15: 218.2217746 | Y15: 0 | Z15: 0 | AA15: 0 | AB15: 0 | AC15: 0 | AD15: 0 | AE15: 0 | AF15: 0 | AG15: 0 | AH15: 0 | AI15: 0 | AJ15: 0 | AK15: 0 | AL15: 0 | AM15: 0
A16: 3 | B16: TRUE | C16: 2016-03-01T13:00:00 | D16: 639293.1305 | E16: 336245.6481 | F16: 384620.0261 | G16: 504318.8069 | H16: 639293.1305 | I16: 187489.9249 | J16: 14972.73016 | K16: 60275.84709 | L16: 3505.582208 | M16: 264.8704133 | N16: 54424.92048 | O16: 12530.19254 | P16: 8516.407517 | Q16: 1611.038043 | R16: 17034.4167 | S16: 332.9595696 | T16: 1813.569299 | U16: 32005.64374 | V16: 202841.6891 | W16: 41439.09925 | X16: 234.2393922 | Y16: 0 | Z16: 0 | AA16: 0 | AB16: 0 | AC16: 0 | AD16: 0 | AE16: 0 | AF16: 0 | AG16: 0 | AH16: 0 | AI16: 0 | AJ16: 0 | AK16: 0 | AL16: 0 | AM16: 0
A17: 3 | B17: TRUE | C17: 2016-03-01T14:00:00 | D17: 634116.1799 | E17: 334029.0671 | F17: 380902.8057 | G17: 500514.4251 | H17: 634116.1799 | I17: 196165.527 | J17: 15833.26594 | K17: 56083.42035 | L17: 3261.754916 | M17: 246.4476145 | N17: 48052.47877 | O17: 11063.07194 | P17: 7519.248311 | Q17: 1422.406697 | R17: 15841.05988 | S17: 309.6338766 | T17: 1821.766038 | U17: 32239.27786 | V17: 202881.694 | W17: 41143.57761 | X17: 231.5491228 | Y17: 0 | Z17: 0 | AA17: 0 | AB17: 0 | AC17: 0 | AD17: 0 | AE17: 0 | AF17: 0 | AG17: 0 | AH17: 0 | AI17: 0 | AJ17: 0 | AK17: 0 | AL17: 0 | AM17: 0
A18: 3 | B18: TRUE | C18: 2016-03-01T15:00:00 | D18: 628415.3227 | E18: 334801.3701 | F18: 377883.9068 | G18: 495782.8544 | H18: 628415.3227 | I18: 202475.2486 | J18: 15097.56102 | K18: 53286.55167 | L18: 3099.091866 | M18: 234.1573225 | N18: 48547.59321 | O18: 11177.06162 | P18: 7596.723782 | Q18: 1437.062634 | R18: 13403.10944 | S18: 261.9810017 | T18: 1791.618682 | U18: 28544.40219 | V18: 200382.3203 | W18: 40881.15193 | X18: 199.6874453 | Y18: 0 | Z18: 0 | AA18: 0 | AB18: 0 | AC18: 0 | AD18: 0 | AE18: 0 | AF18: 0 | AG18: 0 | AH18: 0 | AI18: 0 | AJ18: 0 | AK18: 0 | AL18: 0 | AM18: 0
A19: 3 | B19: TRUE | C19: 2016-03-01T16:00:00 | D19: 636073.4199 | E19: 345079.7887 | F19: 386225.1649 | G19: 501592.6606 | H19: 636073.4199 | I19: 219488.9026 | J19: 15139.6987 | K19: 54377.72291 | L19: 3162.55328 | M19: 238.9522609 | N19: 42396.10636 | O19: 9760.811239 | P19: 6634.139577 | Q19: 1254.971797 | R19: 11738.32215 | S19: 229.4405942 | T19: 1773.83586 | U19: 27992.57114 | V19: 200802.2183 | W19: 40917.97303 | X19: 165.2001181 | Y19: 0 | Z19: 0 | AA19: 0 | AB19: 0 | AC19: 0 | AD19: 0 | AE19: 0 | AF19: 0 | AG19: 0 | AH19: 0 | AI19: 0 | AJ19: 0 | AK19: 0 | AL19: 0 | AM19: 0
A20: 3 | B20: TRUE | C20: 2016-03-01T17:00:00 | D20: 655104.5137 | E20: 365427.1983 | F20: 404949.9838 | G20: 516191.5934 | H20: 655104.5137 | I20: 247836.2354 | J20: 14497.89459 | K20: 50251.52896 | L20: 2922.57802 | M20: 220.8205092 | N20: 40026.10029 | O20: 9215.167218 | P20: 6263.281202 | Q20: 1184.816987 | R20: 10912.295 | S20: 213.2948319 | T20: 1703.538155 | U20: 27171.74543 | V20: 201540.554 | W20: 40945.05714 | X20: 199.6059158 | Y20: 0 | Z20: 0 | AA20: 0 | AB20: 0 | AC20: 0 | AD20: 0 | AE20: 0 | AF20: 0 | AG20: 0 | AH20: 0 | AI20: 0 | AJ20: 0 | AK20: 0 | AL20: 0 | AM20: 0
A21: 3 | B21: TRUE | C21: 2016-03-01T18:00:00 | D21: 696494.5124 | E21: 409279.8243 | F21: 448869.8213 | G21: 547076.9147 | H21: 696494.5124 | I21: 282347.4744 | J21: 15261.26388 | K21: 49455.15291 | L21: 2876.261596 | M21: 217.3209905 | N21: 41152.84395 | O21: 9474.576234 | P21: 6439.593967 | Q21: 1218.16985 | R21: 10716.71076 | S21: 209.4718866 | T21: 1730.76809 | U21: 27029.68733 | V21: 198830.0658 | W21: 40919.54054 | X21: 222.8675813 | Y21: 6956.725496 | Z21: 1436.017164 | AA21: 0 | AB21: 0 | AC21: 0 | AD21: 0 | AE21: 0 | AF21: 0 | AG21: 0 | AH21: 0 | AI21: 0 | AJ21: 0 | AK21: 0 | AL21: 0 | AM21: 0
A22: 3 | B22: TRUE | C22: 2016-03-01T19:00:00 | D22: 716413.706 | E22: 430478.2067 | F22: 469131.9669 | G22: 562247.3404 | H22: 716413.706 | I22: 300921.7833 | J22: 14195.37127 | K22: 50647.78843 | L22: 2945.624069 | M22: 222.5617939 | N22: 39704.17015 | O22: 9141.04958 | P22: 6212.905598 | Q22: 1175.287497 | R22: 10443.5228 | S22: 204.1320768 | T22: 1726.322355 | U22: 26362.95449 | V22: 198802.4462 | W22: 40868.53809 | X22: 250.1347749 | Y22: 10435.08793 | Z22: 2154.025682 | AA22: 0 | AB22: 0 | AC22: 0 | AD22: 0 | AE22: 0 | AF22: 0 | AG22: 0 | AH22: 0 | AI22: 0 | AJ22: 0 | AK22: 0 | AL22: 0 | AM22: 0
A23: 3 | B23: TRUE | C23: 2016-03-01T20:00:00 | D23: 718590.4093 | E23: 432290.3822 | F23: 470420.5503 | G23: 564234.0167 | H23: 718590.4093 | I23: 307326.2313 | J23: 13523.78962 | K23: 47977.51542 | L23: 2790.323696 | M23: 210.8278017 | N23: 39226.22505 | O23: 9031.012778 | P23: 6138.116784 | Q23: 1161.139792 | R23: 9761.563942 | S23: 190.8023142 | T23: 1631.573285 | U23: 26118.02936 | V23: 199895.0333 | W23: 40764.7413 | X23: 254.3699151 | Y23: 10435.08793 | Z23: 2154.025682 | AA23: 0 | AB23: 0 | AC23: 0 | AD23: 0 | AE23: 0 | AF23: 0 | AG23: 0 | AH23: 0 | AI23: 0 | AJ23: 0 | AK23: 0 | AL23: 0 | AM23: 0
A24: 3 | B24: FALSE | C24: 2016-03-01T21:00:00 | D24: 705324.3466 | E24: 416071.8486 | F24: 453431.5326 | G24: 555214.4551 | H24: 705324.3466 | I24: 298899.1676 | J24: 13725.05523 | K24: 43503.98292 | L24: 2530.147578 | M24: 191.1697387 | N24: 36030.75164 | O24: 8295.322276 | P24: 5638.089342 | Q24: 1066.550233 | R24: 9401.251428 | S24: 183.759543 | T24: 1678.392059 | U24: 26350.45467 | V24: 204323.7997 | W24: 40673.20489 | X24: 244.1340557 | Y24: 10435.08793 | Z24: 2154.025682 | AA24: 0 | AB24: 0 | AC24: 0 | AD24: 0 | AE24: 0 | AF24: 0 | AG24: 0 | AH24: 0 | AI24: 0 | AJ24: 0 | AK24: 0 | AL24: 0 | AM24: 0
A25: 3 | B25: FALSE | C25: 2016-03-01T22:00:00 | D25: 676513.5434 | E25: 387746.3907 | F25: 424135.6202 | G25: 533405.708 | H25: 676513.5434 | I25: 273032.0697 | J25: 14272.98286 | K25: 41299.21987 | L25: 2401.920792 | M25: 181.4813389 | N25: 35527.13349 | O25: 8179.374796 | P25: 5559.283211 | Q25: 1051.642577 | R25: 9130.255709 | S25: 178.4625834 | T25: 1683.810346 | U25: 25629.47133 | V25: 204897.7364 | W25: 40687.77965 | X25: 211.8051652 | Y25: 10435.08793 | Z25: 2154.025682 | AA25: 0 | AB25: 0 | AC25: 0 | AD25: 0 | AE25: 0 | AF25: 0 | AG25: 0 | AH25: 0 | AI25: 0 | AJ25: 0 | AK25: 0 | AL25: 0 | AM25: 0
A26: 3 | B26: FALSE | C26: 2016-03-01T23:00:00 | D26: 657149.2285 | E26: 372477.8206 | F26: 408370.4753 | G26: 517841.897 | H26: 657149.2285 | I26: 261209.2903 | J26: 14092.50843 | K26: 38436.80738 | L26: 2235.445781 | M26: 168.9030275 | N26: 35396.2215 | O26: 8149.235067 | P26: 5538.798114 | Q26: 1047.767437 | R26: 8774.91494 | S26: 171.5169913 | T26: 1741.187638 | U26: 25336.45685 | V26: 201364.2642 | W26: 40659.02046 | X26: 237.7768083 | Y26: 10435.08793 | Z26: 2154.025682 | AA26: 0 | AB26: 0 | AC26: 0 | AD26: 0 | AE26: 0 | AF26: 0 | AG26: 0 | AH26: 0 | AI26: 0 | AJ26: 0 | AK26: 0 | AL26: 0 | AM26: 0
A27: 3 | B27: FALSE | C27: 2016-03-02 | D27: 672725.9056 | E27: 391989.6488 | F27: 427049.6545 | G27: 529017.8711 | H27: 672725.9056 | I27: 280285.0983 | J27: 14014.70903 | K27: 40016.05056 | L27: 2327.292964 | M27: 175.8427026 | N27: 34368.85761 | O27: 7912.706151 | P27: 5378.036287 | Q27: 1017.356325 | R27: 8674.676989 | S27: 169.5577117 | T27: 1821.210395 | U27: 24650.44887 | V27: 198479.205 | W27: 40625.81078 | X27: 219.9323503 | Y27: 10435.08793 | Z27: 2154.025682 | AA27: 0 | AB27: 0 | AC27: 0 | AD27: 0 | AE27: 0 | AF27: 0 | AG27: 0 | AH27: 0 | AI27: 0 | AJ27: 0 | AK27: 0 | AL27: 0 | AM27: 0
A28: 3 | B28: FALSE | C28: 2016-03-02T01:00:00 | D28: 687581.914 | E28: 410340.1426 | F28: 444796.059 | G28: 539653.0631 | H28: 687581.914 | I28: 296634.9399 | J28: 14540.02551 | K28: 42398.35504 | L28: 2465.84538 | M28: 186.3112734 | N28: 33155.89284 | O28: 7633.44654 | P28: 5188.23165 | Q28: 981.4512221 | R28: 8872.226013 | S28: 173.4190613 | T28: 1915.820495 | U28: 24183.2055 | V28: 195788.7192 | W28: 40641.14163 | X28: 233.7691772 | Y28: 10435.08793 | Z28: 2154.025682 | AA28: 0 | AB28: 0 | AC28: 0 | AD28: 0 | AE28: 0 | AF28: 0 | AG28: 0 | AH28: 0 | AI28: 0 | AJ28: 0 | AK28: 0 | AL28: 0 | AM28: 0
A29: 3 | B29: FALSE | C29: 2016-03-02T02:00:00 | D29: 702578.9048 | E29: 427530.7915 | F29: 461664.5808 | G29: 550634.7961 | H29: 702578.9048 | I29: 315078.76 | J29: 14701.90164 | K29: 40639.58772 | L29: 2363.557254 | M29: 178.5827146 | N29: 33406.90922 | O29: 7691.23778 | P29: 5227.510675 | Q29: 988.8815857 | R29: 8923.889344 | S29: 174.4288875 | T29: 1949.024361 | U29: 23904.56529 | V29: 193901.9567 | W29: 40617.39233 | X29: 241.6056581 | Y29: 10435.08793 | Z29: 2154.025682 | AA29: 0 | AB29: 0 | AC29: 0 | AD29: 0 | AE29: 0 | AF29: 0 | AG29: 0 | AH29: 0 | AI29: 0 | AJ29: 0 | AK29: 0 | AL29: 0 | AM29: 0
A30: 3 | B30: FALSE | C30: 2016-03-02T03:00:00 | D30: 696802.4762 | E30: 421763.2546 | F30: 456063.2349 | G30: 546120.6154 | H30: 696802.4762 | I30: 307881.3637 | J30: 15129.65575 | K30: 40343.19493 | L30: 2346.31935 | M30: 177.2802745 | N30: 34067.82751 | O30: 7843.400308 | P30: 5330.931121 | Q30: 1008.445501 | R30: 9620.467585 | S30: 188.0444046 | T30: 1957.498921 | U30: 23922.21627 | V30: 193548.2822 | W30: 40674.30214 | X30: 174.1325744 | Y30: 10435.08793 | Z30: 2154.025682 | AA30: 0 | AB30: 0 | AC30: 0 | AD30: 0 | AE30: 0 | AF30: 0 | AG30: 0 | AH30: 0 | AI30: 0 | AJ30: 0 | AK30: 0 | AL30: 0 | AM30: 0
A31: 3 | B31: FALSE | C31: 2016-03-02T04:00:00 | D31: 719310.1372 | E31: 444473.7205 | F31: 479192.6114 | G31: 563044.574 | H31: 719310.1372 | I31: 327681.5841 | J31: 15788.97591 | K31: 40295.30297 | L31: 2343.534002 | M31: 177.0698226 | N31: 35404.44862 | O31: 8151.129187 | P31: 5540.085492 | Q31: 1048.010969 | R31: 10490.02586 | S31: 205.0410389 | T31: 2017.51593 | U31: 24019.18662 | V31: 192661.8414 | W31: 40690.51818 | X31: 206.7535768 | Y31: 10435.08793 | Z31: 2154.025682 | AA31: 0 | AB31: 0 | AC31: 0 | AD31: 0 | AE31: 0 | AF31: 0 | AG31: 0 | AH31: 0 | AI31: 0 | AJ31: 0 | AK31: 0 | AL31: 0 | AM31: 0
A32: 3 | B32: FALSE | C32: 2016-03-02T05:00:00 | D32: 799440.4733 | E32: 516978.063 | F32: 553796.5147 | G32: 625211.1385 | H32: 799440.4733 | I32: 396519.2535 | J32: 15990.23612 | K32: 42475.38594 | L32: 2470.325419 | M32: 186.6497706 | N32: 39397.2303 | O32: 9070.383138 | P32: 6164.875673 | Q32: 1166.201737 | R32: 11836.58475 | S32: 231.361263 | T32: 2114.210105 | U32: 25046.38185 | V32: 197420.4654 | W32: 40705.76606 | X32: 252.4196187 | Y32: 6956.725496 | Z32: 1436.017164 | AA32: 0 | AB32: 0 | AC32: 0 | AD32: 0 | AE32: 0 | AF32: 0 | AG32: 0 | AH32: 0 | AI32: 0 | AJ32: 0 | AK32: 0 | AL32: 0 | AM32: 0
A33: 3 | B33: FALSE | C33: 2016-03-02T06:00:00 | D33: 858001.2698 | E33: 562265.7684 | F33: 605623.1743 | G33: 671090.3813 | H33: 858001.2698 | I33: 429171.846 | J33: 17205.77848 | K33: 47019.3423 | L33: 2734.597318 | M33: 206.6172975 | N33: 51292.08311 | O33: 11808.92266 | P33: 8026.181358 | Q33: 1518.302581 | R33: 15097.55481 | S33: 295.1011144 | T33: 2230.215179 | U33: 28518.78484 | V33: 201978.347 | W33: 40648.64724 | X33: 248.9485353 | Y33: 0 | Z33: 0 | AA33: 0 | AB33: 0 | AC33: 0 | AD33: 0 | AE33: 0 | AF33: 0 | AG33: 0 | AH33: 0 | AI33: 0 | AJ33: 0 | AK33: 0 | AL33: 0 | AM33: 0
A34: 3 | B34: TRUE | C34: 2016-03-02T07:00:00 | D34: 879918.2978 | E34: 577026.8056 | F34: 624276.114 | G34: 688402.1974 | H34: 879918.2978 | I34: 427955.5667 | J34: 17154.86522 | K34: 54565.21099 | L34: 3173.457397 | M34: 239.7761406 | N34: 56939.54702 | O34: 13109.13238 | P34: 8909.896092 | Q34: 1685.47378 | R34: 17973.40925 | S34: 351.3133858 | T34: 2200.345645 | U34: 30615.40523 | V34: 204178.4024 | W34: 40628.63537 | X34: 237.8607971 | Y34: 0 | Z34: 0 | AA34: 0 | AB34: 0 | AC34: 0 | AD34: 0 | AE34: 0 | AF34: 0 | AG34: 0 | AH34: 0 | AI34: 0 | AJ34: 0 | AK34: 0 | AL34: 0 | AM34: 0
A35: 3 | B35: TRUE | C35: 2016-03-02T08:00:00 | D35: 886572.993 | E35: 579557.7239 | F35: 628813.4664 | G35: 693856.7893 | H35: 886572.993 | I35: 408119.7457 | J35: 19980.43926 | K35: 66998.02706 | L35: 3896.537385 | M35: 294.4097176 | N35: 60428.30914 | O35: 13912.34643 | P35: 9455.81733 | Q35: 1788.74501 | R35: 21503.23729 | S35: 420.308412 | T35: 2281.340719 | U35: 31026.55029 | V35: 205579.5144 | W35: 40641.04021 | X35: 246.62475 | Y35: 0 | Z35: 0 | AA35: 0 | AB35: 0 | AC35: 0 | AD35: 0 | AE35: 0 | AF35: 0 | AG35: 0 | AH35: 0 | AI35: 0 | AJ35: 0 | AK35: 0 | AL35: 0 | AM35: 0
A36: 3 | B36: TRUE | C36: 2016-03-02T09:00:00 | D36: 878389.7384 | E36: 569320.1086 | F36: 619859.8588 | G36: 687843.957 | H36: 878389.7384 | I36: 387870.569 | J36: 20730.02162 | K36: 75415.86154 | L36: 4386.110111 | M36: 331.4002437 | N36: 61113.94926 | O36: 14070.20064 | P36: 9563.106244 | Q36: 1809.040718 | R36: 21730.01784 | S36: 424.7411293 | T36: 2222.712936 | U36: 31658.69828 | V36: 206236.098 | W36: 40590.23446 | X36: 236.9764388 | Y36: 0 | Z36: 0 | AA36: 0 | AB36: 0 | AC36: 0 | AD36: 0 | AE36: 0 | AF36: 0 | AG36: 0 | AH36: 0 | AI36: 0 | AJ36: 0 | AK36: 0 | AL36: 0 | AM36: 0
A37: 3 | B37: TRUE | C37: 2016-03-02T10:00:00 | D37: 869648.6424 | E37: 560480.278 | F37: 610035.6568 | G37: 680999.2506 | H37: 869648.6424 | I37: 381497.3397 | J37: 23407.51456 | K37: 74869.16271 | L37: 4354.314662 | M37: 328.9978828 | N37: 57493.88387 | O37: 13236.75677 | P37: 8996.638681 | Q37: 1701.882765 | R37: 20832.14063 | S37: 407.1909652 | T37: 2195.483118 | U37: 31557.11638 | V37: 207436.4792 | W37: 41148.98705 | X37: 184.7534219 | Y37: 0 | Z37: 0 | AA37: 0 | AB37: 0 | AC37: 0 | AD37: 0 | AE37: 0 | AF37: 0 | AG37: 0 | AH37: 0 | AI37: 0 | AJ37: 0 | AK37: 0 | AL37: 0 | AM37: 0
A38: 3 | B38: TRUE | C38: 2016-03-02T11:00:00 | D38: 915390.8544 | E38: 606654.6052 | F38: 655321.7735 | G38: 716601.3742 | H38: 915390.8544 | I38: 428844.5539 | J38: 23373.24992 | K38: 77302.76497 | L38: 4495.850503 | M38: 339.6918716 | N38: 53250.44673 | O38: 12259.79467 | P38: 8332.625952 | Q38: 1576.272317 | R38: 21430.14262 | S38: 418.8796827 | T38: 2207.708683 | U38: 31492.64343 | V38: 209229.1867 | W38: 40591.30405 | X38: 245.7383056 | Y38: 0 | Z38: 0 | AA38: 0 | AB38: 0 | AC38: 0 | AD38: 0 | AE38: 0 | AF38: 0 | AG38: 0 | AH38: 0 | AI38: 0 | AJ38: 0 | AK38: 0 | AL38: 0 | AM38: 0
A39: 3 | B39: TRUE | C39: 2016-03-02T12:00:00 | D39: 928602.8767 | E39: 618555.9393 | F39: 668155.6517 | G39: 726550.6004 | H39: 928602.8767 | I39: 438376.2081 | J39: 22601.67116 | K39: 75610.09505 | L39: 4397.406536 | M39: 332.2537649 | N39: 59354.53407 | O39: 13665.13232 | P39: 9287.793085 | Q39: 1756.960076 | R39: 20176.51756 | S39: 394.3759696 | T39: 2180.89554 | U39: 31142.79755 | V39: 208464.1026 | W39: 40606.11548 | X39: 256.0178046 | Y39: 0 | Z39: 0 | AA39: 0 | AB39: 0 | AC39: 0 | AD39: 0 | AE39: 0 | AF39: 0 | AG39: 0 | AH39: 0 | AI39: 0 | AJ39: 0 | AK39: 0 | AL39: 0 | AM39: 0
A40: 3 | B40: TRUE | C40: 2016-03-02T13:00:00 | D40: 910865.1376 | E40: 605027.1804 | F40: 654200.3636 | G40: 712119.1526 | H40: 910865.1376 | I40: 428089.9325 | J40: 20294.01887 | K40: 76079.47114 | L40: 4424.704973 | M40: 334.3163463 | N40: 59761.52494 | O40: 13758.8334 | P40: 9351.478987 | Q40: 1769.007458 | R40: 18471.77389 | S40: 361.0545634 | T40: 2066.279691 | U40: 30628.59021 | V40: 204586.8805 | W40: 40623.09069 | X40: 264.1793857 | Y40: 0 | Z40: 0 | AA40: 0 | AB40: 0 | AC40: 0 | AD40: 0 | AE40: 0 | AF40: 0 | AG40: 0 | AH40: 0 | AI40: 0 | AJ40: 0 | AK40: 0 | AL40: 0 | AM40: 0
A41: 3 | B41: TRUE | C41: 2016-03-02T14:00:00 | D41: 849070.617 | E41: 544393.8344 | F41: 592111.3665 | G41: 665367.8094 | H41: 849070.617 | I41: 372354.7285 | J41: 19969.54915 | K41: 76127.78431 | L41: 4427.514819 | M41: 334.528649 | N41: 55907.62937 | O41: 12871.55505 | P41: 8748.421694 | Q41: 1654.927872 | R41: 17733.47192 | S41: 346.6235024 | T41: 2057.388457 | U41: 30071.83875 | V41: 205688.1091 | W41: 40533.26317 | X41: 243.2827027 | Y41: 0 | Z41: 0 | AA41: 0 | AB41: 0 | AC41: 0 | AD41: 0 | AE41: 0 | AF41: 0 | AG41: 0 | AH41: 0 | AI41: 0 | AJ41: 0 | AK41: 0 | AL41: 0 | AM41: 0
A42: 3 | B42: TRUE | C42: 2016-03-02T15:00:00 | D42: 832896.7581 | E42: 531061.9076 | F42: 577170.648 | G42: 652934.0594 | H42: 832896.7581 | I42: 369023.3687 | J42: 19844.61561 | K42: 72155.06847 | L42: 4196.46569 | M42: 317.0713268 | N42: 52837.25938 | O42: 12164.66698 | P42: 8267.970426 | Q42: 1564.041513 | R42: 14986.22442 | S42: 292.9250187 | T42: 1983.617452 | U42: 29454.68274 | V42: 205122.1545 | W42: 40454.87233 | X42: 231.7535825 | Y42: 0 | Z42: 0 | AA42: 0 | AB42: 0 | AC42: 0 | AD42: 0 | AE42: 0 | AF42: 0 | AG42: 0 | AH42: 0 | AI42: 0 | AJ42: 0 | AK42: 0 | AL42: 0 | AM42: 0
A43: 3 | B43: TRUE | C43: 2016-03-02T16:00:00 | D43: 795960.3779 | E43: 497537.9856 | F43: 542313.9978 | G43: 623922.5526 | H43: 795960.3779 | I43: 345425.0622 | J43: 20746.196 | K43: 67474.90676 | L43: 3924.272226 | M43: 296.5052721 | N43: 48844.52492 | O43: 11245.4239 | P43: 7643.187634 | Q43: 1445.852142 | R43: 12857.74789 | S43: 251.3212093 | T43: 1974.864952 | U43: 29354.9948 | V43: 203281.9074 | W43: 40978.92764 | X43: 214.6829507 | Y43: 0 | Z43: 0 | AA43: 0 | AB43: 0 | AC43: 0 | AD43: 0 | AE43: 0 | AF43: 0 | AG43: 0 | AH43: 0 | AI43: 0 | AJ43: 0 | AK43: 0 | AL43: 0 | AM43: 0
A44: 3 | B44: TRUE | C44: 2016-03-02T17:00:00 | D44: 821369.0506 | E44: 523933.0202 | F44: 567230.6957 | G44: 644999.1863 | H44: 821369.0506 | I44: 380394.3849 | J44: 19430.70922 | K44: 62771.95139 | L44: 3650.753105 | M44: 275.8390552 | N44: 47208.95496 | O44: 10868.86834 | P44: 7387.253768 | Q44: 1397.437456 | R44: 11984.37572 | S44: 234.2500275 | T44: 1913.180895 | U44: 28543.80401 | V44: 205673.534 | W44: 39404.29058 | X44: 229.4631587 | Y44: 0 | Z44: 0 | AA44: 0 | AB44: 0 | AC44: 0 | AD44: 0 | AE44: 0 | AF44: 0 | AG44: 0 | AH44: 0 | AI44: 0 | AJ44: 0 | AK44: 0 | AL44: 0 | AM44: 0
A45: 3 | B45: TRUE | C45: 2016-03-02T18:00:00 | D45: 861053.8063 | E45: 565232.0196 | F45: 608491.9549 | G45: 675143.5911 | H45: 861053.8063 | I45: 412557.2912 | J45: 19038.24932 | K45: 65352.36455 | L45: 3800.827321 | M45: 287.1781758 | N45: 45829.14403 | O45: 10551.19591 | P45: 7171.341057 | Q45: 1356.593521 | R45: 11783.94208 | S45: 230.3322945 | T45: 2093.092835 | U45: 28677.57978 | V45: 204622.6942 | W45: 39124.04447 | X45: 185.1928873 | Y45: 6956.725496 | Z45: 1436.017164 | AA45: 0 | AB45: 0 | AC45: 0 | AD45: 0 | AE45: 0 | AF45: 0 | AG45: 0 | AH45: 0 | AI45: 0 | AJ45: 0 | AK45: 0 | AL45: 0 | AM45: 0
A46: 3 | B46: TRUE | C46: 2016-03-02T19:00:00 | D46: 881915.8564 | E46: 587687.109 | F46: 630900.3207 | G46: 690569.8835 | H46: 881915.8564 | I46: 429660.684 | J46: 20436.39685 | K46: 64990.55431 | L46: 3779.784804 | M46: 285.5882715 | N46: 45494.70626 | O46: 10474.19865 | P46: 7119.008258 | Q46: 1346.693792 | R46: 12295.47574 | S46: 240.3308773 | T46: 2026.68534 | U46: 28718.89735 | V46: 203050.1429 | W46: 39214.1025 | X46: 193.4929346 | Y46: 10435.08793 | Z46: 2154.025682 | AA46: 0 | AB46: 0 | AC46: 0 | AD46: 0 | AE46: 0 | AF46: 0 | AG46: 0 | AH46: 0 | AI46: 0 | AJ46: 0 | AK46: 0 | AL46: 0 | AM46: 0
A47: 3 | B47: TRUE | C47: 2016-03-02T20:00:00 | D47: 924551.8918 | E47: 633667.6567 | F47: 675362.7931 | G47: 722685.9739 | H47: 924551.8918 | I47: 486778.8423 | J47: 20360.99706 | K47: 58175.71945 | L47: 3383.440911 | M47: 255.6418134 | N47: 41390.68818 | O47: 9529.334863 | P47: 6476.811815 | Q47: 1225.210303 | R47: 11926.00276 | S47: 233.1090529 | T47: 2197.011314 | U47: 28549.2516 | V47: 202002.4347 | W47: 39228.99998 | X47: 249.2820141 | Y47: 10435.08793 | Z47: 2154.025682 | AA47: 0 | AB47: 0 | AC47: 0 | AD47: 0 | AE47: 0 | AF47: 0 | AG47: 0 | AH47: 0 | AI47: 0 | AJ47: 0 | AK47: 0 | AL47: 0 | AM47: 0
A48: 3 | B48: FALSE | C48: 2016-03-02T21:00:00 | D48: 895970.7171 | E48: 600741.8816 | F48: 640491.8781 | G48: 701977.8359 | H48: 895970.7171 | I48: 457575.9824 | J48: 20134.10052 | K48: 55993.00992 | L48: 3256.496736 | M48: 246.0503236 | N48: 40636.55287 | O48: 9355.711078 | P48: 6358.804777 | Q48: 1202.887061 | R48: 11461.01109 | S48: 224.0201931 | T48: 2136.577396 | U48: 26913.76845 | V48: 207958.6616 | W48: 39712.43528 | X48: 215.533778 | Y48: 10435.08793 | Z48: 2154.025682 | AA48: 0 | AB48: 0 | AC48: 0 | AD48: 0 | AE48: 0 | AF48: 0 | AG48: 0 | AH48: 0 | AI48: 0 | AJ48: 0 | AK48: 0 | AL48: 0 | AM48: 0
A49: 3 | B49: FALSE | C49: 2016-03-02T22:00:00 | D49: 900726.4536 | E49: 603586.7005 | F49: 643669.677 | G49: 705017.3268 | H49: 900726.4536 | I49: 466139.4111 | J49: 19749.07453 | K49: 52606.36432 | L49: 3059.532859 | M49: 231.1683723 | N49: 39077.90086 | O49: 8996.864256 | P49: 6114.907026 | Q49: 1156.749232 | R49: 11022.50648 | S49: 215.4490568 | T49: 2166.446931 | U49: 27811.13026 | V49: 208838.6272 | W49: 40715.32479 | X49: 235.8827362 | Y49: 10435.08793 | Z49: 2154.025682 | AA49: 0 | AB49: 0 | AC49: 0 | AD49: 0 | AE49: 0 | AF49: 0 | AG49: 0 | AH49: 0 | AI49: 0 | AJ49: 0 | AK49: 0 | AL49: 0 | AM49: 0
A50: 3 | B50: FALSE | C50: 2016-03-02T23:00:00 | D50: 871607.4957 | E50: 578110.167 | F50: 617215.707 | G50: 682222.9087 | H50: 871607.4957 | I50: 442996.0987 | J50: 20102.54489 | K50: 52761.85823 | L50: 3068.576228 | M50: 231.8516599 | N50: 36384.27808 | O50: 8376.714299 | P50: 5693.409133 | Q50: 1077.015008 | R50: 10885.23847 | S50: 212.7659773 | T50: 2179.367344 | U50: 27447.48346 | V50: 206596.4949 | W50: 40793.01794 | X50: 211.6677507 | Y50: 10435.08793 | Z50: 2154.025682 | AA50: 0 | AB50: 0 | AC50: 0 | AD50: 0 | AE50: 0 | AF50: 0 | AG50: 0 | AH50: 0 | AI50: 0 | AJ50: 0 | AK50: 0 | AL50: 0 | AM50: 0
A51: 3 | B51: FALSE | C51: 2016-03-03 | D51: 874768.3562 | E51: 588830.1374 | F51: 626112.4985 | G51: 683246.9756 | H51: 874768.3562 | I51: 452593.0982 | J51: 19304.8515 | K51: 54446.59731 | L51: 3166.558945 | M51: 239.254916 | N51: 36501.23533 | O51: 8403.641245 | P51: 5711.710596 | Q51: 1080.477072 | R51: 10946.99934 | S51: 213.9731729 | T51: 2218.545022 | U51: 25498.18771 | V51: 200824.3987 | W51: 40800.01641 | X51: 229.6971128 | Y51: 10435.08793 | Z51: 2154.025682 | AA51: 0 | AB51: 0 | AC51: 0 | AD51: 0 | AE51: 0 | AF51: 0 | AG51: 0 | AH51: 0 | AI51: 0 | AJ51: 0 | AK51: 0 | AL51: 0 | AM51: 0
A52: 3 | B52: FALSE | C52: 2016-03-03T01:00:00 | D52: 877670.8772 | E52: 597285.533 | F52: 633603.1275 | G52: 684407.5818 | H52: 877670.8772 | I52: 459898.9321 | J52: 18242.97175 | K52: 56813.27478 | L52: 3304.20251 | M52: 249.654817 | N52: 36241.49261 | O52: 8343.840949 | P52: 5671.066073 | Q52: 1072.788399 | R52: 11049.15592 | S52: 215.9699545 | T52: 2213.265822 | U52: 24453.58113 | V52: 196314.8808 | W52: 40759.35951 | X52: 237.3263355 | Y52: 10435.08793 | Z52: 2154.025682 | AA52: 0 | AB52: 0 | AC52: 0 | AD52: 0 | AE52: 0 | AF52: 0 | AG52: 0 | AH52: 0 | AI52: 0 | AJ52: 0 | AK52: 0 | AL52: 0 | AM52: 0
A53: 3 | B53: FALSE | C53: 2016-03-03T02:00:00 | D53: 880404.482 | E53: 607230.141 | F53: 643300.3111 | G53: 684956.1349 | H53: 880404.482 | I53: 470150.5562 | J53: 18332.13819 | K53: 56393.09641 | L53: 3279.765361 | M53: 247.8084254 | N53: 36173.14582 | O53: 8328.105541 | P53: 5660.371174 | Q53: 1070.765259 | R53: 11108.63112 | S53: 217.1324737 | T53: 2244.802523 | U53: 24245.16676 | V53: 189496.4185 | W53: 40628.80749 | X53: 238.6571639 | Y53: 10435.08793 | Z53: 2154.025682 | AA53: 0 | AB53: 0 | AC53: 0 | AD53: 0 | AE53: 0 | AF53: 0 | AG53: 0 | AH53: 0 | AI53: 0 | AJ53: 0 | AK53: 0 | AL53: 0 | AM53: 0
A54: 3 | B54: FALSE | C54: 2016-03-03T03:00:00 | D54: 858642.0057 | E54: 584608.6282 | F54: 620324.5967 | G54: 668865.3519 | H54: 858642.0057 | I54: 450852.0369 | J54: 18494.38454 | K54: 53445.06027 | L54: 3108.310566 | M54: 234.8538575 | N54: 34935.56043 | O54: 8043.177549 | P54: 5466.713902 | Q54: 1034.131358 | R54: 11907.73966 | S54: 232.7520772 | T54: 2167.419483 | U54: 24331.72829 | V54: 191096.766 | W54: 40484.94392 | X54: 217.3133154 | Y54: 10435.08793 | Z54: 2154.025682 | AA54: 0 | AB54: 0 | AC54: 0 | AD54: 0 | AE54: 0 | AF54: 0 | AG54: 0 | AH54: 0 | AI54: 0 | AJ54: 0 | AK54: 0 | AL54: 0 | AM54: 0
A55: 3 | B55: FALSE | C55: 2016-03-03T04:00:00 | D55: 858802.5804 | E55: 583841.0855 | F55: 620058.2047 | G55: 669023.6324 | H55: 858802.5804 | I55: 446407.0198 | J55: 19549.67078 | K55: 53693.47385 | L55: 3122.758048 | M55: 235.9454624 | N55: 36008.8835 | O55: 8290.287598 | P55: 5634.667418 | Q55: 1065.902912 | R55: 13143.9814 | S55: 256.9160111 | T55: 2197.427988 | U55: 24547.15761 | V55: 191288.7258 | W55: 40519.13407 | X55: 251.5144837 | Y55: 10435.08793 | Z55: 2154.025682 | AA55: 0 | AB55: 0 | AC55: 0 | AD55: 0 | AE55: 0 | AF55: 0 | AG55: 0 | AH55: 0 | AI55: 0 | AJ55: 0 | AK55: 0 | AL55: 0 | AM55: 0
A56: 3 | B56: FALSE | C56: 2016-03-03T05:00:00 | D56: 910286.4109 | E56: 629126.8156 | F56: 666686.0709 | G56: 709247.7428 | H56: 910286.4109 | I56: 492258.6419 | J56: 18098.31441 | K56: 52341.74004 | L56: 3044.142579 | M56: 230.0055327 | N56: 38738.5113 | O56: 8918.726952 | P56: 6061.799373 | Q56: 1146.702924 | R56: 16875.39203 | S56: 329.8512281 | T56: 2188.119844 | U56: 25266.53454 | V56: 195607.8379 | W56: 40553.99425 | X56: 233.3534566 | Y56: 6956.725496 | Z56: 1436.017164 | AA56: 0 | AB56: 0 | AC56: 0 | AD56: 0 | AE56: 0 | AF56: 0 | AG56: 0 | AH56: 0 | AI56: 0 | AJ56: 0 | AK56: 0 | AL56: 0 | AM56: 0
A57: 3 | B57: FALSE | C57: 2016-03-03T06:00:00 | D57: 951229.1866 | E57: 657965.3546 | F57: 701681.1784 | G57: 741410.6991 | H57: 951229.1866 | I57: 512115.2215 | J57: 19067.46885 | K57: 56597.61956 | L57: 3291.660221 | M57: 248.7071623 | N57: 49594.55849 | O57: 11418.10334 | P57: 7760.552831 | Q57: 1468.053968 | R57: 18130.48415 | S57: 354.3836166 | T57: 2261.196001 | U57: 28651.67664 | V57: 199422.0623 | W57: 40648.63187 | X57: 198.8060551 | Y57: 0 | Z57: 0 | AA57: 0 | AB57: 0 | AC57: 0 | AD57: 0 | AE57: 0 | AF57: 0 | AG57: 0 | AH57: 0 | AI57: 0 | AJ57: 0 | AK57: 0 | AL57: 0 | AM57: 0
A58: 3 | B58: TRUE | C58: 2016-03-03T07:00:00 | D58: 930484.7193 | E58: 631620.9686 | F58: 678881.0172 | G58: 726165.4307 | H58: 930484.7193 | I58: 471748.0839 | J58: 18835.15292 | K58: 64769.60384 | L58: 3766.934548 | M58: 284.6173479 | N58: 53100.25045 | O58: 12225.21514 | P58: 8309.123249 | Q58: 1571.82634 | R58: 20765.82178 | S58: 405.8946779 | T58: 2227.158788 | U58: 30862.00422 | V58: 200943.236 | W58: 40494.89914 | X58: 174.8969705 | Y58: 0 | Z58: 0 | AA58: 0 | AB58: 0 | AC58: 0 | AD58: 0 | AE58: 0 | AF58: 0 | AG58: 0 | AH58: 0 | AI58: 0 | AJ58: 0 | AK58: 0 | AL58: 0 | AM58: 0
A59: 3 | B59: TRUE | C59: 2016-03-03T08:00:00 | D59: 923687.295 | E59: 620496.5342 | F59: 669234.0818 | G59: 721512.183 | H59: 923687.295 | I59: 439668.414 | J59: 21599.32488 | K59: 76861.70645 | L59: 4470.198987 | M59: 337.7537262 | N59: 55931.7474 | O59: 12877.10772 | P59: 8752.195682 | Q59: 1655.641792 | R59: 24042.64915 | S59: 469.9444808 | T59: 2172.282009 | U59: 30920.29648 | V59: 203135.0973 | W59: 40572.52467 | X59: 220.4102315 | Y59: 0 | Z59: 0 | AA59: 0 | AB59: 0 | AC59: 0 | AD59: 0 | AE59: 0 | AF59: 0 | AG59: 0 | AH59: 0 | AI59: 0 | AJ59: 0 | AK59: 0 | AL59: 0 | AM59: 0
A60: 3 | B60: TRUE | C60: 2016-03-03T09:00:00 | D60: 915115.6288 | E60: 611352.9273 | F60: 660234.0825 | G60: 715171.9648 | H60: 915115.6288 | I60: 432608.6145 | J60: 20549.96604 | K60: 77901.20684 | L60: 4530.655277 | M60: 342.3216073 | N60: 54649.69038 | O60: 12581.94108 | P60: 8551.579495 | Q60: 1617.691482 | R60: 23260.77711 | S60: 454.6617868 | T60: 2151.720618 | U60: 31313.89706 | V60: 203839.9269 | W60: 40530.02673 | X60: 230.9518053 | Y60: 0 | Z60: 0 | AA60: 0 | AB60: 0 | AC60: 0 | AD60: 0 | AE60: 0 | AF60: 0 | AG60: 0 | AH60: 0 | AI60: 0 | AJ60: 0 | AK60: 0 | AL60: 0 | AM60: 0
A61: 3 | B61: TRUE | C61: 2016-03-03T10:00:00 | D61: 901791.3904 | E61: 596606.6986 | F61: 645602.9448 | G61: 705346.2119 | H61: 901791.3904 | I61: 418383.6068 | J61: 20925.74625 | K61: 76341.97732 | L61: 4439.972067 | M61: 335.4698783 | N61: 56409.57107 | O61: 12987.11657 | P61: 8826.965494 | Q61: 1669.785903 | R61: 22118.69489 | S61: 432.3383218 | T61: 2173.949175 | U61: 31136.81922 | V61: 204879.9356 | W61: 40476.28881 | X61: 253.1531126 | Y61: 0 | Z61: 0 | AA61: 0 | AB61: 0 | AC61: 0 | AD61: 0 | AE61: 0 | AF61: 0 | AG61: 0 | AH61: 0 | AI61: 0 | AJ61: 0 | AK61: 0 | AL61: 0 | AM61: 0
A62: 3 | B62: TRUE | C62: 2016-03-03T11:00:00 | D62: 879887.5913 | E62: 575808.1794 | F62: 623891.2907 | G62: 689139.3329 | H62: 879887.5913 | I62: 398400.9405 | J62: 22507.38664 | K62: 76804.74637 | L62: 4466.886246 | M62: 337.5034263 | N62: 53176.18007 | O62: 12242.69634 | P62: 8321.004711 | Q62: 1574.073942 | R62: 22552.50025 | S62: 440.8176053 | T62: 2133.521005 | U62: 30932.7111 | V62: 205699.5525 | W62: 40064.16597 | X62: 232.904561 | Y62: 0 | Z62: 0 | AA62: 0 | AB62: 0 | AC62: 0 | AD62: 0 | AE62: 0 | AF62: 0 | AG62: 0 | AH62: 0 | AI62: 0 | AJ62: 0 | AK62: 0 | AL62: 0 | AM62: 0
A63: 3 | B63: TRUE | C63: 2016-03-03T12:00:00 | D63: 943421.5122 | E63: 635145.4436 | F63: 684419.4609 | G63: 737938.9808 | H63: 943421.5122 | I63: 453669.721 | J63: 21034.09739 | K63: 79981.69391 | L63: 4651.654297 | M63: 351.4639005 | N63: 56624.31934 | O63: 13036.55784 | P63: 8860.569287 | Q63: 1676.14269 | R63: 21381.37058 | S63: 417.9263704 | T63: 2209.514818 | U63: 31167.87885 | V63: 207883.7378 | W63: 40230.13757 | X63: 244.7264886 | Y63: 0 | Z63: 0 | AA63: 0 | AB63: 0 | AC63: 0 | AD63: 0 | AE63: 0 | AF63: 0 | AG63: 0 | AH63: 0 | AI63: 0 | AJ63: 0 | AK63: 0 | AL63: 0 | AM63: 0
A64: 3 | B64: TRUE | C64: 2016-03-03T13:00:00 | D64: 919165.378 | E64: 608880.9762 | F64: 658645.4575 | G64: 719736.1419 | H64: 919165.378 | I64: 427610.8681 | J64: 22415.56117 | K64: 78064.21641 | L64: 4540.135748 | M64: 343.0379209 | N64: 59185.73486 | O64: 13626.26985 | P64: 9261.379397 | Q64: 1751.963432 | R64: 19129.6704 | S64: 373.9139963 | T64: 2237.022575 | U64: 31224.16177 | V64: 208902.5314 | W64: 40261.00829 | X64: 237.9027067 | Y64: 0 | Z64: 0 | AA64: 0 | AB64: 0 | AC64: 0 | AD64: 0 | AE64: 0 | AF64: 0 | AG64: 0 | AH64: 0 | AI64: 0 | AJ64: 0 | AK64: 0 | AL64: 0 | AM64: 0
A65: 3 | B65: TRUE | C65: 2016-03-03T14:00:00 | D65: 921159.633 | E65: 613291.5893 | F65: 661375.7267 | G65: 720777.9141 | H65: 921159.633 | I65: 439961.4987 | J65: 20581.76218 | K65: 77664.61732 | L65: 4516.89547 | M65: 341.2819609 | N65: 55042.65233 | O65: 12672.41229 | P65: 8613.07015 | Q65: 1629.323591 | R65: 17659.74883 | S65: 345.1824899 | T65: 2171.726366 | U65: 30549.64715 | V65: 208516.634 | W65: 40683.59655 | X65: 209.5835335 | Y65: 0 | Z65: 0 | AA65: 0 | AB65: 0 | AC65: 0 | AD65: 0 | AE65: 0 | AF65: 0 | AG65: 0 | AH65: 0 | AI65: 0 | AJ65: 0 | AK65: 0 | AL65: 0 | AM65: 0
A66: 3 | B66: TRUE | C66: 2016-03-03T15:00:00 | D66: 927145.4708 | E66: 624488.2533 | F66: 671067.4013 | G66: 724868.5224 | H66: 927145.4708 | I66: 453946.1665 | J66: 21335.18715 | K66: 77763.29558 | L66: 4522.634497 | M66: 341.7155832 | N66: 53916.43487 | O66: 12413.12443 | P66: 8436.839727 | Q66: 1595.986305 | R66: 15196.22672 | S66: 297.0297836 | T66: 2090.036444 | U66: 29346.35924 | V66: 205407.6748 | W66: 40295.8531 | X66: 240.9060344 | Y66: 0 | Z66: 0 | AA66: 0 | AB66: 0 | AC66: 0 | AD66: 0 | AE66: 0 | AF66: 0 | AG66: 0 | AH66: 0 | AI66: 0 | AJ66: 0 | AK66: 0 | AL66: 0 | AM66: 0
A67: 3 | B67: =PeakTime(C67,Holidays,PkStart,PkEnd,UseDST,DST_1,DST_2) -> TRUE | C67: 2016-03-03T16:00:00 | D67: =SUM(OFFSET(I67,0,0,1,COUNTA(I67:IV67))) -> 884222.3982 | E67: =SUMIF(OFFSET($I$2,0,0,1,COUNTA($I$2:$IV$2)),E$2,OFFSET(I67,0,0,1,COUNTA(I67:IV67))) -> 588167.2747 | F67: =E67+SUMIF(OFFSET($I$2,0,0,1,COUNTA($I$2:$IV$2)),F$2,OFFSET(I67,0,0,1,COUNTA(I67:IV67))) -> 630703.058 | G67: =F67*DistAtSubtran+SUMIF(OFFSET($I$2,0,0,1,COUNTA($I$2:$IV$2)),G$2,OFFSET(I67,0,0,1,COUNTA(I67:IV67))) -> 691630.6162 | H67: =SUM(OFFSET(I67,0,0,1,COUNTA(I67:IV67))) -> 884222.3982 | I67: 433808.3758 | J67: 19816.9134 | K67: 68877.74579 | L67: 4005.859922 | M67: 302.6697737 | N67: 49567.60026 | O67: 11411.89678 | P67: 7756.33441 | Q67: 1467.255975 | R67: 13668.71632 | S67: 267.1726296 | T67: 2221.879353 | U67: 26850.85398 | V67: 203606.5849 | W67: 40386.49511 | X67: 206.0438276 | Y67: 0 | Z67: 0 | AA67: 0 | AB67: 0 | AC67: 0 | AD67: 0 | AE67: 0 | AF67: 0 | AG67: 0 | AH67: 0 | AI67: 0 | AJ67: 0 | AK67: 0 | AL67: 0 | AM67: 0
A68: =MONTH(C68) -> 3 | B68: TRUE | C68: =+C67+1/24 -> 2016-03-03T17:00:00 | D68: 872851.6411 | E68: 577909.1721 | F68: 619754.5079 | G68: 682969.8426 | H68: 872851.6411 | I68: 428454.8244 | J68: 19460.08008 | K68: 62686.44508 | L68: 3645.780145 | M68: 275.4633144 | N68: 50027.44504 | O68: 11517.76636 | P68: 7828.290887 | Q68: 1480.86789 | R68: 14909.64397 | S68: 291.4281554 | T68: 2124.907474 | U68: 26390.36108 | V68: 203232.9079 | W68: 40279.60325 | X68: 245.8261274 | Y68: 0 | Z68: 0 | AA68: 0 | AB68: 0 | AC68: 0 | AD68: 0 | AE68: 0 | AF68: 0 | AG68: 0 | AH68: 0 | AI68: 0 | AJ68: 0 | AK68: 0 | AL68: 0 | AM68: 0
A69: 3 | B69: TRUE | C69: 2016-03-03T18:00:00 | D69: 914599.1186 | E69: 620894.7319 | F69: 662456.2069 | G69: 714665.2399 | H69: 914599.1186 | I69: 461970.5164 | J69: 20607.38094 | K69: 66132.10869 | L69: 3846.17645 | M69: 290.6046088 | N69: 48307.6475 | O69: 11121.81917 | P69: 7559.177096 | Q69: 1429.959975 | R69: 13054.53892 | S69: 255.1677429 | T69: 2178.811701 | U69: 26338.31163 | V69: 202686.2847 | W69: 40176.88528 | X69: 250.9850933 | Y69: 6956.725496 | Z69: 1436.017164 | AA69: 0 | AB69: 0 | AC69: 0 | AD69: 0 | AE69: 0 | AF69: 0 | AG69: 0 | AH69: 0 | AI69: 0 | AJ69: 0 | AK69: 0 | AL69: 0 | AM69: 0
A70: 3 | B70: TRUE | C70: 2016-03-03T19:00:00 | D70: 895931.3521 | E70: 606029.323 | F70: 647379.2724 | G70: 699644.0861 | H70: 895931.3521 | I70: 445282.4178 | J70: 18910.40949 | K70: 66932.36591 | L70: 3892.718599 | M70: 294.1211825 | N70: 46905.73907 | O70: 10799.05926 | P70: 7339.806567 | Q70: 1388.461929 | R70: 13131.49976 | S70: 256.6720414 | T70: 2062.667657 | U70: 26401.49945 | V70: 199354.5321 | W70: 40175.15794 | X70: 215.1096788 | Y70: 10435.08793 | Z70: 2154.025682 | AA70: 0 | AB70: 0 | AC70: 0 | AD70: 0 | AE70: 0 | AF70: 0 | AG70: 0 | AH70: 0 | AI70: 0 | AJ70: 0 | AK70: 0 | AL70: 0 | AM70: 0
A71: 3 | B71: TRUE | C71: 2016-03-03T20:00:00 | D71: 912522.2126 | E71: 623537.6953 | F71: 662711.7698 | G71: 712660.4729 | H71: 912522.2126 | I71: 469978.8732 | J71: 19518.33538 | K71: 65300.95245 | L71: 3797.837245 | M71: 286.9522554 | N71: 41878.40193 | O71: 9641.620689 | P71: 6553.129226 | Q71: 1239.647171 | R71: 12040.62874 | S71: 235.3495651 | T71: 2083.784691 | U71: 25499.26693 | V71: 201496.7347 | W71: 40233.9795 | X71: 147.6053198 | Y71: 10435.08793 | Z71: 2154.025682 | AA71: 0 | AB71: 0 | AC71: 0 | AD71: 0 | AE71: 0 | AF71: 0 | AG71: 0 | AH71: 0 | AI71: 0 | AJ71: 0 | AK71: 0 | AL71: 0 | AM71: 0
A72: 3 | B72: FALSE | C72: 2016-03-03T21:00:00 | D72: 928046.6929 | E72: 641349.5392 | F72: 679258.6948 | G72: 724215.7559 | H72: 928046.6929 | I72: 496925.7038 | J72: 18224.57207 | K72: 60474.1423 | L72: 3517.114856 | M72: 265.7417828 | N72: 39149.06085 | O72: 9013.247346 | P72: 6126.042136 | Q72: 1158.855646 | R72: 11816.74448 | S72: 230.9734595 | T72: 1987.646396 | U72: 25147.81997 | V72: 200908.1052 | W72: 40329.25335 | X72: 182.5557045 | Y72: 10435.08793 | Z72: 2154.025682 | AA72: 0 | AB72: 0 | AC72: 0 | AD72: 0 | AE72: 0 | AF72: 0 | AG72: 0 | AH72: 0 | AI72: 0 | AJ72: 0 | AK72: 0 | AL72: 0 | AM72: 0
A73: 3 | B73: FALSE | C73: 2016-03-03T22:00:00 | D73: 880189.6479 | E73: 599899.4754 | F73: 637277.2128 | G73: 686501.7316 | H73: 880189.6479 | I73: 460222.9933 | J73: 19053.78866 | K73: 55130.71398 | L73: 3206.346478 | M73: 242.2611328 | N73: 39181.43973 | O73: 9020.7019 | P73: 6131.10878 | Q73: 1159.814097 | R73: 11540.24202 | S73: 225.5688636 | T73: 1965.278987 | U73: 24925.12009 | V73: 195160.4027 | W73: 40218.84843 | X73: 215.9051637 | Y73: 10435.08793 | Z73: 2154.025682 | AA73: 0 | AB73: 0 | AC73: 0 | AD73: 0 | AE73: 0 | AF73: 0 | AG73: 0 | AH73: 0 | AI73: 0 | AJ73: 0 | AK73: 0 | AL73: 0 | AM73: 0
A74: 3 | B74: FALSE | C74: 2016-03-03T23:00:00 | D74: 813740.1028 | E74: 536879.9619 | F74: 573483.0631 | G74: 635350.2158 | H74: 813740.1028 | I74: 403461.1245 | J74: 17736.23466 | K74: 52440.83951 | L74: 3049.906103 | M74: 230.4410059 | N74: 37474.82783 | O74: 8627.790429 | P74: 5864.058278 | Q74: 1109.296491 | R74: 10942.70051 | S74: 213.8891466 | T74: 2015.987735 | U74: 24711.51552 | V74: 192835.1055 | W74: 40218.13844 | X74: 219.1335412 | Y74: 10435.08793 | Z74: 2154.025682 | AA74: 0 | AB74: 0 | AC74: 0 | AD74: 0 | AE74: 0 | AF74: 0 | AG74: 0 | AH74: 0 | AI74: 0 | AJ74: 0 | AK74: 0 | AL74: 0 | AM74: 0
A75: 3 | B75: FALSE | C75: 2016-03-04 | D75: 805026.5298 | E75: 536098.1633 | F75: 571440.9974 | G75: 627183.6196 | H75: 805026.5298 | I75: 403638.7039 | J75: 18301.47701 | K75: 52445.61125 | L75: 3050.183623 | M75: 230.4619744 | N75: 36033.32198 | O75: 8295.914043 | P75: 5638.491549 | Q75: 1066.626318 | R75: 10903.28357 | S75: 213.118692 | T75: 1958.888265 | U75: 23783.61772 | V75: 186448.067 | W75: 40201.88552 | X75: 227.76376 | Y75: 10435.08793 | Z75: 2154.025682 | AA75: 0 | AB75: 0 | AC75: 0 | AD75: 0 | AE75: 0 | AF75: 0 | AG75: 0 | AH75: 0 | AI75: 0 | AJ75: 0 | AK75: 0 | AL75: 0 | AM75: 0
A76: 3 | B76: FALSE | C76: 2016-03-04T01:00:00 | D76: 778430.3129 | E76: 514188.1001 | F76: 549212.1816 | G76: 605874.8403 | H76: 778430.3129 | I76: 382905.1721 | J76: 16733.10877 | K76: 53350.07064 | L76: 3102.786065 | M76: 234.4364442 | N76: 35611.24975 | O76: 8198.740794 | P76: 5572.445717 | Q76: 1054.132511 | R76: 10766.86088 | S76: 210.4521351 | T76: 2004.317813 | U76: 23512.10251 | V76: 182117.4879 | W76: 40239.62869 | X76: 228.2065497 | Y76: 10435.08793 | Z76: 2154.025682 | AA76: 0 | AB76: 0 | AC76: 0 | AD76: 0 | AE76: 0 | AF76: 0 | AG76: 0 | AH76: 0 | AI76: 0 | AJ76: 0 | AK76: 0 | AL76: 0 | AM76: 0
A77: 3 | B77: FALSE | C77: 2016-03-04T02:00:00 | D77: 762208.4918 | E77: 498619.4521 | F77: 533611.6589 | G77: 593359.8094 | H77: 762208.4918 | I77: 368610.013 | J77: 16390.01509 | K77: 52225.36481 | L77: 3037.374313 | M77: 229.4941445 | N77: 35711.2974 | O77: 8221.77466 | P77: 5588.101166 | Q77: 1057.094033 | R77: 10891.83299 | S77: 212.8948756 | T77: 1970.280365 | U77: 23520.16296 | V77: 181463.7416 | W77: 40258.40192 | X77: 231.5348081 | Y77: 10435.08793 | Z77: 2154.025682 | AA77: 0 | AB77: 0 | AC77: 0 | AD77: 0 | AE77: 0 | AF77: 0 | AG77: 0 | AH77: 0 | AI77: 0 | AJ77: 0 | AK77: 0 | AL77: 0 | AM77: 0
A78: 3 | B78: FALSE | C78: 2016-03-04T03:00:00 | D78: 747711.1438 | E78: 484657.7556 | F78: 519561.0132 | G78: 582207.1657 | H78: 747711.1438 | I78: 357187.5445 | J78: 16415.36904 | K78: 49019.8229 | L78: 2850.943243 | M78: 215.408018 | N78: 35671.61228 | O78: 8212.637997 | P78: 5581.891242 | Q78: 1055.919309 | R78: 11532.64315 | S78: 225.4203338 | T78: 2011.958791 | U78: 23614.25597 | V78: 181023.9354 | W78: 40272.97668 | X78: 229.6913632 | Y78: 10435.08793 | Z78: 2154.025682 | AA78: 0 | AB78: 0 | AC78: 0 | AD78: 0 | AE78: 0 | AF78: 0 | AG78: 0 | AH78: 0 | AI78: 0 | AJ78: 0 | AK78: 0 | AL78: 0 | AM78: 0
A79: 3 | B79: FALSE | C79: 2016-03-04T04:00:00 | D79: 775544.3706 | E79: 510761.1025 | F79: 545867.5267 | G79: 603847.7281 | H79: 775544.3706 | I79: 383088.8094 | J79: 16250.35828 | K79: 47786.84116 | L79: 2779.234274 | M79: 209.989921 | N79: 36347.94587 | O79: 8368.349573 | P79: 5687.723872 | Q79: 1075.939534 | R79: 12513.88774 | S79: 244.6000206 | T79: 1975.559683 | U79: 23714.24034 | V79: 182544.8265 | W79: 40158.36407 | X79: 208.5867266 | Y79: 10435.08793 | Z79: 2154.025682 | AA79: 0 | AB79: 0 | AC79: 0 | AD79: 0 | AE79: 0 | AF79: 0 | AG79: 0 | AH79: 0 | AI79: 0 | AJ79: 0 | AK79: 0 | AL79: 0 | AM79: 0
A80: 3 | B80: FALSE | C80: 2016-03-04T05:00:00 | D80: 793417.7967 | E80: 522641.4032 | F80: 559145.0713 | G80: 618523.9561 | H80: 793417.7967 | I80: 393217.3355 | J80: 17063.37078 | K80: 49210.14213 | L80: 2862.012017 | M80: 216.2443386 | N80: 39957.01141 | O80: 9199.260959 | P80: 6252.47018 | Q80: 1182.771879 | R80: 12541.06551 | S80: 245.1312449 | T80: 2032.937092 | U80: 24197.2638 | V80: 186545.8423 | W80: 40075.39672 | X80: 226.7982114 | Y80: 6956.725496 | Z80: 1436.017164 | AA80: 0 | AB80: 0 | AC80: 0 | AD80: 0 | AE80: 0 | AF80: 0 | AG80: 0 | AH80: 0 | AI80: 0 | AJ80: 0 | AK80: 0 | AL80: 0 | AM80: 0
A81: 3 | B81: FALSE | C81: 2016-03-04T06:00:00 | D81: 848827.1914 | E81: 564949.5825 | F81: 604319.0985 | G81: 662892.6472 | H81: 848827.1914 | I81: 432767.8584 | J81: 16511.92886 | K81: 50373.55447 | L81: 2929.6749 | M81: 221.3567264 | N81: 47448.11135 | O81: 10923.92906 | P81: 7424.676942 | Q81: 1404.516751 | R81: 15466.50726 | S81: 302.3127643 | T81: 2149.21987 | U81: 25213.59934 | V81: 195359.7795 | W81: 40097.76293 | X81: 232.4022227 | Y81: 0 | Z81: 0 | AA81: 0 | AB81: 0 | AC81: 0 | AD81: 0 | AE81: 0 | AF81: 0 | AG81: 0 | AH81: 0 | AI81: 0 | AJ81: 0 | AK81: 0 | AL81: 0 | AM81: 0
A82: 3 | B82: TRUE | C82: 2016-03-04T07:00:00 | D82: 880803.4894 | E82: 585480.4601 | F82: 627034.3765 | G82: 689533.1997 | H82: 880803.4894 | I82: 441819.6 | J82: 17728.88992 | K82: 58015.29132 | L82: 3374.110574 | M82: 254.9368434 | N82: 48478.83153 | O82: 11161.23069 | P82: 7585.96396 | Q82: 1435.027212 | R82: 17146.11414 | S82: 335.1428396 | T82: 2078.505492 | U82: 26683.43236 | V82: 204519.1383 | W82: 39974.04647 | X82: 213.2276317 | Y82: 0 | Z82: 0 | AA82: 0 | AB82: 0 | AC82: 0 | AD82: 0 | AE82: 0 | AF82: 0 | AG82: 0 | AH82: 0 | AI82: 0 | AJ82: 0 | AK82: 0 | AL82: 0 | AM82: 0
A83: 3 | B83: TRUE | C83: 2016-03-04T08:00:00 | D83: 885214.2321 | E83: 584517.8186 | F83: 627210.0883 | G83: 693718.9616 | H83: 885214.2321 | I83: 424750.0915 | J83: 19650.32588 | K83: 69336.06202 | L83: 4032.51513 | M83: 304.6837546 | N83: 49977.09402 | O83: 11506.1741 | P83: 7820.411963 | Q83: 1479.377444 | R83: 18485.2877 | S83: 361.3187081 | T83: 2082.117526 | U83: 26792.26174 | V83: 208286.9887 | W83: 40112.68193 | X83: 236.8399062 | Y83: 0 | Z83: 0 | AA83: 0 | AB83: 0 | AC83: 0 | AD83: 0 | AE83: 0 | AF83: 0 | AG83: 0 | AH83: 0 | AI83: 0 | AJ83: 0 | AK83: 0 | AL83: 0 | AM83: 0
A84: 3 | B84: TRUE | C84: 2016-03-04T09:00:00 | D84: 927364.6284 | E84: 623642.7757 | F84: 667186.472 | G84: 726239.1588 | H84: 927364.6284 | I84: 455697.5263 | J84: 21730.54929 | K84: 72524.9299 | L84: 4217.976456 | M84: 318.6966104 | N84: 52617.8764 | O84: 12114.15867 | P84: 8233.641393 | Q84: 1557.547533 | R84: 18696.19871 | S84: 365.4412349 | T84: 2126.991313 | U84: 26846.11996 | V84: 209957.9157 | W84: 40110.35525 | X84: 248.7037433 | Y84: 0 | Z84: 0 | AA84: 0 | AB84: 0 | AC84: 0 | AD84: 0 | AE84: 0 | AF84: 0 | AG84: 0 | AH84: 0 | AI84: 0 | AJ84: 0 | AK84: 0 | AL84: 0 | AM84: 0
A85: 3 | B85: TRUE | C85: 2016-03-04T10:00:00 | D85: 892556.2501 | E85: 588812.4893 | F85: 634120.6047 | G85: 699315.9714 | H85: 892556.2501 | I85: 423146.5462 | J85: 21315.94572 | K85: 71620.56678 | L85: 4165.379613 | M85: 314.7225637 | N85: 52362.70429 | O85: 12055.41066 | P85: 8193.712081 | Q85: 1549.994156 | R85: 18107.87661 | S85: 353.9417232 | T85: 2040.4391 | U85: 28733.38344 | V85: 208241.7566 | W85: 40135.45999 | X85: 218.4105119 | Y85: 0 | Z85: 0 | AA85: 0 | AB85: 0 | AC85: 0 | AD85: 0 | AE85: 0 | AF85: 0 | AG85: 0 | AH85: 0 | AI85: 0 | AJ85: 0 | AK85: 0 | AL85: 0 | AM85: 0
A86: 3 | B86: TRUE | C86: 2016-03-04T11:00:00 | D86: 877226.8788 | E86: 573237.1973 | F86: 618222.948 | G86: 687813.1925 | H86: 877226.8788 | I86: 405604.1524 | J86: 21698.35592 | K86: 74671.52941 | L86: 4342.820509 | M86: 328.1294219 | N86: 50155.78331 | O86: 11547.31355 | P86: 7848.373249 | Q86: 1484.666845 | R86: 18834.11515 | S86: 368.136989 | T86: 2095.732552 | U86: 28727.47966 | V86: 209169.0264 | W86: 40173.73489 | X86: 177.5285733 | Y86: 0 | Z86: 0 | AA86: 0 | AB86: 0 | AC86: 0 | AD86: 0 | AE86: 0 | AF86: 0 | AG86: 0 | AH86: 0 | AI86: 0 | AJ86: 0 | AK86: 0 | AL86: 0 | AM86: 0
A87: 3 | B87: TRUE | C87: 2016-03-04T12:00:00 | D87: 877901.3177 | E87: 575106.1348 | F87: 619902.1808 | G87: 688118.5809 | H87: 877901.3177 | I87: 409936.9355 | J87: 20549.97145 | K87: 71392.9491 | L87: 4152.141599 | M87: 313.7223424 | N87: 52711.97381 | O87: 12135.82262 | P87: 8248.36575 | Q87: 1560.332921 | R87: 18291.56759 | S87: 357.5321995 | T87: 2058.916653 | U87: 28150.54956 | V87: 207810.9332 | W87: 40065.78266 | X87: 163.8207655 | Y87: 0 | Z87: 0 | AA87: 0 | AB87: 0 | AC87: 0 | AD87: 0 | AE87: 0 | AF87: 0 | AG87: 0 | AH87: 0 | AI87: 0 | AJ87: 0 | AK87: 0 | AL87: 0 | AM87: 0
A88: 3 | B88: TRUE | C88: 2016-03-04T13:00:00 | D88: 860929.5 | E88: 558714.8487 | F88: 603928.6296 | G88: 674950.5839 | H88: 860929.5 | I88: 397041.3296 | J88: 21095.73727 | K88: 70475.63669 | L88: 4098.791638 | M88: 309.6913925 | N88: 51908.80975 | O88: 11950.91099 | P88: 8122.686697 | Q88: 1536.558374 | R88: 15954.1999 | S88: 311.8453437 | T88: 2018.349513 | U88: 28852.23291 | V88: 206928.5188 | W88: 40103.41518 | X88: 220.7859761 | Y88: 0 | Z88: 0 | AA88: 0 | AB88: 0 | AC88: 0 | AD88: 0 | AE88: 0 | AF88: 0 | AG88: 0 | AH88: 0 | AI88: 0 | AJ88: 0 | AK88: 0 | AL88: 0 | AM88: 0
A89: 3 | B89: TRUE | C89: 2016-03-04T14:00:00 | D89: 886366.3835 | E89: 586616.3992 | F89: 631244.063 | G89: 693880.477 | H89: 886366.3835 | I89: 428221.7944 | J89: 20194.80407 | K89: 71057.23605 | L89: 4132.616868 | M89: 312.2471171 | N89: 49705.80162 | O89: 11443.71474 | P89: 7777.960149 | Q89: 1471.346888 | R89: 15246.18331 | S89: 298.0062494 | T89: 1988.341009 | U89: 28753.32599 | V89: 205413.5378 | W89: 40147.22861 | X89: 202.2387227 | Y89: 0 | Z89: 0 | AA89: 0 | AB89: 0 | AC89: 0 | AD89: 0 | AE89: 0 | AF89: 0 | AG89: 0 | AH89: 0 | AI89: 0 | AJ89: 0 | AK89: 0 | AL89: 0 | AM89: 0
A90: 3 | B90: TRUE | C90: 2016-03-04T15:00:00 | D90: 844503.2669 | E90: 547855.2395 | F90: 590703.6716 | G90: 661610.5508 | H90: 844503.2669 | I90: 393090.8046 | J90: 21395.39754 | K90: 67569.93851 | L90: 3929.799176 | M90: 296.9228705 | N90: 49968.73198 | O90: 11504.24892 | P90: 7819.103471 | Q90: 1479.129919 | R90: 13627.06488 | S90: 266.3584987 | T90: 1974.58713 | U90: 27148.0256 | V90: 203969.0303 | W90: 40235.4087 | X90: 228.7148072 | Y90: 0 | Z90: 0 | AA90: 0 | AB90: 0 | AC90: 0 | AD90: 0 | AE90: 0 | AF90: 0 | AG90: 0 | AH90: 0 | AI90: 0 | AJ90: 0 | AK90: 0 | AL90: 0 | AM90: 0
A91: 3 | B91: TRUE | C91: 2016-03-04T16:00:00 | D91: 812247.1093 | E91: 526302.5422 | F91: 565460.5519 | G91: 635624.348 | H91: 812247.1093 | I91: 384876.9613 | J91: 22038.94056 | K91: 61439.64754 | L91: 3573.267663 | M91: 269.9845067 | N91: 43433.26926 | O91: 9999.596169 | P91: 6796.43475 | Q91: 1285.67297 | R91: 12244.41469 | S91: 239.3328235 | T91: 2055.582322 | U91: 25345.81308 | V91: 198242.4488 | W91: 40192.01635 | X91: 213.7264761 | Y91: 0 | Z91: 0 | AA91: 0 | AB91: 0 | AC91: 0 | AD91: 0 | AE91: 0 | AF91: 0 | AG91: 0 | AH91: 0 | AI91: 0 | AJ91: 0 | AK91: 0 | AL91: 0 | AM91: 0
A92: 3 | B92: TRUE | C92: 2016-03-04T17:00:00 | D92: 816868.2955 | E92: 535003.8033 | F92: 572021.0677 | G92: 638867.8751 | H92: 816868.2955 | I92: 405127.5919 | J92: 21110.56051 | K92: 55926.72899 | L92: 3252.641904 | M92: 245.759065 | N92: 38502.09728 | O92: 8864.2976 | P92: 6024.805325 | Q92: 1139.704807 | R92: 12084.74047 | S92: 236.2117855 | T92: 2010.569565 | U92: 24664.11311 | V92: 197289.2782 | W92: 40147.68042 | X92: 241.5145119 | Y92: 0 | Z92: 0 | AA92: 0 | AB92: 0 | AC92: 0 | AD92: 0 | AE92: 0 | AF92: 0 | AG92: 0 | AH92: 0 | AI92: 0 | AJ92: 0 | AK92: 0 | AL92: 0 | AM92: 0
A93: 3 | B93: TRUE | C93: 2016-03-04T18:00:00 | D93: 829728.3149 | E93: 546876.1969 | F93: 584243.6757 | G93: 648746.8465 | H93: 829728.3149 | I93: 407152.974 | J93: 22758.18331 | K93: 55906.95603 | L93: 3251.491929 | M93: 245.6721766 | N93: 38969.74753 | O93: 8971.964228 | P93: 6097.983201 | Q93: 1153.547773 | R93: 11491.51558 | S93: 224.6164426 | T93: 1977.782373 | U93: 24919.40624 | V93: 197793.7539 | W93: 40193.68222 | X93: 226.2953474 | Y93: 6956.725496 | Z93: 1436.017164 | AA93: 0 | AB93: 0 | AC93: 0 | AD93: 0 | AE93: 0 | AF93: 0 | AG93: 0 | AH93: 0 | AI93: 0 | AJ93: 0 | AK93: 0 | AL93: 0 | AM93: 0
A94: 3 | B94: TRUE | C94: 2016-03-04T19:00:00 | D94: 843183.4218 | E94: 561523.7425 | F94: 598641.7057 | G94: 658722.8041 | H94: 843183.4218 | I94: 420566.9 | J94: 21028.48209 | K94: 55445.00533 | L94: 3224.625345 | M94: 243.6422247 | N94: 38110.64989 | O94: 8774.175075 | P94: 5963.551665 | Q94: 1128.117529 | R94: 11588.65815 | S94: 226.515219 | T94: 1980.70003 | U94: 24892.64754 | V94: 196949.2722 | W94: 40257.13254 | X94: 214.2333429 | Y94: 10435.08793 | Z94: 2154.025682 | AA94: 0 | AB94: 0 | AC94: 0 | AD94: 0 | AE94: 0 | AF94: 0 | AG94: 0 | AH94: 0 | AI94: 0 | AJ94: 0 | AK94: 0 | AL94: 0 | AM94: 0
A95: 3 | B95: TRUE | C95: 2016-03-04T20:00:00 | D95: 830965.2942 | E95: 548700.3484 | F95: 584999.3745 | G95: 649757.3035 | H95: 830965.2942 | I95: 410130.6694 | J95: 19695.7495 | K95: 55205.51545 | L95: 3210.696856 | M95: 242.5898333 | N95: 37584.33717 | O95: 8653.00265 | P95: 5881.194291 | Q95: 1112.538089 | R95: 11304.91941 | S95: 220.9691807 | T95: 1970.836126 | U95: 24214.35742 | V95: 198448.9953 | W95: 40280.60215 | X95: 219.2077437 | Y95: 10435.08793 | Z95: 2154.025682 | AA95: 0 | AB95: 0 | AC95: 0 | AD95: 0 | AE95: 0 | AF95: 0 | AG95: 0 | AH95: 0 | AI95: 0 | AJ95: 0 | AK95: 0 | AL95: 0 | AM95: 0
A96: 3 | B96: FALSE | C96: 2016-03-04T21:00:00 | D96: 811673.9605 | E96: 526135.5929 | F96: 561856.8387 | G96: 635998.7719 | H96: 811673.9605 | I96: 393145.6898 | J96: 18122.90092 | K96: 54473.52487 | L96: 3168.125025 | M96: 239.3732439 | N96: 34782.85789 | O96: 8008.021004 | P96: 5442.819021 | Q96: 1029.611193 | R96: 10802.06685 | S96: 211.1402809 | T96: 2001.539126 | U96: 24333.95951 | V96: 202743.5253 | W96: 40361.793 | X96: 217.899812 | Y96: 10435.08793 | Z96: 2154.025682 | AA96: 0 | AB96: 0 | AC96: 0 | AD96: 0 | AE96: 0 | AF96: 0 | AG96: 0 | AH96: 0 | AI96: 0 | AJ96: 0 | AK96: 0 | AL96: 0 | AM96: 0
A97: 3 | B97: FALSE | C97: 2016-03-04T22:00:00 | D97: 789752.2005 | E97: 506179.482 | F97: 541191.1287 | G97: 619002.6193 | H97: 789752.2005 | I97: 377563.6155 | J97: 18163.00244 | K97: 51202.6949 | L97: 2977.896867 | M97: 225.0002217 | N97: 33744.58185 | O97: 7768.979797 | P97: 5280.349663 | Q97: 998.8770703 | R97: 10740.32489 | S97: 209.9334549 | T97: 1976.532117 | U97: 24054.83649 | V97: 201650.8205 | W97: 40406.02443 | X97: 199.6167366 | Y97: 10435.08793 | Z97: 2154.025682 | AA97: 0 | AB97: 0 | AC97: 0 | AD97: 0 | AE97: 0 | AF97: 0 | AG97: 0 | AH97: 0 | AI97: 0 | AJ97: 0 | AK97: 0 | AL97: 0 | AM97: 0
A98: 3 | B98: FALSE | C98: 2016-03-04T23:00:00 | D98: 785178.3446 | E98: 504825.6059 | F98: 539021.3252 | G98: 615050.034 | H98: 785178.3446 | I98: 379179.0344 | J98: 17979.35286 | K98: 50061.86261 | L98: 2911.547217 | M98: 219.9870575 | N98: 32211.90311 | O98: 7416.112771 | P98: 5040.516207 | Q98: 953.5080785 | R98: 10650.14276 | S98: 208.1707294 | T98: 1972.781113 | U98: 23659.88866 | V98: 199594.3022 | W98: 40348.70583 | X98: 181.4153773 | Y98: 10435.08793 | Z98: 2154.025682 | AA98: 0 | AB98: 0 | AC98: 0 | AD98: 0 | AE98: 0 | AF98: 0 | AG98: 0 | AH98: 0 | AI98: 0 | AJ98: 0 | AK98: 0 | AL98: 0 | AM98: 0
A99: 3 | B99: FALSE | C99: 2016-03-05 | D99: 789170.0727 | E99: 511863.6004 | F99: 545848.5405 | G99: 617507.7678 | H99: 789170.0727 | I99: 386425.8233 | J99: 18254.29151 | K99: 49976.99112 | L99: 2906.611177 | M99: 219.6141064 | N99: 31891.30199 | O99: 7342.301112 | P99: 4990.348569 | Q99: 944.0179298 | R99: 10522.6959 | S99: 205.6796168 | T99: 1996.537865 | U99: 23530.34813 | V99: 196907.0658 | W99: 40260.48578 | X99: 206.8450791 | Y99: 10435.08793 | Z99: 2154.025682 | AA99: 0 | AB99: 0 | AC99: 0 | AD99: 0 | AE99: 0 | AF99: 0 | AG99: 0 | AH99: 0 | AI99: 0 | AJ99: 0 | AK99: 0 | AL99: 0 | AM99: 0
A100: 3 | B100: FALSE | C100: 2016-03-05T01:00:00 | D100: 783641.873 | E100: 509146.4362 | F100: 543428.7834 | G100: 612449.3828 | H100: 783641.873 | I100: 381400.9372 | J100: 17411.79467 | K100: 51047.15886 | L100: 2968.851049 | M100: 224.3167491 | N100: 33761.38014 | O100: 7772.84725 | P100: 5282.978259 | Q100: 999.3743183 | R100: 10697.76363 | S100: 209.1015405 | T100: 2031.964539 | U100: 23331.54737 | V100: 193392.7836 | W100: 40313.63665 | X100: 206.3235414 | Y100: 10435.08793 | Z100: 2154.025682 | AA100: 0 | AB100: 0 | AC100: 0 | AD100: 0 | AE100: 0 | AF100: 0 | AG100: 0 | AH100: 0 | AI100: 0 | AJ100: 0 | AK100: 0 | AL100: 0 | AM100: 0
A101: 3 | B101: FALSE | C101: 2016-03-05T02:00:00 | D101: 773901.3558 | E101: 501947.5405 | F101: 536046.8886 | G101: 604442.6345 | H101: 773901.3558 | I101: 375101.8574 | J101: 16678.39748 | K101: 50401.60126 | L101: 2931.306073 | M101: 221.4799725 | N101: 34176.26082 | O101: 7868.364794 | P101: 5347.898756 | Q101: 1011.655247 | R101: 10729.57279 | S101: 209.7232914 | T101: 2040.30013 | U101: 23089.95399 | V101: 190941.5735 | W101: 40331.85971 | X101: 230.4369161 | Y101: 10435.08793 | Z101: 2154.025682 | AA101: 0 | AB101: 0 | AC101: 0 | AD101: 0 | AE101: 0 | AF101: 0 | AG101: 0 | AH101: 0 | AI101: 0 | AJ101: 0 | AK101: 0 | AL101: 0 | AM101: 0
A102: 3 | B102: FALSE | C102: 2016-03-05T03:00:00 | D102: 779446.7371 | E102: 504878.3726 | F102: 539022.8593 | G102: 609200.6353 | H102: 779446.7371 | I102: 380184.254 | J102: 16914.76949 | K102: 48116.34734 | L102: 2798.39802 | M102: 211.4378714 | N102: 34129.46173 | O102: 7857.590288 | P102: 5340.575637 | Q102: 1010.269942 | R102: 10710.12403 | S102: 209.3431405 | T102: 2030.436344 | U102: 23279.15534 | V102: 193452.2258 | W102: 40409.36845 | X102: 203.866022 | Y102: 10435.08793 | Z102: 2154.025682 | AA102: 0 | AB102: 0 | AC102: 0 | AD102: 0 | AE102: 0 | AF102: 0 | AG102: 0 | AH102: 0 | AI102: 0 | AJ102: 0 | AK102: 0 | AL102: 0 | AM102: 0
A103: 3 | B103: FALSE | C103: 2016-03-05T04:00:00 | D103: 775659.7402 | E103: 500862.6721 | F103: 536086.9074 | G103: 606004.598 | H103: 775659.7402 | I103: 371719.2876 | J103: 17191.09981 | K103: 48552.94701 | L103: 2823.790214 | M103: 213.3564232 | N103: 37857.21832 | O103: 8715.827791 | P103: 5923.894713 | Q103: 1120.615674 | R103: 10711.58108 | S103: 209.3716203 | T103: 2019.461035 | U103: 23475.24561 | V103: 191905.2103 | W103: 40409.75572 | X103: 221.9636675 | Y103: 10435.08793 | Z103: 2154.025682 | AA103: 0 | AB103: 0 | AC103: 0 | AD103: 0 | AE103: 0 | AF103: 0 | AG103: 0 | AH103: 0 | AI103: 0 | AJ103: 0 | AK103: 0 | AL103: 0 | AM103: 0
A104: 3 | B104: FALSE | C104: 2016-03-05T05:00:00 | D104: 786139.2713 | E104: 515384.9373 | F104: 551026.703 | G104: 612972.2853 | H104: 786139.2713 | I104: 387862.1282 | J104: 17013.28711 | K104: 51819.0263 | L104: 3013.742078 | M104: 227.7085695 | N104: 37279.56288 | O104: 8582.834784 | P104: 5833.503233 | Q104: 1103.516432 | R104: 10700.82342 | S104: 209.1613481 | T104: 2086.841083 | U104: 23836.0275 | V104: 187579.7525 | W104: 40368.08763 | X104: 230.525603 | Y104: 6956.725496 | Z104: 1436.017164 | AA104: 0 | AB104: 0 | AC104: 0 | AD104: 0 | AE104: 0 | AF104: 0 | AG104: 0 | AH104: 0 | AI104: 0 | AJ104: 0 | AK104: 0 | AL104: 0 | AM104: 0
A105: 3 | B105: FALSE | C105: 2016-03-05T06:00:00 | D105: 807367.9839 | E105: 535833.7575 | F105: 572215.213 | G105: 629156.644 | H105: 807367.9839 | I105: 412848.3162 | J105: 17954.98389 | K105: 52383.19947 | L105: 3046.553817 | M105: 230.187718 | N105: 39517.2976 | O105: 9098.026107 | P105: 6183.663795 | Q105: 1169.755863 | R105: 10844.60029 | S105: 211.9716518 | T105: 2078.644461 | U105: 24024.90402 | V105: 187287.0153 | W105: 40282.14815 | X105: 206.7155173 | Y105: 0 | Z105: 0 | AA105: 0 | AB105: 0 | AC105: 0 | AD105: 0 | AE105: 0 | AF105: 0 | AG105: 0 | AH105: 0 | AI105: 0 | AJ105: 0 | AK105: 0 | AL105: 0 | AM105: 0
A106: 3 | B106: FALSE | C106: 2016-03-05T07:00:00 | D106: 826139.7292 | E106: 554485.1359 | F106: 591331.757 | G106: 643405.9206 | H106: 826139.7292 | I106: 431163.4246 | J106: 16622.99982 | K106: 52365.97786 | L106: 3045.552226 | M106: 230.112041 | N106: 41137.62092 | O106: 9471.071452 | P106: 6437.211868 | Q106: 1217.719231 | R106: 10952.83308 | S106: 214.0872007 | T106: 2021.961547 | U106: 24115.91024 | V106: 186735.1296 | W106: 40187.79944 | X106: 220.3180338 | Y106: 0 | Z106: 0 | AA106: 0 | AB106: 0 | AC106: 0 | AD106: 0 | AE106: 0 | AF106: 0 | AG106: 0 | AH106: 0 | AI106: 0 | AJ106: 0 | AK106: 0 | AL106: 0 | AM106: 0
A107: 3 | B107: FALSE | C107: 2016-03-05T08:00:00 | D107: 855652.9019 | E107: 585871.9251 | F107: 623471.8023 | G107: 665537.7676 | H107: 855652.9019 | I107: 451127.5535 | J107: 19340.15246 | K107: 58895.61518 | L107: 3425.309318 | M107: 258.8052543 | N107: 43189.73115 | O107: 9943.526644 | P107: 6758.325925 | Q107: 1278.463971 | R107: 11062.82544 | S107: 216.2371428 | T107: 2007.096265 | U107: 24014.80405 | V107: 184058.5949 | W107: 39826.90958 | X107: 248.9511472 | Y107: 0 | Z107: 0 | AA107: 0 | AB107: 0 | AC107: 0 | AD107: 0 | AE107: 0 | AF107: 0 | AG107: 0 | AH107: 0 | AI107: 0 | AJ107: 0 | AK107: 0 | AL107: 0 | AM107: 0
A108: 3 | B108: FALSE | C108: 2016-03-05T09:00:00 | D108: 837046.9234 | E108: 567339.5597 | F108: 605037.3154 | G108: 651516.6036 | H108: 837046.9234 | I108: 430462.7999 | J108: 17974.31314 | K108: 61642.72052 | L108: 3585.078182 | M108: 270.8768711 | N108: 44073.46629 | O108: 10146.98806 | P108: 6896.612734 | Q108: 1304.623512 | R108: 11007.45443 | S108: 215.1548453 | T108: 1948.607569 | U108: 23750.53455 | V108: 183915.717 | W108: 39621.77791 | X108: 230.1978738 | Y108: 0 | Z108: 0 | AA108: 0 | AB108: 0 | AC108: 0 | AD108: 0 | AE108: 0 | AF108: 0 | AG108: 0 | AH108: 0 | AI108: 0 | AJ108: 0 | AK108: 0 | AL108: 0 | AM108: 0
A109: 3 | B109: FALSE | C109: 2016-03-05T10:00:00 | D109: 812257.4774 | E109: 543064.9151 | F109: 580243.0573 | G109: 632100.3617 | H109: 812257.4774 | I109: 411645.3645 | J109: 18799.10884 | K109: 56992.8982 | L109: 3314.649226 | M109: 250.444137 | N109: 42883.64133 | O109: 9873.055905 | P109: 6710.429013 | Q109: 1269.403373 | R109: 10553.30829 | S109: 206.2779751 | T109: 1965.556809 | U109: 23784.1591 | V109: 183574.5219 | W109: 40209.62164 | X109: 225.037178 | Y109: 0 | Z109: 0 | AA109: 0 | AB109: 0 | AC109: 0 | AD109: 0 | AE109: 0 | AF109: 0 | AG109: 0 | AH109: 0 | AI109: 0 | AJ109: 0 | AK109: 0 | AL109: 0 | AM109: 0
A110: 3 | B110: FALSE | C110: 2016-03-05T11:00:00 | D110: 751253.4486 | E110: 483677.0818 | F110: 520511.0785 | G110: 585364.8106 | H110: 751253.4486 | I110: 355194.8754 | J110: 17880.62177 | K110: 56045.72778 | L110: 3259.562753 | M110: 246.2819819 | N110: 42167.07955 | O110: 9708.082634 | P110: 6598.301477 | Q110: 1248.192349 | R110: 10217.48968 | S110: 199.7139689 | T110: 1947.496165 | U110: 23666.63736 | V110: 182411.2964 | W110: 40238.29784 | X110: 223.7913899 | Y110: 0 | Z110: 0 | AA110: 0 | AB110: 0 | AC110: 0 | AD110: 0 | AE110: 0 | AF110: 0 | AG110: 0 | AH110: 0 | AI110: 0 | AJ110: 0 | AK110: 0 | AL110: 0 | AM110: 0
A111: 3 | B111: FALSE | C111: 2016-03-05T12:00:00 | D111: 714194.4575 | E111: 449245.5198 | F111: 485828.6603 | G111: 556547.5587 | H111: 714194.4575 | I111: 325425.8173 | J111: 15562.80492 | K111: 54771.84622 | L111: 3185.475093 | M111: 240.6841587 | N111: 41466.88766 | O111: 9546.878188 | P111: 6488.735503 | Q111: 1227.465892 | R111: 9977.532337 | S111: 195.0236941 | T111: 1880.810613 | U111: 23655.76347 | V111: 180102.5286 | W111: 40306.38308 | X111: 159.8208175 | Y111: 0 | Z111: 0 | AA111: 0 | AB111: 0 | AC111: 0 | AD111: 0 | AE111: 0 | AF111: 0 | AG111: 0 | AH111: 0 | AI111: 0 | AJ111: 0 | AK111: 0 | AL111: 0 | AM111: 0
A112: 3 | B112: FALSE | C112: 2016-03-05T13:00:00 | D112: 693957.0819 | E112: 428900.3416 | F112: 465386.1426 | G112: 541154.0285 | H112: 693957.0819 | I112: 304934.2409 | J112: 16136.84989 | K112: 53174.30433 | L112: 3092.563675 | M112: 233.6640735 | N112: 42461.26552 | O112: 9775.812763 | P112: 6644.335676 | Q112: 1256.90058 | R112: 10207.55398 | S112: 199.5197628 | T112: 1832.602495 | U112: 23417.90477 | V112: 180117.1743 | W112: 40318.86475 | X112: 153.5244925 | Y112: 0 | Z112: 0 | AA112: 0 | AB112: 0 | AC112: 0 | AD112: 0 | AE112: 0 | AF112: 0 | AG112: 0 | AH112: 0 | AI112: 0 | AJ112: 0 | AK112: 0 | AL112: 0 | AM112: 0
A113: 3 | B113: FALSE | C113: 2016-03-05T14:00:00 | D113: 709424.7962 | E113: 445760.0485 | F113: 481478.4728 | G113: 552800.1493 | H113: 709424.7962 | I113: 327497.9063 | J113: 14804.79962 | K113: 51766.60931 | L113: 3010.693558 | M113: 227.4782333 | N113: 39554.52706 | O113: 9106.597408 | P113: 6189.489459 | Q113: 1170.857896 | R113: 10097.67618 | S113: 197.3720599 | T113: 1810.096117 | U113: 23403.76126 | V113: 179978.0638 | W113: 40380.43407 | X113: 228.4338723 | Y113: 0 | Z113: 0 | AA113: 0 | AB113: 0 | AC113: 0 | AD113: 0 | AE113: 0 | AF113: 0 | AG113: 0 | AH113: 0 | AI113: 0 | AJ113: 0 | AK113: 0 | AL113: 0 | AM113: 0
A114: 3 | B114: FALSE | C114: 2016-03-05T15:00:00 | D114: 757779.3337 | E114: 493965.8524 | F114: 529770.0266 | G114: 589606.1308 | H114: 757779.3337 | I114: 376116.1236 | J114: 14890.27072 | K114: 51277.9597 | L114: 2982.274192 | M114: 225.3309582 | N114: 39771.60618 | O114: 9156.575306 | P114: 6223.457983 | Q114: 1177.283679 | R114: 9814.103168 | S114: 191.829261 | T114: 1864.417017 | U114: 23473.49542 | V114: 180002.3516 | W114: 40380.88281 | X114: 231.3720714 | Y114: 0 | Z114: 0 | AA114: 0 | AB114: 0 | AC114: 0 | AD114: 0 | AE114: 0 | AF114: 0 | AG114: 0 | AH114: 0 | AI114: 0 | AJ114: 0 | AK114: 0 | AL114: 0 | AM114: 0
A115: 3 | B115: FALSE | C115: 2016-03-05T16:00:00 | D115: 780242.7575 | E115: 515715.0187 | F115: 551773.3571 | G115: 606712.622 | H115: 780242.7575 | I115: 390850.526 | J115: 15324.73319 | K115: 57060.66541 | L115: 3318.590498 | M115: 250.7419267 | N115: 40498.47632 | O115: 9323.921858 | P115: 6337.198568 | Q115: 1198.799841 | R115: 9869.628778 | S115: 192.9145804 | T115: 1878.448834 | U115: 23222.91147 | V115: 180225.1568 | W115: 40457.50329 | X115: 232.5401631 | Y115: 0 | Z115: 0 | AA115: 0 | AB115: 0 | AC115: 0 | AD115: 0 | AE115: 0 | AF115: 0 | AG115: 0 | AH115: 0 | AI115: 0 | AJ115: 0 | AK115: 0 | AL115: 0 | AM115: 0
A116: 3 | B116: FALSE | C116: 2016-03-05T17:00:00 | D116: 743280.2776 | E116: 478013.3142 | F116: 514221.1572 | G116: 578827.0613 | H116: 743280.2776 | I116: 350353.0612 | J116: 16017.8532 | K116: 60036.85064 | L116: 3491.682416 | M116: 263.8201902 | N116: 39364.9425 | O116: 9062.949552 | P116: 6159.82328 | Q116: 1165.245983 | R116: 10125.36558 | S116: 197.9132848 | T116: 1896.64833 | U116: 23455.29773 | V116: 181081.1172 | W116: 40389.11377 | X116: 218.5928042 | Y116: 0 | Z116: 0 | AA116: 0 | AB116: 0 | AC116: 0 | AD116: 0 | AE116: 0 | AF116: 0 | AG116: 0 | AH116: 0 | AI116: 0 | AJ116: 0 | AK116: 0 | AL116: 0 | AM116: 0
A117: 3 | B117: FALSE | C117: 2016-03-05T18:00:00 | D117: 773108.9965 | E117: 505689.9488 | F117: 542500.0566 | G117: 601798.2563 | H117: 773108.9965 | I117: 370660.2328 | J117: 17231.77827 | K117: 55577.36862 | L117: 3232.323459 | M117: 244.2238692 | N117: 41413.8651 | O117: 9534.670861 | P117: 6480.438537 | Q117: 1225.896365 | R117: 10294.50947 | S117: 201.2194197 | T117: 1913.180895 | U117: 23841.894 | V117: 182231.0509 | W117: 40427.33026 | X117: 206.2709806 | Y117: 6956.725496 | Z117: 1436.017164 | AA117: 0 | AB117: 0 | AC117: 0 | AD117: 0 | AE117: 0 | AF117: 0 | AG117: 0 | AH117: 0 | AI117: 0 | AJ117: 0 | AK117: 0 | AL117: 0 | AM117: 0
A118: 3 | B118: FALSE | C118: 2016-03-05T19:00:00 | D118: 776111.5681 | E118: 509570.8066 | F118: 546129.3311 | G118: 604167.8741 | H118: 776111.5681 | I118: 370167.962 | J118: 16368.00113 | K118: 57132.05506 | L118: 3322.742448 | M118: 251.0556345 | N118: 40434.15033 | O118: 9309.112153 | P118: 6327.132843 | Q118: 1196.895721 | R118: 10752.33382 | S118: 210.168185 | T118: 1901.788678 | U118: 23716.50174 | V118: 181985.2647 | W118: 40221.88817 | X118: 225.4019152 | Y118: 10435.08793 | Z118: 2154.025682 | AA118: 0 | AB118: 0 | AC118: 0 | AD118: 0 | AE118: 0 | AF118: 0 | AG118: 0 | AH118: 0 | AI118: 0 | AJ118: 0 | AK118: 0 | AL118: 0 | AM118: 0
A119: 3 | B119: FALSE | C119: 2016-03-05T20:00:00 | D119: 723055.599 | E119: 457721.6637 | F119: 493487.8059 | G119: 563815.2755 | H119: 723055.599 | I119: 321813.6704 | J119: 17470.54178 | K119: 55089.21845 | L119: 3203.93314 | M119: 242.0787888 | N119: 38288.71851 | O119: 8815.171629 | P119: 5991.415831 | Q119: 1133.388558 | R119: 10445.27904 | S119: 204.1664047 | T119: 1817.876064 | U119: 23542.87103 | V119: 182037.5606 | W119: 40163.34937 | X119: 207.2457897 | Y119: 10435.08793 | Z119: 2154.025682 | AA119: 0 | AB119: 0 | AC119: 0 | AD119: 0 | AE119: 0 | AF119: 0 | AG119: 0 | AH119: 0 | AI119: 0 | AJ119: 0 | AK119: 0 | AL119: 0 | AM119: 0
A120: 3 | B120: FALSE | C120: 2016-03-05T21:00:00 | D120: 716337.0487 | E120: 453701.2503 | F120: 488267.7544 | G120: 558469.8248 | H120: 716337.0487 | I120: 325158.277 | J120: 16573.47687 | K120: 52088.46445 | L120: 3029.412327 | M120: 228.8925627 | N120: 34710.79727 | O120: 7991.430563 | P120: 5431.542981 | Q120: 1027.478119 | R120: 10465.07927 | S120: 204.5534256 | T120: 1871.919143 | U120: 23341.10773 | V120: 181237.6282 | W120: 40143.75243 | X120: 244.1227091 | Y120: 10435.08793 | Z120: 2154.025682 | AA120: 0 | AB120: 0 | AC120: 0 | AD120: 0 | AE120: 0 | AF120: 0 | AG120: 0 | AH120: 0 | AI120: 0 | AJ120: 0 | AK120: 0 | AL120: 0 | AM120: 0
A121: 3 | B121: FALSE | C121: 2016-03-05T22:00:00 | D121: 706612.2219 | E121: 444959.2459 | F121: 478810.4435 | G121: 550963.1686 | H121: 706612.2219 | I121: 320941.7263 | J121: 17662.39407 | K121: 47051.60423 | L121: 2736.473639 | M121: 206.7590662 | N121: 34144.41828 | O121: 7861.033719 | P121: 5342.916037 | Q121: 1010.712672 | R121: 10441.28274 | S121: 204.0882918 | T121: 1894.703343 | U121: 23049.60204 | V121: 181038.7459 | W121: 40202.64468 | X121: 234.0033179 | Y121: 10435.08793 | Z121: 2154.025682 | AA121: 0 | AB121: 0 | AC121: 0 | AD121: 0 | AE121: 0 | AF121: 0 | AG121: 0 | AH121: 0 | AI121: 0 | AJ121: 0 | AK121: 0 | AL121: 0 | AM121: 0
A122: 3 | B122: FALSE | C122: 2016-03-05T23:00:00 | D122: 700913.5777 | E122: 442499.77 | F122: 475852.8952 | G122: 545987.5141 | H122: 700913.5777 | I122: 323645.985 | J122: 16575.60219 | K122: 44834.71625 | L122: 2607.54168 | M122: 197.0173858 | N122: 32739.68651 | O122: 7537.623793 | P122: 5123.103715 | Q122: 969.131053 | R122: 10076.38332 | S122: 196.9558636 | T122: 1872.891695 | U122: 23011.00383 | V122: 178543.3397 | W122: 40228.09059 | X122: 165.3914843 | Y122: 10435.08793 | Z122: 2154.025682 | AA122: 0 | AB122: 0 | AC122: 0 | AD122: 0 | AE122: 0 | AF122: 0 | AG122: 0 | AH122: 0 | AI122: 0 | AJ122: 0 | AK122: 0 | AL122: 0 | AM122: 0
A123: 3 | B123: FALSE | C123: 2016-03-06 | D123: 685823.2325 | E123: 427419.5157 | F123: 460714.4419 | G123: 534453.2741 | H123: 685823.2325 | I123: 308264.3487 | J123: 15887.95696 | K123: 45152.71728 | L123: 2626.036298 | M123: 198.4147792 | N123: 33150.37436 | O123: 7632.176027 | P123: 5187.368119 | Q123: 981.2878691 | R123: 10346.05324 | S123: 202.2269088 | T123: 1864.139195 | U123: 22834.48691 | V123: 178463.8009 | W123: 40277.91895 | X123: 164.8123316 | Y123: 10435.08793 | Z123: 2154.025682 | AA123: 0 | AB123: 0 | AC123: 0 | AD123: 0 | AE123: 0 | AF123: 0 | AG123: 0 | AH123: 0 | AI123: 0 | AJ123: 0 | AK123: 0 | AL123: 0 | AM123: 0
A124: 3 | B124: FALSE | C124: 2016-03-06T01:00:00 | D124: 692690.8097 | E124: 433759.4789 | F124: 466901.2131 | G124: 539834.7425 | H124: 692690.8097 | I124: 316396.793 | J124: 16733.41413 | K124: 42715.1466 | L124: 2484.269656 | M124: 187.7033518 | N124: 33093.32426 | O124: 7619.041443 | P124: 5178.440924 | Q124: 979.5991229 | R124: 10152.07731 | S124: 198.4353999 | T124: 1874.558743 | U124: 22839.98775 | V124: 179156.7751 | W124: 40287.07812 | X124: 205.05121 | Y124: 10435.08793 | Z124: 2154.025682 | AA124: 0 | AB124: 0 | AC124: 0 | AD124: 0 | AE124: 0 | AF124: 0 | AG124: 0 | AH124: 0 | AI124: 0 | AJ124: 0 | AK124: 0 | AL124: 0 | AM124: 0
A125: 3 | B125: FALSE | C125: 2016-03-06T02:00:00 | D125: 677073.7594 | E125: 418446.1652 | F125: 451627.6078 | G125: 527954.7518 | H125: 677073.7594 | I125: 299276.236 | J125: 16142.65704 | K125: 45348.05798 | L125: 2637.397115 | M125: 199.2731656 | N125: 33113.46535 | O125: 7623.678503 | P125: 5181.592599 | Q125: 980.1953213 | R125: 9871.098056 | S125: 192.9432993 | T125: 1887.062365 | U125: 22727.42369 | V125: 178885.2765 | W125: 40199.81394 | X125: 218.4747755 | Y125: 10435.08793 | Z125: 2154.025682 | AA125: 0 | AB125: 0 | AC125: 0 | AD125: 0 | AE125: 0 | AF125: 0 | AG125: 0 | AH125: 0 | AI125: 0 | AJ125: 0 | AK125: 0 | AL125: 0 | AM125: 0
A126: 3 | B126: FALSE | C126: 2016-03-06T03:00:00 | D126: 680689.621 | E126: 422253.691 | F126: 455256.0554 | G126: 530749.5388 | H126: 680689.621 | I126: 302953.7282 | J126: 16334.35531 | K126: 44894.67897 | L126: 2611.029051 | M126: 197.2808803 | N126: 33108.49669 | O126: 7622.534576 | P126: 5180.815105 | Q126: 980.0482437 | R126: 10281.79092 | S126: 200.9708193 | T126: 1865.667391 | U126: 22567.82998 | V126: 178921.5846 | W126: 40153.83674 | X126: 225.8599016 | Y126: 10435.08793 | Z126: 2154.025682 | AA126: 0 | AB126: 0 | AC126: 0 | AD126: 0 | AE126: 0 | AF126: 0 | AG126: 0 | AH126: 0 | AI126: 0 | AJ126: 0 | AK126: 0 | AL126: 0 | AM126: 0
A127: 3 | B127: FALSE | C127: 2016-03-06T04:00:00 | D127: 684904.8507 | E127: 424844.8605 | F127: 458974.3588 | G127: 534013.0972 | H127: 684904.8507 | I127: 301856.7102 | J127: 15842.99001 | K127: 45659.458 | L127: 2655.507825 | M127: 200.6415521 | N127: 36659.70596 | O127: 8440.125771 | P127: 5736.508067 | Q127: 1085.167979 | R127: 10148.9797 | S127: 198.3748532 | T127: 1883.728034 | U127: 22835.4898 | V127: 178796.4605 | W127: 40111.71376 | X127: 204.1750607 | Y127: 10435.08793 | Z127: 2154.025682 | AA127: 0 | AB127: 0 | AC127: 0 | AD127: 0 | AE127: 0 | AF127: 0 | AG127: 0 | AH127: 0 | AI127: 0 | AJ127: 0 | AK127: 0 | AL127: 0 | AM127: 0
A128: 3 | B128: FALSE | C128: 2016-03-06T05:00:00 | D128: 685845.831 | E128: 425180.5066 | F128: 459847.5617 | G128: 534713.3789 | H128: 685845.831 | I128: 301860.5671 | J128: 15873.38232 | K128: 49644.5515 | L128: 2887.276825 | M128: 218.1532655 | N128: 36949.2336 | O128: 8506.783419 | P128: 5781.813332 | Q128: 1093.738318 | R128: 10329.81887 | S128: 201.9095873 | T128: 1903.039052 | U128: 23071.08533 | V128: 178769.4178 | W128: 40135.14649 | X128: 227.1715137 | Y128: 6956.725496 | Z128: 1436.017164 | AA128: 0 | AB128: 0 | AC128: 0 | AD128: 0 | AE128: 0 | AF128: 0 | AG128: 0 | AH128: 0 | AI128: 0 | AJ128: 0 | AK128: 0 | AL128: 0 | AM128: 0
A129: 3 | B129: FALSE | C129: 2016-03-06T06:00:00 | D129: 705818.5335 | E129: 444674.6315 | F129: 479955.5454 | G129: 549909.5293 | H129: 705818.5335 | I129: 321184.9539 | J129: 16339.55851 | K129: 58083.23303 | L129: 3378.061995 | M129: 255.2354 | N129: 36417.64866 | O129: 8384.397172 | P129: 5698.630959 | Q129: 1078.002814 | R129: 10432.00215 | S129: 203.9068907 | T129: 2005.568069 | U129: 23314.54783 | V129: 178709.4929 | W129: 40121.62595 | X129: 211.6672249 | Y129: 0 | Z129: 0 | AA129: 0 | AB129: 0 | AC129: 0 | AD129: 0 | AE129: 0 | AF129: 0 | AG129: 0 | AH129: 0 | AI129: 0 | AJ129: 0 | AK129: 0 | AL129: 0 | AM129: 0
A130: 3 | B130: FALSE | C130: 2016-03-06T07:00:00 | D130: 734865.5568 | E130: 473605.0647 | F130: 508766.1199 | G130: 572076.0191 | H130: 734865.5568 | I130: 355540.8261 | J130: 15210.26009 | K130: 53885.09584 | L130: 3133.902589 | M130: 236.7875077 | N130: 36246.03287 | O130: 8344.886248 | P130: 5671.776533 | Q130: 1072.922796 | R130: 10555.25694 | S130: 206.3160642 | T130: 1931.51936 | U130: 23475.9503 | V130: 178996.4378 | W130: 40121.51223 | X130: 236.0735766 | Y130: 0 | Z130: 0 | AA130: 0 | AB130: 0 | AC130: 0 | AD130: 0 | AE130: 0 | AF130: 0 | AG130: 0 | AH130: 0 | AI130: 0 | AJ130: 0 | AK130: 0 | AL130: 0 | AM130: 0
A131: 3 | B131: =PeakTime(C131,Holidays,PkStart,PkEnd,UseDST,DST_1,DST_2) -> FALSE | C131: 2016-03-06T08:00:00 | D131: =SUM(OFFSET(I131,0,0,1,COUNTA(I131:IV131))) -> 738792.9098 | E131: =SUMIF(OFFSET($I$2,0,0,1,COUNTA($I$2:$IV$2)),E$2,OFFSET(I131,0,0,1,COUNTA(I131:IV131))) -> 479140.5494 | F131: =E131+SUMIF(OFFSET($I$2,0,0,1,COUNTA($I$2:$IV$2)),F$2,OFFSET(I131,0,0,1,COUNTA(I131:IV131))) -> 513892.656 | G131: =F131*DistAtSubtran+SUMIF(OFFSET($I$2,0,0,1,COUNTA($I$2:$IV$2)),G$2,OFFSET(I131,0,0,1,COUNTA(I131:IV131))) -> 574911.6862 | H131: =SUM(OFFSET(I131,0,0,1,COUNTA(I131:IV131))) -> 738792.9098 | I131: 360192.6219 | J131: 16530.49473 | K131: 54301.65178 | L131: 3158.12906 | M131: 238.6179812 | N131: 35552.38827 | O131: 8185.189177 | P131: 5563.235077 | Q131: 1052.390146 | R131: 10417.60411 | S131: 203.6254625 | T131: 1919.988291 | U131: 23205.16286 | V131: 178037.522 | W131: 40008.48865 | X131: 225.800353 | Y131: 0 | Z131: 0 | AA131: 0 | AB131: 0 | AC131: 0 | AD131: 0 | AE131: 0 | AF131: 0 | AG131: 0 | AH131: 0 | AI131: 0 | AJ131: 0 | AK131: 0 | AL131: 0 | AM131: 0
A132: =MONTH(C132) -> 3 | B132: FALSE | C132: =+C131+1/24 -> 2016-03-06T09:00:00 | D132: 776914.088 | E132: 516349.9205 | F132: 551654.1875 | G132: 603935.3589 | H132: 776914.088 | I132: 394764.6224 | J132: 15509.16778 | K132: 55721.32129 | L132: 3240.695601 | M132: 244.8564411 | N132: 38060.58221 | O132: 8762.648046 | P132: 5955.717079 | Q132: 1126.63547 | R132: 10222.38913 | S132: 199.8097349 | T132: 1845.244969 | U132: 23101.11366 | V132: 177925.9487 | W132: 40006.74288 | X132: 226.5927001 | Y132: 0 | Z132: 0 | AA132: 0 | AB132: 0 | AC132: 0 | AD132: 0 | AE132: 0 | AF132: 0 | AG132: 0 | AH132: 0 | AI132: 0 | AJ132: 0 | AK132: 0 | AL132: 0 | AM132: 0
A133: 3 | B133: FALSE | C133: 2016-03-06T10:00:00 | D133: 760277.8962 | E133: 499508.9716 | F133: 535300.6227 | G133: 591169.3366 | H133: 760277.8962 | I133: 375304.7187 | J133: 16063.96455 | K133: 57335.60942 | L133: 3334.580963 | M133: 251.9501143 | N133: 39083.2979 | O133: 8998.106811 | P133: 6115.751555 | Q133: 1156.90899 | R133: 9691.73928 | S133: 189.4375015 | T133: 1799.39863 | U133: 23269.52576 | V133: 177437.8611 | W133: 40014.80172 | X133: 230.2431077 | Y133: 0 | Z133: 0 | AA133: 0 | AB133: 0 | AC133: 0 | AD133: 0 | AE133: 0 | AF133: 0 | AG133: 0 | AH133: 0 | AI133: 0 | AJ133: 0 | AK133: 0 | AL133: 0 | AM133: 0
A134: 3 | B134: FALSE | C134: 2016-03-06T11:00:00 | D134: 665471.5948 | E134: 404481.0584 | F134: 440285.5 | G134: 519001.5617 | H134: 665471.5948 | I134: 285580.0893 | J134: 13514.28307 | K134: 53720.3954 | L134: 3124.323778 | M134: 236.0637639 | N134: 40021.37787 | O134: 9214.079982 | P134: 6262.542239 | Q134: 1184.677198 | R134: 9572.196053 | S134: 187.1008755 | T134: 1850.802108 | U134: 23278.93701 | V134: 177445.6902 | W134: 40057.1214 | X134: 221.9146005 | Y134: 0 | Z134: 0 | AA134: 0 | AB134: 0 | AC134: 0 | AD134: 0 | AE134: 0 | AF134: 0 | AG134: 0 | AH134: 0 | AI134: 0 | AJ134: 0 | AK134: 0 | AL134: 0 | AM134: 0
A135: 3 | B135: FALSE | C135: 2016-03-06T12:00:00 | D135: 657336.8686 | E135: 397779.9166 | F135: 432972.6565 | G135: 512708.9911 | H135: 657336.8686 | I135: 285299.9081 | J135: 13232.04831 | K135: 49272.87584 | L135: 2865.660546 | M135: 216.5200096 | N135: 38856.98985 | O135: 8946.004144 | P135: 6080.338887 | Q135: 1150.21002 | R135: 9152.527905 | S135: 178.8979221 | T135: 1786.617186 | U135: 23202.17725 | V135: 176919.9406 | W135: 39997.20258 | X135: 178.9494793 | Y135: 0 | Z135: 0 | AA135: 0 | AB135: 0 | AC135: 0 | AD135: 0 | AE135: 0 | AF135: 0 | AG135: 0 | AH135: 0 | AI135: 0 | AJ135: 0 | AK135: 0 | AL135: 0 | AM135: 0
A136: 3 | B136: FALSE | C136: 2016-03-06T13:00:00 | D136: 671501.3064 | E136: 412529.9534 | F136: 447423.6073 | G136: 523443.3666 | H136: 671501.3064 | I136: 301768.2234 | J136: 14413.21119 | K136: 47312.62413 | L136: 2751.654292 | M136: 207.9060671 | N136: 38389.97038 | O136: 8838.48274 | P136: 6007.259715 | Q136: 1136.385726 | R136: 8763.771891 | S136: 171.2991861 | T136: 1669.639677 | U136: 23132.21766 | V136: 176738.8356 | W136: 39987.31191 | X136: 212.5128113 | Y136: 0 | Z136: 0 | AA136: 0 | AB136: 0 | AC136: 0 | AD136: 0 | AE136: 0 | AF136: 0 | AG136: 0 | AH136: 0 | AI136: 0 | AJ136: 0 | AK136: 0 | AL136: 0 | AM136: 0
A137: 3 | B137: FALSE | C137: 2016-03-06T14:00:00 | D137: 648626.7582 | E137: 390027.3795 | F137: 424668.1864 | G137: 505978.9203 | H137: 648626.7582 | I137: 281186.3429 | J137: 14028.6081 | K137: 46314.58617 | L137: 2693.609415 | M137: 203.5203846 | N137: 38073.21466 | O137: 8765.556402 | P137: 5957.693804 | Q137: 1127.009405 | R137: 8509.144559 | S137: 166.3221676 | T137: 1669.778529 | U137: 23015.31895 | V137: 176645.2163 | W137: 40025.13191 | X137: 245.7046049 | Y137: 0 | Z137: 0 | AA137: 0 | AB137: 0 | AC137: 0 | AD137: 0 | AE137: 0 | AF137: 0 | AG137: 0 | AH137: 0 | AI137: 0 | AJ137: 0 | AK137: 0 | AL137: 0 | AM137: 0
A138: 3 | B138: FALSE | C138: 2016-03-06T15:00:00 | D138: 626335.7385 | E138: 369122.7929 | F138: 403216.5401 | G138: 488870.7679 | H138: 626335.7385 | I138: 266022.2686 | J138: 15535.00949 | K138: 39991.67133 | L138: 2325.875093 | M138: 175.7355728 | N138: 37128.32092 | O138: 8548.014505 | P138: 5809.836902 | Q138: 1099.039502 | R138: 8570.891524 | S138: 167.5290914 | T138: 1647.966881 | U138: 23052.3285 | V138: 176037.4084 | W138: 39997.17799 | X138: 226.6641211 | Y138: 0 | Z138: 0 | AA138: 0 | AB138: 0 | AC138: 0 | AD138: 0 | AE138: 0 | AF138: 0 | AG138: 0 | AH138: 0 | AI138: 0 | AJ138: 0 | AK138: 0 | AL138: 0 | AM138: 0
A139: 3 | B139: FALSE | C139: 2016-03-06T16:00:00 | D139: 618814.6559 | E139: 362229.4648 | F139: 396677.1028 | G139: 482852.2454 | H139: 618814.6559 | I139: 256895.8726 | J139: 16457.51482 | K139: 40213.26867 | L139: 2338.76297 | M139: 176.7093389 | N139: 38217.24145 | O139: 8798.715539 | P139: 5980.231105 | Q139: 1131.272758 | R139: 8599.335025 | S139: 168.0850562 | T139: 1630.184059 | U139: 23142.07444 | V139: 174824.0297 | W139: 40025.31018 | X139: 216.0481583 | Y139: 0 | Z139: 0 | AA139: 0 | AB139: 0 | AC139: 0 | AD139: 0 | AE139: 0 | AF139: 0 | AG139: 0 | AH139: 0 | AI139: 0 | AJ139: 0 | AK139: 0 | AL139: 0 | AM139: 0
A140: 3 | B140: FALSE | C140: 2016-03-06T17:00:00 | D140: 696604.8859 | E140: 439078.6576 | F140: 473860.8615 | G140: 542140.6753 | H140: 696604.8859 | I140: 333293.3868 | J140: 15466.8396 | K140: 40889.9088 | L140: 2378.115675 | M140: 179.6827016 | N140: 38880.85152 | O140: 8951.497791 | P140: 6084.072759 | Q140: 1150.916352 | R140: 8607.965508 | S140: 168.2537501 | T140: 1705.066351 | U140: 23284.33668 | V140: 175268.8042 | W140: 40060.54841 | X140: 234.6390512 | Y140: 0 | Z140: 0 | AA140: 0 | AB140: 0 | AC140: 0 | AD140: 0 | AE140: 0 | AF140: 0 | AG140: 0 | AH140: 0 | AI140: 0 | AJ140: 0 | AK140: 0 | AL140: 0 | AM140: 0
A141: 3 | B141: FALSE | C141: 2016-03-06T18:00:00 | D141: 703306.8719 | E141: 445067.7316 | F141: 480466.4283 | G141: 547229.7978 | H141: 703306.8719 | I141: 322819.6573 | J141: 16513.95691 | K141: 48347.50622 | L141: 2811.841986 | M141: 212.4536539 | N141: 38288.73875 | O141: 8815.176289 | P141: 5991.418998 | Q141: 1133.389157 | R141: 8767.248776 | S141: 171.3671463 | T141: 1719.23702 | U141: 23600.31127 | V141: 175390.9732 | W141: 40112.2086 | X141: 218.6439573 | Y141: 6956.725496 | Z141: 1436.017164 | AA141: 0 | AB141: 0 | AC141: 0 | AD141: 0 | AE141: 0 | AF141: 0 | AG141: 0 | AH141: 0 | AI141: 0 | AJ141: 0 | AK141: 0 | AL141: 0 | AM141: 0
A142: 3 | B142: FALSE | C142: 2016-03-06T19:00:00 | D142: 733095.9738 | E142: 473756.4305 | F142: 509202.7233 | G142: 570166.8806 | H142: 733095.9738 | I142: 344918.4945 | J142: 18322.03174 | K142: 49913.13819 | L142: 2902.897555 | M142: 219.3335172 | N142: 36543.08939 | O142: 8413.277261 | P142: 5718.259915 | Q142: 1081.715999 | R142: 9464.174594 | S142: 184.9894572 | T142: 1756.19189 | U142: 23945.12847 | V142: 176726.0148 | W142: 40147.92631 | X142: 250.1965792 | Y142: 10435.08793 | Z142: 2154.025682 | AA142: 0 | AB142: 0 | AC142: 0 | AD142: 0 | AE142: 0 | AF142: 0 | AG142: 0 | AH142: 0 | AI142: 0 | AJ142: 0 | AK142: 0 | AL142: 0 | AM142: 0
A143: 3 | B143: FALSE | C143: 2016-03-06T20:00:00 | D143: 716428.304 | E143: 457669.4846 | F143: 492297.5165 | G143: 557573.1631 | H143: 716428.304 | I143: 333638.8326 | J143: 17774.01899 | K143: 47250.14916 | L143: 2748.020811 | M143: 207.6315331 | N143: 34675.4028 | O143: 7983.281731 | P143: 5426.004456 | Q143: 1026.430403 | R143: 9741.998399 | S143: 190.4198806 | T143: 1749.106555 | U143: 23706.30947 | V143: 177301.117 | W143: 40169.60404 | X143: 250.8625192 | Y143: 10435.08793 | Z143: 2154.025682 | AA143: 0 | AB143: 0 | AC143: 0 | AD143: 0 | AE143: 0 | AF143: 0 | AG143: 0 | AH143: 0 | AI143: 0 | AJ143: 0 | AK143: 0 | AL143: 0 | AM143: 0
A144: 3 | B144: FALSE | C144: 2016-03-06T21:00:00 | D144: 746948.8024 | E144: 487904.3602 | F144: 522395.236 | G144: 580975.8435 | H144: 746948.8024 | I144: 369126.7581 | J144: 16694.56915 | K144: 43681.91849 | L144: 2540.49613 | M144: 191.9516417 | N144: 34224.93201 | O144: 7879.570312 | P144: 5355.514821 | Q144: 1013.095968 | R144: 9546.130537 | S144: 186.5913914 | T144: 1798.981838 | U144: 23884.21802 | V144: 177885.6024 | W144: 40107.40157 | X144: 241.9564367 | Y144: 10435.08793 | Z144: 2154.025682 | AA144: 0 | AB144: 0 | AC144: 0 | AD144: 0 | AE144: 0 | AF144: 0 | AG144: 0 | AH144: 0 | AI144: 0 | AJ144: 0 | AK144: 0 | AL144: 0 | AM144: 0
A145: 3 | B145: FALSE | C145: 2016-03-06T22:00:00 | D145: 743066.8587 | E145: 482618.9999 | F145: 516956.0207 | G145: 578377.5184 | H145: 743066.8587 | I145: 362564.8431 | J145: 18621.31505 | K145: 42875.06024 | L145: 2493.570072 | M145: 188.4060611 | N145: 34023.68984 | O145: 7833.238536 | P145: 5324.02446 | Q145: 1007.138976 | R145: 9888.079848 | S145: 193.2752303 | T145: 1840.938204 | U145: 23816.93696 | V145: 179461.5561 | W145: 40129.71246 | X145: 215.9599802 | Y145: 10435.08793 | Z145: 2154.025682 | AA145: 0 | AB145: 0 | AC145: 0 | AD145: 0 | AE145: 0 | AF145: 0 | AG145: 0 | AH145: 0 | AI145: 0 | AJ145: 0 | AK145: 0 | AL145: 0 | AM145: 0
A146: 3 | B146: FALSE | C146: 2016-03-06T23:00:00 | D146: 772307.8986 | E146: 510611.5053 | F146: 544315.347 | G146: 601077.8397 | H146: 772307.8986 | I146: 392770.1359 | J146: 16524.53625 | K146: 43441.51097 | L146: 2526.514272 | M146: 190.8952179 | N146: 33261.19923 | O146: 7657.691121 | P146: 5204.709986 | Q146: 984.5684082 | R146: 9944.76442 | S146: 194.3832031 | T146: 1888.59056 | U146: 23325.25309 | V146: 181458.2554 | W146: 40154.12258 | X146: 191.6543744 | Y146: 10435.08793 | Z146: 2154.025682 | AA146: 0 | AB146: 0 | AC146: 0 | AD146: 0 | AE146: 0 | AF146: 0 | AG146: 0 | AH146: 0 | AI146: 0 | AJ146: 0 | AK146: 0 | AL146: 0 | AM146: 0
A147: 3 | B147: FALSE | C147: 2016-03-07 | D147: 741522.1922 | E147: 479522.5945 | F147: 513119.5656 | G147: 577784.4488 | H147: 741522.1922 | I147: 361918.1344 | J147: 15850.51581 | K147: 44107.96075 | L147: 2565.274316 | M147: 193.823801 | N147: 32893.60675 | O147: 7573.060689 | P147: 5147.189143 | Q147: 973.687263 | R147: 10079.7512 | S147: 197.0216932 | T147: 1919.154708 | U147: 23261.61441 | V147: 181959.4464 | W147: 40128.47997 | X147: 164.3573133 | Y147: 10435.08793 | Z147: 2154.025682 | AA147: 0 | AB147: 0 | AC147: 0 | AD147: 0 | AE147: 0 | AF147: 0 | AG147: 0 | AH147: 0 | AI147: 0 | AJ147: 0 | AK147: 0 | AL147: 0 | AM147: 0
A148: 3 | B148: FALSE | C148: 2016-03-07T01:00:00 | D148: 730005.0549 | E148: 465974.9437 | F148: 499805.0258 | G148: 569362.3696 | H148: 730005.0549 | I148: 344304.1757 | J148: 16155.57114 | K148: 46805.48626 | L148: 2722.159667 | M148: 205.677549 | N148: 33300.43235 | O148: 7666.72372 | P148: 5210.849182 | Q148: 985.729752 | R148: 10657.88956 | S148: 208.3221506 | T148: 1963.19503 | U148: 23232.87654 | V148: 183594.2182 | W148: 40203.55445 | X148: 199.0800023 | Y148: 10435.08793 | Z148: 2154.025682 | AA148: 0 | AB148: 0 | AC148: 0 | AD148: 0 | AE148: 0 | AF148: 0 | AG148: 0 | AH148: 0 | AI148: 0 | AJ148: 0 | AK148: 0 | AL148: 0 | AM148: 0
A149: 3 | B149: FALSE | C149: 2016-03-07T02:00:00 | D149: 737172.247 | E149: 475974.2688 | F149: 510011.9567 | G149: 574004.7276 | H149: 737172.247 | I149: 352678.3937 | J149: 16789.31036 | K149: 46937.66903 | L149: 2729.847283 | M149: 206.2584003 | N149: 33984.80753 | O149: 7824.286703 | P149: 5317.940159 | Q149: 1005.988017 | R149: 10764.37612 | S149: 210.4035673 | T149: 1992.647891 | U149: 23273.15038 | V149: 180361.43 | W149: 40268.67371 | X149: 237.9505355 | Y149: 10435.08793 | Z149: 2154.025682 | AA149: 0 | AB149: 0 | AC149: 0 | AD149: 0 | AE149: 0 | AF149: 0 | AG149: 0 | AH149: 0 | AI149: 0 | AJ149: 0 | AK149: 0 | AL149: 0 | AM149: 0
A150: 3 | B150: FALSE | C150: 2016-03-07T03:00:00 | D150: 732262.2324 | E150: 474371.9447 | F150: 508433.9463 | G150: 569453.633 | H150: 732262.2324 | I150: 352485.1848 | J150: 16712.04061 | K150: 44064.5156 | L150: 2562.74759 | M150: 193.6328898 | N150: 34558.94477 | O150: 7956.46972 | P150: 5407.781113 | Q150: 1022.983116 | R150: 11736.37905 | S150: 229.4026139 | T150: 1994.453791 | U150: 23313.38163 | V150: 176933.9859 | W150: 40269.90313 | X150: 231.3125397 | Y150: 10435.08793 | Z150: 2154.025682 | AA150: 0 | AB150: 0 | AC150: 0 | AD150: 0 | AE150: 0 | AF150: 0 | AG150: 0 | AH150: 0 | AI150: 0 | AJ150: 0 | AK150: 0 | AL150: 0 | AM150: 0
A151: 3 | B151: FALSE | C151: 2016-03-07T04:00:00 | D151: 749755.5609 | E151: 488562.2426 | F151: 524225.6115 | G151: 583027.0457 | H151: 749755.5609 | I151: 357714.4669 | J151: 17133.76463 | K151: 45173.63052 | L151: 2627.252591 | M151: 198.5066783 | N151: 40107.01543 | O151: 9233.796226 | P151: 6275.942797 | Q151: 1187.212165 | R151: 13664.06713 | S151: 267.0817551 | T151: 1963.889643 | U151: 23535.23836 | V151: 177616.9058 | W151: 40251.38193 | X151: 216.2946972 | Y151: 10435.08793 | Z151: 2154.025682 | AA151: 0 | AB151: 0 | AC151: 0 | AD151: 0 | AE151: 0 | AF151: 0 | AG151: 0 | AH151: 0 | AI151: 0 | AJ151: 0 | AK151: 0 | AL151: 0 | AM151: 0
A152: 3 | B152: FALSE | C152: 2016-03-07T05:00:00 | D152: 814408.7356 | E152: 549369.3744 | F152: 586354.6845 | G152: 632856.3626 | H152: 814408.7356 | I152: 416297.0392 | J152: 17166.74976 | K152: 47117.64447 | L152: 2740.314472 | M152: 207.0492671 | N152: 41751.73 | O152: 9612.457143 | P152: 6533.307612 | Q152: 1235.897541 | R152: 16353.23864 | S152: 319.6450688 | T152: 2037.243739 | U152: 24312.89336 | V152: 179900.0908 | W152: 40177.70591 | X152: 252.9860171 | Y152: 6956.725496 | Z152: 1436.017164 | AA152: 0 | AB152: 0 | AC152: 0 | AD152: 0 | AE152: 0 | AF152: 0 | AG152: 0 | AH152: 0 | AI152: 0 | AJ152: 0 | AK152: 0 | AL152: 0 | AM152: 0
A153: 3 | B153: FALSE | C153: 2016-03-07T06:00:00 | D153: 884417.8017 | E153: 604130.5923 | F153: 646634.8031 | G153: 688210.0061 | H153: 884417.8017 | I153: 465767.4516 | J153: 18471.56261 | K153: 49244.61544 | L153: 2864.016949 | M153: 216.3958248 | N153: 51396.68114 | O153: 11833.00416 | P153: 8042.54885 | Q153: 1521.398798 | R153: 16956.33694 | S153: 331.4334004 | T153: 2059.194356 | U153: 27475.75627 | V153: 187861.9763 | W153: 40140.67888 | X153: 234.7502616 | Y153: 0 | Z153: 0 | AA153: 0 | AB153: 0 | AC153: 0 | AD153: 0 | AE153: 0 | AF153: 0 | AG153: 0 | AH153: 0 | AI153: 0 | AJ153: 0 | AK153: 0 | AL153: 0 | AM153: 0
A154: 3 | B154: TRUE | C154: 2016-03-07T07:00:00 | D154: 847098.2509 | E154: 555489.0332 | F154: 601477.9423 | G154: 661685.4464 | H154: 847098.2509 | I154: 405802.3289 | J154: 17718.20653 | K154: 55659.27054 | L154: 3237.086792 | M154: 244.5837712 | N154: 54351.96935 | O154: 12513.39707 | P154: 8504.99213 | Q154: 1608.878609 | R154: 19678.38426 | S154: 384.6393139 | T154: 2050.858765 | U154: 29853.78593 | V154: 195211.1564 | W154: 40050.69769 | X154: 228.0148274 | Y154: 0 | Z154: 0 | AA154: 0 | AB154: 0 | AC154: 0 | AD154: 0 | AE154: 0 | AF154: 0 | AG154: 0 | AH154: 0 | AI154: 0 | AJ154: 0 | AK154: 0 | AL154: 0 | AM154: 0
A155: 3 | B155: TRUE | C155: 2016-03-07T08:00:00 | D155: 856795.0721 | E155: 557444.6967 | F155: 606699.1602 | G155: 669979.7427 | H155: 856795.0721 | I155: 384823.3685 | J155: 19255.35963 | K155: 69962.97792 | L155: 4068.975924 | M155: 307.4386139 | N155: 59001.02112 | O155: 13583.7434 | P155: 9232.475406 | Q155: 1746.495701 | R155: 22142.33014 | S155: 432.8003032 | T155: 2026.963043 | U155: 31168.94387 | V155: 198741.7678 | W155: 40067.73436 | X155: 232.6763565 | Y155: 0 | Z155: 0 | AA155: 0 | AB155: 0 | AC155: 0 | AD155: 0 | AE155: 0 | AF155: 0 | AG155: 0 | AH155: 0 | AI155: 0 | AJ155: 0 | AK155: 0 | AL155: 0 | AM155: 0
A156: 3 | B156: TRUE | C156: 2016-03-07T09:00:00 | D156: 830647.0541 | E156: 530617.56 | F156: 579407.6131 | G156: 650411.811 | H156: 830647.0541 | I156: 360229.6563 | J156: 19209.92654 | K156: 70071.82547 | L156: 4075.306387 | M156: 307.9169231 | N156: 57927.12461 | O156: 13336.50133 | P156: 9064.432159 | Q156: 1714.707172 | R156: 20996.63534 | S156: 410.4062256 | T156: 1959.721848 | U156: 30967.83911 | V156: 200110.2684 | W156: 40042.11634 | X156: 222.6699228 | Y156: 0 | Z156: 0 | AA156: 0 | AB156: 0 | AC156: 0 | AD156: 0 | AE156: 0 | AF156: 0 | AG156: 0 | AH156: 0 | AI156: 0 | AJ156: 0 | AK156: 0 | AL156: 0 | AM156: 0
A157: 3 | B157: TRUE | C157: 2016-03-07T10:00:00 | D157: 770376.8652 | E157: 470364.0201 | F157: 519198.2835 | G157: 604535.1464 | H157: 770376.8652 | I157: 303506.4172 | J157: 18570.50853 | K157: 67647.91714 | L157: 3934.334334 | M157: 297.2655323 | N157: 58307.98706 | O157: 13424.18689 | P157: 9124.029487 | Q157: 1725.981123 | R157: 20301.43406 | S157: 396.8176231 | T157: 1834.825304 | U157: 31078.92457 | V157: 200003.9576 | W157: 40027.34794 | X157: 194.9307673 | Y157: 0 | Z157: 0 | AA157: 0 | AB157: 0 | AC157: 0 | AD157: 0 | AE157: 0 | AF157: 0 | AG157: 0 | AH157: 0 | AI157: 0 | AJ157: 0 | AK157: 0 | AL157: 0 | AM157: 0
A158: 3 | B158: TRUE | C158: 2016-03-07T11:00:00 | D158: 737912.3182 | E158: 438439.539 | F158: 487174.5246 | G158: 579839.9543 | H158: 737912.3182 | I158: 281956.614 | J158: 17637.46979 | K158: 60777.22336 | L158: 3534.741744 | M158: 267.0736132 | N158: 55727.63468 | O158: 12830.11506 | P158: 8720.256138 | Q158: 1649.599829 | R158: 20319.8551 | S158: 397.177686 | T158: 1809.401504 | U158: 31972.95109 | V158: 200112.8114 | W158: 39988.05263 | X158: 211.3405473 | Y158: 0 | Z158: 0 | AA158: 0 | AB158: 0 | AC158: 0 | AD158: 0 | AE158: 0 | AF158: 0 | AG158: 0 | AH158: 0 | AI158: 0 | AJ158: 0 | AK158: 0 | AL158: 0 | AM158: 0
A159: 3 | B159: TRUE | C159: 2016-03-07T12:00:00 | D159: 701748.0382 | E159: 403868.0555 | F159: 452076.6408 | G159: 552154.2272 | H159: 701748.0382 | I159: 254873.4185 | J159: 14699.62093 | K159: 59442.36816 | L159: 3457.107918 | M159: 261.2078533 | N159: 54115.98035 | O159: 12459.06557 | P159: 8468.064588 | Q159: 1601.893073 | R159: 18786.28629 | S159: 367.2021124 | T159: 1756.886621 | U159: 31925.20965 | V159: 199394.6311 | W159: 39945.60078 | X159: 193.4946815 | Y159: 0 | Z159: 0 | AA159: 0 | AB159: 0 | AC159: 0 | AD159: 0 | AE159: 0 | AF159: 0 | AG159: 0 | AH159: 0 | AI159: 0 | AJ159: 0 | AK159: 0 | AL159: 0 | AM159: 0
A160: 3 | B160: TRUE | C160: 2016-03-07T13:00:00 | D160: 706285.3 | E160: 408563.8252 | F160: 457158.688 | G160: 555284.2046 | H160: 706285.3 | I160: 257116.3626 | J160: 15773.81083 | K160: 60137.39426 | L160: 3497.529932 | M160: 264.2620095 | N160: 56236.97707 | O160: 12947.38043 | P160: 8799.957997 | Q160: 1664.676929 | R160: 17277.9844 | S160: 337.7204134 | T160: 1866.917765 | U160: 31812.232 | V160: 198322.223 | W160: 40075.492 | X160: 154.3783048 | Y160: 0 | Z160: 0 | AA160: 0 | AB160: 0 | AC160: 0 | AD160: 0 | AE160: 0 | AF160: 0 | AG160: 0 | AH160: 0 | AI160: 0 | AJ160: 0 | AK160: 0 | AL160: 0 | AM160: 0
A161: 3 | B161: TRUE | C161: 2016-03-07T14:00:00 | D161: 685213.5151 | E161: 386183.7597 | F161: 434657.0719 | G161: 539471.147 | H161: 685213.5151 | I161: 241092.3794 | J161: 15259.2534 | K161: 56530.36984 | L161: 3287.749045 | M161: 248.4116466 | N161: 55031.7132 | O161: 12669.89379 | P161: 8611.358396 | Q161: 1628.999781 | R161: 16238.4803 | S161: 317.4019695 | T161: 1842.605251 | U161: 32198.26737 | V161: 199837.3453 | W161: 40230.32813 | X161: 188.9583554 | Y161: 0 | Z161: 0 | AA161: 0 | AB161: 0 | AC161: 0 | AD161: 0 | AE161: 0 | AF161: 0 | AG161: 0 | AH161: 0 | AI161: 0 | AJ161: 0 | AK161: 0 | AL161: 0 | AM161: 0
A162: 3 | B162: TRUE | C162: 2016-03-07T15:00:00 | D162: 672237.083 | E162: 378121.6532 | F162: 424572.8102 | G162: 528218.0128 | H162: 672237.083 | I162: 241829.9173 | J162: 13966.72367 | K162: 54246.09373 | L162: 3154.897861 | M162: 238.3738423 | N162: 52230.45992 | O162: 12024.96417 | P162: 8173.018491 | Q162: 1546.079575 | R162: 13865.85437 | S162: 271.0259461 | T162: 1813.291478 | U162: 31000.26907 | V162: 196706.7119 | W162: 41000.08902 | X162: 169.3126843 | Y162: 0 | Z162: 0 | AA162: 0 | AB162: 0 | AC162: 0 | AD162: 0 | AE162: 0 | AF162: 0 | AG162: 0 | AH162: 0 | AI162: 0 | AJ162: 0 | AK162: 0 | AL162: 0 | AM162: 0
A163: 3 | B163: TRUE | C163: 2016-03-07T16:00:00 | D163: 652226.1147 | E163: 363363.8902 | F163: 407600.3327 | G163: 512541.7485 | H163: 652226.1147 | I163: 238258.6012 | J163: 13718.5671 | K163: 49493.26069 | L163: 2878.477905 | M163: 217.4884477 | N163: 48261.16886 | O163: 11111.11845 | P163: 7551.904121 | Q163: 1428.584155 | R163: 11650.78383 | S163: 227.7295454 | T163: 1790.229338 | U163: 30019.11656 | V163: 194588.5028 | W163: 40839.3025 | X163: 191.2791556 | Y163: 0 | Z163: 0 | AA163: 0 | AB163: 0 | AC163: 0 | AD163: 0 | AE163: 0 | AF163: 0 | AG163: 0 | AH163: 0 | AI163: 0 | AJ163: 0 | AK163: 0 | AL163: 0 | AM163: 0
A164: 3 | B164: TRUE | C164: 2016-03-07T17:00:00 | D164: 625501.8973 | E164: 342664.985 | F164: 383394.5027 | G164: 491722.8732 | H164: 625501.8973 | I164: 230921.0437 | J164: 13491.30711 | K164: 41517.60094 | L164: 2414.621613 | M164: 182.4409718 | N164: 43982.8466 | O164: 10126.12478 | P164: 6882.432571 | Q164: 1301.941068 | R164: 10795.54685 | S164: 211.0128393 | T164: 1764.94439 | U164: 27977.75844 | V164: 192894.7832 | W164: 40845.7969 | X164: 191.695402 | Y164: 0 | Z164: 0 | AA164: 0 | AB164: 0 | AC164: 0 | AD164: 0 | AE164: 0 | AF164: 0 | AG164: 0 | AH164: 0 | AI164: 0 | AJ164: 0 | AK164: 0 | AL164: 0 | AM164: 0
A165: 3 | B165: TRUE | C165: 2016-03-07T18:00:00 | D165: 660414.9451 | E165: 378163.189 | F165: 417895.8967 | G165: 518456.1061 | H165: 660414.9451 | I165: 258267.2158 | J165: 14893.43507 | K165: 43527.62202 | L165: 2531.522403 | M165: 191.2736161 | N165: 40432.87528 | O165: 9308.8186 | P165: 6326.933323 | Q165: 1196.857978 | R165: 10733.35109 | S165: 209.7971432 | T165: 1727.711699 | U165: 27682.56955 | V165: 193919.1219 | W165: 40884.8617 | X165: 188.2353261 | Y165: 6956.725496 | Z165: 1436.017164 | AA165: 0 | AB165: 0 | AC165: 0 | AD165: 0 | AE165: 0 | AF165: 0 | AG165: 0 | AH165: 0 | AI165: 0 | AJ165: 0 | AK165: 0 | AL165: 0 | AM165: 0
A166: 3 | B166: TRUE | C166: 2016-03-07T19:00:00 | D166: 706946.3327 | E166: 425377.1672 | F166: 465520.8504 | G166: 553491.8657 | H166: 706946.3327 | I166: 299152.2899 | J166: 13476.42036 | K166: 45945.19711 | L166: 2672.126121 | M166: 201.8971767 | N166: 41679.61541 | O166: 9595.854276 | P166: 6522.023126 | Q166: 1233.762869 | R166: 10569.71393 | S166: 206.5986446 | T166: 1753.55229 | U166: 27669.10411 | V166: 192506.5783 | W166: 40961.22093 | X166: 211.2645978 | Y166: 10435.08793 | Z166: 2154.025682 | AA166: 0 | AB166: 0 | AC166: 0 | AD166: 0 | AE166: 0 | AF166: 0 | AG166: 0 | AH166: 0 | AI166: 0 | AJ166: 0 | AK166: 0 | AL166: 0 | AM166: 0
A167: 3 | B167: TRUE | C167: 2016-03-07T20:00:00 | D167: 684117.802 | E167: 403745.5017 | F167: 443378.14 | G167: 535954.4107 | H167: 684117.802 | I167: 281160.5763 | J167: 13816.91042 | K167: 43816.39085 | L167: 2548.316906 | M167: 192.5425542 | N167: 40238.19389 | O167: 9263.997306 | P167: 6296.469593 | Q167: 1191.095193 | R167: 10227.21184 | S167: 199.9040009 | T167: 1689.089546 | U167: 27620.42013 | V167: 192054.634 | W167: 41004.92063 | X167: 208.015257 | Y167: 10435.08793 | Z167: 2154.025682 | AA167: 0 | AB167: 0 | AC167: 0 | AD167: 0 | AE167: 0 | AF167: 0 | AG167: 0 | AH167: 0 | AI167: 0 | AJ167: 0 | AK167: 0 | AL167: 0 | AM167: 0
A168: 3 | B168: FALSE | C168: 2016-03-07T21:00:00 | D168: 669374.197 | E168: 387526.5036 | F168: 425885.1103 | G168: 525531.8106 | H168: 669374.197 | I168: 274480.4703 | J168: 13889.87412 | K168: 39907.5129 | L168: 2320.980524 | M168: 175.3657551 | N168: 35469.85401 | O168: 8166.187402 | P168: 5550.320123 | Q168: 1049.947041 | R168: 9403.855199 | S168: 183.8104371 | T168: 1606.844098 | U168: 27687.62841 | V168: 195707.5557 | W168: 41005.89802 | X168: 178.9793299 | Y168: 10435.08793 | Z168: 2154.025682 | AA168: 0 | AB168: 0 | AC168: 0 | AD168: 0 | AE168: 0 | AF168: 0 | AG168: 0 | AH168: 0 | AI168: 0 | AJ168: 0 | AK168: 0 | AL168: 0 | AM168: 0
A169: 3 | B169: FALSE | C169: 2016-03-07T22:00:00 | D169: 631795.986 | E169: 353282.1745 | F169: 391086.4667 | G169: 496257.6709 | H169: 631795.986 | I169: 241830.5029 | J169: 14254.32105 | K169: 38501.60203 | L169: 2239.214172 | M169: 169.1877549 | N169: 35350.34665 | O169: 8138.673348 | P169: 5531.619621 | Q169: 1046.40949 | R169: 8949.880339 | S169: 174.9369149 | T169: 1624.071159 | U169: 27251.46774 | V169: 192940.0624 | W169: 41022.24008 | X169: 182.3367605 | Y169: 10435.08793 | Z169: 2154.025682 | AA169: 0 | AB169: 0 | AC169: 0 | AD169: 0 | AE169: 0 | AF169: 0 | AG169: 0 | AH169: 0 | AI169: 0 | AJ169: 0 | AK169: 0 | AL169: 0 | AM169: 0
A170: 3 | B170: FALSE | C170: 2016-03-07T23:00:00 | D170: 613987.3418 | E170: 337279.2231 | F170: 374743.7057 | G170: 482421.929 | H170: 613987.3418 | I170: 227040.4277 | J170: 14005.23491 | K170: 37083.18412 | L170: 2156.720423 | M170: 162.954795 | N170: 35875.81945 | O170: 8259.652401 | P170: 5613.845565 | Q170: 1061.964068 | R170: 8832.255182 | S170: 172.63778 | T170: 1656.858233 | U170: 26875.47199 | V170: 191465.1686 | W170: 40939.70302 | X170: 196.3298621 | Y170: 10435.08793 | Z170: 2154.025682 | AA170: 0 | AB170: 0 | AC170: 0 | AD170: 0 | AE170: 0 | AF170: 0 | AG170: 0 | AH170: 0 | AI170: 0 | AJ170: 0 | AK170: 0 | AL170: 0 | AM170: 0
A171: 3 | B171: FALSE | C171: 2016-03-08 | D171: 601067.8056 | E171: 333242.1243 | F171: 367666.5391 | G171: 471315.1868 | H171: 601067.8056 | I171: 225913.14 | J171: 13347.43883 | K171: 37376.73673 | L171: 2173.793146 | M171: 164.2447545 | N171: 33447.24536 | O171: 7700.524327 | P171: 5233.822471 | Q171: 990.0755801 | R171: 8688.913198 | S171: 169.8359767 | T171: 1721.320977 | U171: 24380.26139 | V171: 186122.8833 | W171: 40890.24041 | X171: 158.215533 | Y171: 10435.08793 | Z171: 2154.025682 | AA171: 0 | AB171: 0 | AC171: 0 | AD171: 0 | AE171: 0 | AF171: 0 | AG171: 0 | AH171: 0 | AI171: 0 | AJ171: 0 | AK171: 0 | AL171: 0 | AM171: 0
A172: 3 | B172: FALSE | C172: 2016-03-08T01:00:00 | D172: 600248.9678 | E172: 338204.2319 | F172: 371412.8561 | G172: 469628.4631 | H172: 600248.9678 | I172: 231591.3785 | J172: 13696.06539 | K172: 37499.0962 | L172: 2180.909449 | M172: 164.7824392 | N172: 32272.27238 | O172: 7430.011527 | P172: 5049.962787 | Q172: 955.2950762 | R172: 8717.385617 | S172: 170.3925068 | T172: 1722.293412 | U172: 23427.3107 | V172: 181768.5344 | W172: 40897.53701 | X172: 116.6267879 | Y172: 10435.08793 | Z172: 2154.025682 | AA172: 0 | AB172: 0 | AC172: 0 | AD172: 0 | AE172: 0 | AF172: 0 | AG172: 0 | AH172: 0 | AI172: 0 | AJ172: 0 | AK172: 0 | AL172: 0 | AM172: 0
A173: 3 | B173: FALSE | C173: 2016-03-08T02:00:00 | D173: 592107.9669 | E173: 331756.1592 | F173: 364732.6378 | G173: 463087.8452 | H173: 592107.9669 | I173: 224808.913 | J173: 13785.33317 | K173: 37627.48504 | L173: 2188.376413 | M173: 165.3466188 | N173: 32263.87324 | O173: 7428.077801 | P173: 5048.64849 | Q173: 955.0464521 | R173: 8780.527896 | S173: 171.6267038 | T173: 1741.882369 | U173: 23188.39762 | V173: 180312.3128 | W173: 40893.97477 | X173: 159.0309126 | Y173: 10435.08793 | Z173: 2154.025682 | AA173: 0 | AB173: 0 | AC173: 0 | AD173: 0 | AE173: 0 | AF173: 0 | AG173: 0 | AH173: 0 | AI173: 0 | AJ173: 0 | AK173: 0 | AL173: 0 | AM173: 0
A174: 3 | B174: FALSE | C174: 2016-03-08T03:00:00 | D174: 628058.6906 | E174: 366845.9358 | F174: 399704.3783 | G174: 490542.6836 | H174: 628058.6906 | I174: 259646.2728 | J174: 14127.12031 | K174: 37101.69645 | L174: 2157.797082 | M174: 163.0361438 | N174: 32616.78914 | O174: 7509.329259 | P174: 5103.872743 | Q174: 965.4931543 | R174: 8843.928217 | S174: 172.8659445 | T174: 1725.627742 | U174: 23018.45012 | V174: 181100.7429 | W174: 41021.16741 | X174: 195.3875325 | Y174: 10435.08793 | Z174: 2154.025682 | AA174: 0 | AB174: 0 | AC174: 0 | AD174: 0 | AE174: 0 | AF174: 0 | AG174: 0 | AH174: 0 | AI174: 0 | AJ174: 0 | AK174: 0 | AL174: 0 | AM174: 0
A175: 3 | B175: FALSE | C175: 2016-03-08T04:00:00 | D175: 632148.9334 | E175: 369281.5647 | F175: 403216.7891 | G175: 493669.9268 | H175: 632148.9334 | I175: 257981.9661 | J175: 13521.06574 | K175: 37020.19768 | L175: 2153.057196 | M175: 162.6780134 | N175: 36319.07507 | O175: 8361.702679 | P175: 5683.206172 | Q175: 1075.084927 | R175: 9885.896507 | S175: 193.232554 | T175: 1756.053038 | U175: 23227.23191 | V175: 180976.0661 | W175: 41035.10902 | X175: 208.1970065 | Y175: 10435.08793 | Z175: 2154.025682 | AA175: 0 | AB175: 0 | AC175: 0 | AD175: 0 | AE175: 0 | AF175: 0 | AG175: 0 | AH175: 0 | AI175: 0 | AJ175: 0 | AK175: 0 | AL175: 0 | AM175: 0
A176: 3 | B176: FALSE | C176: 2016-03-08T05:00:00 | D176: 673399.6171 | E176: 404846.3984 | F176: 440726.3737 | G176: 525849.3437 | H176: 673399.6171 | I176: 291108.2112 | J176: 13590.49488 | K176: 37456.6048 | L176: 2178.438192 | M176: 164.5957191 | N176: 40486.35659 | O176: 9321.131545 | P176: 6335.302074 | Q176: 1198.441084 | R176: 11790.87472 | S176: 230.4678018 | T176: 1833.436078 | U176: 24149.93773 | V176: 183956.6755 | W176: 41018.2291 | X176: 187.6774758 | Y176: 6956.725496 | Z176: 1436.017164 | AA176: 0 | AB176: 0 | AC176: 0 | AD176: 0 | AE176: 0 | AF176: 0 | AG176: 0 | AH176: 0 | AI176: 0 | AJ176: 0 | AK176: 0 | AL176: 0 | AM176: 0
A177: 3 | B177: FALSE | C177: 2016-03-08T06:00:00 | D177: 737688.2343 | E177: 458190.4851 | F177: 499252.4616 | G177: 576060.5768 | H177: 737688.2343 | I177: 343800.3947 | J177: 13565.54628 | K177: 39421.04157 | L177: 2292.687844 | M177: 173.228052 | N177: 45386.18862 | O177: 10449.21475 | P177: 7102.027427 | Q177: 1343.48155 | R177: 13966.58616 | S177: 272.9948784 | T177: 1864.972778 | U177: 28047.07902 | V177: 188854.1981 | W177: 40962.83761 | X177: 185.7549268 | Y177: 0 | Z177: 0 | AA177: 0 | AB177: 0 | AC177: 0 | AD177: 0 | AE177: 0 | AF177: 0 | AG177: 0 | AH177: 0 | AI177: 0 | AJ177: 0 | AK177: 0 | AL177: 0 | AM177: 0
A178: 3 | B178: TRUE | C178: 2016-03-08T07:00:00 | D178: 737755.1573 | E178: 449929.9594 | F178: 494274.565 | G178: 577225.4081 | H178: 737755.1573 | I178: 325130.9152 | J178: 14026.24633 | K178: 44882.61121 | L178: 2610.327202 | M178: 197.2278509 | N178: 46917.68002 | O178: 10801.80841 | P178: 7341.675087 | Q178: 1388.815395 | R178: 16907.04326 | S178: 330.4698919 | T178: 1864.694838 | U178: 30602.00014 | V178: 193543.5612 | W178: 41009.31273 | X178: 200.7685801 | Y178: 0 | Z178: 0 | AA178: 0 | AB178: 0 | AC178: 0 | AD178: 0 | AE178: 0 | AF178: 0 | AG178: 0 | AH178: 0 | AI178: 0 | AJ178: 0 | AK178: 0 | AL178: 0 | AM178: 0
A179: 3 | B179: TRUE | C179: 2016-03-08T08:00:00 | D179: 713933.3938 | E179: 420007.8404 | F179: 467139.3052 | G179: 559538.8069 | H179: 713933.3938 | I179: 273501.8048 | J179: 15875.99406 | K179: 56578.13543 | L179: 3290.527044 | M179: 248.6215431 | N179: 52151.08631 | O179: 12006.69007 | P179: 8160.598114 | Q179: 1543.730028 | R179: 19912.80818 | S179: 389.2214307 | T179: 1784.394377 | U179: 31445.02625 | V179: 195636.576 | W179: 41204.56295 | X179: 203.6172104 | Y179: 0 | Z179: 0 | AA179: 0 | AB179: 0 | AC179: 0 | AD179: 0 | AE179: 0 | AF179: 0 | AG179: 0 | AH179: 0 | AI179: 0 | AJ179: 0 | AK179: 0 | AL179: 0 | AM179: 0
A180: 3 | B180: TRUE | C180: 2016-03-08T09:00:00 | D180: 680265.5547 | E180: 385818.7231 | F180: 433373.6169 | G180: 533197.2461 | H180: 680265.5547 | I180: 235887.632 | J180: 15114.95817 | K180: 62964.49403 | L180: 3661.95119 | M180: 276.6851461 | N180: 50838.21218 | O180: 11704.42843 | P180: 7955.159669 | Q180: 1504.867497 | R180: 19081.55458 | S180: 372.9735107 | T180: 1717.569855 | U180: 31815.54068 | V180: 195168.0788 | W180: 41987.14668 | X180: 214.3023046 | Y180: 0 | Z180: 0 | AA180: 0 | AB180: 0 | AC180: 0 | AD180: 0 | AE180: 0 | AF180: 0 | AG180: 0 | AH180: 0 | AI180: 0 | AJ180: 0 | AK180: 0 | AL180: 0 | AM180: 0
A181: 3 | B181: TRUE | C181: 2016-03-08T10:00:00 | D181: 646040.0018 | E181: 353948.9085 | F181: 401318.2181 | G181: 506560.0934 | H181: 646040.0018 | I181: 205454.8421 | J181: 16471.82734 | K181: 60475.55036 | L181: 3517.196748 | M181: 265.7479703 | N181: 51653.08782 | O181: 11892.0364 | P181: 8082.671348 | Q181: 1528.988721 | R181: 17900.58485 | S181: 349.8899394 | T181: 1779.948642 | U181: 31610.18648 | V181: 192808.5102 | W181: 42035.86549 | X181: 213.0673542 | Y181: 0 | Z181: 0 | AA181: 0 | AB181: 0 | AC181: 0 | AD181: 0 | AE181: 0 | AF181: 0 | AG181: 0 | AH181: 0 | AI181: 0 | AJ181: 0 | AK181: 0 | AL181: 0 | AM181: 0
A182: 3 | B182: TRUE | C182: 2016-03-08T11:00:00 | D182: 630912.0844 | E182: 337552.8065 | F182: 385172.6969 | G182: 495750.6117 | H182: 630912.0844 | I182: 194174.9985 | J182: 15974.74001 | K182: 55635.17112 | L182: 3235.685194 | M182: 244.477871 | N182: 51497.62268 | O182: 11856.24382 | P182: 8058.344174 | Q182: 1524.38678 | R182: 18231.34718 | S182: 356.3551143 | T182: 1848.995973 | U182: 32171.60629 | V182: 194331.3673 | W182: 41580.81133 | X182: 189.9310613 | Y182: 0 | Z182: 0 | AA182: 0 | AB182: 0 | AC182: 0 | AD182: 0 | AE182: 0 | AF182: 0 | AG182: 0 | AH182: 0 | AI182: 0 | AJ182: 0 | AK182: 0 | AL182: 0 | AM182: 0
A183: 3 | B183: TRUE | C183: 2016-03-08T12:00:00 | D183: 620597.9975 | E183: 328571.2619 | F183: 375926.5302 | G183: 488013.3423 | H183: 620597.9975 | I183: 186854.06 | J183: 14751.4935 | K183: 56258.90385 | L183: 3271.960858 | M183: 247.2187424 | N183: 50973.51263 | O183: 11735.57852 | P183: 7976.331473 | Q183: 1508.872541 | R183: 17713.96866 | S183: 346.2422862 | T183: 1821.071425 | U183: 32001.4866 | V183: 193709.7027 | W183: 41229.34189 | X183: 198.2518683 | Y183: 0 | Z183: 0 | AA183: 0 | AB183: 0 | AC183: 0 | AD183: 0 | AE183: 0 | AF183: 0 | AG183: 0 | AH183: 0 | AI183: 0 | AJ183: 0 | AK183: 0 | AL183: 0 | AM183: 0
A184: 3 | B184: TRUE | C184: 2016-03-08T13:00:00 | D184: 603823.2381 | E184: 311747.0258 | F184: 358579.4422 | G184: 475557.7996 | H184: 603823.2381 | I184: 169645.3797 | J184: 15044.23464 | K184: 58033.64418 | L184: 3375.177958 | M184: 255.0174915 | N184: 50914.51623 | O184: 11721.99583 | P184: 7967.09972 | Q184: 1507.126182 | R184: 16101.94304 | S184: 314.7331734 | T184: 1809.123564 | U184: 31420.50942 | V184: 194456.7269 | W184: 41057.82562 | X184: 198.1844839 | Y184: 0 | Z184: 0 | AA184: 0 | AB184: 0 | AC184: 0 | AD184: 0 | AE184: 0 | AF184: 0 | AG184: 0 | AH184: 0 | AI184: 0 | AJ184: 0 | AK184: 0 | AL184: 0 | AM184: 0
A185: 3 | B185: TRUE | C185: 2016-03-08T14:00:00 | D185: 603679.0708 | E185: 313361.2881 | F185: 359780.0868 | G185: 474925.6082 | H185: 603679.0708 | I185: 168894.3223 | J185: 15047.22199 | K185: 59501.84349 | L185: 3460.566942 | M185: 261.469206 | N185: 52479.84032 | O185: 12082.37877 | P185: 8212.041519 | Q185: 1553.461512 | R185: 15511.42203 | S185: 303.1906812 | T185: 1807.595369 | U185: 30572.6623 | V185: 192659.4515 | W185: 41212.56032 | X185: 119.0425843 | Y185: 0 | Z185: 0 | AA185: 0 | AB185: 0 | AC185: 0 | AD185: 0 | AE185: 0 | AF185: 0 | AG185: 0 | AH185: 0 | AI185: 0 | AJ185: 0 | AK185: 0 | AL185: 0 | AM185: 0
A186: 3 | B186: TRUE | C186: 2016-03-08T15:00:00 | D186: 602815.8188 | E186: 317670.5962 | F186: 362942.2252 | G186: 473436.463 | H186: 602815.8188 | I186: 181318.5473 | J186: 14884.57841 | K186: 55997.08365 | L186: 3256.73366 | M186: 246.0682248 | N186: 50011.00768 | O186: 11513.98201 | P186: 7825.718769 | Q186: 1480.381326 | R186: 13510.01532 | S186: 264.0706144 | T186: 1823.988965 | U186: 30236.84278 | V186: 189165.6426 | W186: 41155.78267 | X186: 125.3748657 | Y186: 0 | Z186: 0 | AA186: 0 | AB186: 0 | AC186: 0 | AD186: 0 | AE186: 0 | AF186: 0 | AG186: 0 | AH186: 0 | AI186: 0 | AJ186: 0 | AK186: 0 | AL186: 0 | AM186: 0
A187: 3 | B187: TRUE | C187: 2016-03-08T16:00:00 | D187: 595608.1123 | E187: 313850.465 | F187: 356314.8245 | G187: 467987.5879 | H187: 595608.1123 | I187: 192061.3517 | J187: 13811.03976 | K187: 50424.92444 | L187: 2932.662526 | M187: 221.5824617 | N187: 43825.27998 | O187: 10089.84839 | P187: 6857.776558 | Q187: 1297.276922 | R187: 11694.47402 | S187: 228.5835262 | T187: 1823.433204 | U187: 29213.26508 | V187: 189752.6474 | W187: 41164.00441 | X187: 209.96189 | Y187: 0 | Z187: 0 | AA187: 0 | AB187: 0 | AC187: 0 | AD187: 0 | AE187: 0 | AF187: 0 | AG187: 0 | AH187: 0 | AI187: 0 | AJ187: 0 | AK187: 0 | AL187: 0 | AM187: 0
A188: 3 | B188: TRUE | C188: 2016-03-08T17:00:00 | D188: 600817.3393 | E188: 324586.1949 | F188: 364448.7659 | G188: 471451.9227 | H188: 600817.3393 | I188: 214459.8364 | J188: 13454.42397 | K188: 46017.61571 | L188: 2676.337914 | M188: 202.2154061 | N188: 38078.37895 | O188: 8766.745372 | P188: 5958.501912 | Q188: 1127.162274 | R188: 10603.1403 | S188: 207.2520059 | T188: 1779.80979 | U188: 28212.2357 | V188: 187945.6945 | W188: 41134.99933 | X188: 192.9897313 | Y188: 0 | Z188: 0 | AA188: 0 | AB188: 0 | AC188: 0 | AD188: 0 | AE188: 0 | AF188: 0 | AG188: 0 | AH188: 0 | AI188: 0 | AJ188: 0 | AK188: 0 | AL188: 0 | AM188: 0
A189: 3 | B189: TRUE | C189: 2016-03-08T18:00:00 | D189: 609383.4921 | E189: 337984.2485 | F189: 376681.1342 | G189: 477268.0103 | H189: 609383.4921 | I189: 218038.9269 | J189: 13313.40658 | K189: 47799.39332 | L189: 2779.964295 | M189: 210.045079 | N189: 38483.32907 | O189: 8859.976615 | P189: 6021.868477 | Q189: 1139.149247 | R189: 10061.43026 | S189: 196.6635869 | T189: 1693.11849 | U189: 26860.28121 | V189: 184381.7536 | W189: 40949.54145 | X189: 201.9012243 | Y189: 6956.725496 | Z189: 1436.017164 | AA189: 0 | AB189: 0 | AC189: 0 | AD189: 0 | AE189: 0 | AF189: 0 | AG189: 0 | AH189: 0 | AI189: 0 | AJ189: 0 | AK189: 0 | AL189: 0 | AM189: 0
A190: 3 | B190: TRUE | C190: 2016-03-08T19:00:00 | D190: 651257.5282 | E190: 381645.5509 | F190: 419293.516 | G190: 509006.9669 | H190: 651257.5282 | I190: 261598.7776 | J190: 13139.17842 | K190: 45030.4932 | L190: 2618.927869 | M190: 197.8776894 | N190: 37708.27348 | O190: 8681.536376 | P190: 5900.587835 | Q190: 1116.206741 | R190: 9769.916919 | S190: 190.9655839 | T190: 1610.734072 | U190: 26156.53527 | V190: 183826.1358 | W190: 40923.20421 | X190: 199.0636014 | Y190: 10435.08793 | Z190: 2154.025682 | AA190: 0 | AB190: 0 | AC190: 0 | AD190: 0 | AE190: 0 | AF190: 0 | AG190: 0 | AH190: 0 | AI190: 0 | AJ190: 0 | AK190: 0 | AL190: 0 | AM190: 0
A191: 3 | B191: TRUE | C191: 2016-03-08T20:00:00 | D191: 618909.1991 | E191: 350110.2391 | F191: 386314.1794 | G191: 484652.0318 | H191: 618909.1991 | I191: 236607.5412 | J191: 12179.63457 | K191: 41045.04469 | L191: 2387.138221 | M191: 180.3644159 | N191: 36872.44383 | O191: 8489.104189 | P191: 5769.797273 | Q191: 1091.465256 | R191: 9008.233838 | S191: 176.0775091 | T191: 1607.816533 | U191: 25151.62032 | V191: 184716.7796 | W191: 40836.61314 | X191: 200.4108307 | Y191: 10435.08793 | Z191: 2154.025682 | AA191: 0 | AB191: 0 | AC191: 0 | AD191: 0 | AE191: 0 | AF191: 0 | AG191: 0 | AH191: 0 | AI191: 0 | AJ191: 0 | AK191: 0 | AL191: 0 | AM191: 0
A192: 3 | B192: FALSE | C192: 2016-03-08T21:00:00 | D192: 636365.502 | E192: 361455.804 | F192: 396430.8096 | G192: 499668.5786 | H192: 636365.502 | I192: 257056.7925 | J192: 12565.53069 | K192: 35265.41684 | L192: 2051.00092 | M192: 154.9669725 | N192: 33650.35626 | O192: 7747.286337 | P192: 5265.60525 | Q192: 996.0878881 | R192: 8544.000721 | S192: 167.0034761 | T192: 1583.504137 | U192: 25009.71488 | V192: 192564.1603 | W192: 40953.87207 | X192: 201.0891519 | Y192: 10435.08793 | Z192: 2154.025682 | AA192: 0 | AB192: 0 | AC192: 0 | AD192: 0 | AE192: 0 | AF192: 0 | AG192: 0 | AH192: 0 | AI192: 0 | AJ192: 0 | AK192: 0 | AL192: 0 | AM192: 0
A193: 3 | B193: FALSE | C193: 2016-03-08T22:00:00 | D193: 621584.5288 | E193: 342887.2223 | F193: 377100.8746 | G193: 489472.7372 | H193: 621584.5288 | I193: 243633.6584 | J193: 12303.78987 | K193: 31644.62175 | L193: 1840.419145 | M193: 139.0560971 | N193: 32616.11113 | O193: 7509.173163 | P193: 5103.766649 | Q193: 965.4730847 | R193: 8357.498537 | S193: 163.3580512 | T193: 1559.886355 | U193: 24700.70198 | V193: 197256.1488 | W193: 41019.20956 | X193: 182.542611 | Y193: 10435.08793 | Z193: 2154.025682 | AA193: 0 | AB193: 0 | AC193: 0 | AD193: 0 | AE193: 0 | AF193: 0 | AG193: 0 | AH193: 0 | AI193: 0 | AJ193: 0 | AK193: 0 | AL193: 0 | AM193: 0
A194: 3 | B194: FALSE | C194: 2016-03-08T23:00:00 | D194: 563961.3593 | E194: 285513.0703 | F194: 319207.002 | G194: 445745.0371 | H194: 563961.3593 | I194: 189097.731 | J194: 12720.61199 | K194: 30168.8376 | L194: 1754.589034 | M194: 132.5710524 | N194: 31277.91814 | O194: 7201.082389 | P194: 4894.366309 | Q194: 925.8610871 | R194: 7919.918203 | S194: 154.8049811 | T194: 1531.128224 | U194: 24583.45537 | V194: 197801.5712 | W194: 40999.98759 | X194: 207.8114927 | Y194: 10435.08793 | Z194: 2154.025682 | AA194: 0 | AB194: 0 | AC194: 0 | AD194: 0 | AE194: 0 | AF194: 0 | AG194: 0 | AH194: 0 | AI194: 0 | AJ194: 0 | AK194: 0 | AL194: 0 | AM194: 0
A195: 3 | B195: =PeakTime(C195,Holidays,PkStart,PkEnd,UseDST,DST_1,DST_2) -> FALSE | C195: 2016-03-09 | D195: =SUM(OFFSET(I195,0,0,1,COUNTA(I195:IV195))) -> 555405.5792 | E195: =SUMIF(OFFSET($I$2,0,0,1,COUNTA($I$2:$IV$2)),E$2,OFFSET(I195,0,0,1,COUNTA(I195:IV195))) -> 282573.2723 | F195: =E195+SUMIF(OFFSET($I$2,0,0,1,COUNTA($I$2:$IV$2)),F$2,OFFSET(I195,0,0,1,COUNTA(I195:IV195))) -> 314949.0567 | G195: =F195*DistAtSubtran+SUMIF(OFFSET($I$2,0,0,1,COUNTA($I$2:$IV$2)),G$2,OFFSET(I195,0,0,1,COUNTA(I195:IV195))) -> 438224.4027 | H195: =SUM(OFFSET(I195,0,0,1,COUNTA(I195:IV195))) -> 555405.5792 | I195: 187661.5271 | J195: 11972.69016 | K195: 30012.54939 | L195: 1745.49947 | M195: 131.8842745 | N195: 30775.92247 | O195: 7085.508452 | P195: 4815.814064 | Q195: 911.0014582 | R195: 7781.366112 | S195: 152.0968024 | T195: 1587.255141 | U195: 23392.6797 | V195: 193600.4722 | W195: 40997.35049 | X195: 192.8482971 | Y195: 10435.08793 | Z195: 2154.025682 | AA195: 0 | AB195: 0 | AC195: 0 | AD195: 0 | AE195: 0 | AF195: 0 | AG195: 0 | AH195: 0 | AI195: 0 | AJ195: 0 | AK195: 0 | AL195: 0 | AM195: 0
A196: =MONTH(C196) -> 3 | B196: FALSE | C196: =+C195+1/24 -> 2016-03-09T01:00:00 | D196: 540566.3511 | E196: 270261.0166 | F196: 302074.0172 | G196: 426443.6574 | H196: 540566.3511 | I196: 174519.6041 | J196: 11351.82181 | K196: 31268.83927 | L196: 1818.564017 | M196: 137.4047945 | N196: 30899.63278 | O196: 7113.990146 | P196: 4835.172243 | Q196: 914.6634205 | R196: 7807.211959 | S196: 152.6019927 | T196: 1639.631172 | U196: 22727.84437 | V196: 191592.7533 | W196: 41012.34018 | X196: 185.1619851 | Y196: 10435.08793 | Z196: 2154.025682 | AA196: 0 | AB196: 0 | AC196: 0 | AD196: 0 | AE196: 0 | AF196: 0 | AG196: 0 | AH196: 0 | AI196: 0 | AJ196: 0 | AK196: 0 | AL196: 0 | AM196: 0
A197: 3 | B197: FALSE | C197: 2016-03-09T02:00:00 | D197: 549854.7152 | E197: 281791.8841 | F197: 313642.7727 | G197: 432978.2309 | H197: 549854.7152 | I197: 182151.7406 | J197: 11935.13687 | K197: 34419.83104 | L197: 2001.822506 | M197: 151.2512111 | N197: 31058.27543 | O197: 7150.514278 | P197: 4859.996634 | Q197: 919.3594191 | R197: 7814.966547 | S197: 152.7535661 | T197: 1643.104355 | U197: 22545.7982 | V197: 189284.8331 | W197: 40996.50219 | X197: 179.7156393 | Y197: 10435.08793 | Z197: 2154.025682 | AA197: 0 | AB197: 0 | AC197: 0 | AD197: 0 | AE197: 0 | AF197: 0 | AG197: 0 | AH197: 0 | AI197: 0 | AJ197: 0 | AK197: 0 | AL197: 0 | AM197: 0
A198: 3 | B198: FALSE | C198: 2016-03-09T03:00:00 | D198: 565827.2527 | E198: 298672.5728 | F198: 330865.257 | G198: 444798.7403 | H198: 565827.2527 | I198: 199046.5776 | J198: 11356.06841 | K198: 33551.26805 | L198: 1951.307763 | M198: 147.4344811 | N198: 31939.64936 | O198: 7353.432077 | P198: 4997.913961 | Q198: 945.4490656 | R198: 8410.667295 | S198: 164.3973029 | T198: 1659.497833 | U198: 22723.547 | V198: 187864.9313 | W198: 41006.26685 | X198: 119.7306833 | Y198: 10435.08793 | Z198: 2154.025682 | AA198: 0 | AB198: 0 | AC198: 0 | AD198: 0 | AE198: 0 | AF198: 0 | AG198: 0 | AH198: 0 | AI198: 0 | AJ198: 0 | AK198: 0 | AL198: 0 | AM198: 0
A199: 3 | B199: FALSE | C199: 2016-03-09T04:00:00 | D199: 603324.146 | E199: 336397.1179 | F199: 369764.2785 | G199: 472976.4936 | H199: 603324.146 | I199: 231640.1452 | J199: 11980.73074 | K199: 33670.91671 | L199: 1958.266408 | M199: 147.9602537 | N199: 36406.09224 | O199: 8381.736551 | P199: 5696.822612 | Q199: 1077.660731 | R199: 8280.383095 | S199: 161.8507308 | T199: 1690.61786 | U199: 22865.3069 | V199: 185741.0947 | W199: 40896.32911 | X199: 139.1184603 | Y199: 10435.08793 | Z199: 2154.025682 | AA199: 0 | AB199: 0 | AC199: 0 | AD199: 0 | AE199: 0 | AF199: 0 | AG199: 0 | AH199: 0 | AI199: 0 | AJ199: 0 | AK199: 0 | AL199: 0 | AM199: 0
A200: 3 | B200: FALSE | C200: 2016-03-09T05:00:00 | D200: 663125.4083 | E200: 394641.9892 | F200: 429270.2615 | G200: 518607.2289 | H200: 663125.4083 | I200: 290537.9541 | J200: 11699.30396 | K200: 34044.78568 | L200: 1980.010248 | M200: 149.6031477 | N200: 38012.96681 | O200: 8751.685603 | P200: 5948.266225 | Q200: 1125.226002 | R200: 10009.06121 | S200: 195.6399665 | T200: 1741.882369 | U200: 23700.93643 | V200: 185834.6906 | W200: 40797.36086 | X200: 203.2924493 | Y200: 6956.725496 | Z200: 1436.017164 | AA200: 0 | AB200: 0 | AC200: 0 | AD200: 0 | AE200: 0 | AF200: 0 | AG200: 0 | AH200: 0 | AI200: 0 | AJ200: 0 | AK200: 0 | AL200: 0 | AM200: 0
... 339 more rows

Sheet Loss Values
A1: =UPPER(Inputs!C1 & " - " & Inputs!C2) -> KENTUCKY POWER COMPANY - KENTUCKY JURISDICTION
A2: LOSS FACTOR CALCULATIONS
A3: ="FOR THE TEST YEAR ENDED " & UPPER(TEXT(DATE(YEAR(ReportYr)+1,MONTH(ReportYr),DAY(ReportYr))-1,"Mmmm d, yyyy")) -> FOR THE TEST YEAR ENDED FEBRUARY 28, 2017
B6: Secondary Voltage | C6: Primary Voltage | D6: Subtran Voltage | E6: Transmission Voltage | F6: Generation Point
A7: Metered Peak Demand - Secondary | B7: =+B11 -> 939932.0321 | C7: =OFFSET(Metered!F4, (MATCH(C11,Metered!F3:F8786,0)-2),-1) -> 939550.0946 | D7: =OFFSET(Metered!G4, (MATCH(D11,Metered!G3:G8786,0)-2),-2)*DistAtSubtran -> 714997.622 | E7: =OFFSET(Metered!H4, (MATCH(E11,Metered!H3:H8786,0)-2),-3) -> 939550.0946 | F7: =+E7 -> 939550.0946
A8: Metered Peak Demand - Primary | B8: 0 | C8: =+C11-C7 -> 45170.70634 | D8: =(OFFSET(Metered!G4, (MATCH(D11,Metered!G3:G8786,0)-2),-1)*DistAtSubtran)-D7 -> 34374.90753 | E8: =OFFSET(Metered!H4, (MATCH(E11,Metered!H3:H8786,0)-2),-2)-E7 -> 45170.70634 | F8: =+E8 -> 45170.70634
A9: Metered Peak Demand - Subtran | B9: 0 | C9: 0 | D9: =+D11-D8-D7 -> 183438.8496 | E9: =OFFSET(Metered!H4, (MATCH(E11,Metered!H3:H8786,0)-2),-1)-(SUM(E7:E8)*DistAtSubtran) -> 183438.8496 | F9: =+E9 -> 183438.8496
A10: Metered Peak Demand - Trans | B10: 0 | C10: 0 | D10: 0 | E10: =+E11-SUM(E7:E9) -> 18154.93389 | F10: =+E10 -> 18154.93389
A11: Metered Peak Demand | B11: =MAX(Metered!E3:E8786) -> 939932.0321 | C11: =MAX(Metered!F3:F8786) -> 984720.801 | D11: =MAX(Metered!G3:G8786) -> 932811.3791 | E11: =MAX(Metered!H3:H8786) -> 1186314.584 | F11: =SUM(F7:F10) -> 1186314.584
A12: Loss Adj Peak Demand at Lower Voltage | B12: =+B11 -> 939932.0321 | C12: =+C7*'Accum Loss Factors'!B10+C8 -> 1015227.993 | D12: =(D7*'Accum Loss Factors'!B11+D8*'Accum Loss Factors'!C11+D9) -> 978146.5608 | E12: =+E7*'Accum Loss Factors'!B13+E8*'Accum Loss Factors'!C13+E9*'Accum Loss Factors'!D13+E10 -> 1268590.535 | F12: =+F7*'Accum Loss Factors'!B14+F8*'Accum Loss Factors'!C14+F9*'Accum Loss Factors'!D14+F10*'Accum Loss Factors'!E14 -> 1326108.43
A13: On Date & Time | B13: =TYStart+(MATCH(B11,Metered!E3:E8786,0)-1)/24 -> 2017-01-08T21:00:00 | C13: =TYStart + (MATCH(C11,Metered!F3:F8786,0)-1)/24 -> 2017-01-09T07:00:00 | D13: =TYStart+(MATCH(D11,Metered!G3:G8786,0)-1)/24 -> 2017-01-09T07:00:00 | E13: =TYStart+(MATCH(E11,Metered!H3:H8786,0)-1)/24 -> 2017-01-09T07:00:00
A14: Zero Load Loss | B14: =+B12*Inputs!C13 -> 10630.63128 | C14: =+C12*Inputs!C12 -> 2131.978784 | D14: =+D12*Inputs!C11 -> 1066.179751 | E14: =+E12*Inputs!C10 -> 4034.117902 | F14: 0
A15: Loss Coefficient | B15: =+Inputs!D13/'Loss Values'!B12 -> 2.251226608e-08 | C15: =+Inputs!D12/C12 -> 2.613206117e-08 | D15: =+Inputs!D11/D12 -> 2.2614198e-08 | E15: =+Inputs!D10/E12 -> 3.323373368e-08 | F15: 0
A16: Maximum Loss | B16: =B12*Inputs!$B13 -> 30519.59308 | C16: =+Inputs!B12*C12 -> 29065.97743 | D16: =+Inputs!B11*D12 -> 22702.78168 | E16: =+Inputs!B10*E12 -> 57517.89486 | F16: 0
A17: Loss Gross-Up Factor | B17: =1+((LossCoeff_Sec*B11^2+ZeroLoadLoss_Sec)/B11) -> 1.03247 | C17: =1+((LossCoeff_Sec*C11^2+ZeroLoadLoss_Sec)/C11) -> 1.032963876 | D17: =1+((LossCoeff_Sec*D11^2+ZeroLoadLoss_Sec)/D11) -> 1.032396033 | E17: =1+((LossCoeff_Sec*E11^2+ZeroLoadLoss_Sec)/E11) -> 1.035667685

Sheet Loss Adj
A1: Period | B1: Date | C1: Total Secondary | D1: Secondary Loss Factor | E1: Loss Adjusted Secondary | F1: Primary Metered | G1: Total @ Primary | H1: Primary Loss Factor | I1: Loss Adjusted Primary | J1: Subtransmission Metered | K1: Total @ Subtransmission | L1: Subtran Loss Factor | M1: Loss Adjusted Subtran | N1: Transmission Metered | O1: Total @ Tran | P1: Tran Loss Factor | Q1: Loss Adjusted Tran
A2: =MONTH(B2) -> 3 | B2: =+Inputs!C3 -> 2016-03-01 | C2: =+Metered!E3 -> 425348.5128 | D2: =IF(C2=0,0,ROUND(1+((LossCoeff_Sec*C2^2+ZeroLoadLoss_Sec)/C2),5)) -> 1.03457 | E2: =+C2*D2 -> 440052.8109 | F2: =SUMIF(OFFSET(Metered!$I$2,0,0,1,COUNTA(Metered!$I$2:$IV$2)),"Primary",OFFSET(Metered!$I3,0,0,1,COUNTA(Metered!$I3:$AA3))) -> 35806.85351 | G2: =+E2+F2 -> 475859.6644 | H2: =IF(G2=0,0,ROUND(1+((LossCoeff_Pri*G2^2+ZeroLoadLoss_Pri)/G2),5)) -> 1.01692 | I2: =+G2*H2 -> 483911.2099 | J2: =SUMIF(OFFSET(Metered!$I$2,0,0,1,COUNTA(Metered!$I$2:$IV$2)),"Subtransmission",OFFSET(Metered!$I3,0,0,1,COUNTA(Metered!$I3:$AA3))) -> 202920.5853 | K2: =+I2*DistAtSubtran+J2 -> 571177.016 | L2: =IF(K2=0,0,ROUND(1+((LossCoeff_Sub*K2^2+ZeroLoadLoss_Sub)/K2),5)) -> 1.01478 | M2: =+K2*L2 -> 579619.0123 | N2: =SUMIF(OFFSET(Metered!$I$2,0,0,1,COUNTA(Metered!$I$2:$AA$2)),"Transmission",OFFSET(Metered!$I3,0,0,1,COUNTA(Metered!$I3:$AA3))) -> 41616.29853 | O2: =+M2+N2+(1-DistAtSubtran)*I2 -> 736890.09 | P2: =IF(O2=0,0,ROUND(1+((LossCoeff_Trn*O2^2+ZeroLoadLoss_Trn)/O2),5)) -> 1.02996 | Q2: =+P2*O2 -> 758967.3171
A3: =MONTH(B3) -> 3 | B3: =+B2+1/24 -> 2016-03-01T01:00:00 | C3: =+Metered!E4 -> 436215.0529 | D3: 1.03419 | E3: =+C3*D3 -> 451129.2456 | F3: =SUMIF(OFFSET(Metered!$I$2,0,0,1,COUNTA(Metered!$I$2:$IV$2)),"Primary",OFFSET(Metered!$I4,0,0,1,COUNTA(Metered!$I4:$AA4))) -> 34049.22132 | G3: =+E3+F3 -> 485178.4669 | H3: 1.01707 | I3: =+G3*H3 -> 493460.4633 | J3: =SUMIF(OFFSET(Metered!$I$2,0,0,1,COUNTA(Metered!$I$2:$IV$2)),"Subtransmission",OFFSET(Metered!$I4,0,0,1,COUNTA(Metered!$I4:$AA4))) -> 200527.912 | K3: 576051.3245 | L3: 1.01488 | M3: =+K3*L3 -> 584622.9683 | N3: =SUMIF(OFFSET(Metered!$I$2,0,0,1,COUNTA(Metered!$I$2:$AA$2)),"Transmission",OFFSET(Metered!$I4,0,0,1,COUNTA(Metered!$I4:$AA4))) -> 41614.21732 | O3: 744174.2363 | P3: 1.03015 | Q3: =+P3*O3 -> 766611.0895
A4: 3 | B4: 2016-03-01T02:00:00 | C4: =+Metered!E5 -> 413345.5987 | D4: 1.03502 | E4: 427820.9616 | F4: =SUMIF(OFFSET(Metered!$I$2,0,0,1,COUNTA(Metered!$I$2:$IV$2)),"Primary",OFFSET(Metered!$I5,0,0,1,COUNTA(Metered!$I5:$AA5))) -> 33746.53967 | G4: 461567.5013 | H4: 1.01668 | I4: 469266.4472 | J4: =SUMIF(OFFSET(Metered!$I$2,0,0,1,COUNTA(Metered!$I$2:$IV$2)),"Subtransmission",OFFSET(Metered!$I5,0,0,1,COUNTA(Metered!$I5:$AA5))) -> 196627.1165 | K4: 553738.8828 | L4: 1.01445 | M4: 561740.4096 | N4: =SUMIF(OFFSET(Metered!$I$2,0,0,1,COUNTA(Metered!$I$2:$AA$2)),"Transmission",OFFSET(Metered!$I5,0,0,1,COUNTA(Metered!$I5:$AA5))) -> 41524.77138 | O4: 715419.8619 | P4: 1.02941 | Q4: 736460.36
A5: 3 | B5: 2016-03-01T03:00:00 | C5: =+Metered!E6 -> 448618.7076 | D5: 1.0338 | E5: 463782.0199 | F5: =SUMIF(OFFSET(Metered!$I$2,0,0,1,COUNTA(Metered!$I$2:$IV$2)),"Primary",OFFSET(Metered!$I6,0,0,1,COUNTA(Metered!$I6:$AA6))) -> 33962.63846 | G5: 497744.6584 | H5: 1.01729 | I5: 506350.6635 | J5: =SUMIF(OFFSET(Metered!$I$2,0,0,1,COUNTA(Metered!$I$2:$IV$2)),"Subtransmission",OFFSET(Metered!$I6,0,0,1,COUNTA(Metered!$I6:$AA6))) -> 199191.2045 | K5: 584524.0594 | L5: 1.01504 | M5: 593315.3013 | N5: =SUMIF(OFFSET(Metered!$I$2,0,0,1,COUNTA(Metered!$I$2:$AA$2)),"Transmission",OFFSET(Metered!$I6,0,0,1,COUNTA(Metered!$I6:$AA6))) -> 41528.372 | O5: 755861.4818 | P5: 1.03046 | Q5: 778885.0226
A6: 3 | B6: 2016-03-01T04:00:00 | C6: =+Metered!E7 -> 475623.0391 | D6: 1.03306 | E6: 491347.1368 | F6: =SUMIF(OFFSET(Metered!$I$2,0,0,1,COUNTA(Metered!$I$2:$IV$2)),"Primary",OFFSET(Metered!$I7,0,0,1,COUNTA(Metered!$I7:$AA7))) -> 35056.45524 | G6: 526403.5921 | H6: 1.01781 | I6: 535778.84 | J6: =SUMIF(OFFSET(Metered!$I$2,0,0,1,COUNTA(Metered!$I$2:$IV$2)),"Subtransmission",OFFSET(Metered!$I7,0,0,1,COUNTA(Metered!$I7:$AA7))) -> 198658.3285 | K6: 606386.0258 | L6: 1.01547 | M6: 615766.8176 | N6: =SUMIF(OFFSET(Metered!$I$2,0,0,1,COUNTA(Metered!$I$2:$AA$2)),"Transmission",OFFSET(Metered!$I7,0,0,1,COUNTA(Metered!$I7:$AA7))) -> 41622.82634 | O6: 785440.7867 | P6: 1.03124 | Q6: 809977.9569
A7: 3 | B7: 2016-03-01T05:00:00 | C7: =+Metered!E8 -> 568490.9408 | D7: 1.0315 | E7: 586398.4054 | F7: =SUMIF(OFFSET(Metered!$I$2,0,0,1,COUNTA(Metered!$I$2:$IV$2)),"Primary",OFFSET(Metered!$I8,0,0,1,COUNTA(Metered!$I8:$AA8))) -> 37668.62658 | G7: 624067.032 | H7: 1.01972 | I7: 636373.6339 | J7: =SUMIF(OFFSET(Metered!$I$2,0,0,1,COUNTA(Metered!$I$2:$IV$2)),"Subtransmission",OFFSET(Metered!$I8,0,0,1,COUNTA(Metered!$I8:$AA8))) -> 199004.3475 | K7: 683284.6829 | L7: 1.01701 | M7: 694907.3553 | N7: =SUMIF(OFFSET(Metered!$I$2,0,0,1,COUNTA(Metered!$I$2:$AA$2)),"Transmission",OFFSET(Metered!$I8,0,0,1,COUNTA(Metered!$I8:$AA8))) -> 41749.56562 | O7: 888750.2195 | P7: 1.03408 | Q7: 919038.8269
A8: 3 | B8: 2016-03-01T06:00:00 | C8: =+Metered!E9 -> 594881.7372 | D8: 1.03126 | E8: 613477.7403 | F8: =SUMIF(OFFSET(Metered!$I$2,0,0,1,COUNTA(Metered!$I$2:$IV$2)),"Primary",OFFSET(Metered!$I9,0,0,1,COUNTA(Metered!$I9:$AA9))) -> 43024.82809 | G8: 656502.5684 | H8: 1.0204 | I8: 669895.2208 | J8: =SUMIF(OFFSET(Metered!$I$2,0,0,1,COUNTA(Metered!$I$2:$IV$2)),"Subtransmission",OFFSET(Metered!$I9,0,0,1,COUNTA(Metered!$I9:$AA9))) -> 205238.6649 | K8: 715028.9279 | L8: 1.01766 | M8: 727656.3388 | N8: =SUMIF(OFFSET(Metered!$I$2,0,0,1,COUNTA(Metered!$I$2:$AA$2)),"Transmission",OFFSET(Metered!$I9,0,0,1,COUNTA(Metered!$I9:$AA9))) -> 42125.43793 | O8: 929886.7345 | P8: 1.03524 | Q8: 962655.943
A9: 3 | B9: 2016-03-01T07:00:00 | C9: =+Metered!E10 -> 600999.5965 | D9: 1.03122 | E9: 619762.8039 | F9: =SUMIF(OFFSET(Metered!$I$2,0,0,1,COUNTA(Metered!$I$2:$IV$2)),"Primary",OFFSET(Metered!$I10,0,0,1,COUNTA(Metered!$I10:$AA10))) -> 46663.16006 | G9: 666425.9639 | H9: 1.02061 | I9: 680161.003 | J9: =SUMIF(OFFSET(Metered!$I$2,0,0,1,COUNTA(Metered!$I$2:$IV$2)),"Subtransmission",OFFSET(Metered!$I10,0,0,1,COUNTA(Metered!$I10:$AA10))) -> 210093.8118 | K9: 727696.3351 | L9: 1.01792 | M9: 740736.6534 | N9: =SUMIF(OFFSET(Metered!$I$2,0,0,1,COUNTA(Metered!$I$2:$AA$2)),"Transmission",OFFSET(Metered!$I10,0,0,1,COUNTA(Metered!$I10:$AA10))) -> 42215.84106 | O9: 945510.9742 | P9: 1.03569 | Q9: 979256.2609
A10: 3 | B10: 2016-03-01T08:00:00 | C10: =+Metered!E11 -> 556303.4344 | D10: 1.03163 | E10: 573899.3121 | F10: =SUMIF(OFFSET(Metered!$I$2,0,0,1,COUNTA(Metered!$I$2:$IV$2)),"Primary",OFFSET(Metered!$I11,0,0,1,COUNTA(Metered!$I11:$AA11))) -> 50681.74814 | G10: 624581.0602 | H10: 1.01974 | I10: 636910.2903 | J10: =SUMIF(OFFSET(Metered!$I$2,0,0,1,COUNTA(Metered!$I$2:$IV$2)),"Subtransmission",OFFSET(Metered!$I11,0,0,1,COUNTA(Metered!$I11:$AA11))) -> 218934.9845 | K10: 703623.7155 | L10: 1.01743 | M10: 715887.8769 | N10: =SUMIF(OFFSET(Metered!$I$2,0,0,1,COUNTA(Metered!$I$2:$AA$2)),"Transmission",OFFSET(Metered!$I11,0,0,1,COUNTA(Metered!$I11:$AA11))) -> 42534.0604 | O10: 910643.4966 | P10: 1.03469 | Q10: 942233.7195
A11: 3 | B11: 2016-03-01T09:00:00 | C11: =+Metered!E12 -> 502182.8914 | D11: 1.03247 | E11: 518488.7699 | F11: =SUMIF(OFFSET(Metered!$I$2,0,0,1,COUNTA(Metered!$I$2:$IV$2)),"Primary",OFFSET(Metered!$I12,0,0,1,COUNTA(Metered!$I12:$AA12))) -> 49888.72378 | G11: 568377.4937 | H11: 1.0186 | I11: 578949.315 | J11: =SUMIF(OFFSET(Metered!$I$2,0,0,1,COUNTA(Metered!$I$2:$IV$2)),"Subtransmission",OFFSET(Metered!$I12,0,0,1,COUNTA(Metered!$I12:$AA12))) -> 216186.3261 | K11: 656766.7549 | L11: 1.01648 | M11: 667590.271 | N11: =SUMIF(OFFSET(Metered!$I$2,0,0,1,COUNTA(Metered!$I$2:$AA$2)),"Transmission",OFFSET(Metered!$I12,0,0,1,COUNTA(Metered!$I12:$AA12))) -> 43011.90346 | O11: 848971.0607 | P11: 1.03297 | Q11: 876961.6366
A12: 3 | B12: 2016-03-01T10:00:00 | C12: =+Metered!E13 -> 439513.3772 | D12: 1.03408 | E12: 454491.993 | F12: =SUMIF(OFFSET(Metered!$I$2,0,0,1,COUNTA(Metered!$I$2:$IV$2)),"Primary",OFFSET(Metered!$I13,0,0,1,COUNTA(Metered!$I13:$AA13))) -> 48094.14245 | G12: 502586.1355 | H12: 1.01738 | I12: 511321.0825 | J12: =SUMIF(OFFSET(Metered!$I$2,0,0,1,COUNTA(Metered!$I$2:$IV$2)),"Subtransmission",OFFSET(Metered!$I13,0,0,1,COUNTA(Metered!$I13:$AA13))) -> 216036.7101 | K12: 605152.0539 | L12: 1.01545 | M12: 614501.6532 | N12: =SUMIF(OFFSET(Metered!$I$2,0,0,1,COUNTA(Metered!$I$2:$AA$2)),"Transmission",OFFSET(Metered!$I13,0,0,1,COUNTA(Metered!$I13:$AA13))) -> 43351.10042 | O12: 780058.4923 | P12: 1.0311 | Q12: 804318.3114
A13: 3 | B13: 2016-03-01T11:00:00 | C13: =+Metered!E14 -> 369644.4748 | D13: 1.03708 | E13: 383350.8919 | F13: =SUMIF(OFFSET(Metered!$I$2,0,0,1,COUNTA(Metered!$I$2:$IV$2)),"Primary",OFFSET(Metered!$I14,0,0,1,COUNTA(Metered!$I14:$AA14))) -> 48240.51881 | G13: 431591.4107 | H13: 1.01622 | I13: 438591.8234 | J13: =SUMIF(OFFSET(Metered!$I$2,0,0,1,COUNTA(Metered!$I$2:$IV$2)),"Subtransmission",OFFSET(Metered!$I14,0,0,1,COUNTA(Metered!$I14:$AA14))) -> 216553.0888 | K13: 550321.4664 | L13: 1.01438 | M13: 558235.0891 | N13: =SUMIF(OFFSET(Metered!$I$2,0,0,1,COUNTA(Metered!$I$2:$AA$2)),"Transmission",OFFSET(Metered!$I14,0,0,1,COUNTA(Metered!$I14:$AA14))) -> 43298.86081 | O13: 706357.3957 | P13: 1.02919 | Q13: 726975.9681
A14: 3 | B14: 2016-03-01T12:00:00 | C14: =+Metered!E15 -> 345312.778 | D14: 1.03856 | E14: 358628.0387 | F14: =SUMIF(OFFSET(Metered!$I$2,0,0,1,COUNTA(Metered!$I$2:$IV$2)),"Primary",OFFSET(Metered!$I15,0,0,1,COUNTA(Metered!$I15:$AA15))) -> 48678.6462 | G14: 407306.6849 | H14: 1.01588 | I14: 413774.7151 | J14: =SUMIF(OFFSET(Metered!$I$2,0,0,1,COUNTA(Metered!$I$2:$IV$2)),"Subtransmission",OFFSET(Metered!$I15,0,0,1,COUNTA(Metered!$I15:$AA15))) -> 216193.0694 | K14: 531075.6276 | L14: 1.01402 | M14: 538521.3079 | N14: =SUMIF(OFFSET(Metered!$I$2,0,0,1,COUNTA(Metered!$I$2:$AA$2)),"Transmission",OFFSET(Metered!$I15,0,0,1,COUNTA(Metered!$I15:$AA15))) -> 43200.32057 | O14: 680613.7854 | P14: 1.02855 | Q14: 700045.3089
A15: 3 | B15: 2016-03-01T13:00:00 | C15: =+Metered!E16 -> 336245.6481 | D15: 1.03919 | E15: 349423.115 | F15: =SUMIF(OFFSET(Metered!$I$2,0,0,1,COUNTA(Metered!$I$2:$IV$2)),"Primary",OFFSET(Metered!$I16,0,0,1,COUNTA(Metered!$I16:$AA16))) -> 48374.37806 | G15: 397797.4931 | H15: 1.01575 | I15: 404062.8036 | J15: =SUMIF(OFFSET(Metered!$I$2,0,0,1,COUNTA(Metered!$I$2:$IV$2)),"Subtransmission",OFFSET(Metered!$I16,0,0,1,COUNTA(Metered!$I16:$AA16))) -> 211622.967 | K15: 519114.7606 | L15: 1.01379 | M15: 526273.3531 | N15: =SUMIF(OFFSET(Metered!$I$2,0,0,1,COUNTA(Metered!$I$2:$AA$2)),"Transmission",OFFSET(Metered!$I16,0,0,1,COUNTA(Metered!$I16:$AA16))) -> 43050.1373 | O15: 665894.5005 | P15: 1.02819 | Q15: 684666.0664
A16: 3 | B16: 2016-03-01T14:00:00 | C16: =+Metered!E17 -> 334029.0671 | D16: 1.03935 | E16: 347173.1109 | F16: =SUMIF(OFFSET(Metered!$I$2,0,0,1,COUNTA(Metered!$I$2:$IV$2)),"Primary",OFFSET(Metered!$I17,0,0,1,COUNTA(Metered!$I17:$AA17))) -> 46873.73859 | G16: 394046.8495 | H16: 1.01571 | I16: 400237.3255 | J16: =SUMIF(OFFSET(Metered!$I$2,0,0,1,COUNTA(Metered!$I$2:$IV$2)),"Subtransmission",OFFSET(Metered!$I17,0,0,1,COUNTA(Metered!$I17:$AA17))) -> 210647.3899 | K16: 515227.9946 | L16: 1.01372 | M16: 522296.9227 | N16: =SUMIF(OFFSET(Metered!$I$2,0,0,1,COUNTA(Metered!$I$2:$AA$2)),"Transmission",OFFSET(Metered!$I17,0,0,1,COUNTA(Metered!$I17:$AA17))) -> 42565.9843 | O16: 660519.6278 | P16: 1.02806 | Q16: 679053.8086
A17: 3 | B17: 2016-03-01T15:00:00 | C17: =+Metered!E18 -> 334801.3701 | D17: 1.03929 | E17: 347955.7159 | F17: =SUMIF(OFFSET(Metered!$I$2,0,0,1,COUNTA(Metered!$I$2:$IV$2)),"Primary",OFFSET(Metered!$I18,0,0,1,COUNTA(Metered!$I18:$AA18))) -> 43082.53668 | G17: 391038.2526 | H17: 1.01567 | I17: 397165.822 | J17: =SUMIF(OFFSET(Metered!$I$2,0,0,1,COUNTA(Metered!$I$2:$IV$2)),"Subtransmission",OFFSET(Metered!$I18,0,0,1,COUNTA(Metered!$I18:$AA18))) -> 208213.2014 | K17: 510456.3919 | L17: 1.01363 | M17: 517413.9125 | N17: =SUMIF(OFFSET(Metered!$I$2,0,0,1,COUNTA(Metered!$I$2:$AA$2)),"Transmission",OFFSET(Metered!$I18,0,0,1,COUNTA(Metered!$I18:$AA18))) -> 42318.21456 | O17: 654654.7586 | P17: 1.02792 | Q17: 672932.7194
A18: 3 | B18: 2016-03-01T16:00:00 | C18: =+Metered!E19 -> 345079.7887 | D18: 1.03857 | E18: 358389.5161 | F18: =SUMIF(OFFSET(Metered!$I$2,0,0,1,COUNTA(Metered!$I$2:$IV$2)),"Primary",OFFSET(Metered!$I19,0,0,1,COUNTA(Metered!$I19:$AA19))) -> 41145.37625 | G18: 399534.8924 | H18: 1.01578 | I18: 405839.553 | J18: =SUMIF(OFFSET(Metered!$I$2,0,0,1,COUNTA(Metered!$I$2:$IV$2)),"Subtransmission",OFFSET(Metered!$I19,0,0,1,COUNTA(Metered!$I19:$AA19))) -> 207675.3101 | K18: 516519.2099 | L18: 1.01374 | M18: 523616.1839 | N18: =SUMIF(OFFSET(Metered!$I$2,0,0,1,COUNTA(Metered!$I$2:$AA$2)),"Transmission",OFFSET(Metered!$I19,0,0,1,COUNTA(Metered!$I19:$AA19))) -> 42172.94483 | O18: 662784.7818 | P18: 1.02811 | Q18: 681415.6621
A19: 3 | B19: 2016-03-01T17:00:00 | C19: =+Metered!E20 -> 365427.1983 | D19: 1.03732 | E19: 379064.9414 | F19: =SUMIF(OFFSET(Metered!$I$2,0,0,1,COUNTA(Metered!$I$2:$IV$2)),"Primary",OFFSET(Metered!$I20,0,0,1,COUNTA(Metered!$I20:$AA20))) -> 39522.7855 | G19: 418587.7269 | H19: 1.01603 | I19: 425297.6881 | J19: =SUMIF(OFFSET(Metered!$I$2,0,0,1,COUNTA(Metered!$I$2:$IV$2)),"Subtransmission",OFFSET(Metered!$I20,0,0,1,COUNTA(Metered!$I20:$AA20))) -> 208024.6557 | K19: 531676.1964 | L19: 1.01403 | M19: 539135.6134 | N19: =SUMIF(OFFSET(Metered!$I$2,0,0,1,COUNTA(Metered!$I$2:$AA$2)),"Transmission",OFFSET(Metered!$I20,0,0,1,COUNTA(Metered!$I20:$AA20))) -> 42129.87413 | O19: 682911.635 | P19: 1.0286 | Q19: 702442.9078
A20: 3 | B20: 2016-03-01T18:00:00 | C20: =+Metered!E21 -> 409279.8243 | D20: 1.03519 | E20: 423682.3813 | F20: =SUMIF(OFFSET(Metered!$I$2,0,0,1,COUNTA(Metered!$I$2:$IV$2)),"Primary",OFFSET(Metered!$I21,0,0,1,COUNTA(Metered!$I21:$AA21))) -> 39589.99705 | G20: 463272.3783 | H20: 1.01671 | I20: 471013.6598 | J20: =SUMIF(OFFSET(Metered!$I$2,0,0,1,COUNTA(Metered!$I$2:$IV$2)),"Subtransmission",OFFSET(Metered!$I21,0,0,1,COUNTA(Metered!$I21:$AA21))) -> 205486.9807 | K20: 563928.3758 | L20: 1.01464 | M20: 572184.2872 | N20: =SUMIF(OFFSET(Metered!$I$2,0,0,1,COUNTA(Metered!$I$2:$AA$2)),"Transmission",OFFSET(Metered!$I21,0,0,1,COUNTA(Metered!$I21:$AA21))) -> 42137.71039 | O20: 726894.2623 | P20: 1.02971 | Q20: 748490.2908
A21: 3 | B21: 2016-03-01T19:00:00 | C21: =+Metered!E22 -> 430478.2067 | D21: 1.03439 | E21: 445282.3522 | F21: =SUMIF(OFFSET(Metered!$I$2,0,0,1,COUNTA(Metered!$I$2:$IV$2)),"Primary",OFFSET(Metered!$I22,0,0,1,COUNTA(Metered!$I22:$AA22))) -> 38653.76021 | G21: 483936.1124 | H21: 1.01705 | I21: 492187.2231 | J21: =SUMIF(OFFSET(Metered!$I$2,0,0,1,COUNTA(Metered!$I$2:$IV$2)),"Subtransmission",OFFSET(Metered!$I22,0,0,1,COUNTA(Metered!$I22:$AA22))) -> 205237.9136 | K21: 579792.3904 | L21: 1.01495 | M21: 588460.2866 | N21: =SUMIF(OFFSET(Metered!$I$2,0,0,1,COUNTA(Metered!$I$2:$AA$2)),"Transmission",OFFSET(Metered!$I22,0,0,1,COUNTA(Metered!$I22:$AA22))) -> 42043.82558 | O21: 748136.8585 | P21: 1.03026 | Q21: 770775.4798
A22: 3 | B22: 2016-03-01T20:00:00 | C22: =+Metered!E23 -> 432290.3822 | D22: 1.03432 | E22: 447126.5881 | F22: =SUMIF(OFFSET(Metered!$I$2,0,0,1,COUNTA(Metered!$I$2:$IV$2)),"Primary",OFFSET(Metered!$I23,0,0,1,COUNTA(Metered!$I23:$AA23))) -> 38130.16815 | G22: 485256.7562 | H22: 1.01707 | I22: 493540.0891 | J22: =SUMIF(OFFSET(Metered!$I$2,0,0,1,COUNTA(Metered!$I$2:$IV$2)),"Subtransmission",OFFSET(Metered!$I23,0,0,1,COUNTA(Metered!$I23:$AA23))) -> 206243.9779 | K22: 581827.9856 | L22: 1.01499 | M22: 590549.5871 | N22: =SUMIF(OFFSET(Metered!$I$2,0,0,1,COUNTA(Metered!$I$2:$AA$2)),"Transmission",OFFSET(Metered!$I23,0,0,1,COUNTA(Metered!$I23:$AA23))) -> 41925.88109 | O22: 750431.5495 | P22: 1.03032 | Q22: 773184.6341
A23: 3 | B23: 2016-03-01T21:00:00 | C23: =+Metered!E24 -> 416071.8486 | D23: 1.03492 | E23: 430601.0775 | F23: =SUMIF(OFFSET(Metered!$I$2,0,0,1,COUNTA(Metered!$I$2:$IV$2)),"Primary",OFFSET(Metered!$I24,0,0,1,COUNTA(Metered!$I24:$AA24))) -> 37359.68407 | G23: 467960.7616 | H23: 1.01678 | I23: 475813.1432 | J23: =SUMIF(OFFSET(Metered!$I$2,0,0,1,COUNTA(Metered!$I$2:$IV$2)),"Subtransmission",OFFSET(Metered!$I24,0,0,1,COUNTA(Metered!$I24:$AA24))) -> 210153.0588 | K23: 572246.8608 | L23: 1.0148 | M23: 580716.1143 | N23: =SUMIF(OFFSET(Metered!$I$2,0,0,1,COUNTA(Metered!$I$2:$AA$2)),"Transmission",OFFSET(Metered!$I24,0,0,1,COUNTA(Metered!$I24:$AA24))) -> 41739.75512 | O23: 736175.2106 | P23: 1.02995 | Q23: 758223.6582
A24: 3 | B24: 2016-03-01T22:00:00 | C24: =+Metered!E25 -> 387746.3907 | D24: 1.03615 | E24: 401763.4227 | F24: =SUMIF(OFFSET(Metered!$I$2,0,0,1,COUNTA(Metered!$I$2:$IV$2)),"Primary",OFFSET(Metered!$I25,0,0,1,COUNTA(Metered!$I25:$AA25))) -> 36389.2295 | G24: 438152.6522 | H24: 1.01632 | I24: 445303.3035 | J24: =SUMIF(OFFSET(Metered!$I$2,0,0,1,COUNTA(Metered!$I$2:$IV$2)),"Subtransmission",OFFSET(Metered!$I25,0,0,1,COUNTA(Metered!$I25:$AA25))) -> 210638.501 | K24: 549514.315 | L24: 1.01437 | M24: 557410.8357 | N24: =SUMIF(OFFSET(Metered!$I$2,0,0,1,COUNTA(Metered!$I$2:$AA$2)),"Transmission",OFFSET(Metered!$I25,0,0,1,COUNTA(Metered!$I25:$AA25))) -> 41739.42223 | O24: 705577.7474 | P24: 1.02917 | Q24: 726159.4503
A25: 3 | B25: 2016-03-01T23:00:00 | C25: =+Metered!E26 -> 372477.8206 | D25: 1.03693 | E25: 386233.4265 | F25: =SUMIF(OFFSET(Metered!$I$2,0,0,1,COUNTA(Metered!$I$2:$IV$2)),"Primary",OFFSET(Metered!$I26,0,0,1,COUNTA(Metered!$I26:$AA26))) -> 35892.65469 | G25: 422126.0812 | H25: 1.01608 | I25: 428913.8686 | J25: =SUMIF(OFFSET(Metered!$I$2,0,0,1,COUNTA(Metered!$I$2:$IV$2)),"Subtransmission",OFFSET(Metered!$I26,0,0,1,COUNTA(Metered!$I26:$AA26))) -> 207071.9653 | K25: 533475.4193 | L25: 1.01406 | M25: 540976.0837 | N25: =SUMIF(OFFSET(Metered!$I$2,0,0,1,COUNTA(Metered!$I$2:$AA$2)),"Transmission",OFFSET(Metered!$I26,0,0,1,COUNTA(Metered!$I26:$AA26))) -> 41706.7879 | O25: 685193.2862 | P25: 1.02866 | Q25: 704830.9258
A26: 3 | B26: 2016-03-02 | C26: =+Metered!E27 -> 391989.6488 | D26: 1.03594 | E26: 406077.7568 | F26: =SUMIF(OFFSET(Metered!$I$2,0,0,1,COUNTA(Metered!$I$2:$IV$2)),"Primary",OFFSET(Metered!$I27,0,0,1,COUNTA(Metered!$I27:$AA27))) -> 35060.0057 | G26: 441137.7625 | H26: 1.01636 | I26: 448354.7763 | J26: =SUMIF(OFFSET(Metered!$I$2,0,0,1,COUNTA(Metered!$I$2:$IV$2)),"Subtransmission",OFFSET(Metered!$I27,0,0,1,COUNTA(Metered!$I27:$AA27))) -> 204033.084 | K26: 545231.0688 | L26: 1.01429 | M26: 553022.4207 | N26: =SUMIF(OFFSET(Metered!$I$2,0,0,1,COUNTA(Metered!$I$2:$AA$2)),"Transmission",OFFSET(Metered!$I27,0,0,1,COUNTA(Metered!$I27:$AA27))) -> 41643.1671 | O26: 701822.3794 | P26: 1.02907 | Q26: 722224.356
A27: 3 | B27: 2016-03-02T01:00:00 | C27: =+Metered!E28 -> 410340.1426 | D27: 1.03514 | E27: 424759.4952 | F27: =SUMIF(OFFSET(Metered!$I$2,0,0,1,COUNTA(Metered!$I$2:$IV$2)),"Primary",OFFSET(Metered!$I28,0,0,1,COUNTA(Metered!$I28:$AA28))) -> 34455.91648 | G27: 459215.4116 | H27: 1.01664 | I27: 466856.7561 | J27: =SUMIF(OFFSET(Metered!$I$2,0,0,1,COUNTA(Metered!$I$2:$IV$2)),"Subtransmission",OFFSET(Metered!$I28,0,0,1,COUNTA(Metered!$I28:$AA28))) -> 201163.2621 | K27: 556441.2535 | L27: 1.0145 | M27: 564509.6517 | N27: =SUMIF(OFFSET(Metered!$I$2,0,0,1,COUNTA(Metered!$I$2:$AA$2)),"Transmission",OFFSET(Metered!$I28,0,0,1,COUNTA(Metered!$I28:$AA28))) -> 41622.59286 | O27: 717711.0093 | P27: 1.02947 | Q27: 738861.9527
A28: 3 | B28: 2016-03-02T02:00:00 | C28: =+Metered!E29 -> 427530.7915 | D28: 1.03449 | E28: 442276.3285 | F28: =SUMIF(OFFSET(Metered!$I$2,0,0,1,COUNTA(Metered!$I$2:$IV$2)),"Primary",OFFSET(Metered!$I29,0,0,1,COUNTA(Metered!$I29:$AA29))) -> 34133.78921 | G28: 476410.1178 | H28: 1.01692 | I28: 484470.9769 | J28: =SUMIF(OFFSET(Metered!$I$2,0,0,1,COUNTA(Metered!$I$2:$IV$2)),"Subtransmission",OFFSET(Metered!$I29,0,0,1,COUNTA(Metered!$I29:$AA29))) -> 199308.0501 | K28: 567990.4636 | L28: 1.01472 | M28: 576351.2832 | N28: =SUMIF(OFFSET(Metered!$I$2,0,0,1,COUNTA(Metered!$I$2:$AA$2)),"Transmission",OFFSET(Metered!$I29,0,0,1,COUNTA(Metered!$I29:$AA29))) -> 41606.27391 | O28: 733746.1206 | P28: 1.02988 | Q28: 755670.4547
A29: 3 | B29: 2016-03-02T03:00:00 | C29: =+Metered!E30 -> 421763.2546 | D29: 1.0347 | E29: 436398.4396 | F29: =SUMIF(OFFSET(Metered!$I$2,0,0,1,COUNTA(Metered!$I$2:$IV$2)),"Primary",OFFSET(Metered!$I30,0,0,1,COUNTA(Metered!$I30:$AA30))) -> 34299.98033 | G29: 470698.4199 | H29: 1.01683 | I29: 478620.2743 | J29: =SUMIF(OFFSET(Metered!$I$2,0,0,1,COUNTA(Metered!$I$2:$IV$2)),"Subtransmission",OFFSET(Metered!$I30,0,0,1,COUNTA(Metered!$I30:$AA30))) -> 199056.4936 | K29: 563286.5223 | L29: 1.01463 | M29: 571527.4042 | N29: =SUMIF(OFFSET(Metered!$I$2,0,0,1,COUNTA(Metered!$I$2:$AA$2)),"Transmission",OFFSET(Metered!$I30,0,0,1,COUNTA(Metered!$I30:$AA30))) -> 41682.74764 | O29: 727600.3974 | P29: 1.02973 | Q29: 749231.9572
A30: 3 | B30: 2016-03-02T04:00:00 | C30: =+Metered!E31 -> 444473.7205 | D30: 1.03392 | E30: 459550.2691 | F30: =SUMIF(OFFSET(Metered!$I$2,0,0,1,COUNTA(Metered!$I$2:$IV$2)),"Primary",OFFSET(Metered!$I31,0,0,1,COUNTA(Metered!$I31:$AA31))) -> 34718.89085 | G30: 494269.16 | H30: 1.01723 | I30: 502785.4176 | J30: =SUMIF(OFFSET(Metered!$I$2,0,0,1,COUNTA(Metered!$I$2:$IV$2)),"Subtransmission",OFFSET(Metered!$I31,0,0,1,COUNTA(Metered!$I31:$AA31))) -> 198378.9967 | K30: 580998.6995 | L30: 1.01497 | M30: 589696.25 | N30: =SUMIF(OFFSET(Metered!$I$2,0,0,1,COUNTA(Metered!$I$2:$AA$2)),"Transmission",OFFSET(Metered!$I31,0,0,1,COUNTA(Metered!$I31:$AA31))) -> 41738.52915 | O30: 751600.494 | P30: 1.03035 | Q30: 774411.569
A31: 3 | B31: 2016-03-02T05:00:00 | C31: =+Metered!E32 -> 516978.063 | D31: 1.0322 | E31: 533624.7566 | F31: =SUMIF(OFFSET(Metered!$I$2,0,0,1,COUNTA(Metered!$I$2:$IV$2)),"Primary",OFFSET(Metered!$I32,0,0,1,COUNTA(Metered!$I32:$AA32))) -> 36818.45167 | G31: 570443.2083 | H31: 1.01864 | I31: 581076.2697 | J31: =SUMIF(OFFSET(Metered!$I$2,0,0,1,COUNTA(Metered!$I$2:$IV$2)),"Subtransmission",OFFSET(Metered!$I32,0,0,1,COUNTA(Metered!$I32:$AA32))) -> 203771.9909 | K31: 645971.0321 | L31: 1.01626 | M31: 656474.5211 | N31: =SUMIF(OFFSET(Metered!$I$2,0,0,1,COUNTA(Metered!$I$2:$AA$2)),"Transmission",OFFSET(Metered!$I32,0,0,1,COUNTA(Metered!$I32:$AA32))) -> 41871.96779 | O31: 837223.7173 | P31: 1.03264 | Q31: 864550.6995
A32: 3 | B32: 2016-03-02T06:00:00 | C32: =+Metered!E33 -> 562265.7684 | D32: 1.03156 | E32: 580010.8761 | F32: =SUMIF(OFFSET(Metered!$I$2,0,0,1,COUNTA(Metered!$I$2:$IV$2)),"Primary",OFFSET(Metered!$I33,0,0,1,COUNTA(Metered!$I33:$AA33))) -> 43357.40593 | G32: 623368.282 | H32: 1.01971 | I32: 635654.8708 | J32: =SUMIF(OFFSET(Metered!$I$2,0,0,1,COUNTA(Metered!$I$2:$IV$2)),"Subtransmission",OFFSET(Metered!$I33,0,0,1,COUNTA(Metered!$I33:$AA33))) -> 210211.1457 | K32: 693944.5024 | L32: 1.01723 | M32: 705901.1662 | N32: =SUMIF(OFFSET(Metered!$I$2,0,0,1,COUNTA(Metered!$I$2:$AA$2)),"Transmission",OFFSET(Metered!$I33,0,0,1,COUNTA(Metered!$I33:$AA33))) -> 42166.94982 | O32: 899989.6301 | P32: 1.03439 | Q32: 930940.2735
A33: 3 | B33: 2016-03-02T07:00:00 | C33: =+Metered!E34 -> 577026.8056 | D33: 1.03141 | E33: 595151.2176 | F33: =SUMIF(OFFSET(Metered!$I$2,0,0,1,COUNTA(Metered!$I$2:$IV$2)),"Primary",OFFSET(Metered!$I34,0,0,1,COUNTA(Metered!$I34:$AA34))) -> 47249.30839 | G33: 642400.5259 | H33: 1.02011 | I33: 655319.2005 | J33: =SUMIF(OFFSET(Metered!$I$2,0,0,1,COUNTA(Metered!$I$2:$IV$2)),"Subtransmission",OFFSET(Metered!$I34,0,0,1,COUNTA(Metered!$I34:$AA34))) -> 213328.0747 | K33: 712025.9863 | L33: 1.0176 | M33: 724557.6436 | N33: =SUMIF(OFFSET(Metered!$I$2,0,0,1,COUNTA(Metered!$I$2:$AA$2)),"Transmission",OFFSET(Metered!$I34,0,0,1,COUNTA(Metered!$I34:$AA34))) -> 42314.10915 | O33: 923493.0417 | P33: 1.03506 | Q33: 955870.7077
A34: 3 | B34: 2016-03-02T08:00:00 | C34: =+Metered!E35 -> 579557.7239 | D34: 1.03139 | E34: 597750.0408 | F34: =SUMIF(OFFSET(Metered!$I$2,0,0,1,COUNTA(Metered!$I$2:$IV$2)),"Primary",OFFSET(Metered!$I35,0,0,1,COUNTA(Metered!$I35:$AA35))) -> 49255.74251 | G34: 647005.7833 | H34: 1.0202 | I34: 660075.3002 | J34: =SUMIF(OFFSET(Metered!$I$2,0,0,1,COUNTA(Metered!$I$2:$IV$2)),"Subtransmission",OFFSET(Metered!$I35,0,0,1,COUNTA(Metered!$I35:$AA35))) -> 215329.7414 | K34: 717647.0449 | L34: 1.01771 | M34: 730356.574 | N34: =SUMIF(OFFSET(Metered!$I$2,0,0,1,COUNTA(Metered!$I$2:$AA$2)),"Transmission",OFFSET(Metered!$I35,0,0,1,COUNTA(Metered!$I35:$AA35))) -> 42429.78522 | O34: 930544.356 | P34: 1.03526 | Q34: 963355.35
A35: 3 | B35: 2016-03-02T09:00:00 | C35: =+Metered!E36 -> 569320.1086 | D35: 1.03149 | E35: 587247.9989 | F35: =SUMIF(OFFSET(Metered!$I$2,0,0,1,COUNTA(Metered!$I$2:$IV$2)),"Primary",OFFSET(Metered!$I36,0,0,1,COUNTA(Metered!$I36:$AA36))) -> 50539.75016 | G35: 637787.749 | H35: 1.02001 | I35: 650549.8819 | J35: =SUMIF(OFFSET(Metered!$I$2,0,0,1,COUNTA(Metered!$I$2:$IV$2)),"Subtransmission",OFFSET(Metered!$I36,0,0,1,COUNTA(Metered!$I36:$AA36))) -> 216130.6045 | K35: 711199.0646 | L35: 1.01758 | M35: 723701.9441 | N35: =SUMIF(OFFSET(Metered!$I$2,0,0,1,COUNTA(Metered!$I$2:$AA$2)),"Transmission",OFFSET(Metered!$I36,0,0,1,COUNTA(Metered!$I36:$AA36))) -> 42399.27518 | O35: 921582.6411 | P35: 1.03501 | Q35: 953847.2493
A36: 3 | B36: 2016-03-02T10:00:00 | C36: =+Metered!E37 -> 560480.278 | D36: 1.03158 | E36: 578180.2452 | F36: =SUMIF(OFFSET(Metered!$I$2,0,0,1,COUNTA(Metered!$I$2:$IV$2)),"Primary",OFFSET(Metered!$I37,0,0,1,COUNTA(Metered!$I37:$AA37))) -> 49555.37877 | G36: 627735.624 | H36: 1.0198 | I36: 640164.7893 | J36: =SUMIF(OFFSET(Metered!$I$2,0,0,1,COUNTA(Metered!$I$2:$IV$2)),"Subtransmission",OFFSET(Metered!$I37,0,0,1,COUNTA(Metered!$I37:$AA37))) -> 216762.1158 | K36: 703927.5205 | L36: 1.01743 | M36: 716196.9772 | N36: =SUMIF(OFFSET(Metered!$I$2,0,0,1,COUNTA(Metered!$I$2:$AA$2)),"Transmission",OFFSET(Metered!$I37,0,0,1,COUNTA(Metered!$I37:$AA37))) -> 42850.86982 | O36: 912047.2316 | P36: 1.03473 | Q36: 943722.632
A37: 3 | B37: 2016-03-02T11:00:00 | C37: =+Metered!E38 -> 606654.6052 | D37: 1.03118 | E37: 625570.0958 | F37: =SUMIF(OFFSET(Metered!$I$2,0,0,1,COUNTA(Metered!$I$2:$IV$2)),"Primary",OFFSET(Metered!$I38,0,0,1,COUNTA(Metered!$I38:$AA38))) -> 48667.16829 | G37: 674237.264 | H37: 1.02078 | I37: 688247.9144 | J37: =SUMIF(OFFSET(Metered!$I$2,0,0,1,COUNTA(Metered!$I$2:$IV$2)),"Subtransmission",OFFSET(Metered!$I38,0,0,1,COUNTA(Metered!$I38:$AA38))) -> 217901.5046 | K37: 741658.1674 | L37: 1.01821 | M37: 755163.7626 | N37: =SUMIF(OFFSET(Metered!$I$2,0,0,1,COUNTA(Metered!$I$2:$AA$2)),"Transmission",OFFSET(Metered!$I38,0,0,1,COUNTA(Metered!$I38:$AA38))) -> 42167.57637 | O37: 961822.5906 | P37: 1.03616 | Q37: 996602.0954
A38: 3 | B38: 2016-03-02T12:00:00 | C38: =+Metered!E39 -> 618555.9393 | D38: 1.03111 | E38: 637799.2146 | F38: =SUMIF(OFFSET(Metered!$I$2,0,0,1,COUNTA(Metered!$I$2:$IV$2)),"Primary",OFFSET(Metered!$I39,0,0,1,COUNTA(Metered!$I39:$AA39))) -> 49599.71238 | G38: 687398.927 | H38: 1.02106 | I38: 701875.5484 | J38: =SUMIF(OFFSET(Metered!$I$2,0,0,1,COUNTA(Metered!$I$2:$IV$2)),"Subtransmission",OFFSET(Metered!$I39,0,0,1,COUNTA(Metered!$I39:$AA39))) -> 218084.1495 | K38: 752211.4418 | L38: 1.01843 | M38: 766074.6986 | N38: =SUMIF(OFFSET(Metered!$I$2,0,0,1,COUNTA(Metered!$I$2:$AA$2)),"Transmission",OFFSET(Metered!$I39,0,0,1,COUNTA(Metered!$I39:$AA39))) -> 42363.07556 | O38: 976186.0303 | P38: 1.03657 | Q38: 1011885.153
A39: 3 | B39: 2016-03-02T13:00:00 | C39: =+Metered!E40 -> 605027.1804 | D39: 1.03119 | E39: 623897.9782 | F39: =SUMIF(OFFSET(Metered!$I$2,0,0,1,COUNTA(Metered!$I$2:$IV$2)),"Primary",OFFSET(Metered!$I40,0,0,1,COUNTA(Metered!$I40:$AA40))) -> 49173.18315 | G39: 673071.1613 | H39: 1.02076 | I39: 687044.1186 | J39: =SUMIF(OFFSET(Metered!$I$2,0,0,1,COUNTA(Metered!$I$2:$IV$2)),"Subtransmission",OFFSET(Metered!$I40,0,0,1,COUNTA(Metered!$I40:$AA40))) -> 214272.6759 | K39: 737113.2502 | L39: 1.01812 | M39: 750469.7423 | N39: =SUMIF(OFFSET(Metered!$I$2,0,0,1,COUNTA(Metered!$I$2:$AA$2)),"Transmission",OFFSET(Metered!$I40,0,0,1,COUNTA(Metered!$I40:$AA40))) -> 42392.09814 | O39: 957065.3848 | P39: 1.03602 | Q39: 991538.8799
A40: 3 | B40: 2016-03-02T14:00:00 | C40: =+Metered!E41 -> 544393.8344 | D40: 1.03178 | E40: 561694.6705 | F40: =SUMIF(OFFSET(Metered!$I$2,0,0,1,COUNTA(Metered!$I$2:$IV$2)),"Primary",OFFSET(Metered!$I41,0,0,1,COUNTA(Metered!$I41:$AA41))) -> 47717.53213 | G40: 609412.2026 | H40: 1.01942 | I40: 621246.9876 | J40: =SUMIF(OFFSET(Metered!$I$2,0,0,1,COUNTA(Metered!$I$2:$IV$2)),"Subtransmission",OFFSET(Metered!$I41,0,0,1,COUNTA(Metered!$I41:$AA41))) -> 214771.0594 | K40: 687540.017 | L40: 1.0171 | M40: 699296.9513 | N40: =SUMIF(OFFSET(Metered!$I$2,0,0,1,COUNTA(Metered!$I$2:$AA$2)),"Transmission",OFFSET(Metered!$I41,0,0,1,COUNTA(Metered!$I41:$AA41))) -> 42188.19104 | O40: 889963.1723 | P40: 1.03411 | Q40: 920319.8161
A41: 3 | B41: 2016-03-02T15:00:00 | C41: =+Metered!E42 -> 531061.9076 | D41: 1.03197 | E41: 548039.9568 | F41: =SUMIF(OFFSET(Metered!$I$2,0,0,1,COUNTA(Metered!$I$2:$IV$2)),"Primary",OFFSET(Metered!$I42,0,0,1,COUNTA(Metered!$I42:$AA42))) -> 46108.74043 | G41: 594148.6972 | H41: 1.01911 | I41: 605502.8788 | J41: =SUMIF(OFFSET(Metered!$I$2,0,0,1,COUNTA(Metered!$I$2:$IV$2)),"Subtransmission",OFFSET(Metered!$I42,0,0,1,COUNTA(Metered!$I42:$AA42))) -> 213707.1963 | K41: 674494.887 | L41: 1.01683 | M41: 685846.636 | N41: =SUMIF(OFFSET(Metered!$I$2,0,0,1,COUNTA(Metered!$I$2:$AA$2)),"Transmission",OFFSET(Metered!$I42,0,0,1,COUNTA(Metered!$I42:$AA42))) -> 42018.91384 | O41: 872580.7379 | P41: 1.03362 | Q41: 901916.9023
A42: 3 | B42: 2016-03-02T16:00:00 | C42: =+Metered!E43 -> 497537.9856 | D42: 1.03257 | E42: 513742.7978 | F42: =SUMIF(OFFSET(Metered!$I$2,0,0,1,COUNTA(Metered!$I$2:$IV$2)),"Primary",OFFSET(Metered!$I43,0,0,1,COUNTA(Metered!$I43:$AA43))) -> 44776.01214 | G42: 558518.81 | H42: 1.01841 | I42: 568801.1413 | J42: =SUMIF(OFFSET(Metered!$I$2,0,0,1,COUNTA(Metered!$I$2:$IV$2)),"Subtransmission",OFFSET(Metered!$I43,0,0,1,COUNTA(Metered!$I43:$AA43))) -> 211221.6003 | K42: 644079.2688 | L42: 1.01622 | M42: 654526.2345 | N42: =SUMIF(OFFSET(Metered!$I$2,0,0,1,COUNTA(Metered!$I$2:$AA$2)),"Transmission",OFFSET(Metered!$I43,0,0,1,COUNTA(Metered!$I43:$AA43))) -> 42424.77978 | O42: 832894.4871 | P42: 1.03252 | Q42: 859980.2158
A43: 3 | B43: 2016-03-02T17:00:00 | C43: =+Metered!E44 -> 523933.0202 | D43: 1.03208 | E43: 540740.7915 | F43: =SUMIF(OFFSET(Metered!$I$2,0,0,1,COUNTA(Metered!$I$2:$IV$2)),"Primary",OFFSET(Metered!$I44,0,0,1,COUNTA(Metered!$I44:$AA44))) -> 43297.67548 | G43: 584038.467 | H43: 1.01891 | I43: 595082.6344 | J43: =SUMIF(OFFSET(Metered!$I$2,0,0,1,COUNTA(Metered!$I$2:$IV$2)),"Subtransmission",OFFSET(Metered!$I44,0,0,1,COUNTA(Metered!$I44:$AA44))) -> 213336.6269 | K43: 666194.5116 | L43: 1.01667 | M43: 677299.9741 | N43: =SUMIF(OFFSET(Metered!$I$2,0,0,1,COUNTA(Metered!$I$2:$AA$2)),"Transmission",OFFSET(Metered!$I44,0,0,1,COUNTA(Metered!$I44:$AA44))) -> 40801.72803 | O43: 860326.4518 | P43: 1.03328 | Q43: 888958.1161
A44: 3 | B44: 2016-03-02T18:00:00 | C44: =+Metered!E45 -> 565232.0196 | D44: 1.03153 | E44: 583053.7852 | F44: =SUMIF(OFFSET(Metered!$I$2,0,0,1,COUNTA(Metered!$I$2:$IV$2)),"Primary",OFFSET(Metered!$I45,0,0,1,COUNTA(Metered!$I45:$AA45))) -> 43259.93531 | G44: 626313.7205 | H44: 1.01977 | I44: 638695.9427 | J44: =SUMIF(OFFSET(Metered!$I$2,0,0,1,COUNTA(Metered!$I$2:$IV$2)),"Subtransmission",OFFSET(Metered!$I45,0,0,1,COUNTA(Metered!$I45:$AA45))) -> 212081.2134 | K44: 698128.8258 | L44: 1.01731 | M44: 710213.4358 | N44: =SUMIF(OFFSET(Metered!$I$2,0,0,1,COUNTA(Metered!$I$2:$AA$2)),"Transmission",OFFSET(Metered!$I45,0,0,1,COUNTA(Metered!$I45:$AA45))) -> 40480.63799 | O44: 903342.4041 | P44: 1.03449 | Q44: 934498.6836
A45: 3 | B45: 2016-03-02T19:00:00 | C45: =+Metered!E46 -> 587687.109 | D45: 1.03132 | E45: 606093.4693 | F45: =SUMIF(OFFSET(Metered!$I$2,0,0,1,COUNTA(Metered!$I$2:$IV$2)),"Primary",OFFSET(Metered!$I46,0,0,1,COUNTA(Metered!$I46:$AA46))) -> 43213.21168 | G45: 649306.681 | H45: 1.02025 | I45: 662455.1413 | J45: =SUMIF(OFFSET(Metered!$I$2,0,0,1,COUNTA(Metered!$I$2:$IV$2)),"Subtransmission",OFFSET(Metered!$I46,0,0,1,COUNTA(Metered!$I46:$AA46))) -> 210454.7394 | K45: 714583.1019 | L45: 1.01765 | M45: 727195.4937 | N45: =SUMIF(OFFSET(Metered!$I$2,0,0,1,COUNTA(Metered!$I$2:$AA$2)),"Transmission",OFFSET(Metered!$I46,0,0,1,COUNTA(Metered!$I46:$AA46))) -> 40560.79629 | O45: 926083.0687 | P45: 1.03513 | Q45: 958616.3669
A46: 3 | B46: 2016-03-02T20:00:00 | C46: =+Metered!E47 -> 633667.6567 | D46: 1.03104 | E46: 653336.7008 | F46: =SUMIF(OFFSET(Metered!$I$2,0,0,1,COUNTA(Metered!$I$2:$IV$2)),"Primary",OFFSET(Metered!$I47,0,0,1,COUNTA(Metered!$I47:$AA47))) -> 41695.13643 | G46: 695031.8372 | H46: 1.02123 | I46: 709787.3631 | J46: =SUMIF(OFFSET(Metered!$I$2,0,0,1,COUNTA(Metered!$I$2:$IV$2)),"Subtransmission",OFFSET(Metered!$I47,0,0,1,COUNTA(Metered!$I47:$AA47))) -> 208734.8883 | K46: 748883.0717 | L46: 1.01836 | M46: 762632.5648 | N46: =SUMIF(OFFSET(Metered!$I$2,0,0,1,COUNTA(Metered!$I$2:$AA$2)),"Transmission",OFFSET(Metered!$I47,0,0,1,COUNTA(Metered!$I47:$AA47))) -> 40454.21029 | O46: 972725.9549 | P46: 1.03647 | Q46: 1008201.27
A47: 3 | B47: 2016-03-02T21:00:00 | C47: =+Metered!E48 -> 600741.8816 | D47: 1.03122 | E47: 619497.0432 | F47: =SUMIF(OFFSET(Metered!$I$2,0,0,1,COUNTA(Metered!$I$2:$IV$2)),"Primary",OFFSET(Metered!$I48,0,0,1,COUNTA(Metered!$I48:$AA48))) -> 39749.99645 | G47: 659247.0396 | H47: 1.02046 | I47: 672735.234 | J47: =SUMIF(OFFSET(Metered!$I$2,0,0,1,COUNTA(Metered!$I$2:$IV$2)),"Subtransmission",OFFSET(Metered!$I48,0,0,1,COUNTA(Metered!$I48:$AA48))) -> 214563.5167 | K47: 726515.0298 | L47: 1.0179 | M47: 739519.6488 | N47: =SUMIF(OFFSET(Metered!$I$2,0,0,1,COUNTA(Metered!$I$2:$AA$2)),"Transmission",OFFSET(Metered!$I48,0,0,1,COUNTA(Metered!$I48:$AA48))) -> 40915.32234 | O47: 941218.6921 | P47: 1.03557 | Q47: 974697.841
A48: 3 | B48: 2016-03-02T22:00:00 | C48: =+Metered!E49 -> 603586.7005 | D48: 1.0312 | E48: 622418.6056 | F48: =SUMIF(OFFSET(Metered!$I$2,0,0,1,COUNTA(Metered!$I$2:$IV$2)),"Primary",OFFSET(Metered!$I49,0,0,1,COUNTA(Metered!$I49:$AA49))) -> 40082.97643 | G48: 662501.582 | H48: 1.02053 | I48: 676102.7395 | J48: =SUMIF(OFFSET(Metered!$I$2,0,0,1,COUNTA(Metered!$I$2:$IV$2)),"Subtransmission",OFFSET(Metered!$I49,0,0,1,COUNTA(Metered!$I49:$AA49))) -> 215184.7026 | K48: 729698.8874 | L48: 1.01796 | M48: 742804.2794 | N48: =SUMIF(OFFSET(Metered!$I$2,0,0,1,COUNTA(Metered!$I$2:$AA$2)),"Transmission",OFFSET(Metered!$I49,0,0,1,COUNTA(Metered!$I49:$AA49))) -> 41872.07402 | O48: 946264.9082 | P48: 1.03571 | Q48: 980056.028
A49: 3 | B49: 2016-03-02T23:00:00 | C49: =+Metered!E50 -> 578110.167 | D49: 1.0314 | E49: 596262.8263 | F49: =SUMIF(OFFSET(Metered!$I$2,0,0,1,COUNTA(Metered!$I$2:$IV$2)),"Primary",OFFSET(Metered!$I50,0,0,1,COUNTA(Metered!$I50:$AA50))) -> 39105.53996 | G49: 635368.3663 | H49: 1.01996 | I49: 648050.3188 | J49: =SUMIF(OFFSET(Metered!$I$2,0,0,1,COUNTA(Metered!$I$2:$IV$2)),"Subtransmission",OFFSET(Metered!$I50,0,0,1,COUNTA(Metered!$I50:$AA50))) -> 212521.7557 | K49: 705688.0483 | L49: 1.01747 | M49: 718016.4185 | N49: =SUMIF(OFFSET(Metered!$I$2,0,0,1,COUNTA(Metered!$I$2:$AA$2)),"Transmission",OFFSET(Metered!$I50,0,0,1,COUNTA(Metered!$I50:$AA50))) -> 41870.03295 | O49: 914770.4777 | P49: 1.03481 | Q49: 946613.638
A50: 3 | B50: 2016-03-03 | C50: =+Metered!E51 -> 588830.1374 | D50: 1.03131 | E50: 607266.409 | F50: =SUMIF(OFFSET(Metered!$I$2,0,0,1,COUNTA(Metered!$I$2:$IV$2)),"Primary",OFFSET(Metered!$I51,0,0,1,COUNTA(Metered!$I51:$AA51))) -> 37282.36107 | G50: 644548.7701 | H50: 1.02015 | I50: 657536.4278 | J50: =SUMIF(OFFSET(Metered!$I$2,0,0,1,COUNTA(Metered!$I$2:$IV$2)),"Subtransmission",OFFSET(Metered!$I51,0,0,1,COUNTA(Metered!$I51:$AA51))) -> 206775.3642 | K50: 707160.5858 | L50: 1.0175 | M50: 719535.896 | N50: =SUMIF(OFFSET(Metered!$I$2,0,0,1,COUNTA(Metered!$I$2:$AA$2)),"Transmission",OFFSET(Metered!$I51,0,0,1,COUNTA(Metered!$I51:$AA51))) -> 41880.49348 | O50: 918567.5957 | P50: 1.03492 | Q50: 950643.9762
A51: 3 | B51: 2016-03-03T01:00:00 | C51: =+Metered!E52 -> 597285.533 | D51: 1.03124 | E51: 615944.733 | F51: =SUMIF(OFFSET(Metered!$I$2,0,0,1,COUNTA(Metered!$I$2:$IV$2)),"Primary",OFFSET(Metered!$I52,0,0,1,COUNTA(Metered!$I52:$AA52))) -> 36317.59454 | G51: 652262.3276 | H51: 1.02031 | I51: 665509.7754 | J51: =SUMIF(OFFSET(Metered!$I$2,0,0,1,COUNTA(Metered!$I$2:$IV$2)),"Subtransmission",OFFSET(Metered!$I52,0,0,1,COUNTA(Metered!$I52:$AA52))) -> 202235.6017 | K51: 708688.5408 | L51: 1.01753 | M51: 721111.851 | N51: =SUMIF(OFFSET(Metered!$I$2,0,0,1,COUNTA(Metered!$I$2:$AA$2)),"Transmission",OFFSET(Metered!$I52,0,0,1,COUNTA(Metered!$I52:$AA52))) -> 41832.14791 | O51: 922000.8352 | P51: 1.03502 | Q51: 954289.3044
A52: 3 | B52: 2016-03-03T02:00:00 | C52: =+Metered!E53 -> 607230.141 | D52: 1.03118 | E52: 626163.5768 | F52: =SUMIF(OFFSET(Metered!$I$2,0,0,1,COUNTA(Metered!$I$2:$IV$2)),"Primary",OFFSET(Metered!$I53,0,0,1,COUNTA(Metered!$I53:$AA53))) -> 36070.17014 | G52: 662233.7469 | H52: 1.02052 | I52: 675822.7834 | J52: =SUMIF(OFFSET(Metered!$I$2,0,0,1,COUNTA(Metered!$I$2:$IV$2)),"Subtransmission",OFFSET(Metered!$I53,0,0,1,COUNTA(Metered!$I53:$AA53))) -> 195404.5981 | K52: 709705.7363 | L52: 1.01755 | M52: 722161.072 | N52: =SUMIF(OFFSET(Metered!$I$2,0,0,1,COUNTA(Metered!$I$2:$AA$2)),"Transmission",OFFSET(Metered!$I53,0,0,1,COUNTA(Metered!$I53:$AA53))) -> 41699.57274 | O52: 925382.29 | P52: 1.03511 | Q52: 957872.4622
A53: 3 | B53: 2016-03-03T03:00:00 | C53: =+Metered!E54 -> 584608.6282 | D53: 1.03135 | E53: 602936.1087 | F53: =SUMIF(OFFSET(Metered!$I$2,0,0,1,COUNTA(Metered!$I$2:$IV$2)),"Primary",OFFSET(Metered!$I54,0,0,1,COUNTA(Metered!$I54:$AA54))) -> 35715.96848 | G53: 638652.0772 | H53: 1.02003 | I53: 651444.2783 | J53: =SUMIF(OFFSET(Metered!$I$2,0,0,1,COUNTA(Metered!$I$2:$IV$2)),"Subtransmission",OFFSET(Metered!$I54,0,0,1,COUNTA(Metered!$I54:$AA54))) -> 196798.3338 | K53: 692547.4295 | L53: 1.0172 | M53: 704459.2453 | N53: =SUMIF(OFFSET(Metered!$I$2,0,0,1,COUNTA(Metered!$I$2:$AA$2)),"Transmission",OFFSET(Metered!$I54,0,0,1,COUNTA(Metered!$I54:$AA54))) -> 41519.07528 | O53: 901673.5031 | P53: 1.03444 | Q53: 932727.1386
A54: 3 | B54: 2016-03-03T04:00:00 | C54: =+Metered!E55 -> 583841.0855 | D54: 1.03135 | E54: 602144.5035 | F54: =SUMIF(OFFSET(Metered!$I$2,0,0,1,COUNTA(Metered!$I$2:$IV$2)),"Primary",OFFSET(Metered!$I55,0,0,1,COUNTA(Metered!$I55:$AA55))) -> 36217.11926 | G54: 638361.6228 | H54: 1.02002 | I54: 651141.6224 | J54: =SUMIF(OFFSET(Metered!$I$2,0,0,1,COUNTA(Metered!$I$2:$IV$2)),"Subtransmission",OFFSET(Metered!$I55,0,0,1,COUNTA(Metered!$I55:$AA55))) -> 197159.3386 | K54: 692678.1133 | L54: 1.0172 | M54: 704592.1769 | N54: =SUMIF(OFFSET(Metered!$I$2,0,0,1,COUNTA(Metered!$I$2:$AA$2)),"Transmission",OFFSET(Metered!$I55,0,0,1,COUNTA(Metered!$I55:$AA55))) -> 41585.03698 | O54: 901800.0616 | P54: 1.03444 | Q54: 932858.0557
A55: 3 | B55: 2016-03-03T05:00:00 | C55: =+Metered!E56 -> 629126.8156 | D55: 1.03106 | E55: 648667.4945 | F55: =SUMIF(OFFSET(Metered!$I$2,0,0,1,COUNTA(Metered!$I$2:$IV$2)),"Primary",OFFSET(Metered!$I56,0,0,1,COUNTA(Metered!$I56:$AA56))) -> 37559.2553 | G55: 686226.7498 | H55: 1.02104 | I55: 700664.9606 | J55: =SUMIF(OFFSET(Metered!$I$2,0,0,1,COUNTA(Metered!$I$2:$IV$2)),"Subtransmission",OFFSET(Metered!$I56,0,0,1,COUNTA(Metered!$I56:$AA56))) -> 201899.6428 | K55: 735105.6778 | L55: 1.01807 | M55: 748389.0374 | N55: =SUMIF(OFFSET(Metered!$I$2,0,0,1,COUNTA(Metered!$I$2:$AA$2)),"Transmission",OFFSET(Metered!$I56,0,0,1,COUNTA(Metered!$I56:$AA56))) -> 41700.69718 | O55: 957548.6602 | P55: 1.03604 | Q55: 992058.7139
A56: 3 | B56: 2016-03-03T06:00:00 | C56: =+Metered!E57 -> 657965.3546 | D56: 1.03097 | E56: 678342.5416 | F56: =SUMIF(OFFSET(Metered!$I$2,0,0,1,COUNTA(Metered!$I$2:$IV$2)),"Primary",OFFSET(Metered!$I57,0,0,1,COUNTA(Metered!$I57:$AA57))) -> 43715.82382 | G56: 722058.3655 | H56: 1.02182 | I56: 737813.679 | J56: =SUMIF(OFFSET(Metered!$I$2,0,0,1,COUNTA(Metered!$I$2:$IV$2)),"Subtransmission",OFFSET(Metered!$I57,0,0,1,COUNTA(Metered!$I57:$AA57))) -> 207431.3223 | K56: 768907.5321 | L56: 1.01877 | M56: 783339.9264 | N56: =SUMIF(OFFSET(Metered!$I$2,0,0,1,COUNTA(Metered!$I$2:$AA$2)),"Transmission",OFFSET(Metered!$I57,0,0,1,COUNTA(Metered!$I57:$AA57))) -> 42116.68584 | O56: 1001794.082 | P56: 1.03732 | Q56: 1039181.037
A57: 3 | B57: 2016-03-03T07:00:00 | C57: =+Metered!E58 -> 631620.9686 | D57: 1.03105 | E57: 651232.7997 | F57: =SUMIF(OFFSET(Metered!$I$2,0,0,1,COUNTA(Metered!$I$2:$IV$2)),"Primary",OFFSET(Metered!$I58,0,0,1,COUNTA(Metered!$I58:$AA58))) -> 47260.04859 | G57: 698492.8483 | H57: 1.02131 | I57: 713377.7309 | J57: =SUMIF(OFFSET(Metered!$I$2,0,0,1,COUNTA(Metered!$I$2:$IV$2)),"Subtransmission",OFFSET(Metered!$I58,0,0,1,COUNTA(Metered!$I58:$AA58))) -> 209536.9766 | K57: 752417.4298 | L57: 1.01843 | M57: 766284.483 | N57: =SUMIF(OFFSET(Metered!$I$2,0,0,1,COUNTA(Metered!$I$2:$AA$2)),"Transmission",OFFSET(Metered!$I58,0,0,1,COUNTA(Metered!$I58:$AA58))) -> 42066.72549 | O57: 978848.4862 | P57: 1.03665 | Q57: 1014723.283
A58: 3 | B58: 2016-03-03T08:00:00 | C58: =+Metered!E59 -> 620496.5342 | D58: 1.0311 | E58: 639793.9764 | F58: =SUMIF(OFFSET(Metered!$I$2,0,0,1,COUNTA(Metered!$I$2:$IV$2)),"Primary",OFFSET(Metered!$I59,0,0,1,COUNTA(Metered!$I59:$AA59))) -> 48737.54767 | G58: 688531.524 | H58: 1.02109 | I58: 703052.6539 | J58: =SUMIF(OFFSET(Metered!$I$2,0,0,1,COUNTA(Metered!$I$2:$IV$2)),"Subtransmission",OFFSET(Metered!$I59,0,0,1,COUNTA(Metered!$I59:$AA59))) -> 212225.0467 | K58: 747248.1163 | L58: 1.01833 | M58: 760945.1743 | N58: =SUMIF(OFFSET(Metered!$I$2,0,0,1,COUNTA(Metered!$I$2:$AA$2)),"Transmission",OFFSET(Metered!$I59,0,0,1,COUNTA(Metered!$I59:$AA59))) -> 42228.16647 | O58: 971202.9251 | P58: 1.03643 | Q58: 1006583.848
A59: 3 | B59: 2016-03-03T09:00:00 | C59: =+Metered!E60 -> 611352.9273 | D59: 1.03115 | E59: 630396.571 | F59: =SUMIF(OFFSET(Metered!$I$2,0,0,1,COUNTA(Metered!$I$2:$IV$2)),"Primary",OFFSET(Metered!$I60,0,0,1,COUNTA(Metered!$I60:$AA60))) -> 48881.1552 | G59: 679277.7262 | H59: 1.02089 | I59: 693467.8379 | J59: =SUMIF(OFFSET(Metered!$I$2,0,0,1,COUNTA(Metered!$I$2:$IV$2)),"Subtransmission",OFFSET(Metered!$I60,0,0,1,COUNTA(Metered!$I60:$AA60))) -> 212733.828 | K59: 740462.8527 | L59: 1.01818 | M59: 753924.4673 | N59: =SUMIF(OFFSET(Metered!$I$2,0,0,1,COUNTA(Metered!$I$2:$AA$2)),"Transmission",OFFSET(Metered!$I60,0,0,1,COUNTA(Metered!$I60:$AA60))) -> 42147.71821 | O59: 961810.9988 | P59: 1.03616 | Q59: 996590.0845
A60: 3 | B60: 2016-03-03T10:00:00 | C60: =+Metered!E61 -> 596606.6986 | D60: 1.03125 | E60: 615250.6579 | F60: =SUMIF(OFFSET(Metered!$I$2,0,0,1,COUNTA(Metered!$I$2:$IV$2)),"Primary",OFFSET(Metered!$I61,0,0,1,COUNTA(Metered!$I61:$AA61))) -> 48996.24618 | G60: 664246.9041 | H60: 1.02057 | I60: 677910.4629 | J60: =SUMIF(OFFSET(Metered!$I$2,0,0,1,COUNTA(Metered!$I$2:$IV$2)),"Subtransmission",OFFSET(Metered!$I61,0,0,1,COUNTA(Metered!$I61:$AA61))) -> 214042.3709 | K60: 729932.2332 | L60: 1.01797 | M60: 743049.1154 | N60: =SUMIF(OFFSET(Metered!$I$2,0,0,1,COUNTA(Metered!$I$2:$AA$2)),"Transmission",OFFSET(Metered!$I61,0,0,1,COUNTA(Metered!$I61:$AA61))) -> 42146.07471 | O60: 947215.7908 | P60: 1.03574 | Q60: 981069.2832
A61: 3 | B61: 2016-03-03T11:00:00 | C61: =+Metered!E62 -> 575808.1794 | D61: 1.03142 | E61: 593900.0724 | F61: =SUMIF(OFFSET(Metered!$I$2,0,0,1,COUNTA(Metered!$I$2:$IV$2)),"Primary",OFFSET(Metered!$I62,0,0,1,COUNTA(Metered!$I62:$AA62))) -> 48083.11129 | G61: 641983.1837 | H61: 1.0201 | I61: 654887.0457 | J61: =SUMIF(OFFSET(Metered!$I$2,0,0,1,COUNTA(Metered!$I$2:$IV$2)),"Subtransmission",OFFSET(Metered!$I62,0,0,1,COUNTA(Metered!$I62:$AA62))) -> 214358.0606 | K61: 712727.1024 | L61: 1.01761 | M61: 725278.2267 | N61: =SUMIF(OFFSET(Metered!$I$2,0,0,1,COUNTA(Metered!$I$2:$AA$2)),"Transmission",OFFSET(Metered!$I62,0,0,1,COUNTA(Metered!$I62:$AA62))) -> 41638.23992 | O61: 923434.4705 | P61: 1.03506 | Q61: 955810.0831
A62: 3 | B62: 2016-03-03T12:00:00 | C62: =+Metered!E63 -> 635145.4436 | D62: 1.03104 | E62: 654860.3581 | F62: =SUMIF(OFFSET(Metered!$I$2,0,0,1,COUNTA(Metered!$I$2:$IV$2)),"Primary",OFFSET(Metered!$I63,0,0,1,COUNTA(Metered!$I63:$AA63))) -> 49274.01735 | G62: 704134.3755 | H62: 1.02143 | I62: 719223.9751 | J62: =SUMIF(OFFSET(Metered!$I$2,0,0,1,COUNTA(Metered!$I$2:$IV$2)),"Subtransmission",OFFSET(Metered!$I63,0,0,1,COUNTA(Metered!$I63:$AA63))) -> 217095.771 | K62: 764425.2161 | L62: 1.01868 | M62: 778704.6791 | N62: =SUMIF(OFFSET(Metered!$I$2,0,0,1,COUNTA(Metered!$I$2:$AA$2)),"Transmission",OFFSET(Metered!$I63,0,0,1,COUNTA(Metered!$I63:$AA63))) -> 41906.28026 | O62: 992505.4894 | P62: 1.03705 | Q62: 1029277.818
A63: 3 | B63: 2016-03-03T13:00:00 | C63: =+Metered!E64 -> 608880.9762 | D63: 1.03117 | E63: 627859.7962 | F63: =SUMIF(OFFSET(Metered!$I$2,0,0,1,COUNTA(Metered!$I$2:$IV$2)),"Primary",OFFSET(Metered!$I64,0,0,1,COUNTA(Metered!$I64:$AA64))) -> 49764.48136 | G63: 677624.2776 | H63: 1.02085 | I63: 691752.7437 | J63: =SUMIF(OFFSET(Metered!$I$2,0,0,1,COUNTA(Metered!$I$2:$IV$2)),"Subtransmission",OFFSET(Metered!$I64,0,0,1,COUNTA(Metered!$I64:$AA64))) -> 218506.9487 | K63: 744930.7867 | L63: 1.01828 | M63: 758548.1215 | N63: =SUMIF(OFFSET(Metered!$I$2,0,0,1,COUNTA(Metered!$I$2:$AA$2)),"Transmission",OFFSET(Metered!$I64,0,0,1,COUNTA(Metered!$I64:$AA64))) -> 42012.97172 | O63: 965889.999 | P63: 1.03628 | Q63: 1000932.488
A64: 3 | B64: 2016-03-03T14:00:00 | C64: =+Metered!E65 -> 613291.5893 | D64: 1.03114 | E64: 632389.4894 | F64: =SUMIF(OFFSET(Metered!$I$2,0,0,1,COUNTA(Metered!$I$2:$IV$2)),"Primary",OFFSET(Metered!$I65,0,0,1,COUNTA(Metered!$I65:$AA65))) -> 48084.13741 | G64: 680473.6268 | H64: 1.02092 | I64: 694709.1351 | J64: =SUMIF(OFFSET(Metered!$I$2,0,0,1,COUNTA(Metered!$I$2:$IV$2)),"Subtransmission",OFFSET(Metered!$I65,0,0,1,COUNTA(Metered!$I65:$AA65))) -> 217470.9861 | K64: 746144.6379 | L64: 1.0183 | M64: 759799.0848 | N64: =SUMIF(OFFSET(Metered!$I$2,0,0,1,COUNTA(Metered!$I$2:$AA$2)),"Transmission",OFFSET(Metered!$I65,0,0,1,COUNTA(Metered!$I65:$AA65))) -> 42312.92014 | O64: 968147.4882 | P64: 1.03634 | Q64: 1003329.968
A65: 3 | B65: 2016-03-03T15:00:00 | C65: =+Metered!E66 -> 624488.2533 | D65: 1.03108 | E65: 643897.3482 | F65: =SUMIF(OFFSET(Metered!$I$2,0,0,1,COUNTA(Metered!$I$2:$IV$2)),"Primary",OFFSET(Metered!$I66,0,0,1,COUNTA(Metered!$I66:$AA66))) -> 46579.14795 | G65: 690476.4962 | H65: 1.02113 | I65: 705066.2645 | J65: =SUMIF(OFFSET(Metered!$I$2,0,0,1,COUNTA(Metered!$I$2:$IV$2)),"Subtransmission",OFFSET(Metered!$I66,0,0,1,COUNTA(Metered!$I66:$AA66))) -> 214186.2301 | K65: 750741.6574 | L65: 1.0184 | M65: 764555.3039 | N65: =SUMIF(OFFSET(Metered!$I$2,0,0,1,COUNTA(Metered!$I$2:$AA$2)),"Transmission",OFFSET(Metered!$I66,0,0,1,COUNTA(Metered!$I66:$AA66))) -> 41891.8394 | O65: 974957.9805 | P65: 1.03654 | Q65: 1010582.945
A66: 3 | B66: 2016-03-03T16:00:00 | C66: =+Metered!E67 -> 588167.2747 | D66: =IF(C66=0,0,ROUND(1+((LossCoeff_Sec*C66^2+ZeroLoadLoss_Sec)/C66),5)) -> 1.03132 | E66: 606588.6738 | F66: =SUMIF(OFFSET(Metered!$I$2,0,0,1,COUNTA(Metered!$I$2:$IV$2)),"Primary",OFFSET(Metered!$I67,0,0,1,COUNTA(Metered!$I67:$AA67))) -> 42535.78332 | G66: 649124.4571 | H66: =IF(G66=0,0,ROUND(1+((LossCoeff_Pri*G66^2+ZeroLoadLoss_Pri)/G66),5)) -> 1.02025 | I66: 662269.2273 | J66: =SUMIF(OFFSET(Metered!$I$2,0,0,1,COUNTA(Metered!$I$2:$IV$2)),"Subtransmission",OFFSET(Metered!$I67,0,0,1,COUNTA(Metered!$I67:$AA67))) -> 211665.589 | K66: =+I66*DistAtSubtran+J66 -> 715652.471 | L66: =IF(K66=0,0,ROUND(1+((LossCoeff_Sub*K66^2+ZeroLoadLoss_Sub)/K66),5)) -> 1.01767 | M66: 728298.0502 | N66: =SUMIF(OFFSET(Metered!$I$2,0,0,1,COUNTA(Metered!$I$2:$AA$2)),"Transmission",OFFSET(Metered!$I67,0,0,1,COUNTA(Metered!$I67:$AA67))) -> 41853.75108 | O66: =+M66+N66+(1-DistAtSubtran)*I66 -> 928434.1466 | P66: =IF(O66=0,0,ROUND(1+((LossCoeff_Trn*O66^2+ZeroLoadLoss_Trn)/O66),5)) -> 1.0352 | Q66: 961115.0286
A67: =MONTH(B67) -> 3 | B67: =+B66+1/24 -> 2016-03-03T17:00:00 | C67: =+Metered!E68 -> 577909.1721 | D67: 1.03141 | E67: =+C67*D67 -> 596061.2992 | F67: =SUMIF(OFFSET(Metered!$I$2,0,0,1,COUNTA(Metered!$I$2:$IV$2)),"Primary",OFFSET(Metered!$I68,0,0,1,COUNTA(Metered!$I68:$AA68))) -> 41845.33575 | G67: =+E67+F67 -> 637906.635 | H67: 1.02001 | I67: =+G67*H67 -> 650671.1468 | J67: =SUMIF(OFFSET(Metered!$I$2,0,0,1,COUNTA(Metered!$I$2:$IV$2)),"Subtransmission",OFFSET(Metered!$I68,0,0,1,COUNTA(Metered!$I68:$AA68))) -> 211336.6621 | K67: 706497.4048 | L67: 1.01749 | M67: =+K67*L67 -> 718854.0444 | N67: =SUMIF(OFFSET(Metered!$I$2,0,0,1,COUNTA(Metered!$I$2:$AA$2)),"Transmission",OFFSET(Metered!$I68,0,0,1,COUNTA(Metered!$I68:$AA68))) -> 41760.47114 | O67: 916124.9196 | P67: 1.03485 | Q67: =+P67*O67 -> 948051.8731
A68: 3 | B68: 2016-03-03T18:00:00 | C68: =+Metered!E69 -> 620894.7319 | D68: 1.0311 | E68: 640204.5581 | F68: =SUMIF(OFFSET(Metered!$I$2,0,0,1,COUNTA(Metered!$I$2:$IV$2)),"Primary",OFFSET(Metered!$I69,0,0,1,COUNTA(Metered!$I69:$AA69))) -> 41561.475 | G68: 681766.0331 | H68: 1.02094 | I68: 696042.2138 | J68: =SUMIF(OFFSET(Metered!$I$2,0,0,1,COUNTA(Metered!$I$2:$IV$2)),"Subtransmission",OFFSET(Metered!$I69,0,0,1,COUNTA(Metered!$I69:$AA69))) -> 210536.0664 | K68: 740224.1911 | L68: 1.01818 | M68: 753681.4669 | N68: =SUMIF(OFFSET(Metered!$I$2,0,0,1,COUNTA(Metered!$I$2:$AA$2)),"Transmission",OFFSET(Metered!$I69,0,0,1,COUNTA(Metered!$I69:$AA69))) -> 41606.84525 | O68: 961642.4012 | P68: 1.03615 | Q68: 996405.774
A69: 3 | B69: 2016-03-03T19:00:00 | C69: =+Metered!E70 -> 606029.323 | D69: 1.03118 | E69: 624925.3173 | F69: =SUMIF(OFFSET(Metered!$I$2,0,0,1,COUNTA(Metered!$I$2:$IV$2)),"Primary",OFFSET(Metered!$I70,0,0,1,COUNTA(Metered!$I70:$AA70))) -> 41349.94935 | G69: 666275.2667 | H69: 1.02061 | I69: 680007.1999 | J69: =SUMIF(OFFSET(Metered!$I$2,0,0,1,COUNTA(Metered!$I$2:$IV$2)),"Subtransmission",OFFSET(Metered!$I70,0,0,1,COUNTA(Metered!$I70:$AA70))) -> 206988.4598 | K69: 724473.939 | L69: 1.01786 | M69: 737413.0435 | N69: =SUMIF(OFFSET(Metered!$I$2,0,0,1,COUNTA(Metered!$I$2:$AA$2)),"Transmission",OFFSET(Metered!$I70,0,0,1,COUNTA(Metered!$I70:$AA70))) -> 41563.61987 | O69: 941498.3842 | P69: 1.03557 | Q69: 974987.4817
A70: 3 | B70: 2016-03-03T20:00:00 | C70: =+Metered!E71 -> 623537.6953 | D70: 1.03109 | E70: 642923.4823 | F70: =SUMIF(OFFSET(Metered!$I$2,0,0,1,COUNTA(Metered!$I$2:$IV$2)),"Primary",OFFSET(Metered!$I71,0,0,1,COUNTA(Metered!$I71:$AA71))) -> 39174.07443 | G70: 682097.5567 | H70: 1.02095 | I70: 696387.5005 | J70: =SUMIF(OFFSET(Metered!$I$2,0,0,1,COUNTA(Metered!$I$2:$IV$2)),"Subtransmission",OFFSET(Metered!$I71,0,0,1,COUNTA(Metered!$I71:$AA71))) -> 208336.8161 | K70: 738287.704 | L70: 1.01814 | M70: 751680.243 | N70: =SUMIF(OFFSET(Metered!$I$2,0,0,1,COUNTA(Metered!$I$2:$AA$2)),"Transmission",OFFSET(Metered!$I71,0,0,1,COUNTA(Metered!$I71:$AA71))) -> 41473.62667 | O70: 959590.4823 | P70: 1.03609 | Q70: 994222.1028
A71: 3 | B71: 2016-03-03T21:00:00 | C71: =+Metered!E72 -> 641349.5392 | D71: 1.03101 | E71: 661237.7884 | F71: =SUMIF(OFFSET(Metered!$I$2,0,0,1,COUNTA(Metered!$I$2:$IV$2)),"Primary",OFFSET(Metered!$I72,0,0,1,COUNTA(Metered!$I72:$AA72))) -> 37909.15563 | G71: 699146.9441 | H71: 1.02132 | I71: 714052.7569 | J71: =SUMIF(OFFSET(Metered!$I$2,0,0,1,COUNTA(Metered!$I$2:$IV$2)),"Subtransmission",OFFSET(Metered!$I72,0,0,1,COUNTA(Metered!$I72:$AA72))) -> 207299.8891 | K71: 750694.0371 | L71: 1.0184 | M71: 764506.8074 | N71: =SUMIF(OFFSET(Metered!$I$2,0,0,1,COUNTA(Metered!$I$2:$AA$2)),"Transmission",OFFSET(Metered!$I72,0,0,1,COUNTA(Metered!$I72:$AA72))) -> 41488.10899 | O71: 976653.5253 | P71: 1.03659 | Q71: 1012389.278
A72: 3 | B72: 2016-03-03T22:00:00 | C72: =+Metered!E73 -> 599899.4754 | D72: 1.03123 | E72: 618634.336 | F72: =SUMIF(OFFSET(Metered!$I$2,0,0,1,COUNTA(Metered!$I$2:$IV$2)),"Primary",OFFSET(Metered!$I73,0,0,1,COUNTA(Metered!$I73:$AA73))) -> 37377.73734 | G72: 656012.0734 | H72: 1.02039 | I72: 669388.1596 | J72: =SUMIF(OFFSET(Metered!$I$2,0,0,1,COUNTA(Metered!$I$2:$IV$2)),"Subtransmission",OFFSET(Metered!$I73,0,0,1,COUNTA(Metered!$I73:$AA73))) -> 201533.7727 | K72: 710938.1621 | L72: 1.01758 | M72: 723436.455 | N72: =SUMIF(OFFSET(Metered!$I$2,0,0,1,COUNTA(Metered!$I$2:$AA$2)),"Transmission",OFFSET(Metered!$I73,0,0,1,COUNTA(Metered!$I73:$AA73))) -> 41378.66252 | O72: 924798.8876 | P72: 1.0351 | Q72: 957259.3286
A73: 3 | B73: 2016-03-03T23:00:00 | C73: =+Metered!E74 -> 536879.9619 | D73: 1.03189 | E73: 554001.0639 | F73: =SUMIF(OFFSET(Metered!$I$2,0,0,1,COUNTA(Metered!$I$2:$IV$2)),"Primary",OFFSET(Metered!$I74,0,0,1,COUNTA(Metered!$I74:$AA74))) -> 36603.1012 | G73: 590604.1651 | H73: 1.01904 | I73: 601849.2684 | J73: =SUMIF(OFFSET(Metered!$I$2,0,0,1,COUNTA(Metered!$I$2:$IV$2)),"Subtransmission",OFFSET(Metered!$I74,0,0,1,COUNTA(Metered!$I74:$AA74))) -> 198929.6048 | K73: 656936.898 | L73: 1.01648 | M73: 667763.2181 | N73: =SUMIF(OFFSET(Metered!$I$2,0,0,1,COUNTA(Metered!$I$2:$AA$2)),"Transmission",OFFSET(Metered!$I74,0,0,1,COUNTA(Metered!$I74:$AA74))) -> 41327.43493 | O73: 852932.6282 | P73: 1.03308 | Q73: 881147.6395
A74: 3 | B74: 2016-03-04 | C74: =+Metered!E75 -> 536098.1633 | D74: 1.0319 | E74: 553199.6947 | F74: =SUMIF(OFFSET(Metered!$I$2,0,0,1,COUNTA(Metered!$I$2:$IV$2)),"Primary",OFFSET(Metered!$I75,0,0,1,COUNTA(Metered!$I75:$AA75))) -> 35342.83408 | G74: 588542.5288 | H74: 1.019 | I74: 599724.8368 | J74: =SUMIF(OFFSET(Metered!$I$2,0,0,1,COUNTA(Metered!$I$2:$IV$2)),"Subtransmission",OFFSET(Metered!$I75,0,0,1,COUNTA(Metered!$I75:$AA75))) -> 192317.0206 | K74: 648707.6214 | L74: 1.01631 | M74: 659288.0427 | N74: =SUMIF(OFFSET(Metered!$I$2,0,0,1,COUNTA(Metered!$I$2:$AA$2)),"Transmission",OFFSET(Metered!$I75,0,0,1,COUNTA(Metered!$I75:$AA75))) -> 41268.51183 | O74: 843890.7905 | P74: 1.03283 | Q74: 871595.7252
A75: 3 | B75: 2016-03-04T01:00:00 | C75: =+Metered!E76 -> 514188.1001 | D75: 1.03225 | E75: 530770.6663 | F75: =SUMIF(OFFSET(Metered!$I$2,0,0,1,COUNTA(Metered!$I$2:$IV$2)),"Primary",OFFSET(Metered!$I76,0,0,1,COUNTA(Metered!$I76:$AA76))) -> 35024.0815 | G75: 565794.7479 | H75: 1.01855 | I75: 576290.2404 | J75: =SUMIF(OFFSET(Metered!$I$2,0,0,1,COUNTA(Metered!$I$2:$IV$2)),"Subtransmission",OFFSET(Metered!$I76,0,0,1,COUNTA(Metered!$I76:$AA76))) -> 187924.3701 | K75: 626481.2431 | L75: 1.01587 | M75: 636423.5004 | N75: =SUMIF(OFFSET(Metered!$I$2,0,0,1,COUNTA(Metered!$I$2:$AA$2)),"Transmission",OFFSET(Metered!$I76,0,0,1,COUNTA(Metered!$I76:$AA76))) -> 41293.7612 | O75: 815450.629 | P75: 1.03205 | Q75: 841585.8217
A76: 3 | B76: 2016-03-04T02:00:00 | C76: =+Metered!E77 -> 498619.4521 | D76: 1.03255 | E76: 514849.5153 | F76: =SUMIF(OFFSET(Metered!$I$2,0,0,1,COUNTA(Metered!$I$2:$IV$2)),"Primary",OFFSET(Metered!$I77,0,0,1,COUNTA(Metered!$I77:$AA77))) -> 34992.20681 | G76: 549841.7221 | H76: 1.01825 | I76: 559876.3335 | J76: =SUMIF(OFFSET(Metered!$I$2,0,0,1,COUNTA(Metered!$I$2:$IV$2)),"Subtransmission",OFFSET(Metered!$I77,0,0,1,COUNTA(Metered!$I77:$AA77))) -> 187281.3369 | K76: 613347.2268 | L76: 1.01561 | M76: 622921.577 | N76: =SUMIF(OFFSET(Metered!$I$2,0,0,1,COUNTA(Metered!$I$2:$AA$2)),"Transmission",OFFSET(Metered!$I77,0,0,1,COUNTA(Metered!$I77:$AA77))) -> 41315.49595 | O76: 798047.5166 | P76: 1.03158 | Q76: 823249.8572
A77: 3 | B77: 2016-03-04T03:00:00 | C77: =+Metered!E78 -> 484657.7556 | D77: 1.03285 | E77: 500578.7629 | F77: =SUMIF(OFFSET(Metered!$I$2,0,0,1,COUNTA(Metered!$I$2:$IV$2)),"Primary",OFFSET(Metered!$I78,0,0,1,COUNTA(Metered!$I78:$AA78))) -> 34903.25755 | G77: 535482.0205 | H77: 1.01797 | I77: 545104.6324 | J77: =SUMIF(OFFSET(Metered!$I$2,0,0,1,COUNTA(Metered!$I$2:$IV$2)),"Subtransmission",OFFSET(Metered!$I78,0,0,1,COUNTA(Metered!$I78:$AA78))) -> 186821.2347 | K77: 601645.8599 | L77: 1.01538 | M77: 610899.1732 | N77: =SUMIF(OFFSET(Metered!$I$2,0,0,1,COUNTA(Metered!$I$2:$AA$2)),"Transmission",OFFSET(Metered!$I78,0,0,1,COUNTA(Metered!$I78:$AA78))) -> 41328.89599 | O77: 782508.0763 | P77: 1.03116 | Q77: 806891.028
A78: 3 | B78: 2016-03-04T04:00:00 | C78: =+Metered!E79 -> 510761.1025 | D78: 1.03231 | E78: 527263.7937 | F78: =SUMIF(OFFSET(Metered!$I$2,0,0,1,COUNTA(Metered!$I$2:$IV$2)),"Primary",OFFSET(Metered!$I79,0,0,1,COUNTA(Metered!$I79:$AA79))) -> 35106.42421 | G78: 562370.2179 | H78: 1.01849 | I78: 572768.4433 | J78: =SUMIF(OFFSET(Metered!$I$2,0,0,1,COUNTA(Metered!$I$2:$IV$2)),"Subtransmission",OFFSET(Metered!$I79,0,0,1,COUNTA(Metered!$I79:$AA79))) -> 188442.5403 | K78: 624319.3256 | L78: 1.01583 | M78: 634202.3005 | N78: =SUMIF(OFFSET(Metered!$I$2,0,0,1,COUNTA(Metered!$I$2:$AA$2)),"Transmission",OFFSET(Metered!$I79,0,0,1,COUNTA(Metered!$I79:$AA79))) -> 41234.30361 | O78: 812328.2621 | P78: 1.03196 | Q78: 838290.2733
A79: 3 | B79: 2016-03-04T05:00:00 | C79: =+Metered!E80 -> 522641.4032 | D79: 1.03211 | E79: 539423.4187 | F79: =SUMIF(OFFSET(Metered!$I$2,0,0,1,COUNTA(Metered!$I$2:$IV$2)),"Primary",OFFSET(Metered!$I80,0,0,1,COUNTA(Metered!$I80:$AA80))) -> 36503.66802 | G79: 575927.0867 | H79: 1.01875 | I79: 586725.7196 | J79: =SUMIF(OFFSET(Metered!$I$2,0,0,1,COUNTA(Metered!$I$2:$IV$2)),"Subtransmission",OFFSET(Metered!$I80,0,0,1,COUNTA(Metered!$I80:$AA80))) -> 193014.5568 | K79: 639512.8294 | L79: 1.01613 | M79: 649828.1714 | N79: =SUMIF(OFFSET(Metered!$I$2,0,0,1,COUNTA(Metered!$I$2:$AA$2)),"Transmission",OFFSET(Metered!$I80,0,0,1,COUNTA(Metered!$I80:$AA80))) -> 41258.1686 | O79: 831313.787 | P79: 1.03248 | Q79: 858314.8588
A80: 3 | B80: 2016-03-04T06:00:00 | C80: =+Metered!E81 -> 564949.5825 | D80: 1.03154 | E80: 582768.0923 | F80: =SUMIF(OFFSET(Metered!$I$2,0,0,1,COUNTA(Metered!$I$2:$IV$2)),"Primary",OFFSET(Metered!$I81,0,0,1,COUNTA(Metered!$I81:$AA81))) -> 39369.51607 | G80: 622137.6084 | H80: 1.01968 | I80: 634381.2765 | J80: =SUMIF(OFFSET(Metered!$I$2,0,0,1,COUNTA(Metered!$I$2:$IV$2)),"Subtransmission",OFFSET(Metered!$I81,0,0,1,COUNTA(Metered!$I81:$AA81))) -> 203005.8132 | K80: 685769.9646 | L80: 1.01706 | M80: 697469.2002 | N80: =SUMIF(OFFSET(Metered!$I$2,0,0,1,COUNTA(Metered!$I$2:$AA$2)),"Transmission",OFFSET(Metered!$I81,0,0,1,COUNTA(Metered!$I81:$AA81))) -> 41502.27968 | O80: 890588.605 | P80: 1.03413 | Q80: 920984.394
A81: 3 | B81: 2016-03-04T07:00:00 | C81: =+Metered!E82 -> 585480.4601 | D81: 1.03134 | E81: 603829.4177 | F81: =SUMIF(OFFSET(Metered!$I$2,0,0,1,COUNTA(Metered!$I$2:$IV$2)),"Primary",OFFSET(Metered!$I82,0,0,1,COUNTA(Metered!$I82:$AA82))) -> 41553.91646 | G81: 645383.3341 | H81: 1.02017 | I81: 658400.716 | J81: =SUMIF(OFFSET(Metered!$I$2,0,0,1,COUNTA(Metered!$I$2:$IV$2)),"Subtransmission",OFFSET(Metered!$I82,0,0,1,COUNTA(Metered!$I82:$AA82))) -> 212360.0391 | K81: 713402.984 | L81: 1.01763 | M81: 725980.2786 | N81: =SUMIF(OFFSET(Metered!$I$2,0,0,1,COUNTA(Metered!$I$2:$AA$2)),"Transmission",OFFSET(Metered!$I82,0,0,1,COUNTA(Metered!$I82:$AA82))) -> 41409.07368 | O81: 924747.1234 | P81: 1.0351 | Q81: 957205.7475
A82: 3 | B82: 2016-03-04T08:00:00 | C82: =+Metered!E83 -> 584517.8186 | D82: 1.03135 | E82: 602842.4522 | F82: =SUMIF(OFFSET(Metered!$I$2,0,0,1,COUNTA(Metered!$I$2:$IV$2)),"Primary",OFFSET(Metered!$I83,0,0,1,COUNTA(Metered!$I83:$AA83))) -> 42692.26968 | G82: 645534.7219 | H82: 1.02017 | I82: 658555.1572 | J82: =SUMIF(OFFSET(Metered!$I$2,0,0,1,COUNTA(Metered!$I$2:$IV$2)),"Subtransmission",OFFSET(Metered!$I83,0,0,1,COUNTA(Metered!$I83:$AA83))) -> 216412.0844 | K82: 717572.5591 | L82: 1.01771 | M82: 730280.7691 | N82: =SUMIF(OFFSET(Metered!$I$2,0,0,1,COUNTA(Metered!$I$2:$AA$2)),"Transmission",OFFSET(Metered!$I83,0,0,1,COUNTA(Metered!$I83:$AA83))) -> 41592.05937 | O82: 929267.511 | P82: 1.03522 | Q82: 961996.3128
A83: 3 | B83: 2016-03-04T09:00:00 | C83: =+Metered!E84 -> 623642.7757 | D83: 1.03109 | E83: 643031.8296 | F83: =SUMIF(OFFSET(Metered!$I$2,0,0,1,COUNTA(Metered!$I$2:$IV$2)),"Primary",OFFSET(Metered!$I84,0,0,1,COUNTA(Metered!$I84:$AA84))) -> 43543.69631 | G83: 686575.5259 | H83: 1.02105 | I83: 701027.9407 | J83: =SUMIF(OFFSET(Metered!$I$2,0,0,1,COUNTA(Metered!$I$2:$IV$2)),"Subtransmission",OFFSET(Metered!$I84,0,0,1,COUNTA(Metered!$I84:$AA84))) -> 218510.2537 | K83: 751992.5165 | L83: 1.01842 | M83: 765844.2187 | N83: =SUMIF(OFFSET(Metered!$I$2,0,0,1,COUNTA(Metered!$I$2:$AA$2)),"Transmission",OFFSET(Metered!$I84,0,0,1,COUNTA(Metered!$I84:$AA84))) -> 41667.90279 | O83: 975057.7993 | P83: 1.03654 | Q83: 1010686.411
A84: 3 | B84: 2016-03-04T10:00:00 | C84: =+Metered!E85 -> 588812.4893 | D84: 1.03131 | E84: 607248.2083 | F84: =SUMIF(OFFSET(Metered!$I$2,0,0,1,COUNTA(Metered!$I$2:$IV$2)),"Primary",OFFSET(Metered!$I85,0,0,1,COUNTA(Metered!$I85:$AA85))) -> 45308.11543 | G84: 652556.3237 | H84: 1.02032 | I84: 665816.2682 | J84: =SUMIF(OFFSET(Metered!$I$2,0,0,1,COUNTA(Metered!$I$2:$IV$2)),"Subtransmission",OFFSET(Metered!$I85,0,0,1,COUNTA(Metered!$I85:$AA85))) -> 216750.1912 | K84: 723436.3714 | L84: 1.01783 | M84: 736335.2419 | N84: =SUMIF(OFFSET(Metered!$I$2,0,0,1,COUNTA(Metered!$I$2:$AA$2)),"Transmission",OFFSET(Metered!$I85,0,0,1,COUNTA(Metered!$I85:$AA85))) -> 41685.45415 | O84: 937150.7841 | P84: 1.03545 | Q84: 970372.7794
A85: 3 | B85: 2016-03-04T11:00:00 | C85: =+Metered!E86 -> 573237.1973 | D85: 1.03145 | E85: 591265.5072 | F85: =SUMIF(OFFSET(Metered!$I$2,0,0,1,COUNTA(Metered!$I$2:$IV$2)),"Primary",OFFSET(Metered!$I86,0,0,1,COUNTA(Metered!$I86:$AA86))) -> 44985.75071 | G85: 636251.2579 | H85: 1.01998 | I85: 648963.558 | J85: =SUMIF(OFFSET(Metered!$I$2,0,0,1,COUNTA(Metered!$I$2:$IV$2)),"Subtransmission",OFFSET(Metered!$I86,0,0,1,COUNTA(Metered!$I86:$AA86))) -> 217345.5291 | K85: 711206.7967 | L85: 1.01758 | M85: 723709.8122 | N85: =SUMIF(OFFSET(Metered!$I$2,0,0,1,COUNTA(Metered!$I$2:$AA$2)),"Transmission",OFFSET(Metered!$I86,0,0,1,COUNTA(Metered!$I86:$AA86))) -> 41658.40173 | O85: 920470.5043 | P85: 1.03497 | Q85: 952659.3579
A86: 3 | B86: 2016-03-04T12:00:00 | C86: =+Metered!E87 -> 575106.1348 | D86: 1.03143 | E86: 593181.7206 | F86: =SUMIF(OFFSET(Metered!$I$2,0,0,1,COUNTA(Metered!$I$2:$IV$2)),"Primary",OFFSET(Metered!$I87,0,0,1,COUNTA(Metered!$I87:$AA87))) -> 44796.04598 | G86: 637977.7666 | H86: 1.02001 | I86: 650743.7017 | J86: =SUMIF(OFFSET(Metered!$I$2,0,0,1,COUNTA(Metered!$I$2:$IV$2)),"Subtransmission",OFFSET(Metered!$I87,0,0,1,COUNTA(Metered!$I87:$AA87))) -> 216373.0213 | K86: 711588.9783 | L86: 1.01759 | M86: 724105.8284 | N86: =SUMIF(OFFSET(Metered!$I$2,0,0,1,COUNTA(Metered!$I$2:$AA$2)),"Transmission",OFFSET(Metered!$I87,0,0,1,COUNTA(Metered!$I87:$AA87))) -> 41626.11558 | O86: 921259.6887 | P86: 1.035 | Q86: 953503.7779
A87: 3 | B87: 2016-03-04T13:00:00 | C87: =+Metered!E88 -> 558714.8487 | D87: 1.0316 | E87: 576370.2379 | F87: =SUMIF(OFFSET(Metered!$I$2,0,0,1,COUNTA(Metered!$I$2:$IV$2)),"Primary",OFFSET(Metered!$I88,0,0,1,COUNTA(Metered!$I88:$AA88))) -> 45213.78089 | G87: 621584.0188 | H87: 1.01967 | I87: 633810.5764 | J87: =SUMIF(OFFSET(Metered!$I$2,0,0,1,COUNTA(Metered!$I$2:$IV$2)),"Subtransmission",OFFSET(Metered!$I88,0,0,1,COUNTA(Metered!$I88:$AA88))) -> 215360.8969 | K87: 697690.7455 | L87: 1.01731 | M87: 709767.7723 | N87: =SUMIF(OFFSET(Metered!$I$2,0,0,1,COUNTA(Metered!$I$2:$AA$2)),"Transmission",OFFSET(Metered!$I88,0,0,1,COUNTA(Metered!$I88:$AA88))) -> 41639.97356 | O87: 902888.4736 | P87: 1.03447 | Q87: 934011.0393
A88: 3 | B88: 2016-03-04T14:00:00 | C88: =+Metered!E89 -> 586616.3992 | D88: 1.03133 | E88: 604995.0909 | F88: =SUMIF(OFFSET(Metered!$I$2,0,0,1,COUNTA(Metered!$I$2:$IV$2)),"Primary",OFFSET(Metered!$I89,0,0,1,COUNTA(Metered!$I89:$AA89))) -> 44627.66385 | G88: 649622.7548 | H88: 1.02026 | I88: 662784.1118 | J88: =SUMIF(OFFSET(Metered!$I$2,0,0,1,COUNTA(Metered!$I$2:$IV$2)),"Subtransmission",OFFSET(Metered!$I89,0,0,1,COUNTA(Metered!$I89:$AA89))) -> 213503.745 | K88: 717882.4541 | L88: 1.01772 | M88: 730603.3312 | N88: =SUMIF(OFFSET(Metered!$I$2,0,0,1,COUNTA(Metered!$I$2:$AA$2)),"Transmission",OFFSET(Metered!$I89,0,0,1,COUNTA(Metered!$I89:$AA89))) -> 41618.5755 | O88: 930627.3094 | P88: 1.03526 | Q88: 963441.2283
A89: 3 | B89: 2016-03-04T15:00:00 | C89: =+Metered!E90 -> 547855.2395 | D89: 1.03174 | E89: 565244.1648 | F89: =SUMIF(OFFSET(Metered!$I$2,0,0,1,COUNTA(Metered!$I$2:$IV$2)),"Primary",OFFSET(Metered!$I90,0,0,1,COUNTA(Metered!$I90:$AA90))) -> 42848.43219 | G89: 608092.5969 | H89: 1.0194 | I89: 619889.5933 | J89: =SUMIF(OFFSET(Metered!$I$2,0,0,1,COUNTA(Metered!$I$2:$IV$2)),"Subtransmission",OFFSET(Metered!$I90,0,0,1,COUNTA(Metered!$I90:$AA90))) -> 212085.0566 | K89: 683821.0372 | L89: 1.01702 | M89: 695459.6712 | N89: =SUMIF(OFFSET(Metered!$I$2,0,0,1,COUNTA(Metered!$I$2:$AA$2)),"Transmission",OFFSET(Metered!$I90,0,0,1,COUNTA(Metered!$I90:$AA90))) -> 41714.53862 | O89: 885327.8226 | P89: 1.03398 | Q89: 915411.2621
A90: 3 | B90: 2016-03-04T16:00:00 | C90: =+Metered!E91 -> 526302.5422 | D90: 1.03205 | E90: 543170.5387 | F90: =SUMIF(OFFSET(Metered!$I$2,0,0,1,COUNTA(Metered!$I$2:$IV$2)),"Primary",OFFSET(Metered!$I91,0,0,1,COUNTA(Metered!$I91:$AA91))) -> 39158.00974 | G90: 582328.5484 | H90: 1.01888 | I90: 593322.9114 | J90: =SUMIF(OFFSET(Metered!$I$2,0,0,1,COUNTA(Metered!$I$2:$IV$2)),"Subtransmission",OFFSET(Metered!$I91,0,0,1,COUNTA(Metered!$I91:$AA91))) -> 205308.868 | K90: 656827.6036 | L90: 1.01648 | M90: 667652.1225 | N90: =SUMIF(OFFSET(Metered!$I$2,0,0,1,COUNTA(Metered!$I$2:$AA$2)),"Transmission",OFFSET(Metered!$I91,0,0,1,COUNTA(Metered!$I91:$AA91))) -> 41477.68932 | O90: 850933.9876 | P90: 1.03302 | Q90: 879031.8279
A91: 3 | B91: 2016-03-04T17:00:00 | C91: =+Metered!E92 -> 535003.8033 | D91: 1.03191 | E91: 552075.7746 | F91: =SUMIF(OFFSET(Metered!$I$2,0,0,1,COUNTA(Metered!$I$2:$IV$2)),"Primary",OFFSET(Metered!$I92,0,0,1,COUNTA(Metered!$I92:$AA92))) -> 37017.2644 | G91: 589093.039 | H91: 1.01901 | I91: 600291.6977 | J91: =SUMIF(OFFSET(Metered!$I$2,0,0,1,COUNTA(Metered!$I$2:$IV$2)),"Subtransmission",OFFSET(Metered!$I92,0,0,1,COUNTA(Metered!$I92:$AA92))) -> 203559.8426 | K91: 660381.8245 | L91: 1.01655 | M91: 671311.1437 | N91: =SUMIF(OFFSET(Metered!$I$2,0,0,1,COUNTA(Metered!$I$2:$AA$2)),"Transmission",OFFSET(Metered!$I92,0,0,1,COUNTA(Metered!$I92:$AA92))) -> 41287.38523 | O91: 856068.2447 | P91: 1.03316 | Q91: 884455.4677
A92: 3 | B92: 2016-03-04T18:00:00 | C92: =+Metered!E93 -> 546876.1969 | D92: 1.03175 | E92: 564239.5161 | F92: =SUMIF(OFFSET(Metered!$I$2,0,0,1,COUNTA(Metered!$I$2:$IV$2)),"Primary",OFFSET(Metered!$I93,0,0,1,COUNTA(Metered!$I93:$AA93))) -> 37367.47884 | G92: 601606.995 | H92: 1.01927 | I92: 613199.9618 | J92: =SUMIF(OFFSET(Metered!$I$2,0,0,1,COUNTA(Metered!$I$2:$IV$2)),"Subtransmission",OFFSET(Metered!$I93,0,0,1,COUNTA(Metered!$I93:$AA93))) -> 204137.4092 | K92: 670782.5801 | L92: 1.01676 | M92: 682024.8962 | N92: =SUMIF(OFFSET(Metered!$I$2,0,0,1,COUNTA(Metered!$I$2:$AA$2)),"Transmission",OFFSET(Metered!$I93,0,0,1,COUNTA(Metered!$I93:$AA93))) -> 41347.22999 | O92: 869926.917 | P92: 1.03355 | Q92: 899112.9651
A93: 3 | B93: 2016-03-04T19:00:00 | C93: =+Metered!E94 -> 561523.7425 | D93: 1.03157 | E93: 579251.047 | F93: =SUMIF(OFFSET(Metered!$I$2,0,0,1,COUNTA(Metered!$I$2:$IV$2)),"Primary",OFFSET(Metered!$I94,0,0,1,COUNTA(Metered!$I94:$AA94))) -> 37117.96318 | G93: 616369.0102 | H93: 1.01957 | I93: 628431.3517 | J93: =SUMIF(OFFSET(Metered!$I$2,0,0,1,COUNTA(Metered!$I$2:$IV$2)),"Subtransmission",OFFSET(Metered!$I94,0,0,1,COUNTA(Metered!$I94:$AA94))) -> 203156.4661 | K93: 681392.7248 | L93: 1.01697 | M93: 692955.9593 | N93: =SUMIF(OFFSET(Metered!$I$2,0,0,1,COUNTA(Metered!$I$2:$AA$2)),"Transmission",OFFSET(Metered!$I94,0,0,1,COUNTA(Metered!$I94:$AA94))) -> 41385.25007 | O93: 884536.3025 | P93: 1.03396 | Q93: 914575.1553
A94: 3 | B94: 2016-03-04T20:00:00 | C94: =+Metered!E95 -> 548700.3484 | D94: 1.03173 | E94: 566110.6105 | F94: =SUMIF(OFFSET(Metered!$I$2,0,0,1,COUNTA(Metered!$I$2:$IV$2)),"Primary",OFFSET(Metered!$I95,0,0,1,COUNTA(Metered!$I95:$AA95))) -> 36299.02611 | G94: 602409.6366 | H94: 1.01928 | I94: 614024.0944 | J94: =SUMIF(OFFSET(Metered!$I$2,0,0,1,COUNTA(Metered!$I$2:$IV$2)),"Subtransmission",OFFSET(Metered!$I95,0,0,1,COUNTA(Metered!$I95:$AA95))) -> 204572.7795 | K94: 671845.1153 | L94: 1.01678 | M94: 683118.6763 | N94: =SUMIF(OFFSET(Metered!$I$2,0,0,1,COUNTA(Metered!$I$2:$AA$2)),"Transmission",OFFSET(Metered!$I95,0,0,1,COUNTA(Metered!$I95:$AA95))) -> 41393.14024 | O94: 871263.5751 | P94: 1.03359 | Q94: 900529.3186
A95: 3 | B95: 2016-03-04T21:00:00 | C95: =+Metered!E96 -> 526135.5929 | D95: 1.03205 | E95: 542998.2387 | F95: =SUMIF(OFFSET(Metered!$I$2,0,0,1,COUNTA(Metered!$I$2:$IV$2)),"Primary",OFFSET(Metered!$I96,0,0,1,COUNTA(Metered!$I96:$AA96))) -> 35721.24582 | G95: 578719.4845 | H95: 1.01881 | I95: 589605.198 | J95: =SUMIF(OFFSET(Metered!$I$2,0,0,1,COUNTA(Metered!$I$2:$IV$2)),"Subtransmission",OFFSET(Metered!$I96,0,0,1,COUNTA(Metered!$I96:$AA96))) -> 208425.7176 | K95: 657115.2733 | L95: 1.01648 | M95: 667944.533 | N95: =SUMIF(OFFSET(Metered!$I$2,0,0,1,COUNTA(Metered!$I$2:$AA$2)),"Transmission",OFFSET(Metered!$I96,0,0,1,COUNTA(Metered!$I96:$AA96))) -> 41391.40419 | O95: 850251.5795 | P95: 1.033 | Q95: 878309.8816
A96: 3 | B96: 2016-03-04T22:00:00 | C96: =+Metered!E97 -> 506179.482 | D96: 1.0324 | E96: 522579.6973 | F96: =SUMIF(OFFSET(Metered!$I$2,0,0,1,COUNTA(Metered!$I$2:$IV$2)),"Primary",OFFSET(Metered!$I97,0,0,1,COUNTA(Metered!$I97:$AA97))) -> 35011.64661 | G96: 557591.3439 | H96: 1.01839 | I96: 567845.4487 | J96: =SUMIF(OFFSET(Metered!$I$2,0,0,1,COUNTA(Metered!$I$2:$IV$2)),"Subtransmission",OFFSET(Metered!$I97,0,0,1,COUNTA(Metered!$I97:$AA97))) -> 207156.1704 | K96: 639286.5568 | L96: 1.01612 | M96: 649591.8561 | N96: =SUMIF(OFFSET(Metered!$I$2,0,0,1,COUNTA(Metered!$I$2:$AA$2)),"Transmission",OFFSET(Metered!$I97,0,0,1,COUNTA(Metered!$I97:$AA97))) -> 41404.9015 | O96: 826711.8198 | P96: 1.03235 | Q96: 853455.9472
A97: 3 | B97: 2016-03-04T23:00:00 | C97: =+Metered!E98 -> 504825.6059 | D97: 1.03242 | E97: 521192.052 | F97: =SUMIF(OFFSET(Metered!$I$2,0,0,1,COUNTA(Metered!$I$2:$IV$2)),"Primary",OFFSET(Metered!$I98,0,0,1,COUNTA(Metered!$I98:$AA98))) -> 34195.71938 | G97: 555387.7714 | H97: 1.01835 | I97: 565579.137 | J97: =SUMIF(OFFSET(Metered!$I$2,0,0,1,COUNTA(Metered!$I$2:$IV$2)),"Subtransmission",OFFSET(Metered!$I98,0,0,1,COUNTA(Metered!$I98:$AA98))) -> 204854.8055 | K97: 635260.5287 | L97: 1.01604 | M97: 645450.1076 | N97: =SUMIF(OFFSET(Metered!$I$2,0,0,1,COUNTA(Metered!$I$2:$AA$2)),"Transmission",OFFSET(Metered!$I98,0,0,1,COUNTA(Metered!$I98:$AA98))) -> 41302.21391 | O97: 821925.7353 | P97: 1.03222 | Q97: 848408.1825
A98: 3 | B98: 2016-03-05 | C98: =+Metered!E99 -> 511863.6004 | D98: 1.03229 | E98: 528391.6761 | F98: =SUMIF(OFFSET(Metered!$I$2,0,0,1,COUNTA(Metered!$I$2:$IV$2)),"Primary",OFFSET(Metered!$I99,0,0,1,COUNTA(Metered!$I99:$AA99))) -> 33984.94004 | G98: 562376.6161 | H98: 1.01849 | I98: 572774.9598 | J98: =SUMIF(OFFSET(Metered!$I$2,0,0,1,COUNTA(Metered!$I$2:$IV$2)),"Subtransmission",OFFSET(Metered!$I99,0,0,1,COUNTA(Metered!$I99:$AA99))) -> 202117.0285 | K98: 637998.7729 | L98: 1.0161 | M98: 648270.5531 | N98: =SUMIF(OFFSET(Metered!$I$2,0,0,1,COUNTA(Metered!$I$2:$AA$2)),"Transmission",OFFSET(Metered!$I99,0,0,1,COUNTA(Metered!$I99:$AA99))) -> 41204.50371 | O98: 826368.2722 | P98: 1.03235 | Q98: 853101.2858
A99: 3 | B99: 2016-03-05T01:00:00 | C99: =+Metered!E100 -> 509146.4362 | D99: 1.03234 | E99: 525612.2319 | F99: =SUMIF(OFFSET(Metered!$I$2,0,0,1,COUNTA(Metered!$I$2:$IV$2)),"Primary",OFFSET(Metered!$I100,0,0,1,COUNTA(Metered!$I100:$AA100))) -> 34282.34721 | G99: 559894.5791 | H99: 1.01844 | I99: 570219.0352 | J99: =SUMIF(OFFSET(Metered!$I$2,0,0,1,COUNTA(Metered!$I$2:$IV$2)),"Subtransmission",OFFSET(Metered!$I100,0,0,1,COUNTA(Metered!$I100:$AA100))) -> 198900.0786 | K99: 632836.7644 | L99: 1.016 | M99: 642962.1526 | N99: =SUMIF(OFFSET(Metered!$I$2,0,0,1,COUNTA(Metered!$I$2:$AA$2)),"Transmission",OFFSET(Metered!$I100,0,0,1,COUNTA(Metered!$I100:$AA100))) -> 41313.01097 | O99: 820557.513 | P99: 1.03219 | Q99: 846971.2593
A100: 3 | B100: 2016-03-05T02:00:00 | C100: =+Metered!E101 -> 501947.5405 | D100: 1.03248 | E100: 518250.7966 | F100: =SUMIF(OFFSET(Metered!$I$2,0,0,1,COUNTA(Metered!$I$2:$IV$2)),"Primary",OFFSET(Metered!$I101,0,0,1,COUNTA(Metered!$I101:$AA101))) -> 34099.34815 | G100: 552350.1447 | H100: 1.01829 | I100: 562452.6289 | J100: =SUMIF(OFFSET(Metered!$I$2,0,0,1,COUNTA(Metered!$I$2:$IV$2)),"Subtransmission",OFFSET(Metered!$I101,0,0,1,COUNTA(Metered!$I101:$AA101))) -> 196510.9523 | K100: 624537.4028 | L100: 1.01583 | M100: 634423.8299 | N100: =SUMIF(OFFSET(Metered!$I$2,0,0,1,COUNTA(Metered!$I$2:$AA$2)),"Transmission",OFFSET(Metered!$I101,0,0,1,COUNTA(Metered!$I101:$AA101))) -> 41343.51496 | O100: 810193.5232 | P100: 1.0319 | Q100: 836038.6966
A101: 3 | B101: 2016-03-05T03:00:00 | C101: =+Metered!E102 -> 504878.3726 | D101: 1.03242 | E101: 521246.5294 | F101: =SUMIF(OFFSET(Metered!$I$2,0,0,1,COUNTA(Metered!$I$2:$IV$2)),"Primary",OFFSET(Metered!$I102,0,0,1,COUNTA(Metered!$I102:$AA102))) -> 34144.48679 | G101: 555391.0162 | H101: 1.01835 | I101: 565582.4413 | J101: =SUMIF(OFFSET(Metered!$I$2,0,0,1,COUNTA(Metered!$I$2:$IV$2)),"Subtransmission",OFFSET(Metered!$I102,0,0,1,COUNTA(Metered!$I102:$AA102))) -> 199004.2393 | K101: 629412.4772 | L101: 1.01593 | M101: 639439.0179 | N101: =SUMIF(OFFSET(Metered!$I$2,0,0,1,COUNTA(Metered!$I$2:$AA$2)),"Transmission",OFFSET(Metered!$I102,0,0,1,COUNTA(Metered!$I102:$AA102))) -> 41419.63839 | O101: 816032.8598 | P101: 1.03206 | Q101: 842194.8733
A102: 3 | B102: 2016-03-05T04:00:00 | C102: =+Metered!E103 -> 500862.6721 | D102: 1.0325 | E102: 517140.709 | F102: =SUMIF(OFFSET(Metered!$I$2,0,0,1,COUNTA(Metered!$I$2:$IV$2)),"Primary",OFFSET(Metered!$I103,0,0,1,COUNTA(Metered!$I103:$AA103))) -> 35224.23524 | G102: 552364.9442 | H102: 1.01829 | I102: 562467.699 | J102: =SUMIF(OFFSET(Metered!$I$2,0,0,1,COUNTA(Metered!$I$2:$IV$2)),"Subtransmission",OFFSET(Metered!$I103,0,0,1,COUNTA(Metered!$I103:$AA103))) -> 198042.4615 | K102: 626080.3804 | L102: 1.01586 | M102: 636010.0152 | N102: =SUMIF(OFFSET(Metered!$I$2,0,0,1,COUNTA(Metered!$I$2:$AA$2)),"Transmission",OFFSET(Metered!$I103,0,0,1,COUNTA(Metered!$I103:$AA103))) -> 41530.37139 | O102: 811970.1667 | P102: 1.03195 | Q102: 837912.6135
A103: 3 | B103: 2016-03-05T05:00:00 | C103: =+Metered!E104 -> 515384.9373 | D103: 1.03223 | E103: 531995.7938 | F103: =SUMIF(OFFSET(Metered!$I$2,0,0,1,COUNTA(Metered!$I$2:$IV$2)),"Primary",OFFSET(Metered!$I104,0,0,1,COUNTA(Metered!$I104:$AA104))) -> 35641.76571 | G103: 567637.5595 | H103: 1.01859 | I103: 578189.9418 | J103: =SUMIF(OFFSET(Metered!$I$2,0,0,1,COUNTA(Metered!$I$2:$IV$2)),"Subtransmission",OFFSET(Metered!$I104,0,0,1,COUNTA(Metered!$I104:$AA104))) -> 193640.9643 | K103: 633643.51 | L103: 1.01601 | M103: 643788.1426 | N103: =SUMIF(OFFSET(Metered!$I$2,0,0,1,COUNTA(Metered!$I$2:$AA$2)),"Transmission",OFFSET(Metered!$I104,0,0,1,COUNTA(Metered!$I104:$AA104))) -> 41471.60406 | O103: 823447.1427 | P103: 1.03227 | Q103: 850019.782
A104: 3 | B104: 2016-03-05T06:00:00 | C104: =+Metered!E105 -> 535833.7575 | D104: 1.0319 | E104: 552926.8543 | F104: =SUMIF(OFFSET(Metered!$I$2,0,0,1,COUNTA(Metered!$I$2:$IV$2)),"Primary",OFFSET(Metered!$I105,0,0,1,COUNTA(Metered!$I105:$AA105))) -> 36381.45559 | G104: 589308.3099 | H104: 1.01902 | I104: 600516.954 | J104: =SUMIF(OFFSET(Metered!$I$2,0,0,1,COUNTA(Metered!$I$2:$IV$2)),"Subtransmission",OFFSET(Metered!$I105,0,0,1,COUNTA(Metered!$I105:$AA105))) -> 193700.8668 | K104: 650694.2688 | L104: 1.01635 | M104: 661333.1201 | N104: =SUMIF(OFFSET(Metered!$I$2,0,0,1,COUNTA(Metered!$I$2:$AA$2)),"Transmission",OFFSET(Metered!$I105,0,0,1,COUNTA(Metered!$I105:$AA105))) -> 41451.90401 | O104: 846308.5761 | P104: 1.03289 | Q104: 874143.6652
A105: 3 | B105: 2016-03-05T07:00:00 | C105: =+Metered!E106 -> 554485.1359 | D105: 1.03165 | E105: 572034.5904 | F105: =SUMIF(OFFSET(Metered!$I$2,0,0,1,COUNTA(Metered!$I$2:$IV$2)),"Primary",OFFSET(Metered!$I106,0,0,1,COUNTA(Metered!$I106:$AA106))) -> 36846.62112 | G105: 608881.2115 | H105: 1.01941 | I105: 620699.5959 | J105: =SUMIF(OFFSET(Metered!$I$2,0,0,1,COUNTA(Metered!$I$2:$IV$2)),"Subtransmission",OFFSET(Metered!$I106,0,0,1,COUNTA(Metered!$I106:$AA106))) -> 193402.4535 | K105: 665754.8459 | L105: 1.01666 | M105: 676846.3217 | N105: =SUMIF(OFFSET(Metered!$I$2,0,0,1,COUNTA(Metered!$I$2:$AA$2)),"Transmission",OFFSET(Metered!$I106,0,0,1,COUNTA(Metered!$I106:$AA106))) -> 41405.51868 | O105: 866599.0438 | P105: 1.03346 | Q105: 895595.4478
A106: 3 | B106: 2016-03-05T08:00:00 | C106: =+Metered!E107 -> 585871.9251 | D106: 1.03133 | E106: 604227.2926 | F106: =SUMIF(OFFSET(Metered!$I$2,0,0,1,COUNTA(Metered!$I$2:$IV$2)),"Primary",OFFSET(Metered!$I107,0,0,1,COUNTA(Metered!$I107:$AA107))) -> 37599.87716 | G106: 641827.1697 | H106: 1.02009 | I106: 654721.4776 | J106: =SUMIF(OFFSET(Metered!$I$2,0,0,1,COUNTA(Metered!$I$2:$IV$2)),"Subtransmission",OFFSET(Metered!$I107,0,0,1,COUNTA(Metered!$I107:$AA107))) -> 191075.726 | K106: 689318.7705 | L106: 1.01714 | M106: 701133.6942 | N106: =SUMIF(OFFSET(Metered!$I$2,0,0,1,COUNTA(Metered!$I$2:$AA$2)),"Transmission",OFFSET(Metered!$I107,0,0,1,COUNTA(Metered!$I107:$AA107))) -> 41105.37355 | O106: 898717.5009 | P106: 1.03436 | Q106: 929597.4342
A107: 3 | B107: 2016-03-05T09:00:00 | C107: =+Metered!E108 -> 567339.5597 | D107: 1.03151 | E107: 585216.4293 | F107: =SUMIF(OFFSET(Metered!$I$2,0,0,1,COUNTA(Metered!$I$2:$IV$2)),"Primary",OFFSET(Metered!$I108,0,0,1,COUNTA(Metered!$I108:$AA108))) -> 37697.75564 | G107: 622914.1849 | H107: 1.0197 | I107: 635185.5944 | J107: =SUMIF(OFFSET(Metered!$I$2,0,0,1,COUNTA(Metered!$I$2:$IV$2)),"Subtransmission",OFFSET(Metered!$I108,0,0,1,COUNTA(Metered!$I108:$AA108))) -> 191083.2066 | K107: 674459.4439 | L107: 1.01683 | M107: 685810.5963 | N107: =SUMIF(OFFSET(Metered!$I$2,0,0,1,COUNTA(Metered!$I$2:$AA$2)),"Transmission",OFFSET(Metered!$I108,0,0,1,COUNTA(Metered!$I108:$AA108))) -> 40926.40142 | O107: 878546.3548 | P107: 1.03379 | Q107: 908232.4361
A108: 3 | B108: 2016-03-05T10:00:00 | C108: =+Metered!E109 -> 543064.9151 | D108: 1.0318 | E108: 560334.3794 | F108: =SUMIF(OFFSET(Metered!$I$2,0,0,1,COUNTA(Metered!$I$2:$IV$2)),"Primary",OFFSET(Metered!$I109,0,0,1,COUNTA(Metered!$I109:$AA109))) -> 37178.14221 | G108: 597512.5216 | H108: 1.01918 | I108: 608972.8118 | J108: =SUMIF(OFFSET(Metered!$I$2,0,0,1,COUNTA(Metered!$I$2:$IV$2)),"Subtransmission",OFFSET(Metered!$I109,0,0,1,COUNTA(Metered!$I109:$AA109))) -> 190535.3951 | K108: 653963.7048 | L108: 1.01642 | M108: 664701.7889 | N108: =SUMIF(OFFSET(Metered!$I$2,0,0,1,COUNTA(Metered!$I$2:$AA$2)),"Transmission",OFFSET(Metered!$I109,0,0,1,COUNTA(Metered!$I109:$AA109))) -> 41479.02501 | O108: 851725.3159 | P108: 1.03304 | Q108: 879866.3203
A109: 3 | B109: 2016-03-05T11:00:00 | C109: =+Metered!E110 -> 483677.0818 | D109: 1.03287 | E109: 499575.5474 | F109: =SUMIF(OFFSET(Metered!$I$2,0,0,1,COUNTA(Metered!$I$2:$IV$2)),"Primary",OFFSET(Metered!$I110,0,0,1,COUNTA(Metered!$I110:$AA110))) -> 36833.99671 | G109: 536409.5442 | H109: 1.01799 | I109: 546059.5519 | J109: =SUMIF(OFFSET(Metered!$I$2,0,0,1,COUNTA(Metered!$I$2:$IV$2)),"Subtransmission",OFFSET(Metered!$I110,0,0,1,COUNTA(Metered!$I110:$AA110))) -> 189255.8799 | K109: 604807.1989 | L109: 1.01544 | M109: 614145.422 | N109: =SUMIF(OFFSET(Metered!$I$2,0,0,1,COUNTA(Metered!$I$2:$AA$2)),"Transmission",OFFSET(Metered!$I110,0,0,1,COUNTA(Metered!$I110:$AA110))) -> 41486.49019 | O109: 786140.1451 | P109: 1.03126 | Q109: 810714.886
A110: 3 | B110: 2016-03-05T12:00:00 | C110: =+Metered!E111 -> 449245.5198 | D110: 1.03378 | E110: 464421.0335 | F110: =SUMIF(OFFSET(Metered!$I$2,0,0,1,COUNTA(Metered!$I$2:$IV$2)),"Primary",OFFSET(Metered!$I111,0,0,1,COUNTA(Metered!$I111:$AA111))) -> 36583.14045 | G110: 501004.1739 | H110: 1.01735 | I110: 509696.5963 | J110: =SUMIF(OFFSET(Metered!$I$2,0,0,1,COUNTA(Metered!$I$2:$IV$2)),"Subtransmission",OFFSET(Metered!$I111,0,0,1,COUNTA(Metered!$I111:$AA111))) -> 186831.9482 | K110: 574711.0581 | L110: 1.01485 | M110: 583245.5173 | N110: =SUMIF(OFFSET(Metered!$I$2,0,0,1,COUNTA(Metered!$I$2:$AA$2)),"Transmission",OFFSET(Metered!$I111,0,0,1,COUNTA(Metered!$I111:$AA111))) -> 41533.84897 | O110: 746596.8528 | P110: 1.03022 | Q110: 769159.0097
A111: 3 | B111: 2016-03-05T13:00:00 | C111: =+Metered!E112 -> 428900.3416 | D111: 1.03444 | E111: 443671.6694 | F111: =SUMIF(OFFSET(Metered!$I$2,0,0,1,COUNTA(Metered!$I$2:$IV$2)),"Primary",OFFSET(Metered!$I112,0,0,1,COUNTA(Metered!$I112:$AA112))) -> 36485.80097 | G111: 480157.4703 | H111: 1.01699 | I111: 488315.3458 | J111: =SUMIF(OFFSET(Metered!$I$2,0,0,1,COUNTA(Metered!$I$2:$IV$2)),"Subtransmission",OFFSET(Metered!$I112,0,0,1,COUNTA(Metered!$I112:$AA112))) -> 186995.174 | K111: 558603.1521 | L111: 1.01454 | M111: 566725.242 | N111: =SUMIF(OFFSET(Metered!$I$2,0,0,1,COUNTA(Metered!$I$2:$AA$2)),"Transmission",OFFSET(Metered!$I112,0,0,1,COUNTA(Metered!$I112:$AA112))) -> 41575.76533 | O111: 725008.375 | P111: 1.02966 | Q111: 746512.1234
A112: 3 | B112: 2016-03-05T14:00:00 | C112: =+Metered!E113 -> 445760.0485 | D112: 1.03388 | E112: 460862.3989 | F112: =SUMIF(OFFSET(Metered!$I$2,0,0,1,COUNTA(Metered!$I$2:$IV$2)),"Primary",OFFSET(Metered!$I113,0,0,1,COUNTA(Metered!$I113:$AA113))) -> 35718.42429 | G112: 496580.8232 | H112: 1.01727 | I112: 505156.774 | J112: =SUMIF(OFFSET(Metered!$I$2,0,0,1,COUNTA(Metered!$I$2:$IV$2)),"Subtransmission",OFFSET(Metered!$I113,0,0,1,COUNTA(Metered!$I113:$AA113))) -> 186395.0315 | K112: 570819.3365 | L112: 1.01478 | M112: 579256.0463 | N112: =SUMIF(OFFSET(Metered!$I$2,0,0,1,COUNTA(Metered!$I$2:$AA$2)),"Transmission",OFFSET(Metered!$I113,0,0,1,COUNTA(Metered!$I113:$AA113))) -> 41551.29196 | O112: 741539.8073 | P112: 1.03008 | Q112: 763845.3247
A113: 3 | B113: 2016-03-05T15:00:00 | C113: =+Metered!E114 -> 493965.8524 | D113: 1.03264 | E113: 510088.8979 | F113: =SUMIF(OFFSET(Metered!$I$2,0,0,1,COUNTA(Metered!$I$2:$IV$2)),"Primary",OFFSET(Metered!$I114,0,0,1,COUNTA(Metered!$I114:$AA114))) -> 35804.17418 | G113: 545893.072 | H113: 1.01817 | I113: 555811.9492 | J113: =SUMIF(OFFSET(Metered!$I$2,0,0,1,COUNTA(Metered!$I$2:$IV$2)),"Subtransmission",OFFSET(Metered!$I114,0,0,1,COUNTA(Metered!$I114:$AA114))) -> 186451.1406 | K113: 609424.0339 | L113: 1.01553 | M113: 618888.3891 | N113: =SUMIF(OFFSET(Metered!$I$2,0,0,1,COUNTA(Metered!$I$2:$AA$2)),"Transmission",OFFSET(Metered!$I114,0,0,1,COUNTA(Metered!$I114:$AA114))) -> 41558.16649 | O113: 793285.6114 | P113: 1.03145 | Q113: 818234.4439
A114: 3 | B114: 2016-03-05T16:00:00 | C114: =+Metered!E115 -> 515715.0187 | D114: 1.03222 | E114: 532331.3566 | F114: =SUMIF(OFFSET(Metered!$I$2,0,0,1,COUNTA(Metered!$I$2:$IV$2)),"Primary",OFFSET(Metered!$I115,0,0,1,COUNTA(Metered!$I115:$AA115))) -> 36058.33841 | G114: 568389.695 | H114: 1.0186 | I114: 578961.7433 | J114: =SUMIF(OFFSET(Metered!$I$2,0,0,1,COUNTA(Metered!$I$2:$IV$2)),"Subtransmission",OFFSET(Metered!$I115,0,0,1,COUNTA(Metered!$I115:$AA115))) -> 186813.0973 | K114: 627402.984 | L114: 1.01589 | M114: 637372.4174 | N114: =SUMIF(OFFSET(Metered!$I$2,0,0,1,COUNTA(Metered!$I$2:$AA$2)),"Transmission",OFFSET(Metered!$I115,0,0,1,COUNTA(Metered!$I115:$AA115))) -> 41656.30313 | O114: 817400.5772 | P114: 1.0321 | Q114: 843639.1357
A115: 3 | B115: 2016-03-05T17:00:00 | C115: =+Metered!E116 -> 478013.3142 | D115: 1.033 | E115: 493787.7536 | F115: =SUMIF(OFFSET(Metered!$I$2,0,0,1,COUNTA(Metered!$I$2:$IV$2)),"Primary",OFFSET(Metered!$I116,0,0,1,COUNTA(Metered!$I116:$AA116))) -> 36207.84298 | G115: 529995.5966 | H115: 1.01787 | I115: 539466.6179 | J115: =SUMIF(OFFSET(Metered!$I$2,0,0,1,COUNTA(Metered!$I$2:$IV$2)),"Subtransmission",OFFSET(Metered!$I116,0,0,1,COUNTA(Metered!$I116:$AA116))) -> 187504.7606 | K115: 598038.8569 | L115: 1.01531 | M115: 607194.8318 | N115: =SUMIF(OFFSET(Metered!$I$2,0,0,1,COUNTA(Metered!$I$2:$AA$2)),"Transmission",OFFSET(Metered!$I116,0,0,1,COUNTA(Metered!$I116:$AA116))) -> 41554.35975 | O115: 777681.7132 | P115: 1.03103 | Q115: 801813.1767
A116: 3 | B116: 2016-03-05T18:00:00 | C116: =+Metered!E117 -> 505689.9488 | D116: 1.03241 | E116: 522079.3601 | F116: =SUMIF(OFFSET(Metered!$I$2,0,0,1,COUNTA(Metered!$I$2:$IV$2)),"Primary",OFFSET(Metered!$I117,0,0,1,COUNTA(Metered!$I117:$AA117))) -> 36810.10774 | G116: 558889.4678 | H116: 1.01842 | I116: 569184.2118 | J116: =SUMIF(OFFSET(Metered!$I$2,0,0,1,COUNTA(Metered!$I$2:$IV$2)),"Subtransmission",OFFSET(Metered!$I117,0,0,1,COUNTA(Metered!$I117:$AA117))) -> 188955.7133 | K116: 622104.8985 | L116: 1.01578 | M116: 631921.7138 | N116: =SUMIF(OFFSET(Metered!$I$2,0,0,1,COUNTA(Metered!$I$2:$AA$2)),"Transmission",OFFSET(Metered!$I117,0,0,1,COUNTA(Metered!$I117:$AA117))) -> 41653.22663 | O116: 809609.967 | P116: 1.03189 | Q116: 835428.4289
A117: 3 | B117: 2016-03-05T19:00:00 | C117: =+Metered!E118 -> 509570.8066 | D117: 1.03233 | E117: 526045.2307 | F117: =SUMIF(OFFSET(Metered!$I$2,0,0,1,COUNTA(Metered!$I$2:$IV$2)),"Primary",OFFSET(Metered!$I118,0,0,1,COUNTA(Metered!$I118:$AA118))) -> 36558.52452 | G117: 562603.7553 | H117: 1.01849 | I117: 573006.2987 | J117: =SUMIF(OFFSET(Metered!$I$2,0,0,1,COUNTA(Metered!$I$2:$IV$2)),"Subtransmission",OFFSET(Metered!$I118,0,0,1,COUNTA(Metered!$I118:$AA118))) -> 188563.4532 | K117: 624621.2465 | L117: 1.01583 | M117: 634509.0008 | N117: =SUMIF(OFFSET(Metered!$I$2,0,0,1,COUNTA(Metered!$I$2:$AA$2)),"Transmission",OFFSET(Metered!$I118,0,0,1,COUNTA(Metered!$I118:$AA118))) -> 41418.78389 | O117: 812876.2901 | P117: 1.03198 | Q117: 838872.0738
A118: 3 | B118: 2016-03-05T20:00:00 | C118: =+Metered!E119 -> 457721.6637 | D118: 1.03353 | E118: 473069.0711 | F118: =SUMIF(OFFSET(Metered!$I$2,0,0,1,COUNTA(Metered!$I$2:$IV$2)),"Primary",OFFSET(Metered!$I119,0,0,1,COUNTA(Metered!$I119:$AA119))) -> 35766.1422 | G118: 508835.2133 | H118: 1.01749 | I118: 517734.7411 | J118: =SUMIF(OFFSET(Metered!$I$2,0,0,1,COUNTA(Metered!$I$2:$IV$2)),"Subtransmission",OFFSET(Metered!$I119,0,0,1,COUNTA(Metered!$I119:$AA119))) -> 188271.0552 | K118: 582267.1932 | L118: 1.015 | M118: 591001.2011 | N118: =SUMIF(OFFSET(Metered!$I$2,0,0,1,COUNTA(Metered!$I$2:$AA$2)),"Transmission",OFFSET(Metered!$I119,0,0,1,COUNTA(Metered!$I119:$AA119))) -> 41296.73793 | O118: 756036.5422 | P118: 1.03046 | Q118: 779065.4153
A119: 3 | B119: 2016-03-05T21:00:00 | C119: =+Metered!E120 -> 453701.2503 | D119: 1.03364 | E119: 468963.7604 | F119: =SUMIF(OFFSET(Metered!$I$2,0,0,1,COUNTA(Metered!$I$2:$IV$2)),"Primary",OFFSET(Metered!$I120,0,0,1,COUNTA(Metered!$I120:$AA120))) -> 34566.50405 | G119: 503530.2644 | H119: 1.01739 | I119: 512286.6557 | J119: =SUMIF(OFFSET(Metered!$I$2,0,0,1,COUNTA(Metered!$I$2:$IV$2)),"Subtransmission",OFFSET(Metered!$I120,0,0,1,COUNTA(Metered!$I120:$AA120))) -> 186898.0638 | K119: 576748.2088 | L119: 1.01489 | M119: 585335.9896 | N119: =SUMIF(OFFSET(Metered!$I$2,0,0,1,COUNTA(Metered!$I$2:$AA$2)),"Transmission",OFFSET(Metered!$I120,0,0,1,COUNTA(Metered!$I120:$AA120))) -> 41171.23055 | O119: 748943.7309 | P119: 1.03028 | Q119: 771621.747
A120: 3 | B120: 2016-03-05T22:00:00 | C120: =+Metered!E121 -> 444959.2459 | D120: 1.03391 | E120: 460047.8139 | F120: =SUMIF(OFFSET(Metered!$I$2,0,0,1,COUNTA(Metered!$I$2:$IV$2)),"Primary",OFFSET(Metered!$I121,0,0,1,COUNTA(Metered!$I121:$AA121))) -> 33851.19769 | G120: 493899.0116 | H120: 1.01722 | I120: 502403.9526 | J120: =SUMIF(OFFSET(Metered!$I$2,0,0,1,COUNTA(Metered!$I$2:$IV$2)),"Subtransmission",OFFSET(Metered!$I121,0,0,1,COUNTA(Metered!$I121:$AA121))) -> 186588.421 | K120: 568917.8289 | L120: 1.01474 | M120: 577303.6777 | N120: =SUMIF(OFFSET(Metered!$I$2,0,0,1,COUNTA(Metered!$I$2:$AA$2)),"Transmission",OFFSET(Metered!$I121,0,0,1,COUNTA(Metered!$I121:$AA121))) -> 41213.35735 | O120: 738591.5797 | P120: 1.03001 | Q120: 760756.713
A121: 3 | B121: 2016-03-05T23:00:00 | C121: =+Metered!E122 -> 442499.77 | D121: 1.03399 | E121: 457540.3372 | F121: =SUMIF(OFFSET(Metered!$I$2,0,0,1,COUNTA(Metered!$I$2:$IV$2)),"Primary",OFFSET(Metered!$I122,0,0,1,COUNTA(Metered!$I122:$AA122))) -> 33353.12517 | G121: 490893.4624 | H121: 1.01717 | I121: 499322.1031 | J121: =SUMIF(OFFSET(Metered!$I$2,0,0,1,COUNTA(Metered!$I$2:$IV$2)),"Subtransmission",OFFSET(Metered!$I122,0,0,1,COUNTA(Metered!$I122:$AA122))) -> 183863.4608 | K121: 563847.5813 | L121: 1.01464 | M121: 572102.3099 | N121: =SUMIF(OFFSET(Metered!$I$2,0,0,1,COUNTA(Metered!$I$2:$AA$2)),"Transmission",OFFSET(Metered!$I122,0,0,1,COUNTA(Metered!$I122:$AA122))) -> 41197.22164 | O121: 732637.5142 | P121: 1.02985 | Q121: 754506.744
A122: 3 | B122: 2016-03-06 | C122: =+Metered!E123 -> 427419.5157 | D122: 1.03449 | E122: 442161.2148 | F122: =SUMIF(OFFSET(Metered!$I$2,0,0,1,COUNTA(Metered!$I$2:$IV$2)),"Primary",OFFSET(Metered!$I123,0,0,1,COUNTA(Metered!$I123:$AA123))) -> 33294.92614 | G122: 475456.141 | H122: 1.01691 | I122: 483496.1043 | J122: =SUMIF(OFFSET(Metered!$I$2,0,0,1,COUNTA(Metered!$I$2:$IV$2)),"Subtransmission",OFFSET(Metered!$I123,0,0,1,COUNTA(Metered!$I123:$AA123))) -> 183849.5838 | K122: 551790.1192 | L122: 1.01441 | M122: 559741.4148 | N122: =SUMIF(OFFSET(Metered!$I$2,0,0,1,COUNTA(Metered!$I$2:$AA$2)),"Transmission",OFFSET(Metered!$I123,0,0,1,COUNTA(Metered!$I123:$AA123))) -> 41259.20682 | O122: 716556.1906 | P122: 1.02944 | Q122: 737651.6048
A123: 3 | B123: 2016-03-06T01:00:00 | C123: =+Metered!E124 -> 433759.4789 | D123: 1.03427 | E123: 448624.4162 | F123: =SUMIF(OFFSET(Metered!$I$2,0,0,1,COUNTA(Metered!$I$2:$IV$2)),"Primary",OFFSET(Metered!$I124,0,0,1,COUNTA(Metered!$I124:$AA124))) -> 33141.73425 | G123: 481766.1505 | H123: 1.01701 | I123: 489960.9927 | J123: =SUMIF(OFFSET(Metered!$I$2,0,0,1,COUNTA(Metered!$I$2:$IV$2)),"Subtransmission",OFFSET(Metered!$I124,0,0,1,COUNTA(Metered!$I124:$AA124))) -> 184522.9193 | K123: 557383.2348 | L123: 1.01452 | M123: 565476.4394 | N123: =SUMIF(OFFSET(Metered!$I$2,0,0,1,COUNTA(Metered!$I$2:$AA$2)),"Transmission",OFFSET(Metered!$I124,0,0,1,COUNTA(Metered!$I124:$AA124))) -> 41266.67724 | O123: 723843.7939 | P123: 1.02963 | Q123: 745291.2855
A124: 3 | B124: 2016-03-06T02:00:00 | C124: =+Metered!E125 -> 418446.1652 | D124: 1.03483 | E124: 433020.6451 | F124: =SUMIF(OFFSET(Metered!$I$2,0,0,1,COUNTA(Metered!$I$2:$IV$2)),"Primary",OFFSET(Metered!$I125,0,0,1,COUNTA(Metered!$I125:$AA125))) -> 33181.44261 | G124: 466202.0877 | H124: 1.01676 | I124: 474015.6347 | J124: =SUMIF(OFFSET(Metered!$I$2,0,0,1,COUNTA(Metered!$I$2:$IV$2)),"Subtransmission",OFFSET(Metered!$I125,0,0,1,COUNTA(Metered!$I125:$AA125))) -> 184266.1423 | K124: 544992.0403 | L124: 1.01428 | M124: 552774.5267 | N124: =SUMIF(OFFSET(Metered!$I$2,0,0,1,COUNTA(Metered!$I$2:$AA$2)),"Transmission",OFFSET(Metered!$I125,0,0,1,COUNTA(Metered!$I125:$AA125))) -> 41180.00927 | O124: 707244.2726 | P124: 1.02921 | Q124: 727902.8778
A125: 3 | B125: 2016-03-06T03:00:00 | C125: =+Metered!E126 -> 422253.691 | D125: 1.03468 | E125: 436897.449 | F125: =SUMIF(OFFSET(Metered!$I$2,0,0,1,COUNTA(Metered!$I$2:$IV$2)),"Primary",OFFSET(Metered!$I126,0,0,1,COUNTA(Metered!$I126:$AA126))) -> 33002.36443 | G125: 469899.8134 | H125: 1.01682 | I125: 477803.5283 | J125: =SUMIF(OFFSET(Metered!$I$2,0,0,1,COUNTA(Metered!$I$2:$IV$2)),"Subtransmission",OFFSET(Metered!$I126,0,0,1,COUNTA(Metered!$I126:$AA126))) -> 184299.6806 | K125: 547908.1656 | L125: 1.01434 | M125: 555765.1687 | N125: =SUMIF(OFFSET(Metered!$I$2,0,0,1,COUNTA(Metered!$I$2:$AA$2)),"Transmission",OFFSET(Metered!$I126,0,0,1,COUNTA(Metered!$I126:$AA126))) -> 41133.88498 | O125: 711094.097 | P125: 1.02931 | Q125: 731936.265
A126: 3 | B126: 2016-03-06T04:00:00 | C126: =+Metered!E127 -> 424844.8605 | D126: 1.03459 | E126: 439540.2443 | F126: =SUMIF(OFFSET(Metered!$I$2,0,0,1,COUNTA(Metered!$I$2:$IV$2)),"Primary",OFFSET(Metered!$I127,0,0,1,COUNTA(Metered!$I127:$AA127))) -> 34129.49825 | G126: 473669.7425 | H126: 1.01688 | I126: 481665.2878 | J126: =SUMIF(OFFSET(Metered!$I$2,0,0,1,COUNTA(Metered!$I$2:$IV$2)),"Subtransmission",OFFSET(Metered!$I127,0,0,1,COUNTA(Metered!$I127:$AA127))) -> 184733.6102 | K126: 551280.8942 | L126: 1.0144 | M126: 559219.339 | N126: =SUMIF(OFFSET(Metered!$I$2,0,0,1,COUNTA(Metered!$I$2:$AA$2)),"Transmission",OFFSET(Metered!$I127,0,0,1,COUNTA(Metered!$I127:$AA127))) -> 41196.88174 | O126: 715534.2245 | P126: 1.02942 | Q126: 736585.2414
A127: 3 | B127: 2016-03-06T05:00:00 | C127: =+Metered!E128 -> 425180.5066 | D127: 1.03457 | E127: 439878.9967 | F127: =SUMIF(OFFSET(Metered!$I$2,0,0,1,COUNTA(Metered!$I$2:$IV$2)),"Primary",OFFSET(Metered!$I128,0,0,1,COUNTA(Metered!$I128:$AA128))) -> 34667.05516 | G127: 474546.0519 | H127: 1.01689 | I127: 482561.1347 | J127: =SUMIF(OFFSET(Metered!$I$2,0,0,1,COUNTA(Metered!$I$2:$IV$2)),"Subtransmission",OFFSET(Metered!$I128,0,0,1,COUNTA(Metered!$I128:$AA128))) -> 184769.3844 | K127: 551998.4079 | L127: 1.01441 | M127: 559952.705 | N127: =SUMIF(OFFSET(Metered!$I$2,0,0,1,COUNTA(Metered!$I$2:$AA$2)),"Transmission",OFFSET(Metered!$I128,0,0,1,COUNTA(Metered!$I128:$AA128))) -> 41228.88481 | O127: 716513.701 | P127: 1.02944 | Q127: 737607.8643
A128: 3 | B128: 2016-03-06T06:00:00 | C128: =+Metered!E129 -> 444674.6315 | D128: 1.03392 | E128: 459757.995 | F128: =SUMIF(OFFSET(Metered!$I$2,0,0,1,COUNTA(Metered!$I$2:$IV$2)),"Primary",OFFSET(Metered!$I129,0,0,1,COUNTA(Metered!$I129:$AA129))) -> 35280.91389 | G128: 495038.9089 | H128: 1.01724 | I128: 503573.3797 | J128: =SUMIF(OFFSET(Metered!$I$2,0,0,1,COUNTA(Metered!$I$2:$IV$2)),"Subtransmission",OFFSET(Metered!$I129,0,0,1,COUNTA(Metered!$I129:$AA129))) -> 184663.3593 | K128: 567882.7012 | L128: 1.01472 | M128: 576241.9346 | N128: =SUMIF(OFFSET(Metered!$I$2,0,0,1,COUNTA(Metered!$I$2:$AA$2)),"Transmission",OFFSET(Metered!$I129,0,0,1,COUNTA(Metered!$I129:$AA129))) -> 41199.62877 | O128: 737795.6011 | P128: 1.02999 | Q128: 759922.0912
A129: 3 | B129: 2016-03-06T07:00:00 | C129: =+Metered!E130 -> 473605.0647 | D129: 1.03311 | E129: 489286.1284 | F129: =SUMIF(OFFSET(Metered!$I$2,0,0,1,COUNTA(Metered!$I$2:$IV$2)),"Primary",OFFSET(Metered!$I130,0,0,1,COUNTA(Metered!$I130:$AA130))) -> 35161.0552 | G129: 524447.1836 | H129: 1.01777 | I129: 533766.6101 | J129: =SUMIF(OFFSET(Metered!$I$2,0,0,1,COUNTA(Metered!$I$2:$IV$2)),"Subtransmission",OFFSET(Metered!$I130,0,0,1,COUNTA(Metered!$I130:$AA130))) -> 184905.0018 | K129: 591101.3921 | L129: 1.01517 | M129: 600068.4002 | N129: =SUMIF(OFFSET(Metered!$I$2,0,0,1,COUNTA(Metered!$I$2:$AA$2)),"Transmission",OFFSET(Metered!$I130,0,0,1,COUNTA(Metered!$I130:$AA130))) -> 41194.43503 | O129: 768833.055 | P129: 1.0308 | Q129: 792513.1131
A130: 3 | B130: 2016-03-06T08:00:00 | C130: =+Metered!E131 -> 479140.5494 | D130: =IF(C130=0,0,ROUND(1+((LossCoeff_Sec*C130^2+ZeroLoadLoss_Sec)/C130),5)) -> 1.03297 | E130: 494937.8134 | F130: =SUMIF(OFFSET(Metered!$I$2,0,0,1,COUNTA(Metered!$I$2:$IV$2)),"Primary",OFFSET(Metered!$I131,0,0,1,COUNTA(Metered!$I131:$AA131))) -> 34752.10656 | G130: 529689.9199 | H130: =IF(G130=0,0,ROUND(1+((LossCoeff_Pri*G130^2+ZeroLoadLoss_Pri)/G130),5)) -> 1.01787 | I130: 539155.4788 | J130: =SUMIF(OFFSET(Metered!$I$2,0,0,1,COUNTA(Metered!$I$2:$IV$2)),"Subtransmission",OFFSET(Metered!$I131,0,0,1,COUNTA(Metered!$I131:$AA131))) -> 183839.375 | K130: =+I130*DistAtSubtran+J130 -> 594136.6944 | L130: =IF(K130=0,0,ROUND(1+((LossCoeff_Sub*K130^2+ZeroLoadLoss_Sub)/K130),5)) -> 1.01523 | M130: 603185.3962 | N130: =SUMIF(OFFSET(Metered!$I$2,0,0,1,COUNTA(Metered!$I$2:$AA$2)),"Transmission",OFFSET(Metered!$I131,0,0,1,COUNTA(Metered!$I131:$AA131))) -> 41060.8788 | O130: =+M130+N130+(1-DistAtSubtran)*I130 -> 773104.4345 | P130: =IF(O130=0,0,ROUND(1+((LossCoeff_Trn*O130^2+ZeroLoadLoss_Trn)/O130),5)) -> 1.03091 | Q130: 797001.0925
A131: =MONTH(B131) -> 3 | B131: =+B130+1/24 -> 2016-03-06T09:00:00 | C131: =+Metered!E132 -> 516349.9205 | D131: 1.03221 | E131: =+C131*D131 -> 532981.5514 | F131: =SUMIF(OFFSET(Metered!$I$2,0,0,1,COUNTA(Metered!$I$2:$IV$2)),"Primary",OFFSET(Metered!$I132,0,0,1,COUNTA(Metered!$I132:$AA132))) -> 35304.26704 | G131: =+E131+F131 -> 568285.8184 | H131: 1.0186 | I131: =+G131*H131 -> 578855.9347 | J131: =SUMIF(OFFSET(Metered!$I$2,0,0,1,COUNTA(Metered!$I$2:$IV$2)),"Subtransmission",OFFSET(Metered!$I132,0,0,1,COUNTA(Metered!$I132:$AA132))) -> 184126.5222 | K131: 624635.8885 | L131: 1.01583 | M131: =+K131*L131 -> 634523.8746 | N131: =SUMIF(OFFSET(Metered!$I$2,0,0,1,COUNTA(Metered!$I$2:$AA$2)),"Transmission",OFFSET(Metered!$I132,0,0,1,COUNTA(Metered!$I132:$AA132))) -> 41133.37835 | O131: 814003.8213 | P131: 1.03201 | Q131: =+P131*O131 -> 840060.0836
A132: 3 | B132: 2016-03-06T10:00:00 | C132: =+Metered!E133 -> 499508.9716 | D132: 1.03253 | E132: 515757.9985 | F132: =SUMIF(OFFSET(Metered!$I$2,0,0,1,COUNTA(Metered!$I$2:$IV$2)),"Primary",OFFSET(Metered!$I133,0,0,1,COUNTA(Metered!$I133:$AA133))) -> 35791.65103 | G132: 551549.6495 | H132: 1.01828 | I132: 561631.9771 | J132: =SUMIF(OFFSET(Metered!$I$2,0,0,1,COUNTA(Metered!$I$2:$IV$2)),"Subtransmission",OFFSET(Metered!$I133,0,0,1,COUNTA(Metered!$I133:$AA133))) -> 183805.5628 | K132: 611207.4974 | L132: 1.01557 | M132: 620723.9981 | N132: =SUMIF(OFFSET(Metered!$I$2,0,0,1,COUNTA(Metered!$I$2:$AA$2)),"Transmission",OFFSET(Metered!$I133,0,0,1,COUNTA(Metered!$I133:$AA133))) -> 41171.71071 | O132: 796125.7513 | P132: 1.03153 | Q132: 821227.5963
A133: 3 | B133: 2016-03-06T11:00:00 | C133: =+Metered!E134 -> 404481.0584 | D133: 1.03539 | E133: 418795.643 | F133: =SUMIF(OFFSET(Metered!$I$2,0,0,1,COUNTA(Metered!$I$2:$IV$2)),"Primary",OFFSET(Metered!$I134,0,0,1,COUNTA(Metered!$I134:$AA134))) -> 35804.44165 | G133: 454600.0847 | H133: 1.01657 | I133: 462132.8081 | J133: =SUMIF(OFFSET(Metered!$I$2,0,0,1,COUNTA(Metered!$I$2:$IV$2)),"Subtransmission",OFFSET(Metered!$I134,0,0,1,COUNTA(Metered!$I134:$AA134))) -> 183944.2962 | K133: 535627.3632 | L133: 1.0141 | M133: 543179.709 | N133: =SUMIF(OFFSET(Metered!$I$2,0,0,1,COUNTA(Metered!$I$2:$AA$2)),"Transmission",OFFSET(Metered!$I134,0,0,1,COUNTA(Metered!$I134:$AA134))) -> 41241.7986 | O133: 694871.2487 | P133: 1.0289 | Q133: 714953.0278
A134: 3 | B134: 2016-03-06T12:00:00 | C134: =+Metered!E135 -> 397779.9166 | D134: 1.03568 | E134: 411972.7041 | F134: =SUMIF(OFFSET(Metered!$I$2,0,0,1,COUNTA(Metered!$I$2:$IV$2)),"Primary",OFFSET(Metered!$I135,0,0,1,COUNTA(Metered!$I135:$AA135))) -> 35192.73986 | G134: 447165.4439 | H134: 1.01645 | I134: 454521.3155 | J134: =SUMIF(OFFSET(Metered!$I$2,0,0,1,COUNTA(Metered!$I$2:$IV$2)),"Subtransmission",OFFSET(Metered!$I135,0,0,1,COUNTA(Metered!$I135:$AA135))) -> 183216.7995 | K134: 529107.5206 | L134: 1.01398 | M134: 536504.4437 | N134: =SUMIF(OFFSET(Metered!$I$2,0,0,1,COUNTA(Metered!$I$2:$AA$2)),"Transmission",OFFSET(Metered!$I135,0,0,1,COUNTA(Metered!$I135:$AA135))) -> 41147.4126 | O134: 686282.4507 | P134: 1.02869 | Q134: 705971.8942
A135: 3 | B135: 2016-03-06T13:00:00 | C135: =+Metered!E136 -> 412529.9534 | D135: 1.03506 | E135: 426993.2536 | F135: =SUMIF(OFFSET(Metered!$I$2,0,0,1,COUNTA(Metered!$I$2:$IV$2)),"Primary",OFFSET(Metered!$I136,0,0,1,COUNTA(Metered!$I136:$AA136))) -> 34893.65387 | G135: 461886.9075 | H135: 1.01669 | I135: 469595.8 | J135: =SUMIF(OFFSET(Metered!$I$2,0,0,1,COUNTA(Metered!$I$2:$IV$2)),"Subtransmission",OFFSET(Metered!$I136,0,0,1,COUNTA(Metered!$I136:$AA136))) -> 182954.0014 | K135: 540316.4052 | L135: 1.01419 | M135: 547983.495 | N135: =SUMIF(OFFSET(Metered!$I$2,0,0,1,COUNTA(Metered!$I$2:$AA$2)),"Transmission",OFFSET(Metered!$I136,0,0,1,COUNTA(Metered!$I136:$AA136))) -> 41123.69763 | O135: 701340.5888 | P135: 1.02906 | Q135: 721721.5463
A136: 3 | B136: 2016-03-06T14:00:00 | C136: =+Metered!E137 -> 390027.3795 | D136: 1.03604 | E136: 404083.9662 | F136: =SUMIF(OFFSET(Metered!$I$2,0,0,1,COUNTA(Metered!$I$2:$IV$2)),"Primary",OFFSET(Metered!$I137,0,0,1,COUNTA(Metered!$I137:$AA137))) -> 34640.80693 | G136: 438724.7732 | H136: 1.01632 | I136: 445884.7615 | J136: =SUMIF(OFFSET(Metered!$I$2,0,0,1,COUNTA(Metered!$I$2:$IV$2)),"Subtransmission",OFFSET(Metered!$I137,0,0,1,COUNTA(Metered!$I137:$AA137))) -> 182806.4304 | K136: 522124.7339 | L136: 1.01385 | M136: 529356.1615 | N136: =SUMIF(OFFSET(Metered!$I$2,0,0,1,COUNTA(Metered!$I$2:$AA$2)),"Transmission",OFFSET(Metered!$I137,0,0,1,COUNTA(Metered!$I137:$AA137))) -> 41152.14132 | O136: 677074.7608 | P136: 1.02846 | Q136: 696344.3085
A137: 3 | B137: 2016-03-06T15:00:00 | C137: =+Metered!E138 -> 369122.7929 | D137: 1.03711 | E137: 382820.9397 | F137: =SUMIF(OFFSET(Metered!$I$2,0,0,1,COUNTA(Metered!$I$2:$IV$2)),"Primary",OFFSET(Metered!$I138,0,0,1,COUNTA(Metered!$I138:$AA138))) -> 34093.74719 | G137: 416914.6869 | H137: 1.01601 | I137: 423589.4911 | J137: =SUMIF(OFFSET(Metered!$I$2,0,0,1,COUNTA(Metered!$I$2:$IV$2)),"Subtransmission",OFFSET(Metered!$I138,0,0,1,COUNTA(Metered!$I138:$AA138))) -> 182022.9809 | K137: 504374.5836 | L137: 1.01352 | M137: 511193.728 | N137: =SUMIF(OFFSET(Metered!$I$2,0,0,1,COUNTA(Metered!$I$2:$AA$2)),"Transmission",OFFSET(Metered!$I138,0,0,1,COUNTA(Metered!$I138:$AA138))) -> 41096.2175 | O137: 653527.8339 | P137: 1.02789 | Q137: 671754.7251
A138: 3 | B138: 2016-03-06T16:00:00 | C138: =+Metered!E139 -> 362229.4648 | D138: 1.0375 | E138: 375813.0697 | F138: =SUMIF(OFFSET(Metered!$I$2,0,0,1,COUNTA(Metered!$I$2:$IV$2)),"Primary",OFFSET(Metered!$I139,0,0,1,COUNTA(Metered!$I139:$AA139))) -> 34447.63801 | G138: 410260.7077 | H138: 1.01592 | I138: 416792.0582 | J138: =SUMIF(OFFSET(Metered!$I$2,0,0,1,COUNTA(Metered!$I$2:$IV$2)),"Subtransmission",OFFSET(Metered!$I139,0,0,1,COUNTA(Metered!$I139:$AA139))) -> 180980.9702 | K138: 498159.7264 | L138: 1.01341 | M138: 504840.0484 | N138: =SUMIF(OFFSET(Metered!$I$2,0,0,1,COUNTA(Metered!$I$2:$AA$2)),"Transmission",OFFSET(Metered!$I139,0,0,1,COUNTA(Metered!$I139:$AA139))) -> 41156.58294 | O138: 645609.9332 | P138: 1.0277 | Q138: 663493.3284
A139: 3 | B139: 2016-03-06T17:00:00 | C139: =+Metered!E140 -> 439078.6576 | D139: 1.0341 | E139: 454051.2398 | F139: =SUMIF(OFFSET(Metered!$I$2,0,0,1,COUNTA(Metered!$I$2:$IV$2)),"Primary",OFFSET(Metered!$I140,0,0,1,COUNTA(Metered!$I140:$AA140))) -> 34782.20389 | G139: 488833.4437 | H139: 1.01714 | I139: 497212.049 | J139: =SUMIF(OFFSET(Metered!$I$2,0,0,1,COUNTA(Metered!$I$2:$IV$2)),"Subtransmission",OFFSET(Metered!$I140,0,0,1,COUNTA(Metered!$I140:$AA140))) -> 181532.5596 | K139: 559910.9289 | L139: 1.01457 | M139: 568068.8311 | N139: =SUMIF(OFFSET(Metered!$I$2,0,0,1,COUNTA(Metered!$I$2:$AA$2)),"Transmission",OFFSET(Metered!$I140,0,0,1,COUNTA(Metered!$I140:$AA140))) -> 41211.46476 | O139: 728113.9756 | P139: 1.02974 | Q139: 749768.0852
A140: 3 | B140: 2016-03-06T18:00:00 | C140: =+Metered!E141 -> 445067.7316 | D140: 1.0339 | E140: 460155.5277 | F140: =SUMIF(OFFSET(Metered!$I$2,0,0,1,COUNTA(Metered!$I$2:$IV$2)),"Primary",OFFSET(Metered!$I141,0,0,1,COUNTA(Metered!$I141:$AA141))) -> 35398.69669 | G140: 495554.2244 | H140: 1.01725 | I140: 504102.5348 | J140: =SUMIF(OFFSET(Metered!$I$2,0,0,1,COUNTA(Metered!$I$2:$IV$2)),"Subtransmission",OFFSET(Metered!$I141,0,0,1,COUNTA(Metered!$I141:$AA141))) -> 181594.8459 | K140: 565216.8748 | L140: 1.01467 | M140: 573508.6064 | N140: =SUMIF(OFFSET(Metered!$I$2,0,0,1,COUNTA(Metered!$I$2:$AA$2)),"Transmission",OFFSET(Metered!$I141,0,0,1,COUNTA(Metered!$I141:$AA141))) -> 41245.59776 | O140: 735234.71 | P140: 1.02992 | Q140: 757232.9325
A141: 3 | B141: 2016-03-06T19:00:00 | C141: =+Metered!E142 -> 473756.4305 | D141: 1.0331 | E141: 489437.7684 | F141: =SUMIF(OFFSET(Metered!$I$2,0,0,1,COUNTA(Metered!$I$2:$IV$2)),"Primary",OFFSET(Metered!$I142,0,0,1,COUNTA(Metered!$I142:$AA142))) -> 35446.29274 | G141: 524884.0611 | H141: 1.01778 | I141: 534216.4997 | J141: =SUMIF(OFFSET(Metered!$I$2,0,0,1,COUNTA(Metered!$I$2:$IV$2)),"Subtransmission",OFFSET(Metered!$I142,0,0,1,COUNTA(Metered!$I142:$AA142))) -> 182663.6082 | K141: 589202.3645 | L141: 1.01513 | M141: 598116.9963 | N141: =SUMIF(OFFSET(Metered!$I$2,0,0,1,COUNTA(Metered!$I$2:$AA$2)),"Transmission",OFFSET(Metered!$I142,0,0,1,COUNTA(Metered!$I142:$AA142))) -> 41229.6423 | O141: 767024.382 | P141: 1.03075 | Q141: 790610.3817
A142: 3 | B142: 2016-03-06T20:00:00 | C142: =+Metered!E143 -> 457669.4846 | D142: 1.03353 | E142: 473015.1424 | F142: =SUMIF(OFFSET(Metered!$I$2,0,0,1,COUNTA(Metered!$I$2:$IV$2)),"Primary",OFFSET(Metered!$I143,0,0,1,COUNTA(Metered!$I143:$AA143))) -> 34628.03189 | G142: 507643.1743 | H142: 1.01747 | I142: 516511.7006 | J142: =SUMIF(OFFSET(Metered!$I$2,0,0,1,COUNTA(Metered!$I$2:$IV$2)),"Subtransmission",OFFSET(Metered!$I143,0,0,1,COUNTA(Metered!$I143:$AA143))) -> 182934.753 | K142: 576000.1572 | L142: 1.01488 | M142: 584571.0395 | N142: =SUMIF(OFFSET(Metered!$I$2,0,0,1,COUNTA(Metered!$I$2:$AA$2)),"Transmission",OFFSET(Metered!$I143,0,0,1,COUNTA(Metered!$I143:$AA143))) -> 41196.03444 | O142: 749213.3704 | P142: 1.03028 | Q142: 771899.5512
A143: 3 | B143: 2016-03-06T21:00:00 | C143: =+Metered!E144 -> 487904.3602 | D143: 1.03277 | E143: 503892.986 | F143: =SUMIF(OFFSET(Metered!$I$2,0,0,1,COUNTA(Metered!$I$2:$IV$2)),"Primary",OFFSET(Metered!$I144,0,0,1,COUNTA(Metered!$I144:$AA144))) -> 34490.87585 | G143: 538383.8619 | H143: 1.01803 | I143: 548090.9229 | J143: =SUMIF(OFFSET(Metered!$I$2,0,0,1,COUNTA(Metered!$I$2:$IV$2)),"Subtransmission",OFFSET(Metered!$I144,0,0,1,COUNTA(Metered!$I144:$AA144))) -> 183433.0688 | K143: 600530.2612 | L143: 1.01536 | M143: 609754.406 | N143: =SUMIF(OFFSET(Metered!$I$2,0,0,1,COUNTA(Metered!$I$2:$AA$2)),"Transmission",OFFSET(Metered!$I144,0,0,1,COUNTA(Metered!$I144:$AA144))) -> 41120.49754 | O143: 781868.6341 | P143: 1.03114 | Q143: 806216.0234
A144: 3 | B144: 2016-03-06T22:00:00 | C144: =+Metered!E145 -> 482618.9999 | D144: 1.03289 | E144: 498492.3388 | F144: =SUMIF(OFFSET(Metered!$I$2,0,0,1,COUNTA(Metered!$I$2:$IV$2)),"Primary",OFFSET(Metered!$I145,0,0,1,COUNTA(Metered!$I145:$AA145))) -> 34337.0208 | G144: 532829.3596 | H144: 1.01793 | I144: 542382.99 | J144: =SUMIF(OFFSET(Metered!$I$2,0,0,1,COUNTA(Metered!$I$2:$IV$2)),"Subtransmission",OFFSET(Metered!$I145,0,0,1,COUNTA(Metered!$I145:$AA145))) -> 184973.9866 | K144: 597727.442 | L144: 1.0153 | M144: 606872.6719 | N144: =SUMIF(OFFSET(Metered!$I$2,0,0,1,COUNTA(Metered!$I$2:$AA$2)),"Transmission",OFFSET(Metered!$I145,0,0,1,COUNTA(Metered!$I145:$AA145))) -> 41136.85144 | O144: 777639.0579 | P144: 1.03103 | Q144: 801769.1979
A145: 3 | B145: 2016-03-06T23:00:00 | C145: =+Metered!E146 -> 510611.5053 | D145: 1.03231 | E145: 527109.3631 | F145: =SUMIF(OFFSET(Metered!$I$2,0,0,1,COUNTA(Metered!$I$2:$IV$2)),"Primary",OFFSET(Metered!$I146,0,0,1,COUNTA(Metered!$I146:$AA146))) -> 33703.84168 | G145: 560813.2048 | H145: 1.01846 | I145: 571165.8165 | J145: =SUMIF(OFFSET(Metered!$I$2,0,0,1,COUNTA(Metered!$I$2:$IV$2)),"Subtransmission",OFFSET(Metered!$I146,0,0,1,COUNTA(Metered!$I146:$AA146))) -> 186853.8606 | K145: 621511.047 | L145: 1.01577 | M145: 631312.2762 | N145: =SUMIF(OFFSET(Metered!$I$2,0,0,1,COUNTA(Metered!$I$2:$AA$2)),"Transmission",OFFSET(Metered!$I146,0,0,1,COUNTA(Metered!$I146:$AA146))) -> 41138.69099 | O145: 808959.5973 | P145: 1.03187 | Q145: 834741.1397
A146: 3 | B146: 2016-03-07 | C146: =+Metered!E147 -> 479522.5945 | D146: 1.03296 | E146: 495327.6593 | F146: =SUMIF(OFFSET(Metered!$I$2,0,0,1,COUNTA(Metered!$I$2:$IV$2)),"Primary",OFFSET(Metered!$I147,0,0,1,COUNTA(Metered!$I147:$AA147))) -> 33596.97111 | G146: 528924.6304 | H146: 1.01785 | I146: 538365.935 | J146: =SUMIF(OFFSET(Metered!$I$2,0,0,1,COUNTA(Metered!$I$2:$IV$2)),"Subtransmission",OFFSET(Metered!$I147,0,0,1,COUNTA(Metered!$I147:$AA147))) -> 187300.4593 | K146: 596996.9358 | L146: 1.01529 | M146: 606125.019 | N146: =SUMIF(OFFSET(Metered!$I$2,0,0,1,COUNTA(Metered!$I$2:$AA$2)),"Transmission",OFFSET(Metered!$I147,0,0,1,COUNTA(Metered!$I147:$AA147))) -> 41102.16723 | O146: 775896.6447 | P146: 1.03099 | Q146: 799941.6817
A147: 3 | B147: 2016-03-07T01:00:00 | C147: =+Metered!E148 -> 465974.9437 | D147: 1.0333 | E147: 481491.9093 | F147: =SUMIF(OFFSET(Metered!$I$2,0,0,1,COUNTA(Metered!$I$2:$IV$2)),"Primary",OFFSET(Metered!$I148,0,0,1,COUNTA(Metered!$I148:$AA148))) -> 33830.08207 | G147: 515321.9914 | H147: 1.0176 | I147: 524391.6584 | J147: =SUMIF(OFFSET(Metered!$I$2,0,0,1,COUNTA(Metered!$I$2:$IV$2)),"Subtransmission",OFFSET(Metered!$I148,0,0,1,COUNTA(Metered!$I148:$AA148))) -> 189010.745 | K147: 588072.797 | L147: 1.01511 | M147: 596958.577 | N147: =SUMIF(OFFSET(Metered!$I$2,0,0,1,COUNTA(Metered!$I$2:$AA$2)),"Transmission",OFFSET(Metered!$I148,0,0,1,COUNTA(Metered!$I148:$AA148))) -> 41189.2842 | O147: 763477.4676 | P147: 1.03066 | Q147: 786885.6867
A148: 3 | B148: 2016-03-07T02:00:00 | C148: =+Metered!E149 -> 475974.2688 | D148: 1.03305 | E148: 491705.2184 | F148: =SUMIF(OFFSET(Metered!$I$2,0,0,1,COUNTA(Metered!$I$2:$IV$2)),"Primary",OFFSET(Metered!$I149,0,0,1,COUNTA(Metered!$I149:$AA149))) -> 34037.68794 | G148: 525742.9063 | H148: 1.01779 | I148: 535095.8726 | J148: =SUMIF(OFFSET(Metered!$I$2,0,0,1,COUNTA(Metered!$I$2:$IV$2)),"Subtransmission",OFFSET(Metered!$I149,0,0,1,COUNTA(Metered!$I149:$AA149))) -> 185885.6285 | K148: 593093.5876 | L148: 1.01521 | M148: 602114.541 | N148: =SUMIF(OFFSET(Metered!$I$2,0,0,1,COUNTA(Metered!$I$2:$AA$2)),"Transmission",OFFSET(Metered!$I149,0,0,1,COUNTA(Metered!$I149:$AA149))) -> 41274.66173 | O148: 771277.1163 | P148: 1.03086 | Q148: 795078.7281
A149: 3 | B149: 2016-03-07T03:00:00 | C149: =+Metered!E150 -> 474371.9447 | D149: 1.03309 | E149: 490068.9124 | F149: =SUMIF(OFFSET(Metered!$I$2,0,0,1,COUNTA(Metered!$I$2:$IV$2)),"Primary",OFFSET(Metered!$I150,0,0,1,COUNTA(Metered!$I150:$AA150))) -> 34062.00155 | G149: 524130.914 | H149: 1.01776 | I149: 533439.479 | J149: =SUMIF(OFFSET(Metered!$I$2,0,0,1,COUNTA(Metered!$I$2:$IV$2)),"Subtransmission",OFFSET(Metered!$I150,0,0,1,COUNTA(Metered!$I150:$AA150))) -> 182535.3999 | K149: 588482.8434 | L149: 1.01512 | M149: 597380.704 | N149: =SUMIF(OFFSET(Metered!$I$2,0,0,1,COUNTA(Metered!$I$2:$AA$2)),"Transmission",OFFSET(Metered!$I150,0,0,1,COUNTA(Metered!$I150:$AA150))) -> 41292.88625 | O149: 766165.6257 | P149: 1.03073 | Q149: 789709.8954
A150: 3 | B150: 2016-03-07T04:00:00 | C150: =+Metered!E151 -> 488562.2426 | D150: 1.03276 | E150: 504567.5417 | F150: =SUMIF(OFFSET(Metered!$I$2,0,0,1,COUNTA(Metered!$I$2:$IV$2)),"Primary",OFFSET(Metered!$I151,0,0,1,COUNTA(Metered!$I151:$AA151))) -> 35663.36893 | G150: 540230.9106 | H150: 1.01806 | I150: 549987.4809 | J150: =SUMIF(OFFSET(Metered!$I$2,0,0,1,COUNTA(Metered!$I$2:$IV$2)),"Subtransmission",OFFSET(Metered!$I151,0,0,1,COUNTA(Metered!$I151:$AA151))) -> 184091.3553 | K150: 602631.8282 | L150: 1.0154 | M150: 611912.3584 | N150: =SUMIF(OFFSET(Metered!$I$2,0,0,1,COUNTA(Metered!$I$2:$AA$2)),"Transmission",OFFSET(Metered!$I151,0,0,1,COUNTA(Metered!$I151:$AA151))) -> 41438.5941 | O150: 784797.9604 | P150: 1.03122 | Q150: 809299.3527
A151: 3 | B151: 2016-03-07T05:00:00 | C151: =+Metered!E152 -> 549369.3744 | D151: 1.03172 | E151: 566795.371 | F151: =SUMIF(OFFSET(Metered!$I$2,0,0,1,COUNTA(Metered!$I$2:$IV$2)),"Primary",OFFSET(Metered!$I152,0,0,1,COUNTA(Metered!$I152:$AA152))) -> 36985.31004 | G151: 603780.681 | H151: 1.01931 | I151: 615439.686 | J151: =SUMIF(OFFSET(Metered!$I$2,0,0,1,COUNTA(Metered!$I$2:$IV$2)),"Subtransmission",OFFSET(Metered!$I152,0,0,1,COUNTA(Metered!$I152:$AA152))) -> 186640.4477 | K151: 654990.0487 | L151: 1.01644 | M151: 665758.0851 | N151: =SUMIF(OFFSET(Metered!$I$2,0,0,1,COUNTA(Metered!$I$2:$AA$2)),"Transmission",OFFSET(Metered!$I152,0,0,1,COUNTA(Metered!$I152:$AA152))) -> 41413.60345 | O151: 854261.7735 | P151: 1.03311 | Q151: 882546.3808
A152: 3 | B152: 2016-03-07T06:00:00 | C152: =+Metered!E153 -> 604130.5923 | D152: 1.0312 | E152: 622979.4668 | F152: =SUMIF(OFFSET(Metered!$I$2,0,0,1,COUNTA(Metered!$I$2:$IV$2)),"Primary",OFFSET(Metered!$I153,0,0,1,COUNTA(Metered!$I153:$AA153))) -> 42504.21078 | G152: 665483.6776 | H152: 1.02059 | I152: 679185.9865 | J152: =SUMIF(OFFSET(Metered!$I$2,0,0,1,COUNTA(Metered!$I$2:$IV$2)),"Subtransmission",OFFSET(Metered!$I153,0,0,1,COUNTA(Metered!$I153:$AA153))) -> 196120.921 | K152: 712981.4567 | L152: 1.01762 | M152: 725544.19 | N152: =SUMIF(OFFSET(Metered!$I$2,0,0,1,COUNTA(Metered!$I$2:$AA$2)),"Transmission",OFFSET(Metered!$I153,0,0,1,COUNTA(Metered!$I153:$AA153))) -> 41662.07768 | O152: 929531.7184 | P152: 1.03523 | Q152: 962279.1209
A153: 3 | B153: 2016-03-07T07:00:00 | C153: =+Metered!E154 -> 555489.0332 | D153: 1.03164 | E153: 573064.7062 | F153: =SUMIF(OFFSET(Metered!$I$2,0,0,1,COUNTA(Metered!$I$2:$IV$2)),"Primary",OFFSET(Metered!$I154,0,0,1,COUNTA(Metered!$I154:$AA154))) -> 45988.90911 | G153: 619053.6153 | H153: 1.01962 | I153: 631199.4472 | J153: =SUMIF(OFFSET(Metered!$I$2,0,0,1,COUNTA(Metered!$I$2:$IV$2)),"Subtransmission",OFFSET(Metered!$I154,0,0,1,COUNTA(Metered!$I154:$AA154))) -> 203960.7323 | K153: 684303.5116 | L153: 1.01703 | M153: 695957.2004 | N153: =SUMIF(OFFSET(Metered!$I$2,0,0,1,COUNTA(Metered!$I$2:$AA$2)),"Transmission",OFFSET(Metered!$I154,0,0,1,COUNTA(Metered!$I154:$AA154))) -> 41659.5763 | O153: 888473.4446 | P153: 1.03407 | Q153: 918743.7349
A154: 3 | B154: 2016-03-07T08:00:00 | C154: =+Metered!E155 -> 557444.6967 | D154: 1.03162 | E154: 575071.098 | F154: =SUMIF(OFFSET(Metered!$I$2,0,0,1,COUNTA(Metered!$I$2:$IV$2)),"Primary",OFFSET(Metered!$I155,0,0,1,COUNTA(Metered!$I155:$AA155))) -> 49254.4635 | G154: 624325.5615 | H154: 1.01973 | I154: 636643.5048 | J154: =SUMIF(OFFSET(Metered!$I$2,0,0,1,COUNTA(Metered!$I$2:$IV$2)),"Subtransmission",OFFSET(Metered!$I155,0,0,1,COUNTA(Metered!$I155:$AA155))) -> 208281.6818 | K154: 692767.389 | L154: 1.01721 | M154: 704689.9158 | N154: =SUMIF(OFFSET(Metered!$I$2,0,0,1,COUNTA(Metered!$I$2:$AA$2)),"Transmission",OFFSET(Metered!$I155,0,0,1,COUNTA(Metered!$I155:$AA155))) -> 41814.23006 | O154: 898661.9435 | P154: 1.03435 | Q154: 929530.9812
A155: 3 | B155: 2016-03-07T09:00:00 | C155: =+Metered!E156 -> 530617.56 | D155: 1.03198 | E155: 547586.7096 | F155: =SUMIF(OFFSET(Metered!$I$2,0,0,1,COUNTA(Metered!$I$2:$IV$2)),"Primary",OFFSET(Metered!$I156,0,0,1,COUNTA(Metered!$I156:$AA156))) -> 48790.05306 | G155: 596376.7627 | H155: 1.01916 | I155: 607803.3414 | J155: =SUMIF(OFFSET(Metered!$I$2,0,0,1,COUNTA(Metered!$I$2:$IV$2)),"Subtransmission",OFFSET(Metered!$I156,0,0,1,COUNTA(Metered!$I156:$AA156))) -> 209482.6175 | K155: 672020.9603 | L155: 1.01678 | M155: 683297.472 | N155: =SUMIF(OFFSET(Metered!$I$2,0,0,1,COUNTA(Metered!$I$2:$AA$2)),"Transmission",OFFSET(Metered!$I156,0,0,1,COUNTA(Metered!$I156:$AA156))) -> 41756.82351 | O155: 870319.2941 | P155: 1.03356 | Q155: 899527.2096
A156: 3 | B156: 2016-03-07T10:00:00 | C156: =+Metered!E157 -> 470364.0201 | D156: 1.03319 | E156: 485975.4019 | F156: =SUMIF(OFFSET(Metered!$I$2,0,0,1,COUNTA(Metered!$I$2:$IV$2)),"Primary",OFFSET(Metered!$I157,0,0,1,COUNTA(Metered!$I157:$AA157))) -> 48834.26342 | G156: 534809.6653 | H156: 1.01796 | I156: 544414.8469 | J156: =SUMIF(OFFSET(Metered!$I$2,0,0,1,COUNTA(Metered!$I$2:$IV$2)),"Subtransmission",OFFSET(Metered!$I157,0,0,1,COUNTA(Metered!$I157:$AA157))) -> 209425.2527 | K156: 623724.9511 | L156: 1.01581 | M156: 633586.0426 | N156: =SUMIF(OFFSET(Metered!$I$2,0,0,1,COUNTA(Metered!$I$2:$AA$2)),"Transmission",OFFSET(Metered!$I157,0,0,1,COUNTA(Metered!$I157:$AA157))) -> 41753.32907 | O156: 805454.5201 | P156: 1.03178 | Q156: 831051.8647
A157: 3 | B157: 2016-03-07T11:00:00 | C157: =+Metered!E158 -> 438439.539 | D157: 1.03412 | E157: 453399.0961 | F157: =SUMIF(OFFSET(Metered!$I$2,0,0,1,COUNTA(Metered!$I$2:$IV$2)),"Primary",OFFSET(Metered!$I158,0,0,1,COUNTA(Metered!$I158:$AA158))) -> 48734.98558 | G157: 502134.0817 | H157: 1.01737 | I157: 510856.1507 | J157: =SUMIF(OFFSET(Metered!$I$2,0,0,1,COUNTA(Metered!$I$2:$IV$2)),"Subtransmission",OFFSET(Metered!$I158,0,0,1,COUNTA(Metered!$I158:$AA158))) -> 209100.1411 | K157: 597861.6718 | L157: 1.0153 | M157: 607008.9554 | N157: =SUMIF(OFFSET(Metered!$I$2,0,0,1,COUNTA(Metered!$I$2:$AA$2)),"Transmission",OFFSET(Metered!$I158,0,0,1,COUNTA(Metered!$I158:$AA158))) -> 41637.65246 | O157: 770741.2278 | P157: 1.03085 | Q157: 794518.5947
A158: 3 | B158: 2016-03-07T12:00:00 | C158: =+Metered!E159 -> 403868.0555 | D158: 1.03541 | E158: 418169.0234 | F158: =SUMIF(OFFSET(Metered!$I$2,0,0,1,COUNTA(Metered!$I$2:$IV$2)),"Primary",OFFSET(Metered!$I159,0,0,1,COUNTA(Metered!$I159:$AA159))) -> 48208.58526 | G158: 466377.6087 | H158: 1.01676 | I158: 474194.0974 | J158: =SUMIF(OFFSET(Metered!$I$2,0,0,1,COUNTA(Metered!$I$2:$IV$2)),"Subtransmission",OFFSET(Metered!$I159,0,0,1,COUNTA(Metered!$I159:$AA159))) -> 208123.9036 | K158: 568985.6117 | L158: 1.01474 | M158: 577372.4596 | N158: =SUMIF(OFFSET(Metered!$I$2,0,0,1,COUNTA(Metered!$I$2:$AA$2)),"Transmission",OFFSET(Metered!$I159,0,0,1,COUNTA(Metered!$I159:$AA159))) -> 41547.49386 | O158: 732252.3427 | P158: 1.02984 | Q158: 754102.7526
A159: 3 | B159: 2016-03-07T13:00:00 | C159: =+Metered!E160 -> 408563.8252 | D159: 1.03522 | E159: 422953.4432 | F159: =SUMIF(OFFSET(Metered!$I$2,0,0,1,COUNTA(Metered!$I$2:$IV$2)),"Primary",OFFSET(Metered!$I160,0,0,1,COUNTA(Metered!$I160:$AA160))) -> 48594.86278 | G159: 471548.3059 | H159: 1.01684 | I159: 479489.1794 | J159: =SUMIF(OFFSET(Metered!$I$2,0,0,1,COUNTA(Metered!$I$2:$IV$2)),"Subtransmission",OFFSET(Metered!$I160,0,0,1,COUNTA(Metered!$I160:$AA160))) -> 207386.443 | K159: 572277.7085 | L159: 1.0148 | M159: 580747.4186 | N159: =SUMIF(OFFSET(Metered!$I$2,0,0,1,COUNTA(Metered!$I$2:$AA$2)),"Transmission",OFFSET(Metered!$I160,0,0,1,COUNTA(Metered!$I160:$AA160))) -> 41740.16893 | O159: 737085.5014 | P159: 1.02997 | Q159: 759175.9539
A160: 3 | B160: 2016-03-07T14:00:00 | C160: =+Metered!E161 -> 386183.7597 | D160: 1.03622 | E160: 400171.3355 | F160: =SUMIF(OFFSET(Metered!$I$2,0,0,1,COUNTA(Metered!$I$2:$IV$2)),"Primary",OFFSET(Metered!$I161,0,0,1,COUNTA(Metered!$I161:$AA161))) -> 48473.31217 | G160: 448644.6477 | H160: 1.01648 | I160: 456038.3115 | J160: =SUMIF(OFFSET(Metered!$I$2,0,0,1,COUNTA(Metered!$I$2:$IV$2)),"Subtransmission",OFFSET(Metered!$I161,0,0,1,COUNTA(Metered!$I161:$AA161))) -> 208697.1153 | K160: 555742.2704 | L160: 1.01449 | M160: 563794.9758 | N160: =SUMIF(OFFSET(Metered!$I$2,0,0,1,COUNTA(Metered!$I$2:$AA$2)),"Transmission",OFFSET(Metered!$I161,0,0,1,COUNTA(Metered!$I161:$AA161))) -> 41859.32791 | O160: 714647.4602 | P160: 1.0294 | Q160: 735658.0955
A161: 3 | B161: 2016-03-07T15:00:00 | C161: =+Metered!E162 -> 378121.6532 | D161: 1.03663 | E161: 391972.2493 | F161: =SUMIF(OFFSET(Metered!$I$2,0,0,1,COUNTA(Metered!$I$2:$IV$2)),"Primary",OFFSET(Metered!$I162,0,0,1,COUNTA(Metered!$I162:$AA162))) -> 46451.15705 | G161: 438423.4064 | H161: 1.01632 | I161: 445578.4764 | J161: =SUMIF(OFFSET(Metered!$I$2,0,0,1,COUNTA(Metered!$I$2:$IV$2)),"Subtransmission",OFFSET(Metered!$I162,0,0,1,COUNTA(Metered!$I162:$AA162))) -> 205118.1042 | K161: 544203.3247 | L161: 1.01427 | M161: 551969.1061 | N161: =SUMIF(OFFSET(Metered!$I$2,0,0,1,COUNTA(Metered!$I$2:$AA$2)),"Transmission",OFFSET(Metered!$I162,0,0,1,COUNTA(Metered!$I162:$AA162))) -> 42546.16859 | O161: 701008.5306 | P161: 1.02905 | Q161: 721372.8284
A162: 3 | B162: 2016-03-07T16:00:00 | C162: =+Metered!E163 -> 363363.8902 | D162: 1.03744 | E162: 376968.2343 | F162: =SUMIF(OFFSET(Metered!$I$2,0,0,1,COUNTA(Metered!$I$2:$IV$2)),"Primary",OFFSET(Metered!$I163,0,0,1,COUNTA(Metered!$I163:$AA163))) -> 44236.44246 | G162: 421204.6767 | H162: 1.01607 | I162: 427973.4359 | J162: =SUMIF(OFFSET(Metered!$I$2,0,0,1,COUNTA(Metered!$I$2:$IV$2)),"Subtransmission",OFFSET(Metered!$I163,0,0,1,COUNTA(Metered!$I163:$AA163))) -> 202357.8953 | K162: 528045.68 | L162: 1.01396 | M162: 535417.1977 | N162: =SUMIF(OFFSET(Metered!$I$2,0,0,1,COUNTA(Metered!$I$2:$AA$2)),"Transmission",OFFSET(Metered!$I163,0,0,1,COUNTA(Metered!$I163:$AA163))) -> 42267.88665 | O162: 679970.7356 | P162: 1.02853 | Q162: 699370.3006
A163: 3 | B163: 2016-03-07T17:00:00 | C163: =+Metered!E164 -> 342664.985 | D163: 1.03874 | E163: 355939.8265 | F163: =SUMIF(OFFSET(Metered!$I$2,0,0,1,COUNTA(Metered!$I$2:$IV$2)),"Primary",OFFSET(Metered!$I164,0,0,1,COUNTA(Metered!$I164:$AA164))) -> 40729.51768 | G163: 396669.3442 | H163: 1.01574 | I163: 402912.9196 | J163: =SUMIF(OFFSET(Metered!$I$2,0,0,1,COUNTA(Metered!$I$2:$IV$2)),"Subtransmission",OFFSET(Metered!$I164,0,0,1,COUNTA(Metered!$I164:$AA164))) -> 199959.6567 | K163: 506576.3886 | L163: 1.01356 | M163: 513445.5644 | N163: =SUMIF(OFFSET(Metered!$I$2,0,0,1,COUNTA(Metered!$I$2:$AA$2)),"Transmission",OFFSET(Metered!$I164,0,0,1,COUNTA(Metered!$I164:$AA164))) -> 42147.73797 | O163: 651889.4902 | P163: 1.02785 | Q163: 670044.6125
A164: 3 | B164: 2016-03-07T18:00:00 | C164: =+Metered!E165 -> 378163.189 | D164: 1.03662 | E164: 392011.5249 | F164: =SUMIF(OFFSET(Metered!$I$2,0,0,1,COUNTA(Metered!$I$2:$IV$2)),"Primary",OFFSET(Metered!$I165,0,0,1,COUNTA(Metered!$I165:$AA165))) -> 39732.7077 | G164: 431744.2326 | H164: 1.01622 | I164: 438747.1241 | J164: =SUMIF(OFFSET(Metered!$I$2,0,0,1,COUNTA(Metered!$I$2:$IV$2)),"Subtransmission",OFFSET(Metered!$I165,0,0,1,COUNTA(Metered!$I165:$AA165))) -> 200437.3288 | K164: 534323.8902 | L164: 1.01408 | M164: 541847.1706 | N164: =SUMIF(OFFSET(Metered!$I$2,0,0,1,COUNTA(Metered!$I$2:$AA$2)),"Transmission",OFFSET(Metered!$I165,0,0,1,COUNTA(Metered!$I165:$AA165))) -> 42081.71968 | O164: 688789.4529 | P164: 1.02875 | Q164: 708592.1497
A165: 3 | B165: 2016-03-07T19:00:00 | C165: =+Metered!E166 -> 425377.1672 | D165: 1.03457 | E165: 440082.4559 | F165: =SUMIF(OFFSET(Metered!$I$2,0,0,1,COUNTA(Metered!$I$2:$IV$2)),"Primary",OFFSET(Metered!$I166,0,0,1,COUNTA(Metered!$I166:$AA166))) -> 40143.68315 | G165: 480226.1391 | H165: 1.01699 | I165: 488385.1812 | J165: =SUMIF(OFFSET(Metered!$I$2,0,0,1,COUNTA(Metered!$I$2:$IV$2)),"Subtransmission",OFFSET(Metered!$I166,0,0,1,COUNTA(Metered!$I166:$AA166))) -> 199230.4986 | K165: 570891.6214 | L165: 1.01478 | M165: 579329.3996 | N165: =SUMIF(OFFSET(Metered!$I$2,0,0,1,COUNTA(Metered!$I$2:$AA$2)),"Transmission",OFFSET(Metered!$I166,0,0,1,COUNTA(Metered!$I166:$AA166))) -> 42194.9838 | O165: 738248.4417 | P165: 1.03 | Q165: 760395.8949
A166: 3 | B166: 2016-03-07T20:00:00 | C166: =+Metered!E167 -> 403745.5017 | D166: 1.03542 | E166: 418046.1674 | F166: =SUMIF(OFFSET(Metered!$I$2,0,0,1,COUNTA(Metered!$I$2:$IV$2)),"Primary",OFFSET(Metered!$I167,0,0,1,COUNTA(Metered!$I167:$AA167))) -> 39632.63834 | G166: 457678.8057 | H166: 1.01662 | I166: 465285.4275 | J166: =SUMIF(OFFSET(Metered!$I$2,0,0,1,COUNTA(Metered!$I$2:$IV$2)),"Subtransmission",OFFSET(Metered!$I167,0,0,1,COUNTA(Metered!$I167:$AA167))) -> 198543.6461 | K166: 552625.8564 | L166: 1.01443 | M166: 560600.2475 | N166: =SUMIF(OFFSET(Metered!$I$2,0,0,1,COUNTA(Metered!$I$2:$AA$2)),"Transmission",OFFSET(Metered!$I167,0,0,1,COUNTA(Metered!$I167:$AA167))) -> 42196.01583 | O166: 713999.4805 | P166: 1.02938 | Q166: 734976.7853
A167: 3 | B167: 2016-03-07T21:00:00 | C167: =+Metered!E168 -> 387526.5036 | D167: 1.03616 | E167: 401539.4619 | F167: =SUMIF(OFFSET(Metered!$I$2,0,0,1,COUNTA(Metered!$I$2:$IV$2)),"Primary",OFFSET(Metered!$I168,0,0,1,COUNTA(Metered!$I168:$AA168))) -> 38358.60677 | G167: 439898.0687 | H167: 1.01634 | I167: 447086.0032 | J167: =SUMIF(OFFSET(Metered!$I$2,0,0,1,COUNTA(Metered!$I$2:$IV$2)),"Subtransmission",OFFSET(Metered!$I168,0,0,1,COUNTA(Metered!$I168:$AA168))) -> 201433.2416 | K167: 541665.69 | L167: 1.01422 | M167: 549368.1761 | N167: =SUMIF(OFFSET(Metered!$I$2,0,0,1,COUNTA(Metered!$I$2:$AA$2)),"Transmission",OFFSET(Metered!$I168,0,0,1,COUNTA(Metered!$I168:$AA168))) -> 42055.84506 | O167: 698277.5759 | P167: 1.02898 | Q167: 718513.6601
A168: 3 | B168: 2016-03-07T22:00:00 | C168: =+Metered!E169 -> 353282.1745 | D168: 1.03804 | E168: 366721.0285 | F168: =SUMIF(OFFSET(Metered!$I$2,0,0,1,COUNTA(Metered!$I$2:$IV$2)),"Primary",OFFSET(Metered!$I169,0,0,1,COUNTA(Metered!$I169:$AA169))) -> 37804.29217 | G168: 404525.3206 | H168: 1.01584 | I168: 410933.0017 | J168: =SUMIF(OFFSET(Metered!$I$2,0,0,1,COUNTA(Metered!$I$2:$IV$2)),"Subtransmission",OFFSET(Metered!$I169,0,0,1,COUNTA(Metered!$I169:$AA169))) -> 198640.8697 | K168: 511360.884 | L168: 1.01365 | M168: 518340.9601 | N168: =SUMIF(OFFSET(Metered!$I$2,0,0,1,COUNTA(Metered!$I$2:$AA$2)),"Transmission",OFFSET(Metered!$I169,0,0,1,COUNTA(Metered!$I169:$AA169))) -> 42068.64957 | O168: 658622.5971 | P168: 1.02801 | Q168: 677070.616
A169: 3 | B169: 2016-03-07T23:00:00 | C169: =+Metered!E170 -> 337279.2231 | D169: 1.03911 | E169: 350470.2135 | F169: =SUMIF(OFFSET(Metered!$I$2,0,0,1,COUNTA(Metered!$I$2:$IV$2)),"Primary",OFFSET(Metered!$I170,0,0,1,COUNTA(Metered!$I170:$AA170))) -> 37464.4826 | G169: 387934.6961 | H169: 1.01563 | I169: 393998.1154 | J169: =SUMIF(OFFSET(Metered!$I$2,0,0,1,COUNTA(Metered!$I$2:$IV$2)),"Subtransmission",OFFSET(Metered!$I170,0,0,1,COUNTA(Metered!$I170:$AA170))) -> 197241.969 | K169: 497074.5348 | L169: 1.01339 | M169: 503730.3628 | N169: =SUMIF(OFFSET(Metered!$I$2,0,0,1,COUNTA(Metered!$I$2:$AA$2)),"Transmission",OFFSET(Metered!$I170,0,0,1,COUNTA(Metered!$I170:$AA170))) -> 42001.66709 | O169: 639897.5795 | P169: 1.02757 | Q169: 657539.5558
A170: 3 | B170: 2016-03-08 | C170: =+Metered!E171 -> 333242.1243 | D170: 1.0394 | E170: 346371.864 | F170: =SUMIF(OFFSET(Metered!$I$2,0,0,1,COUNTA(Metered!$I$2:$IV$2)),"Primary",OFFSET(Metered!$I171,0,0,1,COUNTA(Metered!$I171:$AA171))) -> 34424.41484 | G170: 380796.2788 | H170: 1.01555 | I170: 386717.6609 | J170: =SUMIF(OFFSET(Metered!$I$2,0,0,1,COUNTA(Metered!$I$2:$IV$2)),"Subtransmission",OFFSET(Metered!$I171,0,0,1,COUNTA(Metered!$I171:$AA171))) -> 191520.9505 | K170: 485813.0905 | L170: 1.01318 | M170: 492216.107 | N170: =SUMIF(OFFSET(Metered!$I$2,0,0,1,COUNTA(Metered!$I$2:$AA$2)),"Transmission",OFFSET(Metered!$I171,0,0,1,COUNTA(Metered!$I171:$AA171))) -> 41880.31599 | O170: 626521.944 | P170: 1.02726 | Q170: 643600.9322
A171: 3 | B171: 2016-03-08T01:00:00 | C171: =+Metered!E172 -> 338204.2319 | D171: 1.03905 | E171: 351411.1072 | F171: =SUMIF(OFFSET(Metered!$I$2,0,0,1,COUNTA(Metered!$I$2:$IV$2)),"Primary",OFFSET(Metered!$I172,0,0,1,COUNTA(Metered!$I172:$AA172))) -> 33208.62418 | G171: 384619.7314 | H171: 1.01559 | I171: 390615.953 | J171: =SUMIF(OFFSET(Metered!$I$2,0,0,1,COUNTA(Metered!$I$2:$IV$2)),"Subtransmission",OFFSET(Metered!$I172,0,0,1,COUNTA(Metered!$I172:$AA172))) -> 186983.2796 | K171: 484242.0199 | L171: 1.01315 | M171: 490609.8024 | N171: =SUMIF(OFFSET(Metered!$I$2,0,0,1,COUNTA(Metered!$I$2:$AA$2)),"Transmission",OFFSET(Metered!$I172,0,0,1,COUNTA(Metered!$I172:$AA172))) -> 41852.83209 | O171: 625819.8473 | P171: 1.02724 | Q171: 642867.1799
A172: 3 | B172: 2016-03-08T02:00:00 | C172: =+Metered!E173 -> 331756.1592 | D172: 1.03951 | E172: 344863.8451 | F172: =SUMIF(OFFSET(Metered!$I$2,0,0,1,COUNTA(Metered!$I$2:$IV$2)),"Primary",OFFSET(Metered!$I173,0,0,1,COUNTA(Metered!$I173:$AA173))) -> 32976.47854 | G172: 377840.3236 | H172: 1.01552 | I172: 383704.4055 | J172: =SUMIF(OFFSET(Metered!$I$2,0,0,1,COUNTA(Metered!$I$2:$IV$2)),"Subtransmission",OFFSET(Metered!$I173,0,0,1,COUNTA(Metered!$I173:$AA173))) -> 185526.3079 | K172: 477525.3604 | L172: 1.01303 | M172: 483747.5159 | N172: =SUMIF(OFFSET(Metered!$I$2,0,0,1,COUNTA(Metered!$I$2:$AA$2)),"Transmission",OFFSET(Metered!$I173,0,0,1,COUNTA(Metered!$I173:$AA173))) -> 41849.02122 | O172: 617301.89 | P172: 1.02705 | Q172: 633999.9061
A173: 3 | B173: 2016-03-08T03:00:00 | C173: =+Metered!E174 -> 366845.9358 | D173: 1.03724 | E173: 380507.2785 | F173: =SUMIF(OFFSET(Metered!$I$2,0,0,1,COUNTA(Metered!$I$2:$IV$2)),"Primary",OFFSET(Metered!$I174,0,0,1,COUNTA(Metered!$I174:$AA174))) -> 32858.4424 | G173: 413365.7209 | H173: 1.01596 | I173: 419963.0378 | J173: =SUMIF(OFFSET(Metered!$I$2,0,0,1,COUNTA(Metered!$I$2:$IV$2)),"Subtransmission",OFFSET(Metered!$I174,0,0,1,COUNTA(Metered!$I174:$AA174))) -> 186367.6517 | K173: 505959.5235 | L173: 1.01355 | M173: 512815.2751 | N173: =SUMIF(OFFSET(Metered!$I$2,0,0,1,COUNTA(Metered!$I$2:$AA$2)),"Transmission",OFFSET(Metered!$I174,0,0,1,COUNTA(Metered!$I174:$AA174))) -> 41986.66056 | O173: 655173.1017 | P173: 1.02793 | Q173: 673472.0864
A174: 3 | B174: 2016-03-08T04:00:00 | C174: =+Metered!E175 -> 369281.5647 | D174: 1.0371 | E174: 382981.9108 | F174: =SUMIF(OFFSET(Metered!$I$2,0,0,1,COUNTA(Metered!$I$2:$IV$2)),"Primary",OFFSET(Metered!$I175,0,0,1,COUNTA(Metered!$I175:$AA175))) -> 33935.22434 | G174: 416917.1351 | H174: 1.01601 | I174: 423591.9785 | J174: =SUMIF(OFFSET(Metered!$I$2,0,0,1,COUNTA(Metered!$I$2:$IV$2)),"Subtransmission",OFFSET(Metered!$I175,0,0,1,COUNTA(Metered!$I175:$AA175))) -> 186821.9503 | K174: 509175.4459 | L174: 1.01361 | M174: 516105.3238 | N174: =SUMIF(OFFSET(Metered!$I$2,0,0,1,COUNTA(Metered!$I$2:$AA$2)),"Transmission",OFFSET(Metered!$I175,0,0,1,COUNTA(Metered!$I175:$AA175))) -> 42110.19395 | O174: 659454.0006 | P174: 1.02803 | Q174: 677938.4962
A175: 3 | B175: 2016-03-08T05:00:00 | C175: =+Metered!E176 -> 404846.3984 | D175: 1.03537 | E175: 419165.8156 | F175: =SUMIF(OFFSET(Metered!$I$2,0,0,1,COUNTA(Metered!$I$2:$IV$2)),"Primary",OFFSET(Metered!$I176,0,0,1,COUNTA(Metered!$I176:$AA176))) -> 35879.97527 | G175: 455045.7908 | H175: 1.01658 | I175: 462590.45 | J175: =SUMIF(OFFSET(Metered!$I$2,0,0,1,COUNTA(Metered!$I$2:$IV$2)),"Subtransmission",OFFSET(Metered!$I176,0,0,1,COUNTA(Metered!$I176:$AA176))) -> 190456.5733 | K175: 542487.9057 | L175: 1.01423 | M175: 550207.5086 | N175: =SUMIF(OFFSET(Metered!$I$2,0,0,1,COUNTA(Metered!$I$2:$AA$2)),"Transmission",OFFSET(Metered!$I176,0,0,1,COUNTA(Metered!$I176:$AA176))) -> 42216.67018 | O175: 702983.2964 | P175: 1.0291 | Q175: 723440.1103
A176: 3 | B176: 2016-03-08T06:00:00 | C176: =+Metered!E177 -> 458190.4851 | D176: 1.03352 | E176: 473549.0301 | F176: =SUMIF(OFFSET(Metered!$I$2,0,0,1,COUNTA(Metered!$I$2:$IV$2)),"Primary",OFFSET(Metered!$I177,0,0,1,COUNTA(Metered!$I177:$AA177))) -> 41061.97649 | G176: 514611.0066 | H176: 1.01759 | I176: 523663.0142 | J176: =SUMIF(OFFSET(Metered!$I$2,0,0,1,COUNTA(Metered!$I$2:$IV$2)),"Subtransmission",OFFSET(Metered!$I177,0,0,1,COUNTA(Metered!$I177:$AA177))) -> 196129.4536 | K176: 594637.0074 | L176: 1.01524 | M176: 603699.2754 | N176: =SUMIF(OFFSET(Metered!$I$2,0,0,1,COUNTA(Metered!$I$2:$AA$2)),"Transmission",OFFSET(Metered!$I177,0,0,1,COUNTA(Metered!$I177:$AA177))) -> 42306.31916 | O176: 771161.055 | P176: 1.03086 | Q176: 794959.0851
A177: 3 | B177: 2016-03-08T07:00:00 | C177: =+Metered!E178 -> 449929.9594 | D177: 1.03376 | E177: 465119.5948 | F177: =SUMIF(OFFSET(Metered!$I$2,0,0,1,COUNTA(Metered!$I$2:$IV$2)),"Primary",OFFSET(Metered!$I178,0,0,1,COUNTA(Metered!$I178:$AA178))) -> 44344.60565 | G177: 509464.2005 | H177: 1.0175 | I177: 518379.824 | J177: =SUMIF(OFFSET(Metered!$I$2,0,0,1,COUNTA(Metered!$I$2:$IV$2)),"Subtransmission",OFFSET(Metered!$I178,0,0,1,COUNTA(Metered!$I178:$AA178))) -> 201082.4642 | K177: 595569.5102 | L177: 1.01526 | M177: 604657.9009 | N177: =SUMIF(OFFSET(Metered!$I$2,0,0,1,COUNTA(Metered!$I$2:$AA$2)),"Transmission",OFFSET(Metered!$I178,0,0,1,COUNTA(Metered!$I178:$AA178))) -> 42398.12813 | O177: 770948.807 | P177: 1.03085 | Q177: 794732.5777
A178: 3 | B178: 2016-03-08T08:00:00 | C178: =+Metered!E179 -> 420007.8404 | D178: 1.03477 | E178: 434611.513 | F178: =SUMIF(OFFSET(Metered!$I$2,0,0,1,COUNTA(Metered!$I$2:$IV$2)),"Primary",OFFSET(Metered!$I179,0,0,1,COUNTA(Metered!$I179:$AA179))) -> 47131.4648 | G178: 481742.9778 | H178: 1.01701 | I178: 489937.4259 | J178: =SUMIF(OFFSET(Metered!$I$2,0,0,1,COUNTA(Metered!$I$2:$IV$2)),"Subtransmission",OFFSET(Metered!$I179,0,0,1,COUNTA(Metered!$I179:$AA179))) -> 204045.7956 | K178: 576888.1767 | L178: 1.01489 | M178: 585478.0416 | N178: =SUMIF(OFFSET(Metered!$I$2,0,0,1,COUNTA(Metered!$I$2:$AA$2)),"Transmission",OFFSET(Metered!$I179,0,0,1,COUNTA(Metered!$I179:$AA179))) -> 42748.29298 | O178: 745321.3794 | P178: 1.03018 | Q178: 767815.1786
A179: 3 | B179: 2016-03-08T09:00:00 | C179: =+Metered!E180 -> 385818.7231 | D179: 1.03624 | E179: 399800.7936 | F179: =SUMIF(OFFSET(Metered!$I$2,0,0,1,COUNTA(Metered!$I$2:$IV$2)),"Primary",OFFSET(Metered!$I180,0,0,1,COUNTA(Metered!$I180:$AA180))) -> 47554.89381 | G179: 447355.6874 | H179: 1.01646 | I179: 454719.1621 | J179: =SUMIF(OFFSET(Metered!$I$2,0,0,1,COUNTA(Metered!$I$2:$IV$2)),"Subtransmission",OFFSET(Metered!$I180,0,0,1,COUNTA(Metered!$I180:$AA180))) -> 203399.9236 | K179: 549441.2059 | L179: 1.01437 | M179: 557336.676 | N179: =SUMIF(OFFSET(Metered!$I$2,0,0,1,COUNTA(Metered!$I$2:$AA$2)),"Transmission",OFFSET(Metered!$I180,0,0,1,COUNTA(Metered!$I180:$AA180))) -> 43492.01418 | O179: 709506.5699 | P179: 1.02927 | Q179: 730273.8273
A180: 3 | B180: 2016-03-08T10:00:00 | C180: =+Metered!E181 -> 353948.9085 | D180: 1.038 | E180: 367398.967 | F180: =SUMIF(OFFSET(Metered!$I$2,0,0,1,COUNTA(Metered!$I$2:$IV$2)),"Primary",OFFSET(Metered!$I181,0,0,1,COUNTA(Metered!$I181:$AA181))) -> 47369.30957 | G180: 414768.2766 | H180: 1.01598 | I180: 421396.2737 | J180: =SUMIF(OFFSET(Metered!$I$2,0,0,1,COUNTA(Metered!$I$2:$IV$2)),"Subtransmission",OFFSET(Metered!$I181,0,0,1,COUNTA(Metered!$I181:$AA181))) -> 201156.9295 | K180: 521839.4937 | L180: 1.01384 | M180: 529061.7523 | N180: =SUMIF(OFFSET(Metered!$I$2,0,0,1,COUNTA(Metered!$I$2:$AA$2)),"Transmission",OFFSET(Metered!$I181,0,0,1,COUNTA(Metered!$I181:$AA181))) -> 43564.85421 | O180: 673340.3159 | P180: 1.02837 | Q180: 692442.9807
A181: 3 | B181: 2016-03-08T11:00:00 | C181: =+Metered!E182 -> 337552.8065 | D181: 1.03909 | E181: 350747.7457 | F181: =SUMIF(OFFSET(Metered!$I$2,0,0,1,COUNTA(Metered!$I$2:$IV$2)),"Primary",OFFSET(Metered!$I182,0,0,1,COUNTA(Metered!$I182:$AA182))) -> 47619.89042 | G181: 398367.6361 | H181: 1.01576 | I181: 404645.9101 | J181: =SUMIF(OFFSET(Metered!$I$2,0,0,1,COUNTA(Metered!$I$2:$IV$2)),"Subtransmission",OFFSET(Metered!$I182,0,0,1,COUNTA(Metered!$I182:$AA182))) -> 202634.1894 | K181: 510569.727 | L181: 1.01363 | M181: 517528.7923 | N181: =SUMIF(OFFSET(Metered!$I$2,0,0,1,COUNTA(Metered!$I$2:$AA$2)),"Transmission",OFFSET(Metered!$I182,0,0,1,COUNTA(Metered!$I182:$AA182))) -> 43105.19811 | O181: 657344.3629 | P181: 1.02798 | Q181: 675736.8582
A182: 3 | B182: 2016-03-08T12:00:00 | C182: =+Metered!E183 -> 328571.2619 | D182: 1.03975 | E182: 341631.9696 | F182: =SUMIF(OFFSET(Metered!$I$2,0,0,1,COUNTA(Metered!$I$2:$IV$2)),"Primary",OFFSET(Metered!$I183,0,0,1,COUNTA(Metered!$I183:$AA183))) -> 47355.26826 | G182: 388987.2378 | H182: 1.01565 | I182: 395074.8881 | J182: =SUMIF(OFFSET(Metered!$I$2,0,0,1,COUNTA(Metered!$I$2:$IV$2)),"Subtransmission",OFFSET(Metered!$I183,0,0,1,COUNTA(Metered!$I183:$AA183))) -> 201933.2529 | K182: 502585.2427 | L182: 1.01349 | M182: 509365.1176 | N182: =SUMIF(OFFSET(Metered!$I$2,0,0,1,COUNTA(Metered!$I$2:$AA$2)),"Transmission",OFFSET(Metered!$I183,0,0,1,COUNTA(Metered!$I183:$AA183))) -> 42738.21443 | O182: 646526.2303 | P182: 1.02773 | Q182: 664454.4027
A183: 3 | B183: 2016-03-08T13:00:00 | C183: =+Metered!E184 -> 311747.0258 | D183: 1.04112 | E183: 324566.0635 | F183: =SUMIF(OFFSET(Metered!$I$2,0,0,1,COUNTA(Metered!$I$2:$IV$2)),"Primary",OFFSET(Metered!$I184,0,0,1,COUNTA(Metered!$I184:$AA184))) -> 46832.41639 | G183: 371398.4799 | H183: 1.01545 | I183: 377136.5864 | J183: =SUMIF(OFFSET(Metered!$I$2,0,0,1,COUNTA(Metered!$I$2:$IV$2)),"Subtransmission",OFFSET(Metered!$I184,0,0,1,COUNTA(Metered!$I184:$AA184))) -> 202678.8441 | K183: 489679.7864 | L183: 1.01325 | M183: 496168.0435 | N183: =SUMIF(OFFSET(Metered!$I$2,0,0,1,COUNTA(Metered!$I$2:$AA$2)),"Transmission",OFFSET(Metered!$I184,0,0,1,COUNTA(Metered!$I184:$AA184))) -> 42564.9518 | O183: 628868.6395 | P183: 1.02731 | Q183: 646043.042
A184: 3 | B184: 2016-03-08T14:00:00 | C184: =+Metered!E185 -> 313361.2881 | D184: 1.04098 | E184: 326202.8337 | F184: =SUMIF(OFFSET(Metered!$I$2,0,0,1,COUNTA(Metered!$I$2:$IV$2)),"Primary",OFFSET(Metered!$I185,0,0,1,COUNTA(Metered!$I185:$AA185))) -> 46418.79869 | G184: 372621.6324 | H184: 1.01546 | I184: 378382.3628 | J184: =SUMIF(OFFSET(Metered!$I$2,0,0,1,COUNTA(Metered!$I$2:$IV$2)),"Subtransmission",OFFSET(Metered!$I185,0,0,1,COUNTA(Metered!$I185:$AA185))) -> 201132.9622 | K184: 489081.9403 | L184: 1.01324 | M184: 495557.3852 | N184: =SUMIF(OFFSET(Metered!$I$2,0,0,1,COUNTA(Metered!$I$2:$AA$2)),"Transmission",OFFSET(Metered!$I185,0,0,1,COUNTA(Metered!$I185:$AA185))) -> 42766.02183 | O184: 628756.7917 | P184: 1.02731 | Q184: 645928.1397
A185: 3 | B185: 2016-03-08T15:00:00 | C185: =+Metered!E186 -> 317670.5962 | D185: 1.04062 | E185: 330574.3758 | F185: =SUMIF(OFFSET(Metered!$I$2,0,0,1,COUNTA(Metered!$I$2:$IV$2)),"Primary",OFFSET(Metered!$I186,0,0,1,COUNTA(Metered!$I186:$AA186))) -> 45271.62906 | G185: 375846.0048 | H185: 1.01549 | I185: 381667.8595 | J185: =SUMIF(OFFSET(Metered!$I$2,0,0,1,COUNTA(Metered!$I$2:$IV$2)),"Subtransmission",OFFSET(Metered!$I186,0,0,1,COUNTA(Metered!$I186:$AA186))) -> 197237.4296 | K185: 487686.6707 | L185: 1.01321 | M185: 494129.0116 | N185: =SUMIF(OFFSET(Metered!$I$2,0,0,1,COUNTA(Metered!$I$2:$AA$2)),"Transmission",OFFSET(Metered!$I186,0,0,1,COUNTA(Metered!$I186:$AA186))) -> 42636.16399 | O185: 627983.794 | P185: 1.02729 | Q185: 645121.4717
A186: 3 | B186: 2016-03-08T16:00:00 | C186: =+Metered!E187 -> 313850.465 | D186: 1.04094 | E186: 326699.503 | F186: =SUMIF(OFFSET(Metered!$I$2,0,0,1,COUNTA(Metered!$I$2:$IV$2)),"Primary",OFFSET(Metered!$I187,0,0,1,COUNTA(Metered!$I187:$AA187))) -> 42464.35952 | G186: 369163.8626 | H186: 1.01542 | I186: 374856.3693 | J186: =SUMIF(OFFSET(Metered!$I$2,0,0,1,COUNTA(Metered!$I$2:$IV$2)),"Subtransmission",OFFSET(Metered!$I187,0,0,1,COUNTA(Metered!$I187:$AA187))) -> 196832.0065 | K186: 482097.7035 | L186: 1.01311 | M186: 488418.0044 | N186: =SUMIF(OFFSET(Metered!$I$2,0,0,1,COUNTA(Metered!$I$2:$AA$2)),"Transmission",OFFSET(Metered!$I187,0,0,1,COUNTA(Metered!$I187:$AA187))) -> 42461.28133 | O186: 620469.958 | P186: 1.02712 | Q186: 637297.1033
A187: 3 | B187: 2016-03-08T17:00:00 | C187: =+Metered!E188 -> 324586.1949 | D187: 1.04006 | E187: 337589.1178 | F187: =SUMIF(OFFSET(Metered!$I$2,0,0,1,COUNTA(Metered!$I$2:$IV$2)),"Primary",OFFSET(Metered!$I188,0,0,1,COUNTA(Metered!$I188:$AA188))) -> 39862.57099 | G187: 377451.6888 | H187: 1.01551 | I187: 383305.9645 | J187: =SUMIF(OFFSET(Metered!$I$2,0,0,1,COUNTA(Metered!$I$2:$IV$2)),"Subtransmission",OFFSET(Metered!$I188,0,0,1,COUNTA(Metered!$I188:$AA188))) -> 194106.4119 | K187: 485802.2509 | L187: 1.01318 | M187: 492205.1245 | N187: =SUMIF(OFFSET(Metered!$I$2,0,0,1,COUNTA(Metered!$I$2:$AA$2)),"Transmission",OFFSET(Metered!$I188,0,0,1,COUNTA(Metered!$I188:$AA188))) -> 42262.16161 | O187: 626077.4116 | P187: 1.02725 | Q187: 643138.0211
A188: 3 | B188: 2016-03-08T18:00:00 | C188: =+Metered!E189 -> 337984.2485 | D188: 1.03906 | E188: 351185.9132 | F188: =SUMIF(OFFSET(Metered!$I$2,0,0,1,COUNTA(Metered!$I$2:$IV$2)),"Primary",OFFSET(Metered!$I189,0,0,1,COUNTA(Metered!$I189:$AA189))) -> 38696.88571 | G188: 389882.799 | H188: 1.01566 | I188: 395988.3636 | J188: =SUMIF(OFFSET(Metered!$I$2,0,0,1,COUNTA(Metered!$I$2:$IV$2)),"Subtransmission",OFFSET(Metered!$I189,0,0,1,COUNTA(Metered!$I189:$AA189))) -> 190613.6672 | K188: 491960.8118 | L188: 1.01329 | M188: 498498.971 | N188: =SUMIF(OFFSET(Metered!$I$2,0,0,1,COUNTA(Metered!$I$2:$AA$2)),"Transmission",OFFSET(Metered!$I189,0,0,1,COUNTA(Metered!$I189:$AA189))) -> 42088.69069 | O188: 635228.8806 | P188: 1.02746 | Q188: 652672.2657
A189: 3 | B189: 2016-03-08T19:00:00 | C189: =+Metered!E190 -> 381645.5509 | D189: 1.03645 | E189: 395556.5312 | F189: =SUMIF(OFFSET(Metered!$I$2,0,0,1,COUNTA(Metered!$I$2:$IV$2)),"Primary",OFFSET(Metered!$I190,0,0,1,COUNTA(Metered!$I190:$AA190))) -> 37647.9651 | G189: 433204.4963 | H189: 1.01624 | I189: 440239.7373 | J189: =SUMIF(OFFSET(Metered!$I$2,0,0,1,COUNTA(Metered!$I$2:$IV$2)),"Subtransmission",OFFSET(Metered!$I190,0,0,1,COUNTA(Metered!$I190:$AA190))) -> 189924.6013 | K189: 524947.0414 | L189: 1.0139 | M189: 532243.8053 | N189: =SUMIF(OFFSET(Metered!$I$2,0,0,1,COUNTA(Metered!$I$2:$AA$2)),"Transmission",OFFSET(Metered!$I190,0,0,1,COUNTA(Metered!$I190:$AA190))) -> 42039.41095 | O189: 679500.5134 | P189: 1.02852 | Q189: 698879.8681
A190: 3 | B190: 2016-03-08T20:00:00 | C190: =+Metered!E191 -> 350110.2391 | D190: 1.03825 | E190: 363501.9558 | F190: =SUMIF(OFFSET(Metered!$I$2,0,0,1,COUNTA(Metered!$I$2:$IV$2)),"Primary",OFFSET(Metered!$I191,0,0,1,COUNTA(Metered!$I191:$AA191))) -> 36203.94024 | G190: 399705.896 | H190: 1.01578 | I190: 406013.2551 | J190: =SUMIF(OFFSET(Metered!$I$2,0,0,1,COUNTA(Metered!$I$2:$IV$2)),"Subtransmission",OFFSET(Metered!$I191,0,0,1,COUNTA(Metered!$I191:$AA191))) -> 190666.9413 | K190: 499643.0284 | L190: 1.01343 | M190: 506353.2343 | N190: =SUMIF(OFFSET(Metered!$I$2,0,0,1,COUNTA(Metered!$I$2:$AA$2)),"Transmission",OFFSET(Metered!$I191,0,0,1,COUNTA(Metered!$I191:$AA191))) -> 41928.0784 | O190: 645318.4806 | P190: 1.0277 | Q190: 663193.8025
A191: 3 | B191: 2016-03-08T21:00:00 | C191: =+Metered!E192 -> 361455.804 | D191: 1.03755 | E191: 375028.4694 | F191: =SUMIF(OFFSET(Metered!$I$2,0,0,1,COUNTA(Metered!$I$2:$IV$2)),"Primary",OFFSET(Metered!$I192,0,0,1,COUNTA(Metered!$I192:$AA192))) -> 34975.00561 | G191: 410003.475 | H191: 1.01591 | I191: 416526.6303 | J191: =SUMIF(OFFSET(Metered!$I$2,0,0,1,COUNTA(Metered!$I$2:$IV$2)),"Subtransmission",OFFSET(Metered!$I192,0,0,1,COUNTA(Metered!$I192:$AA192))) -> 197984.7325 | K191: 514961.4982 | L191: 1.01372 | M191: 522026.7699 | N191: =SUMIF(OFFSET(Metered!$I$2,0,0,1,COUNTA(Metered!$I$2:$AA$2)),"Transmission",OFFSET(Metered!$I192,0,0,1,COUNTA(Metered!$I192:$AA192))) -> 41949.95996 | O191: 663526.5945 | P191: 1.02813 | Q191: 682191.5976
A192: 3 | B192: 2016-03-08T22:00:00 | C192: =+Metered!E193 -> 342887.2223 | D192: 1.03872 | E192: 356163.8155 | F192: =SUMIF(OFFSET(Metered!$I$2,0,0,1,COUNTA(Metered!$I$2:$IV$2)),"Primary",OFFSET(Metered!$I193,0,0,1,COUNTA(Metered!$I193:$AA193))) -> 34213.65234 | G192: 390377.4679 | H192: 1.01566 | I192: 396490.779 | J192: =SUMIF(OFFSET(Metered!$I$2,0,0,1,COUNTA(Metered!$I$2:$IV$2)),"Subtransmission",OFFSET(Metered!$I193,0,0,1,COUNTA(Metered!$I193:$AA193))) -> 202498.9716 | K192: 504228.4544 | L192: 1.01352 | M192: 511045.6231 | N192: =SUMIF(OFFSET(Metered!$I$2,0,0,1,COUNTA(Metered!$I$2:$AA$2)),"Transmission",OFFSET(Metered!$I193,0,0,1,COUNTA(Metered!$I193:$AA193))) -> 41984.68264 | O192: 647791.6019 | P192: 1.02776 | Q192: 665774.2968
A193: 3 | B193: 2016-03-08T23:00:00 | C193: =+Metered!E194 -> 285513.0703 | D193: 1.04366 | E193: 297978.5709 | F193: =SUMIF(OFFSET(Metered!$I$2,0,0,1,COUNTA(Metered!$I$2:$IV$2)),"Primary",OFFSET(Metered!$I194,0,0,1,COUNTA(Metered!$I194:$AA194))) -> 33693.93177 | G193: 331672.5027 | H193: 1.0151 | I193: 336680.7575 | J193: =SUMIF(OFFSET(Metered!$I$2,0,0,1,COUNTA(Metered!$I$2:$IV$2)),"Subtransmission",OFFSET(Metered!$I194,0,0,1,COUNTA(Metered!$I194:$AA194))) -> 202828.5085 | K193: 459042.565 | L193: 1.0127 | M193: 464872.4056 | N193: =SUMIF(OFFSET(Metered!$I$2,0,0,1,COUNTA(Metered!$I$2:$AA$2)),"Transmission",OFFSET(Metered!$I194,0,0,1,COUNTA(Metered!$I194:$AA194))) -> 41925.84868 | O193: 587264.9553 | P193: 1.02639 | Q193: 602762.8774
A194: 3 | B194: 2016-03-09 | C194: =+Metered!E195 -> 282573.2723 | D194: =IF(C194=0,0,ROUND(1+((LossCoeff_Sec*C194^2+ZeroLoadLoss_Sec)/C194),5)) -> 1.04398 | E194: 295000.8448 | F194: =SUMIF(OFFSET(Metered!$I$2,0,0,1,COUNTA(Metered!$I$2:$IV$2)),"Primary",OFFSET(Metered!$I195,0,0,1,COUNTA(Metered!$I195:$AA195))) -> 32375.78442 | G194: 327376.6292 | H194: =IF(G194=0,0,ROUND(1+((LossCoeff_Pri*G194^2+ZeroLoadLoss_Pri)/G194),5)) -> 1.01507 | I194: 332310.195 | J194: =SUMIF(OFFSET(Metered!$I$2,0,0,1,COUNTA(Metered!$I$2:$IV$2)),"Subtransmission",OFFSET(Metered!$I195,0,0,1,COUNTA(Metered!$I195:$AA195))) -> 198548.1705 | K194: =+I194*DistAtSubtran+J194 -> 451436.229 | L194: =IF(K194=0,0,ROUND(1+((LossCoeff_Sub*K194^2+ZeroLoadLoss_Sub)/K194),5)) -> 1.01257 | M194: 457110.7824 | N194: =SUMIF(OFFSET(Metered!$I$2,0,0,1,COUNTA(Metered!$I$2:$AA$2)),"Transmission",OFFSET(Metered!$I195,0,0,1,COUNTA(Metered!$I195:$AA195))) -> 41908.35194 | O194: =+M194+N194+(1-DistAtSubtran)*I194 -> 578441.2709 | P194: =IF(O194=0,0,ROUND(1+((LossCoeff_Trn*O194^2+ZeroLoadLoss_Trn)/O194),5)) -> 1.0262 | Q194: 593596.4322
A195: =MONTH(B195) -> 3 | B195: =+B194+1/24 -> 2016-03-09T01:00:00 | C195: =+Metered!E196 -> 270261.0166 | D195: 1.04542 | E195: =+C195*D195 -> 282536.272 | F195: =SUMIF(OFFSET(Metered!$I$2,0,0,1,COUNTA(Metered!$I$2:$IV$2)),"Primary",OFFSET(Metered!$I196,0,0,1,COUNTA(Metered!$I196:$AA196))) -> 31813.00053 | G195: =+E195+F195 -> 314349.2725 | H195: 1.015 | I195: =+G195*H195 -> 319064.5116 | J195: =SUMIF(OFFSET(Metered!$I$2,0,0,1,COUNTA(Metered!$I$2:$IV$2)),"Subtransmission",OFFSET(Metered!$I196,0,0,1,COUNTA(Metered!$I196:$AA196))) -> 196565.3303 | K195: 439373.4237 | L195: 1.01236 | M195: =+K195*L195 -> 444804.0792 | N195: =SUMIF(OFFSET(Metered!$I$2,0,0,1,COUNTA(Metered!$I$2:$AA$2)),"Transmission",OFFSET(Metered!$I196,0,0,1,COUNTA(Metered!$I196:$AA196))) -> 41927.0036 | O195: 562987.5011 | P195: 1.02588 | Q195: =+P195*O195 -> 577557.6176
A196: 3 | B196: 2016-03-09T02:00:00 | C196: =+Metered!E197 -> 281791.8841 | D196: 1.04407 | E196: 294210.4524 | F196: =SUMIF(OFFSET(Metered!$I$2,0,0,1,COUNTA(Metered!$I$2:$IV$2)),"Primary",OFFSET(Metered!$I197,0,0,1,COUNTA(Metered!$I197:$AA197))) -> 31850.88855 | G196: 326061.341 | H196: 1.01506 | I196: 330971.8248 | J196: =SUMIF(OFFSET(Metered!$I$2,0,0,1,COUNTA(Metered!$I$2:$IV$2)),"Subtransmission",OFFSET(Metered!$I197,0,0,1,COUNTA(Metered!$I197:$AA197))) -> 194296.0809 | K196: 446165.6396 | L196: 1.01248 | M196: 451733.7868 | N196: =SUMIF(OFFSET(Metered!$I$2,0,0,1,COUNTA(Metered!$I$2:$AA$2)),"Transmission",OFFSET(Metered!$I197,0,0,1,COUNTA(Metered!$I197:$AA197))) -> 41915.86161 | O196: 572751.9145 | P196: 1.02608 | Q196: 587689.2845
A197: 3 | B197: 2016-03-09T03:00:00 | C197: =+Metered!E198 -> 298672.5728 | D197: 1.04232 | E197: 311312.3961 | F197: =SUMIF(OFFSET(Metered!$I$2,0,0,1,COUNTA(Metered!$I$2:$IV$2)),"Primary",OFFSET(Metered!$I198,0,0,1,COUNTA(Metered!$I198:$AA198))) -> 32192.68415 | G197: 343505.0802 | H197: 1.01518 | I197: 348719.4874 | J197: =SUMIF(OFFSET(Metered!$I$2,0,0,1,COUNTA(Metered!$I$2:$IV$2)),"Subtransmission",OFFSET(Metered!$I198,0,0,1,COUNTA(Metered!$I198:$AA198))) -> 193010.2798 | K197: 458385.8097 | L197: 1.01269 | M197: 464202.7256 | N197: =SUMIF(OFFSET(Metered!$I$2,0,0,1,COUNTA(Metered!$I$2:$AA$2)),"Transmission",OFFSET(Metered!$I198,0,0,1,COUNTA(Metered!$I198:$AA198))) -> 41951.71591 | O197: 589498.399 | P197: 1.02643 | Q197: 605078.8417
A198: 3 | B198: 2016-03-09T04:00:00 | C198: =+Metered!E199 -> 336397.1179 | D198: 1.03917 | E198: 349573.793 | F198: =SUMIF(OFFSET(Metered!$I$2,0,0,1,COUNTA(Metered!$I$2:$IV$2)),"Primary",OFFSET(Metered!$I199,0,0,1,COUNTA(Metered!$I199:$AA199))) -> 33367.16059 | G198: 382940.9536 | H198: 1.01557 | I198: 388903.3443 | J198: =SUMIF(OFFSET(Metered!$I$2,0,0,1,COUNTA(Metered!$I$2:$IV$2)),"Subtransmission",OFFSET(Metered!$I199,0,0,1,COUNTA(Metered!$I199:$AA199))) -> 191585.8776 | K198: 487541.3226 | L198: 1.01321 | M198: 493981.7435 | N198: =SUMIF(OFFSET(Metered!$I$2,0,0,1,COUNTA(Metered!$I$2:$AA$2)),"Transmission",OFFSET(Metered!$I199,0,0,1,COUNTA(Metered!$I199:$AA199))) -> 41973.98984 | O198: 628903.6326 | P198: 1.02732 | Q198: 646085.2798
A199: 3 | B199: 2016-03-09T05:00:00 | C199: =+Metered!E200 -> 394641.9892 | D199: 1.03582 | E199: 408778.0653 | F199: =SUMIF(OFFSET(Metered!$I$2,0,0,1,COUNTA(Metered!$I$2:$IV$2)),"Primary",OFFSET(Metered!$I200,0,0,1,COUNTA(Metered!$I200:$AA200))) -> 34628.27224 | G199: 443406.3375 | H199: 1.0164 | I199: 450678.2015 | J199: =SUMIF(OFFSET(Metered!$I$2,0,0,1,COUNTA(Metered!$I$2:$IV$2)),"Subtransmission",OFFSET(Metered!$I200,0,0,1,COUNTA(Metered!$I200:$AA200))) -> 191932.5599 | K199: 534898.6713 | L199: 1.01409 | M199: 542435.3935 | N199: =SUMIF(OFFSET(Metered!$I$2,0,0,1,COUNTA(Metered!$I$2:$AA$2)),"Transmission",OFFSET(Metered!$I200,0,0,1,COUNTA(Metered!$I200:$AA200))) -> 41922.58686 | O199: 692070.0706 | P199: 1.02883 | Q199: 712022.4507
A200: 3 | B200: 2016-03-09T06:00:00 | C200: =+Metered!E201 -> 425151.8709 | D200: 1.03458 | E200: 439853.6226 | F200: =SUMIF(OFFSET(Metered!$I$2,0,0,1,COUNTA(Metered!$I$2:$IV$2)),"Primary",OFFSET(Metered!$I201,0,0,1,COUNTA(Metered!$I201:$AA201))) -> 41019.25385 | G200: 480872.8765 | H200: 1.017 | I200: 489047.7154 | J200: =SUMIF(OFFSET(Metered!$I$2,0,0,1,COUNTA(Metered!$I$2:$IV$2)),"Subtransmission",OFFSET(Metered!$I201,0,0,1,COUNTA(Metered!$I201:$AA201))) -> 195992.6283 | K200: 568157.9397 | L200: 1.01472 | M200: 576521.2245 | N200: =SUMIF(OFFSET(Metered!$I$2,0,0,1,COUNTA(Metered!$I$2:$AA$2)),"Transmission",OFFSET(Metered!$I201,0,0,1,COUNTA(Metered!$I201:$AA201))) -> 42149.74335 | O200: 735553.3719 | P200: 1.02993 | Q200: 757568.4843
... 362 more rows

Sheet Loss Adj Sec
A1: Period | B1: Date | C1: Total | D1: =+Metered!I1 -> Res | E1: =+Metered!J1 -> SGS | F1: =+Metered!K1 -> MGS Sec | G1: =+Metered!L1 -> MGS Pri | H1: =+Metered!M1 -> MGS Sub | I1: =+Metered!N1 -> LGS Sec | J1: =+Metered!O1 -> LGS Pri | K1: =+Metered!P1 -> LGS Sub | L1: =+Metered!Q1 -> LGS Tran | M1: =+Metered!R1 -> PS Sec | N1: =+Metered!S1 -> PS Pri | O1: =+Metered!T1 -> IGS Sec | P1: =+Metered!U1 -> IGS Pri | Q1: =+Metered!V1 -> IGS Sub | R1: =+Metered!W1 -> IGS Tran | S1: =+Metered!X1 -> MW | T1: =+Metered!Y1 -> OL | U1: =+Metered!Z1 -> SL | V1: =+Metered!AA1 -> Blank 0 | W1: =+Metered!AB1 -> Blank 1 | X1: =+Metered!AC1 -> Blank 2 | Y1: =+Metered!AD1 -> Blank 3 | Z1: =+Metered!AE1 -> Blank 4 | AA1: =+Metered!AF1 -> Blank 5 | AB1: =+Metered!AG1 -> Blank 6 | AC1: =+Metered!AH1 -> Blank 7 | AD1: =+Metered!AI1 -> Blank 8 | AE1: =+Metered!AJ1 -> Blank 9 | AF1: =+Metered!AK1 -> Blank 10 | AG1: =+Metered!AL1 -> Blank 11 | AH1: =+Metered!AM1 -> Blank 12
C2: Loss Adj | D2: =+Metered!I2 -> Secondary | E2: =+Metered!J2 -> Secondary | F2: =+Metered!K2 -> Secondary | G2: =+Metered!L2 -> Primary | H2: =+Metered!M2 -> Subtransmission | I2: =+Metered!N2 -> Secondary | J2: =+Metered!O2 -> Primary | K2: =+Metered!P2 -> Subtransmission | L2: =+Metered!Q2 -> Transmission | M2: =+Metered!R2 -> Secondary | N2: =+Metered!S2 -> Primary | O2: =+Metered!T2 -> Secondary | P2: =+Metered!U2 -> Primary | Q2: =+Metered!V2 -> Subtransmission | R2: =+Metered!W2 -> Transmission | S2: =+Metered!X2 -> Secondary | T2: =+Metered!Y2 -> Secondary | U2: =+Metered!Z2 -> Secondary | V2: =+Metered!AA2 -> Subtransmission | W2: =+Metered!AB2 -> Secondary | X2: =+Metered!AC2 -> Secondary | Y2: =+Metered!AD2 -> Subtransmission | Z2: =+Metered!AE2 -> Transmission | AA2: =+Metered!AF2 -> Secondary | AB2: =+Metered!AG2 -> Primary | AC2: =+Metered!AH2 -> Subtransmission | AD2: =+Metered!AI2 -> Transmission | AE2: =+Metered!AJ2 -> Secondary | AF2: =+Metered!AK2 -> Primary | AG2: =+Metered!AL2 -> Subtransmission | AH2: =+Metered!AM2 -> Subtransmission
A3: =MONTH(B3) -> 3 | B3: =+Inputs!C3 -> 2016-03-01 | C3: =SUM(OFFSET(D3,0,0,1,COUNTA(D3:IV3))) -> 440052.8109 | D3: =IF(D$2="Secondary",Metered!I3*'Loss Adj'!$D2,0) -> 325073.4371 | E3: =IF(E$2="Secondary",+Metered!J3*'Loss Adj'!$D2,0) -> 15142.79994 | F3: =IF(F$2="Secondary",+Metered!K3*'Loss Adj'!$D2,0) -> 42057.70847 | G3: =IF(G$2="Secondary",+Metered!L3*'Loss Adj'!$D2,0) -> 0 | H3: =IF(H$2="Secondary",+Metered!M3*'Loss Adj'!$D2,0) -> 0 | I3: =IF(I$2="Secondary",+Metered!N3*'Loss Adj'!$D2,0) -> 33696.137 | J3: =IF(J$2="Secondary",+Metered!O3*'Loss Adj'!$D2,0) -> 0 | K3: =IF(K$2="Secondary",+Metered!P3*'Loss Adj'!$D2,0) -> 0 | L3: =IF(L$2="Secondary",+Metered!Q3*'Loss Adj'!$D2,0) -> 0 | M3: =IF(M$2="Secondary",+Metered!R3*'Loss Adj'!$D2,0) -> 8948.912671 | N3: =IF(N$2="Secondary",+Metered!S3*'Loss Adj'!$D2,0) -> 0 | O3: =IF(O$2="Secondary",+Metered!T3*'Loss Adj'!$D2,0) -> 1896.817963 | P3: =IF(P$2="Secondary",+Metered!U3*'Loss Adj'!$D2,0) -> 0 | Q3: =IF(Q$2="Secondary",+Metered!V3*'Loss Adj'!$D2,0) -> 0 | R3: =IF(R$2="Secondary",+Metered!W3*'Loss Adj'!$D2,0) -> 0 | S3: =IF(S$2="Secondary",+Metered!X3*'Loss Adj'!$D2,0) -> 212.6785027 | T3: =IF(T$2="Secondary",+Metered!Y3*'Loss Adj'!$D2,0) -> 10795.82892 | U3: =IF(U$2="Secondary",+Metered!Z3*'Loss Adj'!$D2,0) -> 2228.49035 | V3: =IF(V$2="Secondary",+Metered!AA3*'Loss Adj'!$D2,0) -> 0 | W3: =IF(W$2="Secondary",+Metered!AB3*'Loss Adj'!$D2,0) -> 0 | X3: =IF(X$2="Secondary",+Metered!AC3*'Loss Adj'!$D2,0) -> 0 | Y3: =IF(Y$2="Secondary",+Metered!AD3*'Loss Adj'!$D2,0) -> 0 | Z3: =IF(Z$2="Secondary",+Metered!AE3*'Loss Adj'!$D2,0) -> 0 | AA3: =IF(AA$2="Secondary",+Metered!AF3*'Loss Adj'!$D2,0) -> 0 | AB3: =IF(AB$2="Secondary",+Metered!AG3*'Loss Adj'!$D2,0) -> 0 | AC3: =IF(AC$2="Secondary",+Metered!AH3*'Loss Adj'!$D2,0) -> 0 | AD3: =IF(AD$2="Secondary",+Metered!AI3*'Loss Adj'!$D2,0) -> 0 | AE3: =IF(AE$2="Secondary",+Metered!AJ3*'Loss Adj'!$D2,0) -> 0 | AF3: =IF(AF$2="Secondary",+Metered!AK3*'Loss Adj'!$D2,0) -> 0 | AG3: =IF(AG$2="Secondary",+Metered!AL3*'Loss Adj'!$D2,0) -> 0 | AH3: =IF(AH$2="Secondary",+Metered!AM3*'Loss Adj'!$D2,0) -> 0
A4: 3 | B4: =+B3+1/24 -> 2016-03-01T01:00:00 | C4: 451129.2456 | D4: =IF(D$2="Secondary",Metered!I4*'Loss Adj'!$D3,0) -> 333225.8411 | E4: =IF(E$2="Secondary",+Metered!J4*'Loss Adj'!$D3,0) -> 14948.38533 | F4: =IF(F$2="Secondary",+Metered!K4*'Loss Adj'!$D3,0) -> 44782.47888 | G4: =IF(G$2="Secondary",+Metered!L4*'Loss Adj'!$D3,0) -> 0 | H4: =IF(H$2="Secondary",+Metered!M4*'Loss Adj'!$D3,0) -> 0 | I4: =IF(I$2="Secondary",+Metered!N4*'Loss Adj'!$D3,0) -> 33883.58389 | J4: =IF(J$2="Secondary",+Metered!O4*'Loss Adj'!$D3,0) -> 0 | K4: =IF(K$2="Secondary",+Metered!P4*'Loss Adj'!$D3,0) -> 0 | L4: =IF(L$2="Secondary",+Metered!Q4*'Loss Adj'!$D3,0) -> 0 | M4: =IF(M$2="Secondary",+Metered!R4*'Loss Adj'!$D3,0) -> 9109.914322 | N4: =IF(N$2="Secondary",+Metered!S4*'Loss Adj'!$D3,0) -> 0 | O4: =IF(O$2="Secondary",+Metered!T4*'Loss Adj'!$D3,0) -> 1922.558018 | P4: =IF(P$2="Secondary",+Metered!U4*'Loss Adj'!$D3,0) -> 0 | Q4: =IF(Q$2="Secondary",+Metered!V4*'Loss Adj'!$D3,0) -> 0 | R4: =IF(R$2="Secondary",+Metered!W4*'Loss Adj'!$D3,0) -> 0 | S4: =IF(S$2="Secondary",+Metered!X4*'Loss Adj'!$D3,0) -> 236.9486265 | T4: =IF(T$2="Secondary",+Metered!Y4*'Loss Adj'!$D3,0) -> 10791.86359 | U4: =IF(U$2="Secondary",+Metered!Z4*'Loss Adj'!$D3,0) -> 2227.67182 | V4: =IF(V$2="Secondary",+Metered!AA4*'Loss Adj'!$D3,0) -> 0 | W4: =IF(W$2="Secondary",+Metered!AB4*'Loss Adj'!$D3,0) -> 0 | X4: =IF(X$2="Secondary",+Metered!AC4*'Loss Adj'!$D3,0) -> 0 | Y4: =IF(Y$2="Secondary",+Metered!AD4*'Loss Adj'!$D3,0) -> 0 | Z4: =IF(Z$2="Secondary",+Metered!AE4*'Loss Adj'!$D3,0) -> 0 | AA4: =IF(AA$2="Secondary",+Metered!AF4*'Loss Adj'!$D3,0) -> 0 | AB4: =IF(AB$2="Secondary",+Metered!AG4*'Loss Adj'!$D3,0) -> 0 | AC4: =IF(AC$2="Secondary",+Metered!AH4*'Loss Adj'!$D3,0) -> 0 | AD4: =IF(AD$2="Secondary",+Metered!AI4*'Loss Adj'!$D3,0) -> 0 | AE4: =IF(AE$2="Secondary",+Metered!AJ4*'Loss Adj'!$D3,0) -> 0 | AF4: =IF(AF$2="Secondary",+Metered!AK4*'Loss Adj'!$D3,0) -> 0 | AG4: =IF(AG$2="Secondary",+Metered!AL4*'Loss Adj'!$D3,0) -> 0 | AH4: =IF(AH$2="Secondary",+Metered!AM4*'Loss Adj'!$D3,0) -> 0
A5: 3 | B5: 2016-03-01T02:00:00 | C5: 427820.9616 | D5: =IF(D$2="Secondary",Metered!I5*'Loss Adj'!$D4,0) -> 307914.9786 | E5: =IF(E$2="Secondary",+Metered!J5*'Loss Adj'!$D4,0) -> 16244.55861 | F5: =IF(F$2="Secondary",+Metered!K5*'Loss Adj'!$D4,0) -> 45480.28175 | G5: =IF(G$2="Secondary",+Metered!L5*'Loss Adj'!$D4,0) -> 0 | H5: =IF(H$2="Secondary",+Metered!M5*'Loss Adj'!$D4,0) -> 0 | I5: =IF(I$2="Secondary",+Metered!N5*'Loss Adj'!$D4,0) -> 33535.51395 | J5: =IF(J$2="Secondary",+Metered!O5*'Loss Adj'!$D4,0) -> 0 | K5: =IF(K$2="Secondary",+Metered!P5*'Loss Adj'!$D4,0) -> 0 | L5: =IF(L$2="Secondary",+Metered!Q5*'Loss Adj'!$D4,0) -> 0 | M5: =IF(M$2="Secondary",+Metered!R5*'Loss Adj'!$D4,0) -> 9414.13744 | N5: =IF(N$2="Secondary",+Metered!S5*'Loss Adj'!$D4,0) -> 0 | O5: =IF(O$2="Secondary",+Metered!T5*'Loss Adj'!$D4,0) -> 1989.095667 | P5: =IF(P$2="Secondary",+Metered!U5*'Loss Adj'!$D4,0) -> 0 | Q5: =IF(Q$2="Secondary",+Metered!V5*'Loss Adj'!$D4,0) -> 0 | R5: =IF(R$2="Secondary",+Metered!W5*'Loss Adj'!$D4,0) -> 0 | S5: =IF(S$2="Secondary",+Metered!X5*'Loss Adj'!$D4,0) -> 212.4111947 | T5: =IF(T$2="Secondary",+Metered!Y5*'Loss Adj'!$D4,0) -> 10800.52471 | U5: =IF(U$2="Secondary",+Metered!Z5*'Loss Adj'!$D4,0) -> 2229.459662 | V5: =IF(V$2="Secondary",+Metered!AA5*'Loss Adj'!$D4,0) -> 0 | W5: =IF(W$2="Secondary",+Metered!AB5*'Loss Adj'!$D4,0) -> 0 | X5: =IF(X$2="Secondary",+Metered!AC5*'Loss Adj'!$D4,0) -> 0 | Y5: =IF(Y$2="Secondary",+Metered!AD5*'Loss Adj'!$D4,0) -> 0 | Z5: =IF(Z$2="Secondary",+Metered!AE5*'Loss Adj'!$D4,0) -> 0 | AA5: =IF(AA$2="Secondary",+Metered!AF5*'Loss Adj'!$D4,0) -> 0 | AB5: =IF(AB$2="Secondary",+Metered!AG5*'Loss Adj'!$D4,0) -> 0 | AC5: =IF(AC$2="Secondary",+Metered!AH5*'Loss Adj'!$D4,0) -> 0 | AD5: =IF(AD$2="Secondary",+Metered!AI5*'Loss Adj'!$D4,0) -> 0 | AE5: =IF(AE$2="Secondary",+Metered!AJ5*'Loss Adj'!$D4,0) -> 0 | AF5: =IF(AF$2="Secondary",+Metered!AK5*'Loss Adj'!$D4,0) -> 0 | AG5: =IF(AG$2="Secondary",+Metered!AL5*'Loss Adj'!$D4,0) -> 0 | AH5: =IF(AH$2="Secondary",+Metered!AM5*'Loss Adj'!$D4,0) -> 0
A6: 3 | B6: 2016-03-01T03:00:00 | C6: 463782.0199 | D6: =IF(D$2="Secondary",Metered!I6*'Loss Adj'!$D5,0) -> 341828.4444 | E6: =IF(E$2="Secondary",+Metered!J6*'Loss Adj'!$D5,0) -> 16408.07563 | F6: =IF(F$2="Secondary",+Metered!K6*'Loss Adj'!$D5,0) -> 45863.91822 | G6: =IF(G$2="Secondary",+Metered!L6*'Loss Adj'!$D5,0) -> 0 | H6: =IF(H$2="Secondary",+Metered!M6*'Loss Adj'!$D5,0) -> 0 | I6: =IF(I$2="Secondary",+Metered!N6*'Loss Adj'!$D5,0) -> 34221.66709 | J6: =IF(J$2="Secondary",+Metered!O6*'Loss Adj'!$D5,0) -> 0 | K6: =IF(K$2="Secondary",+Metered!P6*'Loss Adj'!$D5,0) -> 0 | L6: =IF(L$2="Secondary",+Metered!Q6*'Loss Adj'!$D5,0) -> 0 | M6: =IF(M$2="Secondary",+Metered!R6*'Loss Adj'!$D5,0) -> 10210.89167 | N6: =IF(N$2="Secondary",+Metered!S6*'Loss Adj'!$D5,0) -> 0 | O6: =IF(O$2="Secondary",+Metered!T6*'Loss Adj'!$D5,0) -> 1997.810139 | P6: =IF(P$2="Secondary",+Metered!U6*'Loss Adj'!$D5,0) -> 0 | Q6: =IF(Q$2="Secondary",+Metered!V6*'Loss Adj'!$D5,0) -> 0 | R6: =IF(R$2="Secondary",+Metered!W6*'Loss Adj'!$D5,0) -> 0 | S6: =IF(S$2="Secondary",+Metered!X6*'Loss Adj'!$D5,0) -> 236.5870587 | T6: =IF(T$2="Secondary",+Metered!Y6*'Loss Adj'!$D5,0) -> 10787.7939 | U6: =IF(U$2="Secondary",+Metered!Z6*'Loss Adj'!$D5,0) -> 2226.83175 | V6: =IF(V$2="Secondary",+Metered!AA6*'Loss Adj'!$D5,0) -> 0 | W6: =IF(W$2="Secondary",+Metered!AB6*'Loss Adj'!$D5,0) -> 0 | X6: =IF(X$2="Secondary",+Metered!AC6*'Loss Adj'!$D5,0) -> 0 | Y6: =IF(Y$2="Secondary",+Metered!AD6*'Loss Adj'!$D5,0) -> 0 | Z6: =IF(Z$2="Secondary",+Metered!AE6*'Loss Adj'!$D5,0) -> 0 | AA6: =IF(AA$2="Secondary",+Metered!AF6*'Loss Adj'!$D5,0) -> 0 | AB6: =IF(AB$2="Secondary",+Metered!AG6*'Loss Adj'!$D5,0) -> 0 | AC6: =IF(AC$2="Secondary",+Metered!AH6*'Loss Adj'!$D5,0) -> 0 | AD6: =IF(AD$2="Secondary",+Metered!AI6*'Loss Adj'!$D5,0) -> 0 | AE6: =IF(AE$2="Secondary",+Metered!AJ6*'Loss Adj'!$D5,0) -> 0 | AF6: =IF(AF$2="Secondary",+Metered!AK6*'Loss Adj'!$D5,0) -> 0 | AG6: =IF(AG$2="Secondary",+Metered!AL6*'Loss Adj'!$D5,0) -> 0 | AH6: =IF(AH$2="Secondary",+Metered!AM6*'Loss Adj'!$D5,0) -> 0
A7: 3 | B7: 2016-03-01T04:00:00 | C7: 491347.1368 | D7: =IF(D$2="Secondary",Metered!I7*'Loss Adj'!$D6,0) -> 365692.8106 | E7: =IF(E$2="Secondary",+Metered!J7*'Loss Adj'!$D6,0) -> 17250.80323 | F7: =IF(F$2="Secondary",+Metered!K7*'Loss Adj'!$D6,0) -> 43997.24018 | G7: =IF(G$2="Secondary",+Metered!L7*'Loss Adj'!$D6,0) -> 0 | H7: =IF(H$2="Secondary",+Metered!M7*'Loss Adj'!$D6,0) -> 0 | I7: =IF(I$2="Secondary",+Metered!N7*'Loss Adj'!$D6,0) -> 37904.71396 | J7: =IF(J$2="Secondary",+Metered!O7*'Loss Adj'!$D6,0) -> 0 | K7: =IF(K$2="Secondary",+Metered!P7*'Loss Adj'!$D6,0) -> 0 | L7: =IF(L$2="Secondary",+Metered!Q7*'Loss Adj'!$D6,0) -> 0 | M7: =IF(M$2="Secondary",+Metered!R7*'Loss Adj'!$D6,0) -> 11245.4687 | N7: =IF(N$2="Secondary",+Metered!S7*'Loss Adj'!$D6,0) -> 0 | O7: =IF(O$2="Secondary",+Metered!T7*'Loss Adj'!$D6,0) -> 2013.602548 | P7: =IF(P$2="Secondary",+Metered!U7*'Loss Adj'!$D6,0) -> 0 | Q7: =IF(Q$2="Secondary",+Metered!V7*'Loss Adj'!$D6,0) -> 0 | R7: =IF(R$2="Secondary",+Metered!W7*'Loss Adj'!$D6,0) -> 0 | S7: =IF(S$2="Secondary",+Metered!X7*'Loss Adj'!$D6,0) -> 237.1879092 | T7: =IF(T$2="Secondary",+Metered!Y7*'Loss Adj'!$D6,0) -> 10780.07194 | U7: =IF(U$2="Secondary",+Metered!Z7*'Loss Adj'!$D6,0) -> 2225.237771 | V7: =IF(V$2="Secondary",+Metered!AA7*'Loss Adj'!$D6,0) -> 0 | W7: =IF(W$2="Secondary",+Metered!AB7*'Loss Adj'!$D6,0) -> 0 | X7: =IF(X$2="Secondary",+Metered!AC7*'Loss Adj'!$D6,0) -> 0 | Y7: =IF(Y$2="Secondary",+Metered!AD7*'Loss Adj'!$D6,0) -> 0 | Z7: =IF(Z$2="Secondary",+Metered!AE7*'Loss Adj'!$D6,0) -> 0 | AA7: =IF(AA$2="Secondary",+Metered!AF7*'Loss Adj'!$D6,0) -> 0 | AB7: =IF(AB$2="Secondary",+Metered!AG7*'Loss Adj'!$D6,0) -> 0 | AC7: =IF(AC$2="Secondary",+Metered!AH7*'Loss Adj'!$D6,0) -> 0 | AD7: =IF(AD$2="Secondary",+Metered!AI7*'Loss Adj'!$D6,0) -> 0 | AE7: =IF(AE$2="Secondary",+Metered!AJ7*'Loss Adj'!$D6,0) -> 0 | AF7: =IF(AF$2="Secondary",+Metered!AK7*'Loss Adj'!$D6,0) -> 0 | AG7: =IF(AG$2="Secondary",+Metered!AL7*'Loss Adj'!$D6,0) -> 0 | AH7: =IF(AH$2="Secondary",+Metered!AM7*'Loss Adj'!$D6,0) -> 0
A8: 3 | B8: 2016-03-01T05:00:00 | C8: 586398.4054 | D8: =IF(D$2="Secondary",Metered!I8*'Loss Adj'!$D7,0) -> 454803.7219 | E8: =IF(E$2="Secondary",+Metered!J8*'Loss Adj'!$D7,0) -> 17822.2184 | F8: =IF(F$2="Secondary",+Metered!K8*'Loss Adj'!$D7,0) -> 44857.05361 | G8: =IF(G$2="Secondary",+Metered!L8*'Loss Adj'!$D7,0) -> 0 | H8: =IF(H$2="Secondary",+Metered!M8*'Loss Adj'!$D7,0) -> 0 | I8: =IF(I$2="Secondary",+Metered!N8*'Loss Adj'!$D7,0) -> 44945.13059 | J8: =IF(J$2="Secondary",+Metered!O8*'Loss Adj'!$D7,0) -> 0 | K8: =IF(K$2="Secondary",+Metered!P8*'Loss Adj'!$D7,0) -> 0 | L8: =IF(L$2="Secondary",+Metered!Q8*'Loss Adj'!$D7,0) -> 0 | M8: =IF(M$2="Secondary",+Metered!R8*'Loss Adj'!$D7,0) -> 12948.45039 | N8: =IF(N$2="Secondary",+Metered!S8*'Loss Adj'!$D7,0) -> 0 | O8: =IF(O$2="Secondary",+Metered!T8*'Loss Adj'!$D7,0) -> 2116.320657 | P8: =IF(P$2="Secondary",+Metered!U8*'Loss Adj'!$D7,0) -> 0 | Q8: =IF(Q$2="Secondary",+Metered!V8*'Loss Adj'!$D7,0) -> 0 | R8: =IF(R$2="Secondary",+Metered!W8*'Loss Adj'!$D7,0) -> 0 | S8: =IF(S$2="Secondary",+Metered!X8*'Loss Adj'!$D7,0) -> 248.3958686 | T8: =IF(T$2="Secondary",+Metered!Y8*'Loss Adj'!$D7,0) -> 7175.862349 | U8: =IF(U$2="Secondary",+Metered!Z8*'Loss Adj'!$D7,0) -> 1481.251705 | V8: =IF(V$2="Secondary",+Metered!AA8*'Loss Adj'!$D7,0) -> 0 | W8: =IF(W$2="Secondary",+Metered!AB8*'Loss Adj'!$D7,0) -> 0 | X8: =IF(X$2="Secondary",+Metered!AC8*'Loss Adj'!$D7,0) -> 0 | Y8: =IF(Y$2="Secondary",+Metered!AD8*'Loss Adj'!$D7,0) -> 0 | Z8: =IF(Z$2="Secondary",+Metered!AE8*'Loss Adj'!$D7,0) -> 0 | AA8: =IF(AA$2="Secondary",+Metered!AF8*'Loss Adj'!$D7,0) -> 0 | AB8: =IF(AB$2="Secondary",+Metered!AG8*'Loss Adj'!$D7,0) -> 0 | AC8: =IF(AC$2="Secondary",+Metered!AH8*'Loss Adj'!$D7,0) -> 0 | AD8: =IF(AD$2="Secondary",+Metered!AI8*'Loss Adj'!$D7,0) -> 0 | AE8: =IF(AE$2="Secondary",+Metered!AJ8*'Loss Adj'!$D7,0) -> 0 | AF8: =IF(AF$2="Secondary",+Metered!AK8*'Loss Adj'!$D7,0) -> 0 | AG8: =IF(AG$2="Secondary",+Metered!AL8*'Loss Adj'!$D7,0) -> 0 | AH8: =IF(AH$2="Secondary",+Metered!AM8*'Loss Adj'!$D7,0) -> 0
A9: 3 | B9: 2016-03-01T06:00:00 | C9: 613477.7403 | D9: =IF(D$2="Secondary",Metered!I9*'Loss Adj'!$D8,0) -> 474863.5811 | E9: =IF(E$2="Secondary",+Metered!J9*'Loss Adj'!$D8,0) -> 17494.18379 | F9: =IF(F$2="Secondary",+Metered!K9*'Loss Adj'!$D8,0) -> 48009.92426 | G9: =IF(G$2="Secondary",+Metered!L9*'Loss Adj'!$D8,0) -> 0 | H9: =IF(H$2="Secondary",+Metered!M9*'Loss Adj'!$D8,0) -> 0 | I9: =IF(I$2="Secondary",+Metered!N9*'Loss Adj'!$D8,0) -> 54627.76198 | J9: =IF(J$2="Secondary",+Metered!O9*'Loss Adj'!$D8,0) -> 0 | K9: =IF(K$2="Secondary",+Metered!P9*'Loss Adj'!$D8,0) -> 0 | L9: =IF(L$2="Secondary",+Metered!Q9*'Loss Adj'!$D8,0) -> 0 | M9: =IF(M$2="Secondary",+Metered!R9*'Loss Adj'!$D8,0) -> 16049.5811 | N9: =IF(N$2="Secondary",+Metered!S9*'Loss Adj'!$D8,0) -> 0 | O9: =IF(O$2="Secondary",+Metered!T9*'Loss Adj'!$D8,0) -> 2196.77631 | P9: =IF(P$2="Secondary",+Metered!U9*'Loss Adj'!$D8,0) -> 0 | Q9: =IF(Q$2="Secondary",+Metered!V9*'Loss Adj'!$D8,0) -> 0 | R9: =IF(R$2="Secondary",+Metered!W9*'Loss Adj'!$D8,0) -> 0 | S9: =IF(S$2="Secondary",+Metered!X9*'Loss Adj'!$D8,0) -> 235.9317716 | T9: =IF(T$2="Secondary",+Metered!Y9*'Loss Adj'!$D8,0) -> 0 | U9: =IF(U$2="Secondary",+Metered!Z9*'Loss Adj'!$D8,0) -> 0 | V9: =IF(V$2="Secondary",+Metered!AA9*'Loss Adj'!$D8,0) -> 0 | W9: =IF(W$2="Secondary",+Metered!AB9*'Loss Adj'!$D8,0) -> 0 | X9: =IF(X$2="Secondary",+Metered!AC9*'Loss Adj'!$D8,0) -> 0 | Y9: =IF(Y$2="Secondary",+Metered!AD9*'Loss Adj'!$D8,0) -> 0 | Z9: =IF(Z$2="Secondary",+Metered!AE9*'Loss Adj'!$D8,0) -> 0 | AA9: =IF(AA$2="Secondary",+Metered!AF9*'Loss Adj'!$D8,0) -> 0 | AB9: =IF(AB$2="Secondary",+Metered!AG9*'Loss Adj'!$D8,0) -> 0 | AC9: =IF(AC$2="Secondary",+Metered!AH9*'Loss Adj'!$D8,0) -> 0 | AD9: =IF(AD$2="Secondary",+Metered!AI9*'Loss Adj'!$D8,0) -> 0 | AE9: =IF(AE$2="Secondary",+Metered!AJ9*'Loss Adj'!$D8,0) -> 0 | AF9: =IF(AF$2="Secondary",+Metered!AK9*'Loss Adj'!$D8,0) -> 0 | AG9: =IF(AG$2="Secondary",+Metered!AL9*'Loss Adj'!$D8,0) -> 0 | AH9: =IF(AH$2="Secondary",+Metered!AM9*'Loss Adj'!$D8,0) -> 0
A10: 3 | B10: 2016-03-01T07:00:00 | C10: 619762.8039 | D10: =IF(D$2="Secondary",Metered!I10*'Loss Adj'!$D9,0) -> 462724.7843 | E10: =IF(E$2="Secondary",+Metered!J10*'Loss Adj'!$D9,0) -> 18638.99984 | F10: =IF(F$2="Secondary",+Metered!K10*'Loss Adj'!$D9,0) -> 58712.26189 | G10: =IF(G$2="Secondary",+Metered!L10*'Loss Adj'!$D9,0) -> 0 | H10: =IF(H$2="Secondary",+Metered!M10*'Loss Adj'!$D9,0) -> 0 | I10: =IF(I$2="Secondary",+Metered!N10*'Loss Adj'!$D9,0) -> 58721.56863 | J10: =IF(J$2="Secondary",+Metered!O10*'Loss Adj'!$D9,0) -> 0 | K10: =IF(K$2="Secondary",+Metered!P10*'Loss Adj'!$D9,0) -> 0 | L10: =IF(L$2="Secondary",+Metered!Q10*'Loss Adj'!$D9,0) -> 0 | M10: =IF(M$2="Secondary",+Metered!R10*'Loss Adj'!$D9,0) -> 18557.68841 | N10: =IF(N$2="Secondary",+Metered!S10*'Loss Adj'!$D9,0) -> 0 | O10: =IF(O$2="Secondary",+Metered!T10*'Loss Adj'!$D9,0) -> 2159.728725 | P10: =IF(P$2="Secondary",+Metered!U10*'Loss Adj'!$D9,0) -> 0 | Q10: =IF(Q$2="Secondary",+Metered!V10*'Loss Adj'!$D9,0) -> 0 | R10: =IF(R$2="Secondary",+Metered!W10*'Loss Adj'!$D9,0) -> 0 | S10: =IF(S$2="Secondary",+Metered!X10*'Loss Adj'!$D9,0) -> 247.7720821 | T10: =IF(T$2="Secondary",+Metered!Y10*'Loss Adj'!$D9,0) -> 0 | U10: =IF(U$2="Secondary",+Metered!Z10*'Loss Adj'!$D9,0) -> 0 | V10: =IF(V$2="Secondary",+Metered!AA10*'Loss Adj'!$D9,0) -> 0 | W10: =IF(W$2="Secondary",+Metered!AB10*'Loss Adj'!$D9,0) -> 0 | X10: =IF(X$2="Secondary",+Metered!AC10*'Loss Adj'!$D9,0) -> 0 | Y10: =IF(Y$2="Secondary",+Metered!AD10*'Loss Adj'!$D9,0) -> 0 | Z10: =IF(Z$2="Secondary",+Metered!AE10*'Loss Adj'!$D9,0) -> 0 | AA10: =IF(AA$2="Secondary",+Metered!AF10*'Loss Adj'!$D9,0) -> 0 | AB10: =IF(AB$2="Secondary",+Metered!AG10*'Loss Adj'!$D9,0) -> 0 | AC10: =IF(AC$2="Secondary",+Metered!AH10*'Loss Adj'!$D9,0) -> 0 | AD10: =IF(AD$2="Secondary",+Metered!AI10*'Loss Adj'!$D9,0) -> 0 | AE10: =IF(AE$2="Secondary",+Metered!AJ10*'Loss Adj'!$D9,0) -> 0 | AF10: =IF(AF$2="Secondary",+Metered!AK10*'Loss Adj'!$D9,0) -> 0 | AG10: =IF(AG$2="Secondary",+Metered!AL10*'Loss Adj'!$D9,0) -> 0 | AH10: =IF(AH$2="Secondary",+Metered!AM10*'Loss Adj'!$D9,0) -> 0
